Workbook

Sheet Configurador
B3: Datos de cliente, partner y oferta a presentar
B5: Cliente | I5: Partner | P5: Oferta
B7: Empresa * | I7: Partner * | P7: Fecha de presentación *
B9: CIF * | I9: CIF | P9: Es válida hasta el día *
B11: Dirección * | I11: Dirección | P11: Fecha de firma
B13: Ciudad * | I13: Ciudad | P13: Lugar de firma
B15: Provincia * | I15: Provincia
B17: Apoderado * | I17: Contacto * | P17: Logo del partner
B19: Teléfono * | I19: Teléfono *
B21: Email * | I21: Email * | P21: Idioma de la propuesta | R21: Castellano | T21: Imprimir:
C23: (*) Campos obligatorios. | P23: Los precios NO incluyen IVA
B24: Productos a ofertar
B26: Modernización del puesto de trabajo
B29: Necesidad del cliente | E29: Producto | I29: Cuota por usuario | J29: Usuarios | K29: Descuento | L29: Recomendamos | N29: Cuota por usuario | P29: Usuarios | Q29: Descuento | R29: Total mensual | S29: Total descuento mensual | T29: Total anual | U29: Total descuento anual | AD29: Pgo mensual
B30: Modernización del puesto de trabajo completa | E30: Microsoft 365 Empresa | I30: 16.9 | L30: AIP | N30: =I46 -> 3.4 | R30: =I30*(1-K30)*J30+N30*(1-Q30)*P30 -> 0 | S30: =((I30*J30)+(N30*P30))-R30 -> 0 | T30: =R30*12 -> 0 | U30: =V30-T30 -> 0 | V30: =(I30*J30)*12+(N30*P30)*12 -> 0 | AD30: =I30*J30+N30*P30 -> 0
B31: Colaboración, Correo y Productividad con Office | E31: O365 Empresa Premium | I31: 10.5 | L31: AIP | N31: =I46 -> 3.4 | R31: =$I$31*(1-$K$31)*$J$31+N31*(1-Q31)*P31+N32*(1-Q32)*P32+N33*(1-Q33)*P33+N34*(1-Q34)*P34 -> 0 | S31: =I31*J31+SUMPRODUCT(N31:N34,P31:P34)-R31 -> 0 | T31: =R31*12 -> 0 | U31: =V32-T31 -> 0
L32: ATP | N32: =I47 -> 1.69 | V32: =(I31*J31+SUMPRODUCT(N31:N34,P31:P34))*12 -> 0 | AD32: =I31*J32+N31*P31+N32*P32+N33*P33+N34*P34 -> 0
L33: EMS | N33: =I48 -> 7.4
L34: ATP+EMS | N34: =I47+I48 -> 9.09
B35: Colaboración y Correo | E35: O365 Empresa Essentials | I35: 4.2 | L35: AIP | N35: =I46 -> 3.4 | R35: =$I$35*(1-$K$35)*$J$35+N35*(1-Q35)*P35+N36*(1-Q36)*P36+N37*(1-Q37)*P37+N38*(1-Q38)*P38 -> 0 | S35: =I35*J35+SUMPRODUCT(N35:N38,P35:P38)-R35 -> 0 | T35: =R35*12 -> 0 | U35: =V36-T35 -> 0
L36: ATP | N36: =I47 -> 1.69 | V36: =(I35*J35+SUMPRODUCT(N35:N38,P35:P38))*12 -> 0 | AD36: =I35*J36+N35*P35+N36*P36+N37*P37+N38*P38 -> 0
L37: EMS | N37: =I48 -> 7.4
L38: =L34 -> ATP+EMS | N38: =I47+I48 -> 9.09
B39: Suite completa de productividad y colaboración empresarial con funcionalidades de voz | E39: Office 365 E5 | I39: 34.4 | L39: AIP | N39: =I46 -> 3.4 | R39: =I39*(1-K39)*J39+N39*(1-Q39)*P39 -> 0 | S39: =((I39*J39)+(N39*P39))-R39 -> 0 | T39: =R39*12 -> 0 | U39: =V39-T39 -> 0 | V39: =(I39*J39)*12+(N39*P39)*12 -> 0 | W39: Permite simplificar tu infraestructura con una sola plataforma para llamadas, conferencias, videos y uso compartido de las aplicaciones de Office que ya conoces. | AD39: =I39*J39+N39*P39 -> 0
B40: Suite de productividad y colaboración empresarial | E40: Office 365 E3 | I40: 19.7 | L40: AIP | N40: =I46 -> 3.4 | R40: =$I$40*(1-$K$40)*$J$40+N40*(1-Q40)*P40+N41*(1-Q41)*P41+N42*(1-Q42)*P42 -> 0 | S40: =I40*J40+SUMPRODUCT(N40:N42,P40:P42)-R40 -> 0 | T40: =R40*12 -> 0 | U40: =V41-T40 -> 0
L41: ATP | N41: =I47 -> 1.69 | V41: =(I40*J40+SUMPRODUCT(N40:N42,P40:P42))*12 -> 0 | W41: Incluye las aplicaciones móviles y de escritorio de Office más recientes, así como sus servicios de colaboración integrados | AD41: =I40*J40+N40*P40+N41*P41+N42*P42 -> 0
L42: EMS | N42: =I48 -> 7.4
B43: Servicios empresariales de colaboración y correo | E43: Office 365 E1 | I43: 6.7 | L43: AIP | N43: =I46 -> 3.4 | R43: =$I$43*(1-$K$43)*$J$43+N43*(1-Q43)*P43+N44*(1-Q44)*P44+N45*(1-Q45)*P45 -> 0 | S43: =I43*J43+SUMPRODUCT(N43:N45,P43:P45)-R43 -> 0 | T43: =R43*12 -> 0 | U43: =V44-T43 -> 0
L44: ATP | N44: =I47 -> 1.69 | V44: =(I43*J43+SUMPRODUCT(N43:N45,P43:P45))*12 -> 0 | W44: Servicios empresariales y aplicaciones de Office basados en web. No se incluyen las aplicaciones de escritorio de Office. | AD44: =I43*J43+N43*P43+N44*P44+N45*P45 -> 0
L45: EMS | N45: =I48 -> 7.4
B46: Herramienta de protección y clasificación del dato | E46: Azure Information Protection. Plan 2 | I46: 3.4 | L46: ----- | N46: ----- | P46: ----- | Q46: ----- | R46: =I46*(1-K46)*J46 -> 0 | S46: =I46*J46-R46 -> 0 | T46: =R46*12 -> 0 | U46: =V46-T46 -> 0 | V46: =(I46*J46)*12 -> 0 | AD46: =I46*J46 -> 0
B47: Seguridad en el correo electrónico | E47: O365 Advanced Threat Protection | I47: 1.69 | L47: ----- | N47: ----- | P47: ----- | Q47: ----- | R47: =I47*(1-K47)*J47 -> 0 | S47: =I47*J47-R47 -> 0 | T47: 0 | U47: =V47-T47 -> 0 | V47: =(I47*J47)*12 -> 0 | AD47: =I47*J47 -> 0
B48: Seguridad y gestión de dispositivos móviles y aplicaciones | E48: Enterprise Mobility and Security | I48: 7.4 | L48: ----- | N48: ----- | P48: ----- | Q48: ----- | R48: =I48*(1-K48)*J48 -> 0 | S48: =I48*J48-R48 -> 0 | T48: 0 | U48: =V48-T48 -> 0 | V48: =(I48*J48)*12 -> 0 | AD48: =I48*J48 -> 0
B49: A medida | R49: =I49*(1-K49)*J49 -> 0 | S49: =I49*J49-R49 -> 0 | T49: 0 | U49: =V49-T49 -> 0 | V49: =(I49*J49)*12 -> 0 | AD49: =I49*J49 -> 0
B50: A medida | R50: =I50*(1-K50)*J50 -> 0 | S50: =I50*J50-R50 -> 0 | T50: 0 | U50: =V50-T50 -> 0 | V50: =(I50*J50)*12 -> 0 | AD50: =I50*J50 -> 0
J51: =SUM(J30:J50) -> 0 | P51: =SUM(P30:P48) -> 0 | R51: =SUM(R30:R50) -> 0 | S51: =SUM(S30:S50) -> 0 | T51: 0 | U51: =SUM(U30:U50) -> 0 | AD51: =SUM(AD30:AD50) -> 0
B52: Los precios NO incluyen IVA
B53: Modernización de Servidores
B56: Necesidad del cliente | E56: Descripción | L56: Producto | N56: Cuota mensual | P56: ¿Contrata? | Q56: Descuento | R56: Recomendamos | T56: Cuota por producto | U56: ¿Contrata? | V56: Descuento | W56: Total mensual | X56: Total anual | Y56: Total descuento anual | AE56: Pago Mensual
B57: Escenario recomendado en base al número de usuarios de Office | E57: 1 servidor virtual con 2 CPUs virtuales, 8 GB RAM, Sistema Operativo Windows con 1 disco duro de 1TB de almacenamiento (RD) y disponibilidad operativa 24 horas + Load Balancer incluido sin coste adicional + Virtual Network (100 GB transferencia de datos/mes) + Directorio Activo Azure hasta 10 usuarios | L57: Sin compromiso, en pago por uso | N57: 209.51 | R57: Backup | T57: 52.14 | W57: =IF(P57>0,N57*(1-Q57)*P57+T57*(1-V57)*U57+T58*(1-V58)*U58+T59*(1-V59)*U59,0) -> 0 | X57: =W57*12 -> 0 | Y57: =IF(P57>0,12*(N57*P57+T57*U57+T58*U58+T59*U59)-X57,0) -> 0 | AD57: =IF(P57>0,N57-(N57*(1-Q57))+T57-(T57*(1-V57))+T58-(T58*(1-V58))+T59-(T59*(1-V59)),0) -> 0 | AE57: =IF(P57>0,N57*P57+T57*U57+T58*U58+T59*U59,0) -> 0
R58: Disaster Recovery | T58: 21.09
R59: SQL Database Server | T59: 377
B60: Infraestructura cloud hasta 10 usuarios | L60: Con compromiso de 1 año | N60: 182.79 | R60: Backup | T60: 52.14 | W60: =IF(P60>0,N60*(1-Q60)*P60+T60*(1-V60)*U60+T61*(1-V61)*U61+T62*(1-V62)*U62,0) -> 0 | X60: =W60*12 -> 0 | Y60: =IF(P60>0,12*(N60*P60+T60*U60+T61*U61+T62*U62)-X60,0) -> 0 | AD60: =IF(P60>0,N60-(N60*(1-Q60))+T60-(T60*(1-V60))+T61-(T61*(1-V61))+T62-(T62*(1-V62)),0) -> 0 | AE60: =IF(P60>0,N60*P60+T60*U60+T61*U61+T62*U62,0) -> 0
R61: Disaster Recovery | T61: 21.09
R62: SQL Database Server | T62: 350
B63: Escenario recomendado en base al número de usuarios de Office | E63: 2 servidores virtuales con 2 vCPUs, 8 GB RAM, Sistema Operativo Windows con 2 discos duros con 1TB de almacenamiento cada uno (RD) y disponibilidad operativa 24 horas + Load Balancer incuido sin coste adicional+ Virtual Network(200 GB transferencia de datos/mes) + Directorio Activo Azure hasta 50 usuarios | L63: Sin compromiso, en pago por uso | N63: 459.9 | R63: Backup | T63: 104 | W63: =IF(P63>0,N63*(1-Q63)*P63+T63*(1-V63)*U63+T64*(1-V64)*U64+T65*(1-V65)*U65,0) -> 0 | X63: =W63*12 -> 0 | Y63: =IF(P63>0,12*(N63*P63+T63*U63+T64*U64+T65*U65)-X63,0) -> 0 | AD63: =IF(P63>0,N63-(N63*(1-Q63))+T63-(T63*(1-V63))+T64-(T64*(1-V64))+T65-(T65*(1-V65)),0) -> 0 | AE63: =IF(P63>0,N63*P63+T63*U63+T64*U64+T65*U65,0) -> 0
R64: Disaster Recovery | T64: 21.09
R65: SQL Database Server | T65: 754
B66: Infraestructura cloud hasta 50 usuarios | L66: Con compromiso de 1 año | N66: 406.32 | R66: Backup | T66: 104 | W66: =IF(P66>0,N66*(1-Q66)*P66+T66*(1-V66)*U66+T67*(1-V67)*U67+T68*(1-V68)*U68,0) -> 0 | X66: =W66*12 -> 0 | Y66: =IF(P66>0,12*(N66*P66+T66*U66+T67*U67+T68*U68)-X66,0) -> 0 | AD66: =IF(P66>0,N66-(N66*(1-Q66))+T66-(T66*(1-V66))+T67-(T67*(1-V67))+T68-(T68*(1-V68)),0) -> 0 | AE66: =IF(P66>0,N66*P66+T66*U66+T67*U67+T68*U68,0) -> 0
R67: Disaster Recovery | T67: 21.09
R68: SQL Database Server | T68: 700
B69: Escenario recomendado en base al número de usuarios de Office | E69: 2 servidores virtuales con 2 vCPUs, 8 GB RAM, Sistema Operativo Windows con 2 discos duros con 2TB de almacenamiento cada uno (RD) y disponibilidad operativa 24 horas + Load Balancer incuido sin coste adicional+ Virtual Network (512 GB transferencia de datos/mes) + Directorio Activo Azure hasta 100 usuarios | L69: Sin compromiso, en pago por uso | N69: 1067.04 | R69: Backup | T69: 191 | W69: =IF(P69>0,N69*(1-Q69)*P69+T69*(1-V69)*U69+T70*(1-V70)*U70+T71*(1-V71)*U71,0) -> 0 | X69: =W69*12 -> 0 | Y69: =IF(P69>0,12*(N69*P69+T69*U69+T70*U70+T71*U71)-X69,0) -> 0 | AD69: =IF(P69>0,N69-(N69*(1-Q69))+T69-(T69*(1-V69))+T70-(T70*(1-V70))+T71-(T71*(1-V71)),0) -> 0 | AE69: =IF(P69>0,N69*P69+T69*U69+T70*U70+T71*U71,0) -> 0
R70: Disaster Recovery | T70: 21.09
R71: SQL Database Server | T71: 1015
B72: Infraestructura cloud hasta 100 usuarios | L72: Con compromiso de 1 año | N72: 939.8 | R72: Backup | T72: 104 | W72: =IF(P72>0,N72*(1-Q72)*P72+T72*(1-V72)*U72+T73*(1-V73)*U73+T74*(1-V74)*U74,0) -> 0 | X72: =W72*12 -> 0 | Y72: =IF(P72>0,12*(N72*P72+T72*U72+T73*U73+T74*U74)-X72,0) -> 0 | AD72: =IF(P72>0,N72-(N72*(1-Q72))+T72-(T72*(1-V72))+T73-(T73*(1-V73))+T74-(T74*(1-V74)),0) -> 0 | AE72: =IF(P72>0,N72*P72+T72*U72+T73*U73+T74*U74,0) -> 0
R73: Disaster Recovery | T73: 21.09
R74: SQL Database Server | T74: 907.22
B75: A medida | W75: =IF(P75>0,N75*(1-Q75)*P75+T75*(1-V75)*U75,0) -> 0 | X75: =W75*12 -> 0 | Y75: =IF(P75>0,12*(N75*P75+T75*U75)-X75,0) -> 0 | AD75: =N75-(N75*(1-Q75)) -> 0 | AE75: =IF(P75>0,N75*P75+T75*U75,0) -> 0
B76: * WS CALs tienen compromiso de permanencia de un año | P76: =SUM(P57:P75) -> 0 | W76: =SUM(W57:W75) -> 0 | X76: =W76*12 -> 0 | Y76: =SUM(Y57:Y75) -> 0 | AD76: =SUM(AD57:AD75) -> 0 | AE76: =SUM(AE57:AE75) -> 0
B78: Necesidad del cliente | E78: Descripción | L78: Producto | N78: Tipo de licencia | Q78: Duración del contrato | R78: Precio Servidor | S78: Unidades | T78: Descuento en el precio del servidor | U78: Windows Server CAL (usuarios) | V78: Precio total | W78: RDS CAL* (usuarios) Opcional | X78: Precio total | Y78: Total
A79: =CONCATENATE(L79,N79,Q79) -> SQL Server Standard Core (mínimo 4 cores)2 Core License Pack | B79: Modernización BBDD OnPremise preparada para el Cloud | E79: Esta modalidad permite actualizar a la última versión su BBDD con los beneficios que conlleva y aprovechar la inversión para su implementación en nube cuando esté preparado sin necesidad de volver a invertir. Haga inversiones consistentes para su cloud híbrido. | L79: SQL Server Standard Core (mínimo 4 cores) | N79: 2 Core License Pack | R79: =IF(Q79="1 año",LN_Server!E4,IF(Q79="3 años",LN_Server!E5,0)) -> 0 | U79: No aplica | V79: No aplica | W79: No aplica | X79: No aplica | Y79: =R79*S79*(1-T79) -> 0
A80: =CONCATENATE(L80,N80,Q80) -> Windows Server Standard Core (mínimo 16 cores)8 Core License Pack | B80: Modernización de Servidores OnPremise preparados para el Cloud | E80: Esta modalidad permite actualizar a la última versión su infraestructura de servidores con los beneficios que conlleva y aprovechar la inversión para su implementación en nube cuando esté preparado si necesidad de volver a invertir. Haga inversiones consistentes para su cloud híbrido. | L80: Windows Server Standard Core (mínimo 16 cores) | N80: 8 Core License Pack | R80: =IF(Q80="1 año",LN_Server!E16,IF(Q80="3 años",LN_Server!E17,0)) -> 0 | V80: =IF(Q80="1 año",LN_Server!E8,IF(Q80="3 años",LN_Server!E6,0)) -> 0 | X80: =IF(Q80="1 año",LN_Server!E14,IF(Q80="3 años",LN_Server!E13,0)) -> 0 | Y80: =R80*S80*(1-T80)+U80*V80+W80*X80 -> 0
S81: =SUM(S79:S80) -> 0 | Y81: =SUM(Y79:Y80) -> 0
B82: *Licencia que le permite publicar sus aplicaciones o servicios en remoto a través de RDS ( Remote Desktop Services)
B84: Aplicaciones de negocio
B86: Necesidad del cliente | E86: Producto | I86: Descripción | N86: Cuota por usuario/mes* | P86: Número de Usuarios | Q86: Descuento | R86: Total mensual | S86: Total anual | T86: Total descuento anual | AE86: Pago mensual | AF86: Dto | AG86: Pago anual
B87: Gestión Avanzada de recursos empresariales | E87: Dynamics 365 Business Central Premium | I87: ERP completo: fabricación, gestión de servicios, contabilidad y finanzas, clientes, cadena de suministro y gestión de proyectos. | N87: 84.33 | R87: =N87*(1-Q87)*P87 -> 0 | S87: =R87*12 -> 0 | T87: =AG87-S87 -> 0 | AE87: =N87*P87 -> 0 | AF87: =N87*P87*Q87 -> 0 | AG87: =(P87*N87)*12 -> 0
B88: Gestión de recursos empresariales | E88: Dynamics 365 Business Central Essentials | I88: ERP que incluye contabilidad y finanzas, clientes, cadena de suministro y gestión de proyectos. | N88: 59.03 | R88: 0 | S88: 0 | T88: 0 | AE88: =N88*P88 -> 0 | AF88: =N88*P88*Q88 -> 0 | AG88: =(P88*N88)*12 -> 0
B89: Proveer acceso a información básica de negocio a determinados usuarios de la organización | E89: Dynamics 365 Business Central Team Members | I89: Acceso de lectura y actualización de registros ya existentes en Business Central y realización de actividades sencillas | N89: 6.76 | R89: 0 | S89: 0 | T89: 0 | AE89: =N89*P89 -> 0 | AF89: =N89*P89*Q89 -> 0 | AG89: =(P89*N89)*12 -> 0
B90: Solución de automatización de fuerza de ventas | E90: Dynamics 365 for Sales Professional | I90: Solución CRM completamente integrada con Office 365 que facilita la automatización de procesos de ventas | N90: 54.8 | R90: 0 | S90: 0 | T90: 0 | AE90: =N90*P90 -> 0 | AF90: =N90*P90*Q90 -> 0 | AG90: =(P90*N90)*12 -> 0
B91: Solución de inteligencia de negocio | E91: Power BI | I91: Solución de visualización para análisis de datos que permite crear cuadros de mando gráficos que pueden ser compartidos con toda la organización, o estar embebidos en una amplicación o página web. | N91: 8.4 | R91: 0 | S91: 0 | T91: 0 | AE91: =N91*P91 -> 0 | AF91: =N91*P91*Q91 -> 0 | AG91: =(P91*N91)*12 -> 0
B92: Entorno para construir aplicaciones de negocio sin necesidad de código | E92: Power Apps | I92: Conjunto de aplicaciones, servicios, conectores y plataforma de datos que proporciona un entorno de desarrollo rápido para crear aplicaciones sin o con poca necesidad de escribir código | N92: 7,00 € *** | R92: =AC92*(1-Q92)*P92 -> 0 | S92: 0 | T92: 0 | AC92: 7 | AE92: =AC92*P92 -> 0 | AF92: =AC92*P92*Q92 -> 0 | AG92: =(P92*AC92)*12 -> 0
B93: Seguimiento de clientes | E93: Outlook Customer Manager (add in O365) | I93: Seguimiento de la actividad con los clientes integrado en Outlook | N93: Incluido con M365 Empresa y O365 Empresa Premium | Q93: No aplica | R93: 0 | S93: 0 | T93: 0 | AE93: 0 | AF93: 0 | AG93: 0
B94: Organización del trabajo en equipo | E94: Planner (add in O365) | I94: Creación y gestión de planes de proyecto de forma visual y sencilla | N94: Incluido con M365 Empresa y O365 Empresa | Q94: No aplica | R94: 0 | S94: 0 | T94: 0 | AE94: 0 | AF94: 0 | AG94: 0
B95: Gestión de citas online | E95: Bookings (add in O365) | I95: Aplicación web de gestión de citas, con notificaciones e integración en agendas | N95: Incluido con M365 Empresa y O365 Empresa Premium | Q95: No aplica | R95: 0 | S95: 0 | T95: 0 | AE95: 0 | AF95: 0 | AG95: 0
B96: * Las cuotas indicadas sólo incluyen licencia. No incluye configuración y formación | P96: =SUM(P87:P95) -> 0 | R96: =SUM(R87:R95) -> 0 | S96: =R96*12 -> 0 | T96: =SUM(T87:T95) -> 0 | AE96: =SUM(AE87:AE95) -> 0 | AF96: =SUM(AF87:AF95) -> 0 | AG96: =SUM(AG87:AG95) -> 0
B97: **Plan 1 Power Apps= Incluye derechos de uso del modelo común de datos de Dynamics 365 (20 MB de capacidad de BBDD), incluye conectores estándar, premium, a medida y en local. Incluye 4500 flujos de trabajo de Microsoft Flow
B98: Consultar con mayorista los servicios de despliegue e itinerarios formativos | U98: =(Q98*N98)*12 -> 0
B100: Hardware
B102: Surface
B103: Equipo | C103: Beneficio | D103: Pantalla | E103: Procesador | F103: Memoria RAM (MB) | G103: Disco duro (GB) | I103: Conectividad móvil (LTE) | J103: Tipo de pago | K103: Precio en pago único | L103: Precio en cuota mensual | M103: Descuento | N103: Número de equipos | P103: Funda | Q103: Precio unitario | R103: Descuento | S103: Garantía | T103: Precio unitario | U103: Descuento | V103: Total pago inicial | W103: Total mensual | X103: Total primer año | Y103: Total años sucesivos | Z103: Total descuento primer año | AC103: Pago Inicial | AD103: Pago Mensual | AE103: Dto Pago Inicial | AF103: Dto Pago Mensuall | AG103: Pago Neto Anualizado | AN103: Para desplegables | AS103: Para precio | AT103: Para fundas | AV103: Para garantías
A104: 1 | C104: =IF(ISERROR(VLOOKUP(B104,LN_Surface!$B$1:$C$5,2,FALSE)),"",VLOOKUP(B104,LN_Surface!$B$1:$C$5,2,FALSE)) ->  | K104: =IF(J104="Mensual",0,IF(ISERROR(VLOOKUP(AS104,LN_Surface!$C$22:$I$47,7,FALSE)),"No viable",VLOOKUP(AS104,LN_Surface!$C$22:$I$47,7,FALSE))) -> No viable | Q104: =IFERROR(AU104,0) -> 0 | T104: =AW104 -> 0 | V104: =IF(N104>0,N104*(K104*(1-M104)+Q104*(1-R104)+T104*(1-U104)),0) -> 0 | W104: =L104*(1-M104)*N104 -> 0 | X104: =V104+W104*12 -> 0 | Y104: =X104-V104 -> 0 | Z104: =IF(N104>0,N104*(K104+Q104+T104)+L104*12*N104-X104,0) -> 0 | AC104: =IF(N104>0,N104*(K104+Q104+T104),0) -> 0 | AD104: =L104*N104 -> 0 | AE104: =IF(K104="No Viable",0,N104*((K104*M104)+(Q104*R104)+(T104*U104))) -> 0 | AF104: =L104*M104*N104 -> 0 | AG104: =W104*12 -> 0 | AN104: =VLOOKUP(B104,LN_Surface!$B$2:$D$5,3,FALSE) ->  | AO104: =CONCATENATE(AN104,"_",D104*10) ->  | AP104: =CONCATENATE(AO104,"_",IF(E104=LN_Surface!$E$39,"Pentium_Gold_4415Y",E104)) ->  | AQ104: =CONCATENATE(AP104,"_",F104) ->  | AS104: =CONCATENATE(AR104,"_",I104) ->  | AT104: =IF(OR(N104=0,N104=""),"ND",IF(AN104="SP","SP_COVER",IF(AN104="SG","SG_COVER","ND"))) -> ND | AU104: =IF(AT104="SP_COVER",VLOOKUP(P104,LN_Surface!$K$22:$L$23,2,FALSE),IF(AT104="SG_COVER",VLOOKUP(P104,LN_Surface!$K$24:$L$25,2,FALSE),0)) -> 0 | AV104: =IF(OR(S104="",N104=0,B104="",S104="No disponible"),0,IF(AN104="SP",2,IF(AN104="SB",3,IF(AN104="SG",4,IF(AN104="SL",5,0))))) -> 0 | AW104: =IF(AV104=0,0,VLOOKUP(S104,LN_Surface!$K$49:$O$52,Configurador!AV104,FALSE)) -> 0
A105: 2 | C105: =IF(ISERROR(VLOOKUP(B105,LN_Surface!$B$1:$C$5,2,FALSE)),"",VLOOKUP(B105,LN_Surface!$B$1:$C$5,2,FALSE)) ->  | K105: =IF(J105="Mensual",0,IF(ISERROR(VLOOKUP(AS105,LN_Surface!$C$22:$I$47,7,FALSE)),"No viable",VLOOKUP(AS105,LN_Surface!$C$22:$I$47,7,FALSE))) -> No viable | Q105: =IFERROR(AU105,0) -> 0 | T105: =AW105 -> 0 | V105: =IF(N105>0,N105*(K105*(1-M105)+Q105*(1-R105)+T105*(1-U105)),0) -> 0 | W105: =L105*(1-M105)*N105 -> 0 | X105: =V105+W105*12 -> 0 | Y105: =X105-V105 -> 0 | Z105: =IF(N105>0,N105*(K105+Q105+T105)+L105*12*N105-X105,0) -> 0 | AC105: =IF(N105>0,N105*(K105+Q105+T105),0) -> 0 | AD105: =L105*N105 -> 0 | AE105: =IF(K105="No Viable",0,N105*((K105*M105)+(Q105*R105)+(T105*U105))) -> 0 | AF105: =L105*M105*N105 -> 0 | AG105: =W105*12 -> 0 | AN105: =VLOOKUP(B105,LN_Surface!$B$2:$D$5,3,FALSE) ->  | AO105: =CONCATENATE(AN105,"_",D105*10) ->  | AP105: =CONCATENATE(AO105,"_",IF(E105=LN_Surface!$E$39,"Pentium_Gold_4415Y",E105)) ->  | AS105: =CONCATENATE(AR105,"_",I105) ->  | AT105: =IF(OR(N105=0,N105=""),"ND",IF(AN105="SP","SP_COVER",IF(AN105="SG","SG_COVER","ND"))) -> ND | AU105: =IF(AT105="SP_COVER",VLOOKUP(P105,LN_Surface!$K$22:$L$23,2,FALSE),IF(AT105="SG_COVER",VLOOKUP(P105,LN_Surface!$K$24:$L$25,2,FALSE),0)) -> 0 | AV105: =IF(OR(S105="",N105=0,B105="",S105="No disponible"),0,IF(AN105="SP",2,IF(AN105="SB",3,IF(AN105="SG",4,IF(AN105="SL",5,0))))) -> 0 | AW105: =IF(AV105=0,0,VLOOKUP(S105,LN_Surface!$K$49:$O$52,Configurador!AV105,FALSE)) -> 0
A106: 3 | C106: =IF(ISERROR(VLOOKUP(B106,LN_Surface!$B$1:$C$5,2,FALSE)),"",VLOOKUP(B106,LN_Surface!$B$1:$C$5,2,FALSE)) ->  | K106: =IF(J106="Mensual",0,IF(ISERROR(VLOOKUP(AS106,LN_Surface!$C$22:$I$47,7,FALSE)),"No viable",VLOOKUP(AS106,LN_Surface!$C$22:$I$47,7,FALSE))) -> No viable | Q106: =IFERROR(AU106,0) -> 0 | T106: =AW106 -> 0 | V106: =IF(N106>0,N106*(K106*(1-M106)+Q106*(1-R106)+T106*(1-U106)),0) -> 0 | W106: =L106*(1-M106)*N106 -> 0 | X106: =V106+W106*12 -> 0 | Y106: =X106-V106 -> 0 | Z106: =IF(N106>0,N106*(K106+Q106+T106)+L106*12*N106-X106,0) -> 0 | AC106: =IF(N106>0,N106*(K106+Q106+T106),0) -> 0 | AD106: =L106*N106 -> 0 | AE106: 0 | AF106: 0 | AG106: 0 | AN106: =VLOOKUP(B106,LN_Surface!$B$2:$D$5,3,FALSE) ->  | AO106: =CONCATENATE(AN106,"_",D106*10) ->  | AP106: =CONCATENATE(AO106,"_",IF(E106=LN_Surface!$E$39,"Pentium_Gold_4415Y",E106)) ->  | AS106: =CONCATENATE(AR106,"_",I106) ->  | AT106: =IF(OR(N106=0,N106=""),"ND",IF(AN106="SP","SP_COVER",IF(AN106="SG","SG_COVER","ND"))) -> ND | AU106: =IF(AT106="SP_COVER",VLOOKUP(P106,LN_Surface!$K$22:$L$23,2,FALSE),IF(AT106="SG_COVER",VLOOKUP(P106,LN_Surface!$K$24:$L$25,2,FALSE),0)) -> 0 | AV106: =IF(OR(S106="",N106=0,B106="",S106="No disponible"),0,IF(AN106="SP",2,IF(AN106="SB",3,IF(AN106="SG",4,IF(AN106="SL",5,0))))) -> 0 | AW106: =IF(AV106=0,0,VLOOKUP(S106,LN_Surface!$K$49:$O$52,Configurador!AV106,FALSE)) -> 0
A107: 4 | C107: =IF(ISERROR(VLOOKUP(B107,LN_Surface!$B$1:$C$5,2,FALSE)),"",VLOOKUP(B107,LN_Surface!$B$1:$C$5,2,FALSE)) ->  | K107: =IF(J107="Mensual",0,IF(ISERROR(VLOOKUP(AS107,LN_Surface!$C$22:$I$47,7,FALSE)),"No viable",VLOOKUP(AS107,LN_Surface!$C$22:$I$47,7,FALSE))) -> No viable | Q107: =IFERROR(AU107,0) -> 0 | T107: =AW107 -> 0 | V107: =IF(N107>0,N107*(K107*(1-M107)+Q107*(1-R107)+T107*(1-U107)),0) -> 0 | W107: =L107*(1-M107)*N107 -> 0 | X107: =V107+W107*12 -> 0 | Y107: =X107-V107 -> 0 | Z107: =IF(N107>0,N107*(K107+Q107+T107)+L107*12*N107-X107,0) -> 0 | AC107: =IF(N107>0,N107*(K107+Q107+T107),0) -> 0 | AD107: =L107*(1-M107)*N107 -> 0 | AE107: 0 | AF107: 0 | AG107: 0 | AN107: =VLOOKUP(B107,LN_Surface!$B$2:$D$5,3,FALSE) ->  | AO107: =CONCATENATE(AN107,"_",D107*10) ->  | AP107: =CONCATENATE(AO107,"_",IF(E107=LN_Surface!$E$39,"Pentium_Gold_4415Y",E107)) ->  | AS107: =CONCATENATE(AR107,"_",I107) ->  | AT107: =IF(OR(N107=0,N107=""),"ND",IF(AN107="SP","SP_COVER",IF(AN107="SG","SG_COVER","ND"))) -> ND | AU107: =IF(AT107="SP_COVER",VLOOKUP(P107,LN_Surface!$K$22:$L$23,2,FALSE),IF(AT107="SG_COVER",VLOOKUP(P107,LN_Surface!$K$24:$L$25,2,FALSE),0)) -> 0 | AV107: =IF(OR(S107="",N107=0,B107="",S107="No disponible"),0,IF(AN107="SP",2,IF(AN107="SB",3,IF(AN107="SG",4,IF(AN107="SL",5,0))))) -> 0 | AW107: =IF(AV107=0,0,VLOOKUP(S107,LN_Surface!$K$49:$O$52,Configurador!AV107,FALSE)) -> 0
A108: 5 | C108: =IF(ISERROR(VLOOKUP(B108,LN_Surface!$B$1:$C$5,2,FALSE)),"",VLOOKUP(B108,LN_Surface!$B$1:$C$5,2,FALSE)) ->  | K108: =IF(J108="Mensual",0,IF(ISERROR(VLOOKUP(AS108,LN_Surface!$C$22:$I$47,7,FALSE)),"No viable",VLOOKUP(AS108,LN_Surface!$C$22:$I$47,7,FALSE))) -> No viable | Q108: =IFERROR(AU108,0) -> 0 | T108: =AW108 -> 0 | V108: =IF(N108>0,N108*(K108*(1-M108)+Q108*(1-R108)+T108*(1-U108)),0) -> 0 | W108: =L108*(1-M108)*N108 -> 0 | X108: =V108+W108*12 -> 0 | Y108: =X108-V108 -> 0 | Z108: =IF(N108>0,N108*(K108+Q108+T108)+L108*12*N108-X108,0) -> 0 | AC108: =IF(N108>0,N108*(K108+Q108+T108),0) -> 0 | AD108: =L108*N108 -> 0 | AE108: 0 | AF108: 0 | AG108: 0 | AN108: =VLOOKUP(B108,LN_Surface!$B$2:$D$5,3,FALSE) ->  | AO108: =CONCATENATE(AN108,"_",D108*10) ->  | AP108: =CONCATENATE(AO108,"_",IF(E108=LN_Surface!$E$39,"Pentium_Gold_4415Y",E108)) ->  | AS108: =CONCATENATE(AR108,"_",I108) ->  | AT108: =IF(OR(N108=0,N108=""),"ND",IF(AN108="SP","SP_COVER",IF(AN108="SG","SG_COVER","ND"))) -> ND | AU108: =IF(AT108="SP_COVER",VLOOKUP(P108,LN_Surface!$K$22:$L$23,2,FALSE),IF(AT108="SG_COVER",VLOOKUP(P108,LN_Surface!$K$24:$L$25,2,FALSE),0)) -> 0 | AV108: =IF(OR(S108="",N108=0,B108="",S108="No disponible"),0,IF(AN108="SP",2,IF(AN108="SB",3,IF(AN108="SG",4,IF(AN108="SL",5,0))))) -> 0 | AW108: =IF(AV108=0,0,VLOOKUP(S108,LN_Surface!$K$49:$O$52,Configurador!AV108,FALSE)) -> 0
N109: =SUM(N104:O108) -> 0 | V109: =SUM(V104:V108) -> 0 | W109: =SUM(W104:W108) -> 0 | X109: =SUM(X104:X108) -> 0 | Y109: =SUM(Y104:Y108) -> 0 | Z109: =SUM(Z104:Z108) -> 0 | AC109: =SUM(AC104:AC108) -> 0 | AD109: =SUM(AD104:AD108) -> 0 | AE109: =SUM(AE104:AE108) -> 0 | AF109: =SUM(AF104:AF108) -> 0 | AG109: =SUM(AG104:AG108) -> 0
B110: Accesorios Surface
B111: Accesorio | C111: Unidades | D111: Precio unitario | E111: Descuento | F111: Precio total | H111: Descuento | AC111: Pago Inicial | AD111: Pago Mensual | AE111: Dto Pago Inicial | AF111: Dto Pago Mensuall | AG111: Pago Neto Anualizado
B112: =LN_Surface!K26 -> Surface Pen Stylus | D112: =LN_Surface!L26 -> 88.7 | F112: =C112*D112*(1-E112) -> 0 | H112: =C112*D112*E112 -> 0 | AC112: =C112*D112 -> 0 | AE112: =C112*D112*E112 -> 0
B113: =LN_Surface!K27 -> Surface Arc Mouse Bluetooth | D113: =LN_Surface!L27 -> 71.99 | F113: =C113*D113*(1-E113) -> 0 | H113: =C113*D113*E113 -> 0 | AC113: =C113*D113 -> 0 | AE113: =C113*D113*E113 -> 0
B114: =LN_Surface!K28 -> Surface Docking | D114: =LN_Surface!L28 -> 189.48 | F114: =C114*D114*(1-E114) -> 0 | H114: =C114*D114*E114 -> 0 | AC114: 0 | AE114: 0
C115: =SUM(C112:C114) -> 0 | F115: =SUM(F112:F114) -> 0 | H115: =SUM(H112:H114) -> 0 | AC115: =SUM(AC112:AC114) -> 0 | AE115: =SUM(AE112:AE114) -> 0
B117: Otros equipos Windows 10 PRO
B118: Fabricante | C118: Tipo de usuario | D118: Equipo | F118: SKU | I118: Tipo de equipo | J118: Especificaciones | L118: Tipo de pago | M118: Precio en pago único | N118: Precio en cuota mensual | P118: Descuento | Q118: Número de equipos | R118: Monitor | T118: Precio en pago único | U118: Descuento | V118: Total en pago único | W118: Total mensual | X118: Total primer año | Y118: Total descuento año 1 | AC118: Pago Inicial | AD118: Pago Mensual | AE118: Dto Pago Inicial | AF118: Dto Pago Mensuall | AG118: Pago Neto Anualizado
F119: =IF(ISERROR(VLOOKUP(D119,LN_OEM!$D$4:$N$26,LN_OEM!$E$1,FALSE)),"",VLOOKUP(D119,LN_OEM!$D$4:$N$26,LN_OEM!$E$1,FALSE)) ->  | I119: =IF(ISERROR(VLOOKUP(D119,LN_OEM!$D$4:$N$26,LN_OEM!$M$1,FALSE)),"",VLOOKUP(D119,LN_OEM!$D$4:$N$26,LN_OEM!$M$1,FALSE)) ->  | J119: =IF(ISERROR(VLOOKUP(D119,LN_OEM!$D$4:$N$26,LN_OEM!$N$1,FALSE)),"",VLOOKUP(D119,LN_OEM!$D$4:$N$26,LN_OEM!$N$1,FALSE)) ->  | M119: =IF(AND(D119<>"",L119="Único"),IF(ISERROR(VLOOKUP(D119,LN_OEM!$D$4:$N$26,LN_OEM!$I$1,FALSE)),"",VLOOKUP(D119,LN_OEM!$D$4:$N$26,LN_OEM!$I$1,FALSE)),0) -> 0 | N119: =IF(AND(D119<>"",L119="Renting 36m"),IF(ISERROR(VLOOKUP(D119,LN_OEM!$D$4:$N$26,LN_OEM!$J$1,FALSE)),"",VLOOKUP(D119,LN_OEM!$D$4:$N$26,LN_OEM!$J$1,FALSE)),IF(AND(D119<>"",L119="Leasing 36m"),IF(ISERROR(VLOOKUP(D119,LN_OEM!$D$4:$N$26,LN_OEM!$K$1,FALSE)),"",VLOOKUP(D119,LN_OEM!$D$4:$N$26,LN_OEM!$K$1,FALSE)),0)) -> 0 | T119: =IF(AND(R119<>"",R119<>"No aplica"),IF(ISERROR(VLOOKUP(R119,LN_OEM!$D$30:$N$32,LN_OEM!$I$1,FALSE)),"",VLOOKUP(R119,LN_OEM!$D$30:$N$32,LN_OEM!$I$1,FALSE)),0) -> 0 | V119: =(M119*(1-$P119)+T119*(1-$U119))*$Q119 -> 0 | W119: =N119*(1-$P119)*$Q119 -> 0 | X119: =V119+W119*12 -> 0 | Y119: =Q119*(M119+N119*12+T119)-X119 -> 0 | AC119: =IF(Q119>0,M119*Q119,0) -> 0 | AD119: =IF(Q119>0,N119*Q119,0) -> 0 | AE119: =Q119*M119*P119 -> 0 | AF119: =Q119*N119*P119 -> 0 | AG119: =(AD119-AF119)*12 -> 0
F120: =IF(ISERROR(VLOOKUP(D120,LN_OEM!$D$4:$N$26,LN_OEM!$E$1,FALSE)),"",VLOOKUP(D120,LN_OEM!$D$4:$N$26,LN_OEM!$E$1,FALSE)) ->  | I120: =IF(ISERROR(VLOOKUP(D120,LN_OEM!$D$4:$N$26,LN_OEM!$M$1,FALSE)),"",VLOOKUP(D120,LN_OEM!$D$4:$N$26,LN_OEM!$M$1,FALSE)) ->  | J120: =IF(ISERROR(VLOOKUP(D120,LN_OEM!$D$4:$N$26,LN_OEM!$N$1,FALSE)),"",VLOOKUP(D120,LN_OEM!$D$4:$N$26,LN_OEM!$N$1,FALSE)) ->  | M120: =IF(AND(D120<>"",L120="Único"),IF(ISERROR(VLOOKUP(D120,LN_OEM!$D$4:$N$26,LN_OEM!$I$1,FALSE)),"",VLOOKUP(D120,LN_OEM!$D$4:$N$26,LN_OEM!$I$1,FALSE)),0) -> 0 | N120: =IF(AND(D120<>"",L120="Renting 36m"),IF(ISERROR(VLOOKUP(D120,LN_OEM!$D$4:$N$26,LN_OEM!$J$1,FALSE)),"",VLOOKUP(D120,LN_OEM!$D$4:$N$26,LN_OEM!$J$1,FALSE)),IF(AND(D120<>"",L120="Leasing 36m"),IF(ISERROR(VLOOKUP(D120,LN_OEM!$D$4:$N$26,LN_OEM!$K$1,FALSE)),"",VLOOKUP(D120,LN_OEM!$D$4:$N$26,LN_OEM!$K$1,FALSE)),0)) -> 0 | T120: =IF(AND(R120<>"",R120<>"No aplica"),IF(ISERROR(VLOOKUP(R120,LN_OEM!$D$30:$N$32,LN_OEM!$I$1,FALSE)),"",VLOOKUP(R120,LN_OEM!$D$30:$N$32,LN_OEM!$I$1,FALSE)),0) -> 0 | V120: =(M120*(1-P120)+T120*(1-U120))*Q120 -> 0 | W120: =N120*(1-$P120)*$Q120 -> 0 | X120: =V120+W120*12 -> 0 | Y120: =Q120*(M120+N120*12+T120)-X120 -> 0 | AC120: =IF(Q120>0,M120*Q120,0) -> 0 | AD120: =IF(Q120>0,N120*Q120,0) -> 0 | AE120: =Q120*M120*P120 -> 0 | AF120: =Q120*N120*P120 -> 0 | AG120: =(AD120-AF120)*12 -> 0
F121: =IF(ISERROR(VLOOKUP(D121,LN_OEM!$D$4:$N$26,LN_OEM!$E$1,FALSE)),"",VLOOKUP(D121,LN_OEM!$D$4:$N$26,LN_OEM!$E$1,FALSE)) ->  | I121: =IF(ISERROR(VLOOKUP(D121,LN_OEM!$D$4:$N$26,LN_OEM!$M$1,FALSE)),"",VLOOKUP(D121,LN_OEM!$D$4:$N$26,LN_OEM!$M$1,FALSE)) ->  | J121: =IF(ISERROR(VLOOKUP(D121,LN_OEM!$D$4:$N$26,LN_OEM!$N$1,FALSE)),"",VLOOKUP(D121,LN_OEM!$D$4:$N$26,LN_OEM!$N$1,FALSE)) ->  | M121: =IF(AND(D121<>"",L121="Único"),IF(ISERROR(VLOOKUP(D121,LN_OEM!$D$4:$N$26,LN_OEM!$I$1,FALSE)),"",VLOOKUP(D121,LN_OEM!$D$4:$N$26,LN_OEM!$I$1,FALSE)),0) -> 0 | N121: =IF(AND(D121<>"",L121="Renting 36m"),IF(ISERROR(VLOOKUP(D121,LN_OEM!$D$4:$N$26,LN_OEM!$J$1,FALSE)),"",VLOOKUP(D121,LN_OEM!$D$4:$N$26,LN_OEM!$J$1,FALSE)),IF(AND(D121<>"",L121="Leasing 36m"),IF(ISERROR(VLOOKUP(D121,LN_OEM!$D$4:$N$26,LN_OEM!$K$1,FALSE)),"",VLOOKUP(D121,LN_OEM!$D$4:$N$26,LN_OEM!$K$1,FALSE)),0)) -> 0 | T121: =IF(AND(R121<>"",R121<>"No aplica"),IF(ISERROR(VLOOKUP(R121,LN_OEM!$D$30:$N$32,LN_OEM!$I$1,FALSE)),"",VLOOKUP(R121,LN_OEM!$D$30:$N$32,LN_OEM!$I$1,FALSE)),0) -> 0 | V121: =(M121*(1-P121)+T121*(1-U121))*Q121 -> 0 | W121: =N121*(1-$P121)*$Q121 -> 0 | X121: =V121+W121*12 -> 0 | Y121: =Q121*(M121+N121*12+T121)-X121 -> 0 | AC121: 0 | AD121: 0 | AE121: 0 | AF121: 0 | AG121: 0
F122: =IF(ISERROR(VLOOKUP(D122,LN_OEM!$D$4:$N$26,LN_OEM!$E$1,FALSE)),"",VLOOKUP(D122,LN_OEM!$D$4:$N$26,LN_OEM!$E$1,FALSE)) ->  | I122: =IF(ISERROR(VLOOKUP(D122,LN_OEM!$D$4:$N$26,LN_OEM!$M$1,FALSE)),"",VLOOKUP(D122,LN_OEM!$D$4:$N$26,LN_OEM!$M$1,FALSE)) ->  | J122: =IF(ISERROR(VLOOKUP(D122,LN_OEM!$D$4:$N$26,LN_OEM!$N$1,FALSE)),"",VLOOKUP(D122,LN_OEM!$D$4:$N$26,LN_OEM!$N$1,FALSE)) ->  | M122: =IF(AND(D122<>"",L122="Único"),IF(ISERROR(VLOOKUP(D122,LN_OEM!$D$4:$N$26,LN_OEM!$I$1,FALSE)),"",VLOOKUP(D122,LN_OEM!$D$4:$N$26,LN_OEM!$I$1,FALSE)),0) -> 0 | N122: =IF(AND(D122<>"",L122="Renting 36m"),IF(ISERROR(VLOOKUP(D122,LN_OEM!$D$4:$N$26,LN_OEM!$J$1,FALSE)),"",VLOOKUP(D122,LN_OEM!$D$4:$N$26,LN_OEM!$J$1,FALSE)),IF(AND(D122<>"",L122="Leasing 36m"),IF(ISERROR(VLOOKUP(D122,LN_OEM!$D$4:$N$26,LN_OEM!$K$1,FALSE)),"",VLOOKUP(D122,LN_OEM!$D$4:$N$26,LN_OEM!$K$1,FALSE)),0)) -> 0 | T122: =IF(AND(R122<>"",R122<>"No aplica"),IF(ISERROR(VLOOKUP(R122,LN_OEM!$D$30:$N$32,LN_OEM!$I$1,FALSE)),"",VLOOKUP(R122,LN_OEM!$D$30:$N$32,LN_OEM!$I$1,FALSE)),0) -> 0 | V122: =(M122*(1-P122)+T122*(1-U122))*Q122 -> 0 | W122: =N122*(1-$P122)*$Q122 -> 0 | X122: =V122+W122*12 -> 0 | Y122: =Q122*(M122+N122*12+T122)-X122 -> 0 | AC122: 0 | AD122: 0 | AE122: 0 | AF122: 0 | AG122: 0
F123: =IF(ISERROR(VLOOKUP(D123,LN_OEM!$D$4:$N$26,LN_OEM!$E$1,FALSE)),"",VLOOKUP(D123,LN_OEM!$D$4:$N$26,LN_OEM!$E$1,FALSE)) ->  | I123: =IF(ISERROR(VLOOKUP(D123,LN_OEM!$D$4:$N$26,LN_OEM!$M$1,FALSE)),"",VLOOKUP(D123,LN_OEM!$D$4:$N$26,LN_OEM!$M$1,FALSE)) ->  | J123: =IF(ISERROR(VLOOKUP(D123,LN_OEM!$D$4:$N$26,LN_OEM!$N$1,FALSE)),"",VLOOKUP(D123,LN_OEM!$D$4:$N$26,LN_OEM!$N$1,FALSE)) ->  | M123: =IF(AND(D123<>"",L123="Único"),IF(ISERROR(VLOOKUP(D123,LN_OEM!$D$4:$N$26,LN_OEM!$I$1,FALSE)),"",VLOOKUP(D123,LN_OEM!$D$4:$N$26,LN_OEM!$I$1,FALSE)),0) -> 0 | N123: =IF(AND(D123<>"",L123="Renting 36m"),IF(ISERROR(VLOOKUP(D123,LN_OEM!$D$4:$N$26,LN_OEM!$J$1,FALSE)),"",VLOOKUP(D123,LN_OEM!$D$4:$N$26,LN_OEM!$J$1,FALSE)),IF(AND(D123<>"",L123="Leasing 36m"),IF(ISERROR(VLOOKUP(D123,LN_OEM!$D$4:$N$26,LN_OEM!$K$1,FALSE)),"",VLOOKUP(D123,LN_OEM!$D$4:$N$26,LN_OEM!$K$1,FALSE)),0)) -> 0 | T123: =IF(AND(R123<>"",R123<>"No aplica"),IF(ISERROR(VLOOKUP(R123,LN_OEM!$D$30:$N$32,LN_OEM!$I$1,FALSE)),"",VLOOKUP(R123,LN_OEM!$D$30:$N$32,LN_OEM!$I$1,FALSE)),0) -> 0 | V123: =(M123*(1-P123)+T123*(1-U123))*Q123 -> 0 | W123: =N123*(1-$P123)*$Q123 -> 0 | X123: =V123+W123*12 -> 0 | Y123: =Q123*(M123+N123*12+T123)-X123 -> 0 | AC123: 0 | AD123: 0 | AE123: 0 | AF123: 0 | AG123: 0
B124: =IF(ISERROR(FIND("*",CONCATENATE(M119,M120,M121,M122,M123))),"","*Precio aproximado") ->  | Q124: =SUM(Q119:Q123) -> 0 | V124: =SUM(V119:V123) -> 0 | W124: =SUM(W119:W123) -> 0 | X124: =SUM(X119:X123) -> 0 | Y124: =SUM(Y119:Y123) -> 0 | AC124: =SUM(AC119:AC123) -> 0 | AD124: =SUM(AD119:AD123) -> 0 | AE124: =SUM(AE119:AE123) -> 0 | AF124: 0 | AG124: 0
AE125: =AC124-AE124 -> 0
B126: Servicios del partner
B129: Servicios de puesta en marcha | D129: Descripción | N129: Pago único | P129: Número de servicios | Q129: Descuento | R129: Total | T129: Total descuento | AC129: Pago Inicial | AD129: Pago Mensual | AE129: Dto Pago Inicial | AF129: Dto Pago Mensuall | AG129: Pago Neto Anualizado
A130: 1 | B130: Servicios de Migración ​ | R130: =N130*(1-Q130)*P130 -> 0 | T130: =U130-R130 -> 0 | U130: =N130*P130 -> 0 | W130: =1600-LEN(D130) -> 1600 | AC130: =IF(P130>0,N130*P130,0) -> 0 | AE130: =IF(P130>0,N130*P130*Q130,0) -> 0
A131: 2 | B131: Consultoría | R131: 0 | T131: 0 | U131: 0 | W131: =1600-LEN(D131) -> 1600 | AC131: 0 | AE131: 0
A132: 3 | B132: Formación | R132: 0 | T132: 0 | U132: 0 | W132: =1600-LEN(D132) -> 1600 | AC132: 0 | AE132: 0
A133: 4 | B133: Personalizable 1 | R133: 0 | T133: 0 | U133: 0 | W133: =1600-LEN(D133) -> 1600 | AC133: 0 | AE133: 0
A134: 5 | B134: Personalizable 2 | R134: 0 | T134: 0 | U134: 0 | W134: =1600-LEN(D134) -> 1600 | AC134: 0 | AE134: 0
A135: 6 | B135: Formación​ Inicial Productividad | R135: 0 | T135: 0 | U135: 0 | W135: =605-LEN(D135) -> 605 | AC135: 0 | AE135: 0
A136: 7 | B136: Formación​ Inicial Seguridad | R136: 0 | T136: 0 | U136: 0 | W136: 605 | AC136: 0 | AE136: 0
A137: 8 | B137: Hello 1 | R137: 0 | T137: 0 | U137: 0 | W137: =718-LEN(D137) -> 718 | AC137: 0 | AE137: 0
A138: 9 | B138: Hello2 | R138: 0 | T138: 0 | U138: 0 | W138: =860-LEN(D138) -> 860 | AC138: 0 | AE138: 0
D139: =IF(OR(W138<0,W137<0,W136<0,W135<0,W134<0,W133<0,W132<0,W131<0,W130<0),"Se ha sobrepasado longitud máxima del texto","") ->  | P139: =SUM(P130:P138) -> 0 | R139: =SUM(R130:S138) -> 0 | T139: =SUM(T130:T138) -> 0 | AC139: =SUM(AC130:AC138) -> 0 | AD139: =SUM(AD130:AD138) -> 0 | AE139: 0 | AF139: 0 | AG139: 0 | AH139: 0
B141: Servicios gestionados | D141: Descripción | N141: Cuota mensual | P141: Número de servicios | Q141: Descuento | R141: Total mensual | S141: Total anual | T141: Total descuento | AC141: Pago Inicial | AD141: Pago Mensual | AE141: Dto Pago Inicial | AF141: Dto Pago Mensuall | AG141: Pago Neto Anualizado
A142: 1 | B142: Servicios Profesionales​ | R142: =N142*(1-Q142)*P142 -> 0 | S142: =R142*12 -> 0 | T142: =U142-S142 -> 0 | U142: =N142*P142*12 -> 0 | W142: =1455-LEN(D142) -> 1455 | AD142: =IF(P142>0,N142*P142,0) -> 0 | AF142: =IF(P142>0,N142*P142*Q142,0) -> 0 | AG142: =IF(P142>0,P142*N142*(1-Q142)*12,0) -> 0
A143: 2 | B143: Servicios Gestionados Azure | R143: 0 | S143: 0 | T143: 0 | U143: 0 | V143: =LEN(D143) -> 0 | W143: 1455 | AD143: 0 | AF143: 0 | AG143: 0
A144: 3 | B144: Help Desk | R144: 0 | S144: 0 | T144: 0 | U144: 0 | V144: =LEN(D144) -> 0 | W144: 1455 | AD144: 0 | AF144: 0 | AG144: 0
A145: 4 | B145: Adopción | R145: 0 | S145: 0 | T145: 0 | U145: 0 | V145: 0 | W145: 1455 | AD145: 0 | AF145: 0 | AG145: 0
A146: 5 | B146: Personalizable 3 | R146: 0 | S146: 0 | T146: 0 | U146: 0 | V146: 0 | W146: 1455 | AD146: 0 | AF146: 0 | AG146: 0
A147: 6 | B147: Personalizable 4 | R147: 0 | S147: 0 | T147: 0 | U147: 0 | V147: 0 | W147: 1455 | AD147: 0 | AF147: 0 | AG147: 0
A148: 7 | R148: 0 | S148: 0 | T148: 0 | U148: 0 | V148: 0 | W148: =610-LEN(D148) -> 610 | AD148: 0 | AF148: 0 | AG148: 0
A149: 8 | R149: 0 | S149: 0 | T149: 0 | U149: 0 | V149: 0 | W149: 610 | AD149: 0 | AF149: 0 | AG149: 0
A150: 9 | R150: 0 | S150: 0 | T150: 0 | U150: 0 | V150: 0 | W150: =750-LEN(D150) -> 750 | AD150: 0 | AF150: 0 | AG150: 0
A151: 10 | R151: 0 | S151: 0 | T151: 0 | U151: 0 | V151: 0 | W151: =860-LEN(D151) -> 860 | AD151: 0 | AF151: 0 | AG151: 0
D152: =IF(OR(W151<0,W150<0,W149<0,W148<0,W147<0,W146<0,W145<0,W144<0,W143<0,W142<0),"Se ha sobrepasado longitud máxima del texto","") ->  | P152: =SUM(P142:P151) -> 0 | R152: =SUM(R142:R151) -> 0 | S152: 0 | T152: =SUM(T142:T151) -> 0 | AD152: =SUM(AD142:AD151) -> 0 | AE152: =SUM(AE142:AE151) -> 0 | AF152: 0 | AG152: 0
B154: Resumen de productos y servicios
B156: Categoría de producto o servicio | E156: Número de productos o servicios | J156: Pago (*) inicial | K156: Pago (*) mensual | L156: Descuento (**) Pago inicial | M156: Descuento (**) Pago mensual | N156: Neto (**) Pago inicial | P156: Neto (**) Pago mensual | Q156: Neto (**/***) Pago anualizado
B157: =B26 -> Modernización del puesto de trabajo | E157: =IF(J51>0,CONCATENATE(J51," licencias de usuario"),"No contrata") -> No contrata | J157: 0 | K157: =AD51 -> 0 | L157: 0 | M157: =S51 -> 0 | N157: 0 | P157: =R51 -> 0 | Q157: =T51 -> 0
B158: Modernización de servidores en cloud | E158: =IF(SUM(P57:P62)>0,B60,IF(SUM(P63:P68)>0,B66,IF(SUM(P69:P74)>0,B72,IF(P75>0,B75,"No contrata")))) -> No contrata | J158: 0 | K158: =AE76 -> 0 | L158: 0 | M158: =AD76 -> 0 | N158: 0 | P158: =W76 -> 0 | Q158: =X76 -> 0
B159: Windows y SQL Server | E159: =IF(S81>0,CONCATENATE(S81," licencias de servidor"),"No contrata") -> No contrata | J159: 0 | K159: 0 | L159: 0 | M159: 0 | N159: 0 | P159: 0 | Q159: =Y81 -> 0
B160: =B84 -> Aplicaciones de negocio | E160: =IF(P96>0,CONCATENATE(P96," licencias de aplicaciones de negocio"),"No contrata") -> No contrata | J160: 0 | K160: =AE96 -> 0 | L160: 0 | M160: =AF96 -> 0 | N160: 0 | P160: =R96 -> 0 | Q160: =S96 -> 0
B161: =B102 -> Surface | E161: =IF(N109>0,CONCATENATE(N109," equipos Surface"),"No contrata") -> No contrata | J161: =AC109 -> 0 | K161: =AD109 -> 0 | L161: =AE109 -> 0 | M161: =AF109 -> 0 | N161: =V109 -> 0 | P161: =W109 -> 0 | Q161: =AG109 -> 0
B162: =B110 -> Accesorios Surface | E162: =IF(C115>0,CONCATENATE(C115," accesorios (bolígrafo, ratón, dock) para Surface"),"No contrata") -> No contrata | J162: =AC115 -> 0 | K162: 0 | L162: =AE115 -> 0 | M162: 0 | N162: =F115 -> 0 | P162: 0 | Q162: 0
B163: =B117 -> Otros equipos Windows 10 PRO | E163: =IF(Q124>0,CONCATENATE(Q124," equipos de terceros"),"No contrata") -> No contrata | J163: =AC124 -> 0 | K163: =AD124 -> 0 | L163: =AE124 -> 0 | M163: =AF124 -> 0 | N163: =V124 -> 0 | P163: =W124 -> 0 | Q163: =AG124 -> 0
B164: =B129 -> Servicios de puesta en marcha | E164: =IF(P139>0,CONCATENATE(P139," servicios para la puesta en marcha"),"No contrata") -> No contrata | J164: =AC139 -> 0 | K164: 0 | L164: =AE139 -> 0 | M164: 0 | N164: =R139 -> 0 | P164: 0 | Q164: 0
B165: =B141 -> Servicios gestionados | E165: =IF(P152>0,CONCATENATE(P152," servicios gestionados"),"No contrata") -> No contrata | J165: 0 | K165: =AD152 -> 0 | L165: 0 | M165: =AF152 -> 0 | N165: 0 | P165: =R152 -> 0 | Q165: =S152 -> 0
J166: =SUM(J157:J165) -> 0 | K166: =SUM(K157:K165) -> 0 | L166: =SUM(L157:L165) -> 0 | M166: =SUM(M157:M165) -> 0 | N166: =SUM(N157:O165) -> 0 | P166: =SUM(P157:P165) -> 0 | Q166: =SUM(Q157:Q165) -> 0
B168: * Los precios indicados son PVPs recomendados por Microsoft y no incluyen impuestos indirectos (IVA, IGIC, etc.)
B169: =CONCATENATE(" ** Los descuentos y precios netos son ofertados por ", $J$7) -> ** Los descuentos y precios netos son ofertados por
B170: *** El valor Neto Pago anualizado del apartado Windows y SQL Server corresponde con el pago anual o trienal en función del modelo de suscripción por 1 ó 3 años.
B173: Forma de Pago
B175: Facturación:
B177: Forma de Pago:

Sheet Portada_E
F2: =CONCATENATE("Propuesta comercial de productos Microsoft para ",Configurador!C7," presentada por ",Configurador!J7) -> Propuesta comercial de productos Microsoft para presentada por
B9: Cliente: | C9: =Configurador!C7 -> 0
B10: CIF: | C10: =Configurador!C9 -> 0
B11: Dirección: | C11: =Configurador!C11 -> 0
B12: Ciudad: | C12: =Configurador!C13 -> 0
B13: Provincia: | C13: =Configurador!C15 -> 0
B14: Apoderado: | C14: =Configurador!C17 -> 0
B15: Teléfono: | C15: =Configurador!C19 -> 0
B16: Email: | C16: =Configurador!C21 -> 0
B18: Presentada por: | C18: =Configurador!J7 -> 0
C19: =Configurador!J9 -> 0
C20: =CONCATENATE(Configurador!J11," (",Configurador!J13,", ",Configurador!J15,")") -> (, )
B22: Contacto: | C22: =Configurador!J17 -> 0
C23: =CONCATENATE(Configurador!J21," / ",Configurador!J19) -> /
B25: Fecha: | C25: =Configurador!R7 -> 00:00:00
B26: Validez hasta: | C26: =Configurador!R9 -> 00:00:00
N31: =Impresion!E2 -> Página 1 de 7

Sheet O365_Empresa_E
B3: Modernización del espacio de trabajo para
B4: =Configurador!C7 -> 0
B6: Necesidad del cliente | C6: Producto | E6: Cuota por usuario (*) | F6: Usuarios | G6: Descuento | H6: Opciones | I6: Cuota por usuario | J6: Usuarios | K6: Dcto. | L6: Total mensual | M6: Total dcto. mensual | N6: Total anual | O6: Total dcto. anual
B7: =Configurador!B30 -> Modernización del puesto de trabajo completa | C7: =Configurador!E30 -> Microsoft 365 Empresa | E7: =Configurador!I30 -> 16.9 | F7: =Configurador!J30 -> 0 | G7: =Configurador!K30 -> 0 | H7: =Configurador!L30 -> AIP | I7: =Configurador!I46 -> 3.4 | J7: =Configurador!P30 -> 0 | K7: =Configurador!Q30 -> 0 | L7: =Configurador!R30 -> 0 | M7: =Configurador!S30 -> 0 | N7: =Configurador!T30 -> 0 | O7: =Configurador!U30 -> 0
B10: =IF(Configurador!J49>0,Configurador!B49,"") ->  | C10: =IF(Configurador!J49>0,Configurador!E49,"") ->  | E10: =IF(Configurador!J49>0,Configurador!I49,"") ->  | F10: =IF(Configurador!J49>0,Configurador!J49,"") ->  | G10: =IF(Configurador!J49>0,Configurador!K49,"") ->  | H10: =IF(Configurador!J49>0,Configurador!L49,"") ->  | L10: =IF(Configurador!$J$49>0,Configurador!R49,"") ->  | M10: =IF(Configurador!$J$49>0,Configurador!S49,"") ->  | N10: =IF(Configurador!$J$49>0,Configurador!T49,"") ->  | O10: =IF(Configurador!$J$49>0,Configurador!U49,"") -> 
B11: =IF(Configurador!J50>0,Configurador!B50,"") ->  | C11: =IF(Configurador!J50>0,Configurador!E50,"") ->  | E11: =IF(Configurador!J50>0,Configurador!I50,"") ->  | F11: =IF(Configurador!J50>0,Configurador!J50,"") ->  | G11: =IF(Configurador!J50>0,Configurador!K50,"") ->  | H11: =IF(Configurador!J50>0,Configurador!L50,"") ->  | L11: =IF(Configurador!$J$50>0,Configurador!R50,"") ->  | M11: =IF(Configurador!$J$50>0,Configurador!S50,"") ->  | N11: =IF(Configurador!$J$50>0,Configurador!T50,"") ->  | O11: =IF(Configurador!$J$50>0,Configurador!U50,"") -> 
B12: =CONCATENATE("*Los precios indicados en cuota por usuario son PVPs recomendados por Microsoft y no incluyen impuestos indirectos (IVA, IGIC, etc.). Todos los descuentos son ofertados por ",Configurador!J7) -> *Los precios indicados en cuota por usuario son PVPs recomendados por Microsoft y no incluyen impuestos indirectos (IVA, IGIC, etc.). Todos los descuentos son ofertados por | L12: =IF(J7=0,"Te recomendamos Azure Information Protection. Plan 2","Azure Information Protection. Plan 2") -> Te recomendamos Azure Information Protection. Plan 2
K13: =IF(AND(J7=0,J9=0),"Te recomendamos Advanced Threat Protection","Advanced Threat Protection") -> Te recomendamos Advanced Threat Protection
B14: Modernización del puesto de trabajo completa con Microsoft 365
O38: =Impresion!E3 -> Página 2 de 7

Sheet O365_Premium_E
B3: Modernización del espacio de trabajo para
B4: =Configurador!C7 -> 0
B6: Necesidad del cliente | D6: Producto | E6: Cuota por usuario (*) | F6: Usuarios | G6: Dcto. | H6: Opciones | I6: Cuota por usuario | J6: Usuarios | K6: Dcto. | L6: Total mensual | M6: Total dcto. mensual | N6: Total anual | O6: Total dcto. anual
B7: =Configurador!B31 -> Colaboración, Correo y Productividad con Office | D7: =Configurador!E31 -> O365 Empresa Premium | E7: =Configurador!I31 -> 10.5 | F7: =Configurador!J31 -> 0 | G7: =Configurador!K31 -> 0 | H7: =Configurador!L30 -> AIP | I7: =Configurador!N30 -> 3.4 | J7: =Configurador!P31 -> 0 | K7: =Configurador!Q30 -> 0 | L7: =Configurador!R31 -> 0 | M7: =Configurador!S31 -> 0 | N7: =Configurador!T31 -> 0 | O7: =Configurador!U30 -> 0
H8: =Configurador!L32 -> ATP | I8: =Configurador!N31 -> 3.4 | J8: =Configurador!P32 -> 0 | K8: =Configurador!Q31 -> 0
H9: =Configurador!L33 -> EMS | I9: =Configurador!N32 -> 1.69 | J9: =Configurador!P33 -> 0 | K9: =Configurador!Q32 -> 0
H10: =Configurador!L34 -> ATP+EMS | I10: =Configurador!N33 -> 7.4 | J10: =Configurador!P34 -> 0 | K10: =Configurador!Q33 -> 0
A11: =Configurador!J37+Configurador!J38 -> 0 | B11: =IF(OR(Configurador!J46>0,Configurador!J47>0,Configurador!$J$48>0),Configurador!B46,"") ->  | D11: =IF(OR(Configurador!J46>0,Configurador!J47>0,Configurador!$J$48>0),Configurador!E46,"") ->  | E11: =IF(OR(Configurador!J46>0,Configurador!J47>0,Configurador!$J$48>0),Configurador!I46,"") ->  | F11: =IF(OR(Configurador!J46>0,Configurador!J47>0,Configurador!$J$48>0),Configurador!J46,"") ->  | G11: =IF(OR(Configurador!J46>0,Configurador!J47>0,Configurador!$J$48>0),Configurador!K46,"") ->  | H11: =IF(OR(Configurador!J46>0,Configurador!J47>0,Configurador!$J$48>0),Configurador!L46,"") ->  | I11: =IF(OR(Configurador!J46>0,Configurador!J47>0,Configurador!$J$48>0),Configurador!N46,"") ->  | J11: =IF(OR(Configurador!J46>0,Configurador!J47>0,Configurador!$J$48>0),Configurador!P46,"") ->  | K11: =IF(OR(Configurador!J46>0,Configurador!J47>0,Configurador!$J$48>0),Configurador!Q46,"") ->  | L11: =IF(OR(Configurador!J46>0,Configurador!J46>0,Configurador!$J$48>0),Configurador!R46,"") ->  | M11: =IF(OR(Configurador!J46>0,Configurador!J47>0,Configurador!$J$48>0),Configurador!S46,"") ->  | N11: =IF(OR(Configurador!J46>0,Configurador!J47>0,Configurador!$J$48>0),Configurador!T46,"") ->  | O11: =IF(OR(Configurador!J46>0,Configurador!J47>0,Configurador!$J$48>0),Configurador!U46,"") -> 
B12: =IF(OR(Configurador!J47>0,Configurador!$J$48>0),Configurador!B47,"") ->  | D12: =IF(OR(Configurador!J47>0,Configurador!$J$48>0),Configurador!E47,"") ->  | E12: =IF(OR(Configurador!J47>0,Configurador!$J$48>0),Configurador!I47,"") ->  | F12: =IF(OR(Configurador!J47>0,Configurador!$J$48>0),Configurador!J47,"") ->  | G12: =IF(OR(Configurador!J47>0,Configurador!$J$48>0),Configurador!K47,"") ->  | H12: =IF(OR(Configurador!J47>0,Configurador!$J$48>0),Configurador!L47,"") ->  | I12: =IF(OR(Configurador!J47>0,Configurador!$J$48>0),Configurador!N47,"") ->  | J12: =IF(OR(Configurador!J47>0,Configurador!$J$48>0),Configurador!P47,"") ->  | K12: =IF(OR(Configurador!J47>0,Configurador!$J$48>0),Configurador!Q47,"") ->  | L12: =IF(OR(Configurador!J47>0,Configurador!$J$48>0),Configurador!R47,"") ->  | M12: =IF(OR(Configurador!J47>0,Configurador!$J$48>0),Configurador!S47,"") ->  | N12: =IF(OR(Configurador!J47>0,Configurador!$J$48>0),Configurador!T47,"") ->  | O12: =IF(OR(Configurador!J47>0,Configurador!$J$48>0),Configurador!U47,"") -> 
B13: =IF(AND(Configurador!J30=0,Configurador!J49>0),Configurador!B49,"") ->  | D13: =IF(AND(Configurador!J30=0,Configurador!J49>0),Configurador!E49,"") ->  | E13: =IF(AND(Configurador!J30=0,Configurador!J49>0),Configurador!I49,"") ->  | F13: =IF(AND(Configurador!J30=0,Configurador!J49>0),Configurador!J49,"") ->  | G13: =IF(AND(Configurador!J30=0,Configurador!J49>0),Configurador!K49,"") ->  | H13: =IF(AND(Configurador!J30=0,Configurador!J49>0),Configurador!L49,"") ->  | L13: =IF(AND(Configurador!J30=0,Configurador!J49>0),Configurador!R49,"") ->  | M13: =IF(AND(Configurador!J30=0,Configurador!J49>0),Configurador!S49,"") ->  | N13: =IF(AND(Configurador!J30=0,Configurador!J49>0),Configurador!T49,"") ->  | O13: =IF(AND(Configurador!J30=0,Configurador!J49>0),Configurador!U49,"") -> 
B15: =CONCATENATE("* Los precios indicados en cuota por usuario son PVPs recomendados por Microsoft y no incluyen impuestos indirectos (IVA, IGIC, etc.). Todos los descuentos son ofertados por ",Configurador!J7) -> * Los precios indicados en cuota por usuario son PVPs recomendados por Microsoft y no incluyen impuestos indirectos (IVA, IGIC, etc.). Todos los descuentos son ofertados por
L16: =IF(J7=0,"Te recomendamos Azure Information Protection. Plan 2 ","Azure Information Protection. Plan 2 ") -> Te recomendamos Azure Information Protection. Plan 2
B17: =IF(J10>0,"Productividad y seguridad con Office 365 Premium, Enterprise Mobility and Security y Advanced Threat Protection",IF(J8>0,"Productividad y seguridad con Office 365 Premium y Advanced Threat Protection",IF(J9>0,"Productividad y seguridad con Office 365 Premium y Enterprise Mobility and Security","Productividad y seguridad con Office 365 Premium"))) -> Productividad y seguridad con Office 365 Premium
I18: =IF(AND(J9=0,J10=0),"Te recomendamos Enterprise Mobility and Security","Enterprise Mobility and Security") -> Te recomendamos Enterprise Mobility and Security | M18: =IF(AND(J8=0,J10=0),"Te recomendamos Advanced Threat Protection","Advanced Threat Protection") -> Te recomendamos Advanced Threat Protection
O39: =Impresion!E4 -> 

Sheet O365_Essentials_E
B3: Modernización del espacio de trabajo para
B4: =Configurador!C7 -> 0
B6: Necesidad del cliente | C6: Producto | E6: Cuota por usuario (*) | F6: Usuarios | G6: Dcto. | H6: Opciones | I6: Cuota por usuario | J6: Usuarios | K6: Dcto. | L6: Total mensual | M6: Total dcto. mensual | N6: Total anual | O6: Total dcto. anual
B7: =Configurador!B35 -> Colaboración y Correo | C7: =Configurador!E35 -> O365 Empresa Essentials | E7: =Configurador!I35 -> 4.2 | F7: =Configurador!J36 -> 0 | G7: =Configurador!K36 -> 0 | H7: =Configurador!L35 -> AIP | I7: =Configurador!I46 -> 3.4 | J7: =Configurador!P35 -> 0 | K7: =Configurador!Q35 -> 0 | L7: =Configurador!R35 -> 0 | M7: =Configurador!S35 -> 0 | N7: =Configurador!T35 -> 0 | O7: =Configurador!U35 -> 0
H8: =Configurador!L36 -> ATP | I8: =Configurador!I47 -> 1.69 | J8: =Configurador!P36 -> 0 | K8: =Configurador!Q36 -> 0
H9: =Configurador!L37 -> EMS | I9: =Configurador!N37 -> 7.4 | J9: =Configurador!P37 -> 0 | K9: =Configurador!Q37 -> 0
H10: =Configurador!L38 -> ATP+EMS | I10: =Configurador!N38 -> 9.09 | J10: =Configurador!P38 -> 0 | K10: =Configurador!Q38 -> 0
B11: =IF(AND(Configurador!J30=0,Configurador!J31=0,Configurador!J49>0),Configurador!B49,"") ->  | C11: =IF(AND(Configurador!J30=0,Configurador!J31=0,Configurador!J49>0),Configurador!E49,"") ->  | E11: =IF(AND(Configurador!J30=0,Configurador!J31=0,Configurador!J49>0),Configurador!I49,"") ->  | F11: =IF(AND(Configurador!J30=0,Configurador!J31=0,Configurador!J49>0),Configurador!J49,"") ->  | G11: =IF(AND(Configurador!J30=0,Configurador!J31=0,Configurador!J49>0),Configurador!K49,"") ->  | H11: =IF(AND(Configurador!J30=0,Configurador!J31=0,Configurador!J49>0),Configurador!L49,"") ->  | L11: =IF(AND(Configurador!J30=0,Configurador!J31=0,Configurador!J49>0),Configurador!R49,"") ->  | M11: =IF(AND(Configurador!J30=0,Configurador!J31=0,Configurador!J49>0),Configurador!S49,"") ->  | N11: =IF(AND(Configurador!J30=0,Configurador!J31=0,Configurador!J49>0),Configurador!T49,"") ->  | O11: =IF(AND(Configurador!J30=0,Configurador!J31=0,Configurador!J49>0),Configurador!U49,"") -> 
B12: =CONCATENATE("* Los precios indicados en cuota por usuario son PVPs recomendados por Microsoft y no incluyen impuestos indirectos (IVA, IGIC, etc.). Todos los descuentos son ofertados por ",Configurador!J7) -> * Los precios indicados en cuota por usuario son PVPs recomendados por Microsoft y no incluyen impuestos indirectos (IVA, IGIC, etc.). Todos los descuentos son ofertados por
J13: =IF(AND(J9=0,J10=0),"Te recomendamos Enterprise Mobility and Security","Enterprise Mobility and Security") -> Te recomendamos Enterprise Mobility and Security | K13: =IF(AND(J8=0,J10=0),"Te recomendamos Advanced Threat Protection","Advanced Threat Protection") -> Te recomendamos Advanced Threat Protection | L13: =IF(J7=0,"Te recomendamos Azure Information Protection. Plan 2 ","Azure Information Protection. Plan 2 ") -> Te recomendamos Azure Information Protection. Plan 2
B14: =IF(J10>0,"Colaboración, correo y seguridad con Office 365 Essentials, Enterprise Mobility and Security y Advanced Threat Protection",IF(J7>0,"Colaboración, correo y seguridad con Office 365 Essentials y Advanced Threat Protection",IF(J9>0,"Colaboración, correo y seguridad con Office 365 Essentials y Enterprise Mobility and Security","Colaboración y correo con Office 365 Essentials"))) -> Colaboración y correo con Office 365 Essentials
O37: =Impresion!E5 -> 

Sheet O365_E1E3E5_E
B3: Modernización del espacio de trabajo para
B4: =Configurador!C7 -> 0
B6: Necesidad del cliente | C6: Producto | E6: Cuota por usuario (*) | F6: Usuarios | G6: Descuento | H6: Opciones | I6: Cuota por usuario | J6: Usuarios | K6: Dcto. | L6: Total mensual | M6: Total dcto. mensual | N6: Total anual | O6: Total dcto. anual
B7: =Configurador!B39 -> Suite completa de productividad y colaboración empresarial con funcionalidades de voz | C7: =Configurador!E39 -> Office 365 E5 | E7: =Configurador!I39 -> 34.4 | F7: =Configurador!J39 -> 0 | G7: =IF(Configurador!J39>0,Configurador!K39,"0%") -> 0% | H7: =Configurador!L30 -> AIP | I7: =Configurador!I46 -> 3.4 | J7: =Configurador!P39 -> 0 | K7: =IF(Configurador!P39>0,Configurador!Q39,"0%") -> 0% | L7: =Configurador!R39 -> 0 | M7: =Configurador!S39 -> 0 | N7: =Configurador!T39 -> 0 | O7: =Configurador!U39 -> 0
B10: =Configurador!B40 -> Suite de productividad y colaboración empresarial | C10: =Configurador!E40 -> Office 365 E3 | E10: =Configurador!I40 -> 19.7 | F10: =Configurador!J40 -> 0 | G10: =IF(Configurador!J40>0,Configurador!K40,"0%") -> 0% | H10: =Configurador!L40 -> AIP | I10: =Configurador!N40 -> 3.4 | J10: =Configurador!P40 -> 0 | K10: =IF(Configurador!P40>0,Configurador!Q40,"0%") -> 0% | L10: =Configurador!R40 -> 0 | M10: =Configurador!S40 -> 0 | N10: =Configurador!T40 -> 0 | O10: =Configurador!U40 -> 0
H11: =Configurador!L41 -> ATP | I11: =Configurador!N41 -> 1.69 | J11: =Configurador!P41 -> 0 | K11: =IF(Configurador!P41>0,Configurador!Q41,"0%") -> 0%
H12: =Configurador!L42 -> EMS | I12: =Configurador!N42 -> 7.4 | J12: =Configurador!P42 -> 0 | K12: =IF(Configurador!P42>0,Configurador!Q42,"0%") -> 0%
B13: =Configurador!B43 -> Servicios empresariales de colaboración y correo | C13: =Configurador!E43 -> Office 365 E1 | E13: =Configurador!I43 -> 6.7 | F13: =Configurador!J43 -> 0 | G13: =IF(Configurador!J43>0,Configurador!K43,"0%") -> 0% | H13: =Configurador!L43 -> AIP | I13: =Configurador!N43 -> 3.4 | J13: =Configurador!P43 -> 0 | K13: =IF(Configurador!P43>0,Configurador!Q43,"0%") -> 0% | L13: =Configurador!R43 -> 0 | M13: =Configurador!S43 -> 0 | N13: =Configurador!T43 -> 0 | O13: =Configurador!U43 -> 0
H14: =Configurador!L44 -> ATP | I14: =Configurador!N44 -> 1.69 | J14: =Configurador!P44 -> 0 | K14: =IF(Configurador!P44>0,Configurador!Q44,"0%") -> 0%
H15: =Configurador!L45 -> EMS | I15: =Configurador!N45 -> 7.4 | J15: =Configurador!P45 -> 0 | K15: =IF(Configurador!P45>0,Configurador!Q45,"0%") -> 0%
B19: =CONCATENATE("*Los precios indicados en cuota por usuario son PVPs recomendados por Microsoft y no incluyen impuestos indirectos (IVA, IGIC, etc.). Todos los descuentos son ofertados por ",Configurador!J5) -> *Los precios indicados en cuota por usuario son PVPs recomendados por Microsoft y no incluyen impuestos indirectos (IVA, IGIC, etc.). Todos los descuentos son ofertados por | K19: =IF(AND(J7=0,J9=0),"Te recomendamos Advanced Threat Protection","Advanced Threat Protection") -> Te recomendamos Advanced Threat Protection
B21: Ofrece los mejores recursos a los empleados con Office 365 ( E1, E3, E5)
B23: Herramientas para el área de trabajo moderna, que permiten conectar y ofrecer recursos a todos los empleados, desde los que trabajan en la oficina hasta los que forman parte de la Firstline Workforce. Transforma tu área de trabajo con una completa solución inteligente que reúne Office 365, Windows 10 y Enterprise Mobility + Security. E5 incluye todas las características de E3, y E3 incluye todas las características de E1.
B49: (A) La disponibilidad de las aplicaciones móviles varía según el país o la región. Conoce cuáles están disponibles en tu país o región.
B50: (B) Almacenamiento ilimitado de OneDrive para suscripciones de cinco o más usuarios. Microsoft proporcionará un espacio de almacenamiento inicial de OneDrive de 5 TB por usuario. Los clientes que quieran almacenamiento de OneDrive adicional pueden solicitarlo si es necesario poniéndose en contacto con el soporte técnico de Microsoft. Las suscripciones de menos de cinco usuarios reciben un espacio de almacenamiento de OneDrive de 1 TB por usuario
B51: (C) La disponibilidad de las aplicaciones móviles varía según el país o la región. Obtén información sobre lo que está disponible actualmente en tu país o región.
B52: (D) La disponibilidad del plan de llamadas varía según la región. Consulta la Disponibilidad internacional actual.
B53: Para ampliar información en https://www.microsoft.com/es-es/microsoft-365/business/compare-more-office-365-for-business-plans | O53: =Impresion!E6 -> 

Sheet Azure_10_E
B3: Modernización de servidores para
B4: =Configurador!C7 -> 0
B6: Necesidad del cliente y producto | D6: Cuota mensual (*/**) | E6: Contrata | F6: Descuento | G6: Opciones recomendadas | I6: Cuota por producto (**) | J6: Unidades | K6: Descuento | L6: Total mensual | M6: Total anual | N6: Descuento anual
A7: =IF(Configurador!P57>0,1,IF(Configurador!P60>0,2,0)) -> 0 | B7: =IF(A7=1,CONCATENATE(Configurador!B60,". ",Configurador!L57),IF(A7=2,CONCATENATE(Configurador!B60," ",Configurador!L60),"Referencia: Infraestructura cloud hasta 10 usuarios")) -> Referencia: Infraestructura cloud hasta 10 usuarios | D7: =IF($A$7=1,Configurador!N57,IF($A$7=2,Configurador!N60,"185,00€ (compromiso 1 año)")) -> 185,00€ (compromiso 1 año) | E7: =IF($A$7=1,Configurador!P57,IF($A$7=2,Configurador!P60,0)) -> 0 | F7: =IF($A$7=1,Configurador!Q57,IF($A$7=2,Configurador!Q60,0)) -> 0 | G7: =IF($A$7=1,Configurador!R57,IF($A$7=2,Configurador!R60,0)) -> 0 | I7: =IF($A$7=1,Configurador!T57,IF($A$7=2,Configurador!T60,0)) -> 0 | J7: =IF($A$7=1,Configurador!U57,IF($A$7=2,Configurador!U60,0)) -> 0 | K7: =IF($A$7=1,Configurador!V57,IF($A$7=2,Configurador!V60,0)) -> 0 | L7: =IF($A$7=1,Configurador!W57,IF($A$7=2,Configurador!W60,0)) -> 0 | M7: =IF($A$7=1,Configurador!X57,IF($A$7=2,Configurador!X60,0)) -> 0 | N7: =IF($A$7=1,Configurador!Y57,IF($A$7=2,Configurador!Y60,0)) -> 0
G8: =IF($A$7=1,Configurador!R58,IF($A$7=2,Configurador!R61,0)) -> 0 | I8: =IF($A$7=1,Configurador!T58,IF($A$7=2,Configurador!T61,0)) -> 0 | J8: =IF($A$7=1,Configurador!U58,IF($A$7=2,Configurador!U61,0)) -> 0 | K8: =IF($A$7=1,Configurador!V58,IF($A$7=2,Configurador!V61,0)) -> 0
G9: =IF($A$7=1,Configurador!R59,IF($A$7=2,Configurador!R62,0)) -> 0 | I9: =IF($A$7=1,Configurador!T59,IF($A$7=2,Configurador!T62,0)) -> 0 | J9: =IF($A$7=1,Configurador!U59,IF($A$7=2,Configurador!U62,0)) -> 0 | K9: =IF($A$7=1,Configurador!V59,IF($A$7=2,Configurador!V62,0)) -> 0
B10: * El precio indicado supone disponibilidad 24h de las Máquinas Virtuales. En caso de no ser necesaria esta disponibilidad, pueden ser apagadas, resultando un menor precio.
B14: =CONCATENATE("** Los precios indicados en cuota mensual y cuota por producto son PVPs recomendados por Microsoft y no incluyen impuestos indirectos (IVA, IGIC, etc.). Todos los descuentos son ofertados por ",Configurador!J7) -> ** Los precios indicados en cuota mensual y cuota por producto son PVPs recomendados por Microsoft y no incluyen impuestos indirectos (IVA, IGIC, etc.). Todos los descuentos son ofertados por
K15: =IF(J7>0,"Backup","Te recomendamos Backup") -> Te recomendamos Backup | L15: =IF(J8>0,"Disaster Recovery","Te recomendamos Disaster Recovery") -> Te recomendamos Disaster Recovery | M15: =IF(J9>0,"SQL Server","Te recomendamos SQL Server") -> Te recomendamos SQL Server
B16: Modernización de servidores con infrestructura cloud dimensionada hasta 10 usuarios
N39: =Impresion!E7 -> Página 3 de 7

Sheet Azure_50_E
B3: Modernización de servidores para
B4: =Configurador!C7 -> 0
B6: Necesidad del cliente y producto | D6: Cuota mensual (*/ **) | E6: Contrata | F6: Descuento | G6: Opciones recomendadas | I6: Cuota por producto (**) | J6: Unidades | K6: Descuento | L6: Total mensual | M6: Total anual | N6: Descuento anual
A7: =IF(Configurador!P63>0,1,IF(Configurador!P66>0,2,0)) -> 0 | B7: =IF(A7=1,CONCATENATE(Configurador!B66,". ",Configurador!L63),IF(A7=2,CONCATENATE(Configurador!B66," ",Configurador!L66),"")) ->  | D7: =IF($A$7=1,Configurador!N63,IF($A$7=2,Configurador!N66,0)) -> 0 | E7: =IF($A$7=1,Configurador!P63,IF($A$7=2,Configurador!P66,0)) -> 0 | F7: =IF($A$7=1,Configurador!Q63,IF($A$7=2,Configurador!Q66,0)) -> 0 | G7: =IF($A$7=1,Configurador!R63,IF($A$7=2,Configurador!R66,0)) -> 0 | I7: =IF($A$7=1,Configurador!T63,IF($A$7=2,Configurador!T66,0)) -> 0 | J7: =IF($A$7=1,Configurador!U63,IF($A$7=2,Configurador!U66,0)) -> 0 | K7: =IF($A$7=1,Configurador!V63,IF($A$7=2,Configurador!V66,0)) -> 0 | L7: =IF($A$7=1,Configurador!W63,IF($A$7=2,Configurador!W66,0)) -> 0 | M7: =IF($A$7=1,Configurador!X63,IF($A$7=2,Configurador!X66,0)) -> 0 | N7: =IF($A$7=1,Configurador!Y63,IF($A$7=2,Configurador!Y66,0)) -> 0
G8: =IF($A$7=1,Configurador!R64,IF($A$7=2,Configurador!R67,0)) -> 0 | I8: =IF($A$7=1,Configurador!T64,IF($A$7=2,Configurador!T67,0)) -> 0 | J8: =IF($A$7=1,Configurador!U64,IF($A$7=2,Configurador!U67,0)) -> 0 | K8: =IF($A$7=1,Configurador!V64,IF($A$7=2,Configurador!V67,0)) -> 0
G9: =IF($A$7=1,Configurador!R65,IF($A$7=2,Configurador!R68,0)) -> 0 | I9: =IF($A$7=1,Configurador!T65,IF($A$7=2,Configurador!T68,0)) -> 0 | J9: =IF($A$7=1,Configurador!U65,IF($A$7=2,Configurador!U68,0)) -> 0 | K9: =IF($A$7=1,Configurador!V65,IF($A$7=2,Configurador!V68,0)) -> 0
B10: * El precio indicado supone disponibilidad 24h de las Máquinas Virtuales. En caso de no ser necesaria esta disponibilidad, pueden ser apagadas, resultando un menor precio.
B12: Licencias de usuario (WS CALs) | G12: Unidades | H12: Cuota mensual unitaria (compromiso anual) | J12: Total mensual | L12: Total anual
B13: Licencia necesaria para conectar con el servidor de Windows | G13: =IF(A7=1,Configurador!#REF!,IF(A7=2,Configurador!#REF!,0)) -> 0 | H13: =IF(A7=1,Configurador!#REF!,IF(A7=2,Configurador!#REF!,0)) -> 0 | J13: =G13*H13 -> 0 | L13: =J13*12 -> 0
B14: =CONCATENATE("**Los precios indicados en cuota mensual y cuota por producto son PVPs recomendados por Microsoft y no incluyen impuestos indirectos (IVA, IGIC, etc.). Todos los descuentos son ofertados por ",Configurador!J7) -> **Los precios indicados en cuota mensual y cuota por producto son PVPs recomendados por Microsoft y no incluyen impuestos indirectos (IVA, IGIC, etc.). Todos los descuentos son ofertados por
K15: =IF(J7>0,"Backup","Te recomendamos Backup") -> Te recomendamos Backup | L15: =IF(J8>0,"Disaster Recovery","Te recomendamos Disaster Recovery") -> Te recomendamos Disaster Recovery | M15: =IF(J9>0,"SQL Server","Te recomendamos SQL Server") -> Te recomendamos SQL Server
B16: Modernización de servidores con infrestructura cloud dimensionada hasta 50 usuarios
N39: =Impresion!E8 -> 

Sheet Azure_100_E
B3: Modernización de servidores para
B4: =Configurador!C7 -> 0
B6: Necesidad del cliente y producto | D6: Cuota mensual (*/**) | E6: Unidades | F6: Descuento | G6: Opciones recomendadas | I6: Cuota por producto (**) | J6: Unidades | K6: Descuento | L6: Total mensual | M6: Total anual | N6: Descuento anual
A7: =IF(Configurador!P69>0,1,IF(Configurador!P72>0,2,0)) -> 0 | B7: =IF(A7=1,CONCATENATE(Configurador!B72,". ",Configurador!L69),IF(A7=2,CONCATENATE(Configurador!B72," ",Configurador!L72),"")) ->  | D7: =IF($A$7=1,Configurador!N69,IF($A$7=2,Configurador!N72,0)) -> 0 | E7: =IF($A$7=1,Configurador!P69,IF($A$7=2,Configurador!P72,0)) -> 0 | F7: =IF($A$7=1,Configurador!Q69,IF($A$7=2,Configurador!Q72,0)) -> 0 | G7: =IF($A$7=1,Configurador!R69,IF($A$7=2,Configurador!R72,0)) -> 0 | I7: =IF($A$7=1,Configurador!T69,IF($A$7=2,Configurador!T72,0)) -> 0 | J7: =IF($A$7=1,Configurador!U69,IF($A$7=2,Configurador!U72,0)) -> 0 | K7: =IF($A$7=1,Configurador!V69,IF($A$7=2,Configurador!V72,0)) -> 0 | L7: =IF($A$7=1,Configurador!W69,IF($A$7=2,Configurador!W72,0)) -> 0 | M7: =IF($A$7=1,Configurador!X69,IF($A$7=2,Configurador!X72,0)) -> 0 | N7: =IF($A$7=1,Configurador!Y69,IF($A$7=2,Configurador!Y72,0)) -> 0
G8: =IF($A$7=1,Configurador!R70,IF($A$7=2,Configurador!R73,0)) -> 0 | I8: =IF($A$7=1,Configurador!T70,IF($A$7=2,Configurador!T73,0)) -> 0 | J8: =IF($A$7=1,Configurador!U70,IF($A$7=2,Configurador!U72,0)) -> 0 | K8: =IF($A$7=1,Configurador!V70,IF($A$7=2,Configurador!V73,0)) -> 0
G9: =IF($A$7=1,Configurador!R71,IF($A$7=2,Configurador!R74,0)) -> 0 | I9: =IF($A$7=1,Configurador!T71,IF($A$7=2,Configurador!T74,0)) -> 0 | J9: =IF($A$7=1,Configurador!U71,IF($A$7=2,Configurador!U74,0)) -> 0 | K9: =IF($A$7=1,Configurador!V71,IF($A$7=2,Configurador!V74,0)) -> 0
B10: * El precio indicado supone disponibilidad 24h de las Máquinas Virtuales. En caso de no ser necesaria esta disponibilidad, pueden ser apagadas, resultando un menor precio.
B11: =CONCATENATE("**Los precios indicados en cuota mensual y cuota por producto son PVPs recomendados por Microsoft y no incluyen impuestos indirectos (IVA, IGIC, etc.). Todos los descuentos son ofertados por ",Configurador!J7) -> **Los precios indicados en cuota mensual y cuota por producto son PVPs recomendados por Microsoft y no incluyen impuestos indirectos (IVA, IGIC, etc.). Todos los descuentos son ofertados por
B12: Licencias de usuario (WS CALs) | G12: Unidades | H12: Cuota mensual unitaria (compromiso anual) | J12: Total mensual | L12: Total anual
B13: Licencia necesaria para conectar con el servidor de Windows | G13: =IF(A7=1,Configurador!#REF!,IF(A7=2,Configurador!#REF!,0)) -> 0 | H13: =IF(A7=1,Configurador!#REF!,IF(A7=2,Configurador!#REF!,0)) -> 0 | J13: =G13*H13 -> 0 | L13: =J13*12 -> 0
K15: =IF(J7>0,"Backup","Te recomendamos Backup") -> Te recomendamos Backup | L15: =IF(J8>0,"Disaster Recovery","Te recomendamos Disaster Recovery") -> Te recomendamos Disaster Recovery | M15: =IF(J9>0,"SQL Server","Te recomendamos SQL Server") -> Te recomendamos SQL Server
B16: Modernización de servidores con infrestructura cloud dimensionada para 100 usuarios
N39: =Impresion!E9 -> 

Sheet Azure_Custom_E
B3: Modernización de servidores para
B4: =Configurador!C7 -> 0
B6: Descripción de la configuración demandada | J6: Cuota mensual (*) | K6: Descuento | L6: Total mensual | M6: Total anual | N6: Descuento anual
B7: =Configurador!E75 -> 0 | J7: =Configurador!N75 -> 0 | K7: =Configurador!Q75 -> 0 | L7: =Configurador!W75 -> 0 | M7: =Configurador!X75 -> 0 | N7: =Configurador!Y75 -> 0
B11: Licencias de usuario (WS CALs) | G11: Unidades | H11: Cuota mensual unitaria (compromiso anual) | J11: Total mensual | L11: Total anual
B12: Licencia necesaria para conectar con el servidor de Windows | G12: =Configurador!#REF! ->  | H12: =Configurador!#REF! ->  | J12: =G12*H12 ->  | L12: =J12*12 -> 
B13: =CONCATENATE("*Los precios indicados en cuota mensual no incluyen impuestos indirectos (IVA, IGIC, etc.). Todos los descuentos son ofertados por ",Configurador!J7) -> *Los precios indicados en cuota mensual no incluyen impuestos indirectos (IVA, IGIC, etc.). Todos los descuentos son ofertados por
B15: Arquitectura de servidores solicitada
N38: =Impresion!E10 -> 

Sheet Server_E
B3: Modernización de servidores para
B4: =Configurador!C7 -> 0
B6: Necesidad del cliente | D6: Descripción | G6: Producto | I6: Tipo de licencia | J6: Duración | K6: Precio total (*) | L6: Uds. | M6: Dcto. | N6: WS CAL | O6: Precio unitario (*) | P6: RDS CAL (**) (opcional) | Q6: Precio unitario (*) | R6: Total
B7: =Configurador!B79 -> Modernización BBDD OnPremise preparada para el Cloud | D7: =Configurador!E79 -> Esta modalidad permite actualizar a la última versión su BBDD con los beneficios que conlleva y aprovechar la inversión para su implementación en nube cuando esté preparado sin necesidad de volver a invertir. Haga inversiones consistentes para su cloud híbrido. | G7: =Configurador!L79 -> SQL Server Standard Core (mínimo 4 cores) | I7: =Configurador!N79 -> 2 Core License Pack | J7: =Configurador!Q79 -> 0 | K7: =Configurador!R79 -> 0 | L7: =Configurador!S79 -> 0 | M7: =Configurador!T79 -> 0 | N7: =Configurador!U79 -> No aplica | O7: =Configurador!V79 -> No aplica | P7: =Configurador!W79 -> No aplica | Q7: =Configurador!X79 -> No aplica | R7: =Configurador!Y79 -> 0
B8: =Configurador!B80 -> Modernización de Servidores OnPremise preparados para el Cloud | D8: =Configurador!E80 -> Esta modalidad permite actualizar a la última versión su infraestructura de servidores con los beneficios que conlleva y aprovechar la inversión para su implementación en nube cuando esté preparado si necesidad de volver a invertir. Haga inversiones consistentes para su cloud híbrido. | G8: =Configurador!L80 -> Windows Server Standard Core (mínimo 16 cores) | I8: =Configurador!N80 -> 8 Core License Pack | J8: =Configurador!Q80 -> 0 | K8: =Configurador!R80 -> 0 | L8: =Configurador!S80 -> 0 | M8: =Configurador!T80 -> 0 | N8: =Configurador!U80 -> 0 | O8: =Configurador!V80 -> 0 | P8: =Configurador!W80 -> 0 | Q8: =Configurador!X80 -> 0 | R8: =Configurador!Y80 -> 0
L9: =SUM(L7:L8) -> 0 | N9: =SUM(N7:N8) -> 0 | P9: =SUM(P7:P8) -> 0 | R9: =SUM(R7:R8) -> 0
B10: =CONCATENATE("*Los precios indicados en Precio total y Precio unitario son PVPs recomendados por Microsoft y no incluyen impuestos indirectos (IVA, IGIC, etc.). Todos los descuentos son ofertados por ",Configurador!J7) -> *Los precios indicados en Precio total y Precio unitario son PVPs recomendados por Microsoft y no incluyen impuestos indirectos (IVA, IGIC, etc.). Todos los descuentos son ofertados por
B11: **Licencia que le permite publicar sus aplicaciones o servicios en remoto a través de RDS ( Remote Desktop Services)
B13: Modernización de servidores Windows y SQL
R35: =Impresion!E11 -> 

Sheet BusApps_Generica_E
B3: Le recomendamos las aplicaciones de negocio de Microsoft para simplificar y conectar los procesos empresariales, mejorar las interacciones con los clientes y facilitar el crecimiento
B7: Dynamics 365 Business Central: el ERP adaptado a las necesidades de las Pymes
K12: =IF(AND(L7=0,L9=0),"Te recomendamos Advanced Threat Protection","Advanced Threat Protection") -> Te recomendamos Advanced Threat Protection
B24: Aplicaciones de negocio integradas con Office 365
N43: =Impresion!E12 -> Página 4 de 7

Sheet Dynamics_E
B3: Dynamics 365 Business Central para
B4: =Configurador!C7 -> 0
B6: Necesidad del cliente | F6: Producto | I6: Cuota ususario / mes (*/**) | J6: Usuarios | K6: Descuento | L6: Total mensual | M6: Total anual | N6: Total dto. anual
B7: =Configurador!B87 -> Gestión Avanzada de recursos empresariales | F7: =Configurador!E87 -> Dynamics 365 Business Central Premium | I7: =Configurador!N87 -> 84.33 | J7: =Configurador!P87 -> 0 | K7: =Configurador!Q87 -> 0 | L7: =Configurador!R87 -> 0 | M7: =Configurador!S87 -> 0 | N7: =Configurador!T87 -> 0
B8: =Configurador!B88 -> Gestión de recursos empresariales | F8: =Configurador!E88 -> Dynamics 365 Business Central Essentials | I8: =Configurador!N88 -> 59.03 | J8: =Configurador!P88 -> 0 | K8: =Configurador!Q88 -> 0 | L8: =Configurador!R88 -> 0 | M8: =Configurador!S88 -> 0 | N8: =Configurador!T88 -> 0
B9: =Configurador!B89 -> Proveer acceso a información básica de negocio a determinados usuarios de la organización | F9: =Configurador!E89 -> Dynamics 365 Business Central Team Members | I9: =Configurador!N89 -> 6.76 | J9: =Configurador!P89 -> 0 | K9: =Configurador!Q89 -> 0 | L9: =Configurador!R89 -> 0 | M9: =Configurador!S89 -> 0 | N9: =Configurador!T89 -> 0
B11: * Las cuotas indicadas sólo incluyen licencia. No incluye configuración y formación
B12: =CONCATENATE("**Los precios indicados en cuota por usuario/mes son PVPs recomendados por Microsoft y no incluyen impuestos indirectos (IVA, IGIC, etc.). Todos los descuentos son ofertados por ",Configurador!J7) -> **Los precios indicados en cuota por usuario/mes son PVPs recomendados por Microsoft y no incluyen impuestos indirectos (IVA, IGIC, etc.). Todos los descuentos son ofertados por
B14: Funcionalidades disponibles en todos los productos
B35: (1) Uso de Power BI con Microsoft Dynamics 365: https://docs.microsoft.com/es-es/previous-versions/dynamicscrm-2016/administering-dynamics-365/dn708055(v=crm.8)
B36: (2) Power Apps: Plataforma para crear aplicaciones para publicar en la Web, iOS, Android y Windows 10 de forma muy rápida con plantillas o con un lienzo en blanco. Más información en: https://powerapps.microsoft.com/es-es/
B37: (3) Flow: Crear flujos de trabajo automatizados entre sus aplicaciones y servicios favoritos para obtener notificaciones, sincronizar archivos, recopilar datos y mucho más. Más información en: https://flow.microsoft.com/es-es/
B39: Enlace a más información sobre Microsoft Dynamics 365 Business Central: https://dynamics.microsoft.com/es-es/business-central/overview/
N41: =Impresion!E13 -> 

Sheet Dynamics_Sales_E
B3: Le recomendamos las aplicaciones de negocio de Microsoft para para simplificar y conectar los procesos empresariales, mejorar las interacciones con los clientes y facilitar el crecimiento
B4: =Configurador!C7 -> 0
B6: Necesidad del cliente | F6: Producto | I6: Cuota ususario / mes (*/**) | J6: Usuarios | K6: Descuento | L6: Total mensual | M6: Total anual | N6: Total dto. anual
B7: =Configurador!B90 -> Solución de automatización de fuerza de ventas | F7: =Configurador!E90 -> Dynamics 365 for Sales Professional | I7: =Configurador!N90 -> 54.8 | J7: =Configurador!P90 -> 0 | K7: =Configurador!Q90 -> 0 | L7: =Configurador!R90 -> 0 | M7: =Configurador!S90 -> 0 | N7: =Configurador!T90 -> 0
B8: =Configurador!B91 -> Solución de inteligencia de negocio | F8: =Configurador!E91 -> Power BI | I8: =Configurador!N91 -> 8.4 | J8: =Configurador!P91 -> 0 | K8: =Configurador!Q91 -> 0 | L8: =Configurador!R91 -> 0 | M8: =Configurador!S91 -> 0 | N8: =Configurador!T91 -> 0
B9: =Configurador!B92 -> Entorno para construir aplicaciones de negocio sin necesidad de código | F9: =Configurador!E92 -> Power Apps | I9: =Configurador!N92 -> 7,00 € *** | J9: =Configurador!P92 -> 0 | K9: =Configurador!Q92 -> 0 | L9: =Configurador!R92 -> 0 | M9: =Configurador!S92 -> 0 | N9: =Configurador!T92 -> 0
B11: =CONCATENATE(" * Los precios indicados en cuota usuario/mes son PVPs recomendados por Microsoft y no incluyen impuestos indirectos (IVA, IGIC, etc.). Todos los descuentos son ofertados por ",Configurador!J7) -> * Los precios indicados en cuota usuario/mes son PVPs recomendados por Microsoft y no incluyen impuestos indirectos (IVA, IGIC, etc.). Todos los descuentos son ofertados por
B12: ** Las cuotas indicadas sólo incluyen licencia. No incluye configuración y formación *** Plan 1 Power Apps= Incluye derechos de uso del modelo común de datos de Dynamcis 365 (20 MS de capacidad de BBDD), incluye conectores estándar, premium, a medida y en local. Incluye 4500 flujos de trabajo de Microsoft Flow
B14: Aplicaciones de negocio inteligentes
B41: (1) Dynamics 365 for Sales Professional. Más información en: https://dynamics.microsoft.com/es-es/sales/professional/
B42: (2) Power BI. Más información en: https://powerbi.microsoft.com/es-es/
B43: (3) Power Apps. Más información en: https://powerapps.microsoft.com/es-es/
N49: =Impresion!E14 -> 

Sheet Add-in_E
B3: Aplicaciones de negocio integradas con Office para
B4: =Configurador!C7 -> 0
B6: Necesidad del cliente | F6: Producto | I6: Cuota ususario / mes (*/**) | J6: Usuarios | K6: Descuento | L6: Total mensual | M6: Total anual | N6: Total dto. anual
B7: =Configurador!B93 -> Seguimiento de clientes | F7: =Configurador!E93 -> Outlook Customer Manager (add in O365) | I7: =Configurador!N93 -> Incluido con M365 Empresa y O365 Empresa Premium | J7: =Configurador!P93 -> 0 | K7: =Configurador!Q93 -> No aplica | L7: =Configurador!R93 -> 0 | M7: =Configurador!T93 -> 0 | N7: =Configurador!T87 -> 0
B8: =Configurador!B94 -> Organización del trabajo en equipo | F8: =Configurador!E94 -> Planner (add in O365) | I8: =Configurador!N94 -> Incluido con M365 Empresa y O365 Empresa | J8: =Configurador!P94 -> 0 | K8: =Configurador!Q94 -> No aplica | L8: =Configurador!R94 -> 0 | M8: =Configurador!T94 -> 0 | N8: =Configurador!T88 -> 0
B9: =Configurador!B95 -> Gestión de citas online | F9: =Configurador!E95 -> Bookings (add in O365) | I9: =Configurador!N95 -> Incluido con M365 Empresa y O365 Empresa Premium | J9: =Configurador!P95 -> 0 | K9: =Configurador!Q95 -> No aplica | L9: =Configurador!R95 -> 0 | M9: =Configurador!T95 -> 0 | N9: =Configurador!T89 -> 0
B11: * Las cuotas indicadas sólo incluyen licencia. No incluye configuración y formación
B12: =CONCATENATE("**Los precios indicados en cuota usuario/mes son PVPs recomendados por Microsoft y no incluyen impuestos indirectos (IVA, IGIC, etc.). Todos los descuentos son ofertados por ",Configurador!J7) -> **Los precios indicados en cuota usuario/mes son PVPs recomendados por Microsoft y no incluyen impuestos indirectos (IVA, IGIC, etc.). Todos los descuentos son ofertados por
B13: Aplicaciones de negocio integradas con Office 365
O28: +
N40: =Impresion!E15 -> 

Sheet Surface_Generica_E
C3: Le recomendamos los dispositivos Surface para mejorar la productividad de su negocio
L10: =IF(AND(L8=0,L9=0),"Te recomendamos Enterprise Mobility and Security","Enterprise Mobility and Security") -> Te recomendamos Enterprise Mobility and Security
P42: =Impresion!E16 -> Página 5 de 7

Sheet SurfacePro_E
B3: Dispositivos Surface Pro para:
B4: =Configurador!C7 -> 0
B6: Surface Pro: un equipo versátil, 2 en 1 en potencia y movilidad, para usar en el puesto de trabajo o llevar consigo
K10: =IF(AND(K8=0,K9=0),"Te recomendamos Enterprise Mobility and Security","Enterprise Mobility and Security") -> Te recomendamos Enterprise Mobility and Security
B25: Pantalla/Procesador/ Memoria/Disco duro/LTE | E25: Tipo de pago | F25: Precio en pago único | G25: Precio en cuota mensual | H25: Dcto. | I25: Nº Equipos | J25: Accesorios - Garantía | K25: Precio unitario | L25: Dcto. | M25: Total pago inicial | N25: Total mensual | O25: Total primer año | P25: Total años sucesivos | Q25: Total dto. primer año
A26: 1 | B26: =IF(ISERROR(VLOOKUP($A26,LN_Surface!$C$62:$Y$66,LN_Surface!I$70,FALSE)),"",VLOOKUP($A26,LN_Surface!$C$62:$Y$66,LN_Surface!I$70,FALSE)) ->  | E26: =IF(ISERROR(VLOOKUP($A26,LN_Surface!$C$62:$Y$66,LN_Surface!J$70,FALSE)),"",VLOOKUP($A26,LN_Surface!$C$62:$Y$66,LN_Surface!J$70,FALSE)) ->  | F26: =IF(ISERROR(VLOOKUP($A26,LN_Surface!$C$62:$Y$66,LN_Surface!K$70,FALSE)),"",VLOOKUP($A26,LN_Surface!$C$62:$Y$66,LN_Surface!K$70,FALSE)) ->  | G26: =IF(ISERROR(VLOOKUP($A26,LN_Surface!$C$62:$Y$66,LN_Surface!L$70,FALSE)),"",VLOOKUP($A26,LN_Surface!$C$62:$Y$66,LN_Surface!L$70,FALSE)) ->  | H26: =IF(ISERROR(VLOOKUP($A26,LN_Surface!$C$62:$Y$66,LN_Surface!M$70,FALSE)),"",VLOOKUP($A26,LN_Surface!$C$62:$Y$66,LN_Surface!M$70,FALSE)) ->  | I26: =IF(ISERROR(VLOOKUP($A26,LN_Surface!$C$62:$Y$66,LN_Surface!N$70,FALSE)),"",VLOOKUP($A26,LN_Surface!$C$62:$Y$66,LN_Surface!N$70,FALSE)) ->  | J26: =IF(ISERROR(VLOOKUP($A26,LN_Surface!$C$62:$Y$66,LN_Surface!O$70,FALSE)),"",VLOOKUP($A26,LN_Surface!$C$62:$Y$66,LN_Surface!O$70,FALSE)) ->  | K26: =IF(ISERROR(VLOOKUP($A26,LN_Surface!$C$62:$Y$66,LN_Surface!P$70,FALSE)),"",VLOOKUP($A26,LN_Surface!$C$62:$Y$66,LN_Surface!P$70,FALSE)) ->  | L26: =IF(ISERROR(VLOOKUP($A26,LN_Surface!$C$62:$Y$66,LN_Surface!Q$70,FALSE)),"",VLOOKUP($A26,LN_Surface!$C$62:$Y$66,LN_Surface!Q$70,FALSE)) ->  | M26: =IF(ISERROR(VLOOKUP($A26,LN_Surface!$C$62:$Y$66,LN_Surface!U$70,FALSE)),"",VLOOKUP($A26,LN_Surface!$C$62:$Y$66,LN_Surface!U$70,FALSE)) ->  | N26: =IF(ISERROR(VLOOKUP($A26,LN_Surface!$C$62:$Y$66,LN_Surface!V$70,FALSE)),"",VLOOKUP($A26,LN_Surface!$C$62:$Y$66,LN_Surface!V$70,FALSE)) ->  | O26: =IF(ISERROR(VLOOKUP($A26,LN_Surface!$C$62:$Y$66,LN_Surface!W$70,FALSE)),"",VLOOKUP($A26,LN_Surface!$C$62:$Y$66,LN_Surface!W$70,FALSE)) ->  | P26: =IF(ISERROR(VLOOKUP($A26,LN_Surface!$C$62:$Y$66,LN_Surface!X$70,FALSE)),"",VLOOKUP($A26,LN_Surface!$C$62:$Y$66,LN_Surface!X$70,FALSE)) ->  | Q26: =IF(ISERROR(VLOOKUP($A26,LN_Surface!$C$62:$Y$66,LN_Surface!Y$70,FALSE)),"",VLOOKUP($A26,LN_Surface!$C$62:$Y$66,LN_Surface!Y$70,FALSE)) -> 
J27: =IF((IF(ISERROR(VLOOKUP($A26,LN_Surface!$C$62:$Y$66,LN_Surface!R$70,FALSE)),"",VLOOKUP($A26,LN_Surface!$C$62:$Y$66,LN_Surface!R$70,FALSE)))=0,"Estándar",IF(ISERROR(VLOOKUP($A26,LN_Surface!$C$62:$Y$66,LN_Surface!R$70,FALSE)),"",VLOOKUP($A26,LN_Surface!$C$62:$Y$66,LN_Surface!R$70,FALSE))) ->  | K27: =IF(ISERROR(VLOOKUP($A26,LN_Surface!$C$62:$Y$66,LN_Surface!S$70,FALSE)),"",VLOOKUP($A26,LN_Surface!$C$62:$Y$66,LN_Surface!S$70,FALSE)) ->  | L27: =IF(ISERROR(VLOOKUP($A26,LN_Surface!$C$62:$Y$66,LN_Surface!T$70,FALSE)),"",VLOOKUP($A26,LN_Surface!$C$62:$Y$66,LN_Surface!T$70,FALSE)) -> 
A28: 2 | B28: =IF(ISERROR(VLOOKUP($A28,LN_Surface!$C$62:$Y$66,LN_Surface!I$70,FALSE)),"",VLOOKUP($A28,LN_Surface!$C$62:$Y$66,LN_Surface!I$70,FALSE)) ->  | E28: =IF(ISERROR(VLOOKUP($A28,LN_Surface!$C$62:$Y$66,LN_Surface!J$70,FALSE)),"",VLOOKUP($A28,LN_Surface!$C$62:$Y$66,LN_Surface!J$70,FALSE)) ->  | F28: =IF(ISERROR(VLOOKUP($A28,LN_Surface!$C$62:$Y$66,LN_Surface!K$70,FALSE)),"",VLOOKUP($A28,LN_Surface!$C$62:$Y$66,LN_Surface!K$70,FALSE)) ->  | G28: =IF(ISERROR(VLOOKUP($A28,LN_Surface!$C$62:$Y$66,LN_Surface!L$70,FALSE)),"",VLOOKUP($A28,LN_Surface!$C$62:$Y$66,LN_Surface!L$70,FALSE)) ->  | H28: =IF(ISERROR(VLOOKUP($A28,LN_Surface!$C$62:$Y$66,LN_Surface!M$70,FALSE)),"",VLOOKUP($A28,LN_Surface!$C$62:$Y$66,LN_Surface!M$70,FALSE)) ->  | I28: =IF(ISERROR(VLOOKUP($A28,LN_Surface!$C$62:$Y$66,LN_Surface!N$70,FALSE)),"",VLOOKUP($A28,LN_Surface!$C$62:$Y$66,LN_Surface!N$70,FALSE)) ->  | J28: =IF(ISERROR(VLOOKUP($A28,LN_Surface!$C$62:$Y$66,LN_Surface!O$70,FALSE)),"",VLOOKUP($A28,LN_Surface!$C$62:$Y$66,LN_Surface!O$70,FALSE)) ->  | K28: =IF(ISERROR(VLOOKUP($A28,LN_Surface!$C$62:$Y$66,LN_Surface!P$70,FALSE)),"",VLOOKUP($A28,LN_Surface!$C$62:$Y$66,LN_Surface!P$70,FALSE)) ->  | L28: =IF(ISERROR(VLOOKUP($A28,LN_Surface!$C$62:$Y$66,LN_Surface!Q$70,FALSE)),"",VLOOKUP($A28,LN_Surface!$C$62:$Y$66,LN_Surface!Q$70,FALSE)) ->  | M28: =IF(ISERROR(VLOOKUP($A28,LN_Surface!$C$62:$Y$66,LN_Surface!U$70,FALSE)),"",VLOOKUP($A28,LN_Surface!$C$62:$Y$66,LN_Surface!U$70,FALSE)) ->  | N28: =IF(ISERROR(VLOOKUP($A28,LN_Surface!$C$62:$Y$66,LN_Surface!V$70,FALSE)),"",VLOOKUP($A28,LN_Surface!$C$62:$Y$66,LN_Surface!V$70,FALSE)) ->  | O28: =IF(ISERROR(VLOOKUP($A28,LN_Surface!$C$62:$Y$66,LN_Surface!W$70,FALSE)),"",VLOOKUP($A28,LN_Surface!$C$62:$Y$66,LN_Surface!W$70,FALSE)) ->  | P28: =IF(ISERROR(VLOOKUP($A28,LN_Surface!$C$62:$Y$66,LN_Surface!X$70,FALSE)),"",VLOOKUP($A28,LN_Surface!$C$62:$Y$66,LN_Surface!X$70,FALSE)) ->  | Q28: =IF(ISERROR(VLOOKUP($A28,LN_Surface!$C$62:$Y$66,LN_Surface!Y$70,FALSE)),"",VLOOKUP($A28,LN_Surface!$C$62:$Y$66,LN_Surface!Y$70,FALSE)) -> 
J29: =IF((IF(ISERROR(VLOOKUP($A28,LN_Surface!$C$62:$Y$66,LN_Surface!R$70,FALSE)),"",VLOOKUP($A28,LN_Surface!$C$62:$Y$66,LN_Surface!R$70,FALSE)))=0,"Estándar",IF(ISERROR(VLOOKUP($A28,LN_Surface!$C$62:$Y$66,LN_Surface!R$70,FALSE)),"",VLOOKUP($A28,LN_Surface!$C$62:$Y$66,LN_Surface!R$70,FALSE))) ->  | K29: =IF(ISERROR(VLOOKUP($A28,LN_Surface!$C$62:$Y$66,LN_Surface!S$70,FALSE)),"",VLOOKUP($A28,LN_Surface!$C$62:$Y$66,LN_Surface!S$70,FALSE)) ->  | L29: =IF(ISERROR(VLOOKUP($A28,LN_Surface!$C$62:$Y$66,LN_Surface!T$70,FALSE)),"",VLOOKUP($A28,LN_Surface!$C$62:$Y$66,LN_Surface!T$70,FALSE)) -> 
A30: 3 | B30: =IF(ISERROR(VLOOKUP($A30,LN_Surface!$C$62:$Y$66,LN_Surface!I$70,FALSE)),"",VLOOKUP($A30,LN_Surface!$C$62:$Y$66,LN_Surface!I$70,FALSE)) ->  | E30: =IF(ISERROR(VLOOKUP($A30,LN_Surface!$C$62:$Y$66,LN_Surface!J$70,FALSE)),"",VLOOKUP($A30,LN_Surface!$C$62:$Y$66,LN_Surface!J$70,FALSE)) ->  | F30: =IF(ISERROR(VLOOKUP($A30,LN_Surface!$C$62:$Y$66,LN_Surface!K$70,FALSE)),"",VLOOKUP($A30,LN_Surface!$C$62:$Y$66,LN_Surface!K$70,FALSE)) ->  | G30: =IF(ISERROR(VLOOKUP($A30,LN_Surface!$C$62:$Y$66,LN_Surface!L$70,FALSE)),"",VLOOKUP($A30,LN_Surface!$C$62:$Y$66,LN_Surface!L$70,FALSE)) ->  | H30: =IF(ISERROR(VLOOKUP($A30,LN_Surface!$C$62:$Y$66,LN_Surface!M$70,FALSE)),"",VLOOKUP($A30,LN_Surface!$C$62:$Y$66,LN_Surface!M$70,FALSE)) ->  | I30: =IF(ISERROR(VLOOKUP($A30,LN_Surface!$C$62:$Y$66,LN_Surface!N$70,FALSE)),"",VLOOKUP($A30,LN_Surface!$C$62:$Y$66,LN_Surface!N$70,FALSE)) ->  | J30: =IF(ISERROR(VLOOKUP($A30,LN_Surface!$C$62:$Y$66,LN_Surface!O$70,FALSE)),"",VLOOKUP($A30,LN_Surface!$C$62:$Y$66,LN_Surface!O$70,FALSE)) ->  | K30: =IF(ISERROR(VLOOKUP($A30,LN_Surface!$C$62:$Y$66,LN_Surface!P$70,FALSE)),"",VLOOKUP($A30,LN_Surface!$C$62:$Y$66,LN_Surface!P$70,FALSE)) ->  | L30: =IF(ISERROR(VLOOKUP($A30,LN_Surface!$C$62:$Y$66,LN_Surface!Q$70,FALSE)),"",VLOOKUP($A30,LN_Surface!$C$62:$Y$66,LN_Surface!Q$70,FALSE)) ->  | M30: =IF(ISERROR(VLOOKUP($A30,LN_Surface!$C$62:$Y$66,LN_Surface!U$70,FALSE)),"",VLOOKUP($A30,LN_Surface!$C$62:$Y$66,LN_Surface!U$70,FALSE)) ->  | N30: =IF(ISERROR(VLOOKUP($A30,LN_Surface!$C$62:$Y$66,LN_Surface!V$70,FALSE)),"",VLOOKUP($A30,LN_Surface!$C$62:$Y$66,LN_Surface!V$70,FALSE)) ->  | O30: =IF(ISERROR(VLOOKUP($A30,LN_Surface!$C$62:$Y$66,LN_Surface!W$70,FALSE)),"",VLOOKUP($A30,LN_Surface!$C$62:$Y$66,LN_Surface!W$70,FALSE)) ->  | P30: =IF(ISERROR(VLOOKUP($A30,LN_Surface!$C$62:$Y$66,LN_Surface!X$70,FALSE)),"",VLOOKUP($A30,LN_Surface!$C$62:$Y$66,LN_Surface!X$70,FALSE)) ->  | Q30: =IF(ISERROR(VLOOKUP($A30,LN_Surface!$C$62:$Y$66,LN_Surface!Y$70,FALSE)),"",VLOOKUP($A30,LN_Surface!$C$62:$Y$66,LN_Surface!Y$70,FALSE)) -> 
J31: =IF((IF(ISERROR(VLOOKUP($A30,LN_Surface!$C$62:$Y$66,LN_Surface!R$70,FALSE)),"",VLOOKUP($A30,LN_Surface!$C$62:$Y$66,LN_Surface!R$70,FALSE)))=0,"Estándar",IF(ISERROR(VLOOKUP($A30,LN_Surface!$C$62:$Y$66,LN_Surface!R$70,FALSE)),"",VLOOKUP($A30,LN_Surface!$C$62:$Y$66,LN_Surface!R$70,FALSE))) ->  | K31: =IF(ISERROR(VLOOKUP($A30,LN_Surface!$C$62:$Y$66,LN_Surface!S$70,FALSE)),"",VLOOKUP($A30,LN_Surface!$C$62:$Y$66,LN_Surface!S$70,FALSE)) ->  | L31: =IF(ISERROR(VLOOKUP($A30,LN_Surface!$C$62:$Y$66,LN_Surface!T$70,FALSE)),"",VLOOKUP($A30,LN_Surface!$C$62:$Y$66,LN_Surface!T$70,FALSE)) -> 
A32: 4 | B32: =IF(ISERROR(VLOOKUP($A32,LN_Surface!$C$62:$Y$66,LN_Surface!I$70,FALSE)),"",VLOOKUP($A32,LN_Surface!$C$62:$Y$66,LN_Surface!I$70,FALSE)) ->  | E32: =IF(ISERROR(VLOOKUP($A32,LN_Surface!$C$62:$Y$66,LN_Surface!J$70,FALSE)),"",VLOOKUP($A32,LN_Surface!$C$62:$Y$66,LN_Surface!J$70,FALSE)) ->  | F32: =IF(ISERROR(VLOOKUP($A32,LN_Surface!$C$62:$Y$66,LN_Surface!K$70,FALSE)),"",VLOOKUP($A32,LN_Surface!$C$62:$Y$66,LN_Surface!K$70,FALSE)) ->  | G32: =IF(ISERROR(VLOOKUP($A32,LN_Surface!$C$62:$Y$66,LN_Surface!L$70,FALSE)),"",VLOOKUP($A32,LN_Surface!$C$62:$Y$66,LN_Surface!L$70,FALSE)) ->  | H32: =IF(ISERROR(VLOOKUP($A32,LN_Surface!$C$62:$Y$66,LN_Surface!M$70,FALSE)),"",VLOOKUP($A32,LN_Surface!$C$62:$Y$66,LN_Surface!M$70,FALSE)) ->  | I32: =IF(ISERROR(VLOOKUP($A32,LN_Surface!$C$62:$Y$66,LN_Surface!N$70,FALSE)),"",VLOOKUP($A32,LN_Surface!$C$62:$Y$66,LN_Surface!N$70,FALSE)) ->  | J32: =IF(ISERROR(VLOOKUP($A32,LN_Surface!$C$62:$Y$66,LN_Surface!O$70,FALSE)),"",VLOOKUP($A32,LN_Surface!$C$62:$Y$66,LN_Surface!O$70,FALSE)) ->  | K32: =IF(ISERROR(VLOOKUP($A32,LN_Surface!$C$62:$Y$66,LN_Surface!P$70,FALSE)),"",VLOOKUP($A32,LN_Surface!$C$62:$Y$66,LN_Surface!P$70,FALSE)) ->  | L32: =IF(ISERROR(VLOOKUP($A32,LN_Surface!$C$62:$Y$66,LN_Surface!Q$70,FALSE)),"",VLOOKUP($A32,LN_Surface!$C$62:$Y$66,LN_Surface!Q$70,FALSE)) ->  | M32: =IF(ISERROR(VLOOKUP($A32,LN_Surface!$C$62:$Y$66,LN_Surface!U$70,FALSE)),"",VLOOKUP($A32,LN_Surface!$C$62:$Y$66,LN_Surface!U$70,FALSE)) ->  | N32: =IF(ISERROR(VLOOKUP($A32,LN_Surface!$C$62:$Y$66,LN_Surface!V$70,FALSE)),"",VLOOKUP($A32,LN_Surface!$C$62:$Y$66,LN_Surface!V$70,FALSE)) ->  | O32: =IF(ISERROR(VLOOKUP($A32,LN_Surface!$C$62:$Y$66,LN_Surface!W$70,FALSE)),"",VLOOKUP($A32,LN_Surface!$C$62:$Y$66,LN_Surface!W$70,FALSE)) ->  | P32: =IF(ISERROR(VLOOKUP($A32,LN_Surface!$C$62:$Y$66,LN_Surface!X$70,FALSE)),"",VLOOKUP($A32,LN_Surface!$C$62:$Y$66,LN_Surface!X$70,FALSE)) ->  | Q32: =IF(ISERROR(VLOOKUP($A32,LN_Surface!$C$62:$Y$66,LN_Surface!Y$70,FALSE)),"",VLOOKUP($A32,LN_Surface!$C$62:$Y$66,LN_Surface!Y$70,FALSE)) -> 
J33: =IF((IF(ISERROR(VLOOKUP($A32,LN_Surface!$C$62:$Y$66,LN_Surface!R$70,FALSE)),"",VLOOKUP($A32,LN_Surface!$C$62:$Y$66,LN_Surface!R$70,FALSE)))=0,"Estándar",IF(ISERROR(VLOOKUP($A32,LN_Surface!$C$62:$Y$66,LN_Surface!R$70,FALSE)),"",VLOOKUP($A32,LN_Surface!$C$62:$Y$66,LN_Surface!R$70,FALSE))) ->  | K33: =IF(ISERROR(VLOOKUP($A32,LN_Surface!$C$62:$Y$66,LN_Surface!S$70,FALSE)),"",VLOOKUP($A32,LN_Surface!$C$62:$Y$66,LN_Surface!S$70,FALSE)) ->  | L33: =IF(ISERROR(VLOOKUP($A32,LN_Surface!$C$62:$Y$66,LN_Surface!T$70,FALSE)),"",VLOOKUP($A32,LN_Surface!$C$62:$Y$66,LN_Surface!T$70,FALSE)) -> 
A34: 5 | B34: =IF(ISERROR(VLOOKUP($A34,LN_Surface!$C$62:$Y$66,LN_Surface!I$70,FALSE)),"",VLOOKUP($A34,LN_Surface!$C$62:$Y$66,LN_Surface!I$70,FALSE)) ->  | E34: =IF(ISERROR(VLOOKUP($A34,LN_Surface!$C$62:$Y$66,LN_Surface!J$70,FALSE)),"",VLOOKUP($A34,LN_Surface!$C$62:$Y$66,LN_Surface!J$70,FALSE)) ->  | F34: =IF(ISERROR(VLOOKUP($A34,LN_Surface!$C$62:$Y$66,LN_Surface!K$70,FALSE)),"",VLOOKUP($A34,LN_Surface!$C$62:$Y$66,LN_Surface!K$70,FALSE)) ->  | G34: =IF(ISERROR(VLOOKUP($A34,LN_Surface!$C$62:$Y$66,LN_Surface!L$70,FALSE)),"",VLOOKUP($A34,LN_Surface!$C$62:$Y$66,LN_Surface!L$70,FALSE)) ->  | H34: =IF(ISERROR(VLOOKUP($A34,LN_Surface!$C$62:$Y$66,LN_Surface!M$70,FALSE)),"",VLOOKUP($A34,LN_Surface!$C$62:$Y$66,LN_Surface!M$70,FALSE)) ->  | I34: =IF(ISERROR(VLOOKUP($A34,LN_Surface!$C$62:$Y$66,LN_Surface!N$70,FALSE)),"",VLOOKUP($A34,LN_Surface!$C$62:$Y$66,LN_Surface!N$70,FALSE)) ->  | J34: =IF(ISERROR(VLOOKUP($A34,LN_Surface!$C$62:$Y$66,LN_Surface!O$70,FALSE)),"",VLOOKUP($A34,LN_Surface!$C$62:$Y$66,LN_Surface!O$70,FALSE)) ->  | K34: =IF(ISERROR(VLOOKUP($A34,LN_Surface!$C$62:$Y$66,LN_Surface!P$70,FALSE)),"",VLOOKUP($A34,LN_Surface!$C$62:$Y$66,LN_Surface!P$70,FALSE)) ->  | L34: =IF(ISERROR(VLOOKUP($A34,LN_Surface!$C$62:$Y$66,LN_Surface!Q$70,FALSE)),"",VLOOKUP($A34,LN_Surface!$C$62:$Y$66,LN_Surface!Q$70,FALSE)) ->  | M34: =IF(ISERROR(VLOOKUP($A34,LN_Surface!$C$62:$Y$66,LN_Surface!U$70,FALSE)),"",VLOOKUP($A34,LN_Surface!$C$62:$Y$66,LN_Surface!U$70,FALSE)) ->  | N34: =IF(ISERROR(VLOOKUP($A34,LN_Surface!$C$62:$Y$66,LN_Surface!V$70,FALSE)),"",VLOOKUP($A34,LN_Surface!$C$62:$Y$66,LN_Surface!V$70,FALSE)) ->  | O34: =IF(ISERROR(VLOOKUP($A34,LN_Surface!$C$62:$Y$66,LN_Surface!W$70,FALSE)),"",VLOOKUP($A34,LN_Surface!$C$62:$Y$66,LN_Surface!W$70,FALSE)) ->  | P34: =IF(ISERROR(VLOOKUP($A34,LN_Surface!$C$62:$Y$66,LN_Surface!X$70,FALSE)),"",VLOOKUP($A34,LN_Surface!$C$62:$Y$66,LN_Surface!X$70,FALSE)) ->  | Q34: =IF(ISERROR(VLOOKUP($A34,LN_Surface!$C$62:$Y$66,LN_Surface!Y$70,FALSE)),"",VLOOKUP($A34,LN_Surface!$C$62:$Y$66,LN_Surface!Y$70,FALSE)) -> 
J35: =IF((IF(ISERROR(VLOOKUP($A34,LN_Surface!$C$62:$Y$66,LN_Surface!R$70,FALSE)),"",VLOOKUP($A34,LN_Surface!$C$62:$Y$66,LN_Surface!R$70,FALSE)))=0,"Estándar",IF(ISERROR(VLOOKUP($A34,LN_Surface!$C$62:$Y$66,LN_Surface!R$70,FALSE)),"",VLOOKUP($A34,LN_Surface!$C$62:$Y$66,LN_Surface!R$70,FALSE))) ->  | K35: =IF(ISERROR(VLOOKUP($A34,LN_Surface!$C$62:$Y$66,LN_Surface!S$70,FALSE)),"",VLOOKUP($A34,LN_Surface!$C$62:$Y$66,LN_Surface!S$70,FALSE)) ->  | L35: =IF(ISERROR(VLOOKUP($A34,LN_Surface!$C$62:$Y$66,LN_Surface!T$70,FALSE)),"",VLOOKUP($A34,LN_Surface!$C$62:$Y$66,LN_Surface!T$70,FALSE)) -> 
B36: =CONCATENATE("Los precios indicados son PVPs recomendados por Microsoft y no incluyen impuestos indirectos (IVA, IGIC, etc.). Todos los descuentos son ofertados por ",Configurador!J7) -> Los precios indicados son PVPs recomendados por Microsoft y no incluyen impuestos indirectos (IVA, IGIC, etc.). Todos los descuentos son ofertados por
Q38: =Impresion!E17 -> 

Sheet SurfaceBook_E
B3: Dispositivos Surface Book 2 para:
B4: =Configurador!C7 -> 0
B6: Surface Book 2: un equipo potente con alto rendimiento gráfico, orientado a edición gráfica, audiovisual e ingeniería
K10: =IF(AND(K8=0,K9=0),"Te recomendamos Enterprise Mobility and Security","Enterprise Mobility and Security") -> Te recomendamos Enterprise Mobility and Security
B25: Pantalla/Procesador/ Memoria/Disco duro/LTE | E25: Tipo de pago | F25: Precio en pago único | G25: Precio en cuota mensual | H25: Dcto. | I25: Nº Equipos | J25: Accesorios - Garantía | K25: Precio unitario | L25: Dcto. | M25: Total pago inicial | N25: Total mensual | O25: Total primer año | P25: Total años sucesivos | Q25: Total dto. primer año
A26: 1 | B26: =IF(ISERROR(VLOOKUP($A26,LN_Surface!$C$74:$Y$78,LN_Surface!I$70,FALSE)),"",VLOOKUP($A26,LN_Surface!$C$74:$Y$78,LN_Surface!I$70,FALSE)) ->  | E26: =IF(ISERROR(VLOOKUP($A26,LN_Surface!$C$74:$Y$78,LN_Surface!J$70,FALSE)),"",VLOOKUP($A26,LN_Surface!$C$74:$Y$78,LN_Surface!J$70,FALSE)) ->  | F26: =IF(ISERROR(VLOOKUP($A26,LN_Surface!$C$74:$Y$78,LN_Surface!K$70,FALSE)),"",VLOOKUP($A26,LN_Surface!$C$74:$Y$78,LN_Surface!K$70,FALSE)) ->  | G26: =IF(ISERROR(VLOOKUP($A26,LN_Surface!$C$74:$Y$78,LN_Surface!L$70,FALSE)),"",VLOOKUP($A26,LN_Surface!$C$74:$Y$78,LN_Surface!L$70,FALSE)) ->  | H26: =IF(ISERROR(VLOOKUP($A26,LN_Surface!$C$74:$Y$78,LN_Surface!M$70,FALSE)),"",VLOOKUP($A26,LN_Surface!$C$74:$Y$78,LN_Surface!M$70,FALSE)) ->  | I26: =IF(ISERROR(VLOOKUP($A26,LN_Surface!$C$74:$Y$78,LN_Surface!N$70,FALSE)),"",VLOOKUP($A26,LN_Surface!$C$74:$Y$78,LN_Surface!N$70,FALSE)) ->  | J26: =IF(ISERROR(VLOOKUP($A26,LN_Surface!$C$74:$Y$78,LN_Surface!O$70,FALSE)),"",VLOOKUP($A26,LN_Surface!$C$74:$Y$78,LN_Surface!O$70,FALSE)) ->  | K26: =IF(ISERROR(VLOOKUP($A26,LN_Surface!$C$74:$Y$78,LN_Surface!P$70,FALSE)),"",VLOOKUP($A26,LN_Surface!$C$74:$Y$78,LN_Surface!P$70,FALSE)) ->  | L26: =IF(ISERROR(VLOOKUP($A26,LN_Surface!$C$74:$Y$78,LN_Surface!Q$70,FALSE)),"",VLOOKUP($A26,LN_Surface!$C$74:$Y$78,LN_Surface!Q$70,FALSE)) ->  | M26: =IF(ISERROR(VLOOKUP($A26,LN_Surface!$C$74:$Y$78,LN_Surface!U$70,FALSE)),"",VLOOKUP($A26,LN_Surface!$C$74:$Y$78,LN_Surface!U$70,FALSE)) ->  | N26: =IF(ISERROR(VLOOKUP($A26,LN_Surface!$C$74:$Y$78,LN_Surface!V$70,FALSE)),"",VLOOKUP($A26,LN_Surface!$C$74:$Y$78,LN_Surface!V$70,FALSE)) ->  | O26: =IF(ISERROR(VLOOKUP($A26,LN_Surface!$C$74:$Y$78,LN_Surface!W$70,FALSE)),"",VLOOKUP($A26,LN_Surface!$C$74:$Y$78,LN_Surface!W$70,FALSE)) ->  | P26: =IF(ISERROR(VLOOKUP($A26,LN_Surface!$C$74:$Y$78,LN_Surface!X$70,FALSE)),"",VLOOKUP($A26,LN_Surface!$C$74:$Y$78,LN_Surface!X$70,FALSE)) ->  | Q26: =IF(ISERROR(VLOOKUP($A26,LN_Surface!$C$74:$Y$78,LN_Surface!Y$70,FALSE)),"",VLOOKUP($A26,LN_Surface!$C$74:$Y$78,LN_Surface!Y$70,FALSE)) -> 
J27: =IF((IF(ISERROR(VLOOKUP($A26,LN_Surface!$C$74:$Y$78,LN_Surface!R$70,FALSE)),"",VLOOKUP($A26,LN_Surface!$C$74:$Y$78,LN_Surface!R$70,FALSE)))=0,"Estándar",IF(ISERROR(VLOOKUP($A26,LN_Surface!$C$74:$Y$78,LN_Surface!R$70,FALSE)),"",VLOOKUP($A26,LN_Surface!$C$74:$Y$78,LN_Surface!R$70,FALSE))) ->  | K27: =IF(ISERROR(VLOOKUP($A26,LN_Surface!$C$74:$Y$78,LN_Surface!S$70,FALSE)),"",VLOOKUP($A26,LN_Surface!$C$74:$Y$78,LN_Surface!S$70,FALSE)) ->  | L27: =IF(ISERROR(VLOOKUP($A26,LN_Surface!$C$74:$Y$78,LN_Surface!T$70,FALSE)),"",VLOOKUP($A26,LN_Surface!$C$74:$Y$78,LN_Surface!T$70,FALSE)) -> 
A28: 2 | B28: =IF(ISERROR(VLOOKUP($A28,LN_Surface!$C$74:$Y$78,LN_Surface!I$70,FALSE)),"",VLOOKUP($A28,LN_Surface!$C$74:$Y$78,LN_Surface!I$70,FALSE)) ->  | E28: =IF(ISERROR(VLOOKUP($A28,LN_Surface!$C$74:$Y$78,LN_Surface!J$70,FALSE)),"",VLOOKUP($A28,LN_Surface!$C$74:$Y$78,LN_Surface!J$70,FALSE)) ->  | F28: =IF(ISERROR(VLOOKUP($A28,LN_Surface!$C$74:$Y$78,LN_Surface!K$70,FALSE)),"",VLOOKUP($A28,LN_Surface!$C$74:$Y$78,LN_Surface!K$70,FALSE)) ->  | G28: =IF(ISERROR(VLOOKUP($A28,LN_Surface!$C$74:$Y$78,LN_Surface!L$70,FALSE)),"",VLOOKUP($A28,LN_Surface!$C$74:$Y$78,LN_Surface!L$70,FALSE)) ->  | H28: =IF(ISERROR(VLOOKUP($A28,LN_Surface!$C$74:$Y$78,LN_Surface!M$70,FALSE)),"",VLOOKUP($A28,LN_Surface!$C$74:$Y$78,LN_Surface!M$70,FALSE)) ->  | I28: =IF(ISERROR(VLOOKUP($A28,LN_Surface!$C$74:$Y$78,LN_Surface!N$70,FALSE)),"",VLOOKUP($A28,LN_Surface!$C$74:$Y$78,LN_Surface!N$70,FALSE)) ->  | J28: =IF(ISERROR(VLOOKUP($A28,LN_Surface!$C$74:$Y$78,LN_Surface!O$70,FALSE)),"",VLOOKUP($A28,LN_Surface!$C$74:$Y$78,LN_Surface!O$70,FALSE)) ->  | K28: =IF(ISERROR(VLOOKUP($A28,LN_Surface!$C$74:$Y$78,LN_Surface!P$70,FALSE)),"",VLOOKUP($A28,LN_Surface!$C$74:$Y$78,LN_Surface!P$70,FALSE)) ->  | L28: =IF(ISERROR(VLOOKUP($A28,LN_Surface!$C$74:$Y$78,LN_Surface!Q$70,FALSE)),"",VLOOKUP($A28,LN_Surface!$C$74:$Y$78,LN_Surface!Q$70,FALSE)) ->  | M28: =IF(ISERROR(VLOOKUP($A28,LN_Surface!$C$74:$Y$78,LN_Surface!U$70,FALSE)),"",VLOOKUP($A28,LN_Surface!$C$74:$Y$78,LN_Surface!U$70,FALSE)) ->  | N28: =IF(ISERROR(VLOOKUP($A28,LN_Surface!$C$74:$Y$78,LN_Surface!V$70,FALSE)),"",VLOOKUP($A28,LN_Surface!$C$74:$Y$78,LN_Surface!V$70,FALSE)) ->  | O28: =IF(ISERROR(VLOOKUP($A28,LN_Surface!$C$74:$Y$78,LN_Surface!W$70,FALSE)),"",VLOOKUP($A28,LN_Surface!$C$74:$Y$78,LN_Surface!W$70,FALSE)) ->  | P28: =IF(ISERROR(VLOOKUP($A28,LN_Surface!$C$74:$Y$78,LN_Surface!X$70,FALSE)),"",VLOOKUP($A28,LN_Surface!$C$74:$Y$78,LN_Surface!X$70,FALSE)) ->  | Q28: =IF(ISERROR(VLOOKUP($A28,LN_Surface!$C$74:$Y$78,LN_Surface!Y$70,FALSE)),"",VLOOKUP($A28,LN_Surface!$C$74:$Y$78,LN_Surface!Y$70,FALSE)) -> 
J29: =IF((IF(ISERROR(VLOOKUP($A28,LN_Surface!$C$74:$Y$78,LN_Surface!R$70,FALSE)),"",VLOOKUP($A28,LN_Surface!$C$74:$Y$78,LN_Surface!R$70,FALSE)))=0,"Estándar",IF(ISERROR(VLOOKUP($A28,LN_Surface!$C$74:$Y$78,LN_Surface!R$70,FALSE)),"",VLOOKUP($A28,LN_Surface!$C$74:$Y$78,LN_Surface!R$70,FALSE))) ->  | K29: =IF(ISERROR(VLOOKUP($A28,LN_Surface!$C$74:$Y$78,LN_Surface!S$70,FALSE)),"",VLOOKUP($A28,LN_Surface!$C$74:$Y$78,LN_Surface!S$70,FALSE)) ->  | L29: =IF(ISERROR(VLOOKUP($A28,LN_Surface!$C$74:$Y$78,LN_Surface!T$70,FALSE)),"",VLOOKUP($A28,LN_Surface!$C$74:$Y$78,LN_Surface!T$70,FALSE)) -> 
A30: 3 | B30: =IF(ISERROR(VLOOKUP($A30,LN_Surface!$C$74:$Y$78,LN_Surface!I$70,FALSE)),"",VLOOKUP($A30,LN_Surface!$C$74:$Y$78,LN_Surface!I$70,FALSE)) ->  | E30: =IF(ISERROR(VLOOKUP($A30,LN_Surface!$C$74:$Y$78,LN_Surface!J$70,FALSE)),"",VLOOKUP($A30,LN_Surface!$C$74:$Y$78,LN_Surface!J$70,FALSE)) ->  | F30: =IF(ISERROR(VLOOKUP($A30,LN_Surface!$C$74:$Y$78,LN_Surface!K$70,FALSE)),"",VLOOKUP($A30,LN_Surface!$C$74:$Y$78,LN_Surface!K$70,FALSE)) ->  | G30: =IF(ISERROR(VLOOKUP($A30,LN_Surface!$C$74:$Y$78,LN_Surface!L$70,FALSE)),"",VLOOKUP($A30,LN_Surface!$C$74:$Y$78,LN_Surface!L$70,FALSE)) ->  | H30: =IF(ISERROR(VLOOKUP($A30,LN_Surface!$C$74:$Y$78,LN_Surface!M$70,FALSE)),"",VLOOKUP($A30,LN_Surface!$C$74:$Y$78,LN_Surface!M$70,FALSE)) ->  | I30: =IF(ISERROR(VLOOKUP($A30,LN_Surface!$C$74:$Y$78,LN_Surface!N$70,FALSE)),"",VLOOKUP($A30,LN_Surface!$C$74:$Y$78,LN_Surface!N$70,FALSE)) ->  | J30: =IF(ISERROR(VLOOKUP($A30,LN_Surface!$C$74:$Y$78,LN_Surface!O$70,FALSE)),"",VLOOKUP($A30,LN_Surface!$C$74:$Y$78,LN_Surface!O$70,FALSE)) ->  | K30: =IF(ISERROR(VLOOKUP($A30,LN_Surface!$C$74:$Y$78,LN_Surface!P$70,FALSE)),"",VLOOKUP($A30,LN_Surface!$C$74:$Y$78,LN_Surface!P$70,FALSE)) ->  | L30: =IF(ISERROR(VLOOKUP($A30,LN_Surface!$C$74:$Y$78,LN_Surface!Q$70,FALSE)),"",VLOOKUP($A30,LN_Surface!$C$74:$Y$78,LN_Surface!Q$70,FALSE)) ->  | M30: =IF(ISERROR(VLOOKUP($A30,LN_Surface!$C$74:$Y$78,LN_Surface!U$70,FALSE)),"",VLOOKUP($A30,LN_Surface!$C$74:$Y$78,LN_Surface!U$70,FALSE)) ->  | N30: =IF(ISERROR(VLOOKUP($A30,LN_Surface!$C$74:$Y$78,LN_Surface!V$70,FALSE)),"",VLOOKUP($A30,LN_Surface!$C$74:$Y$78,LN_Surface!V$70,FALSE)) ->  | O30: =IF(ISERROR(VLOOKUP($A30,LN_Surface!$C$74:$Y$78,LN_Surface!W$70,FALSE)),"",VLOOKUP($A30,LN_Surface!$C$74:$Y$78,LN_Surface!W$70,FALSE)) ->  | P30: =IF(ISERROR(VLOOKUP($A30,LN_Surface!$C$74:$Y$78,LN_Surface!X$70,FALSE)),"",VLOOKUP($A30,LN_Surface!$C$74:$Y$78,LN_Surface!X$70,FALSE)) ->  | Q30: =IF(ISERROR(VLOOKUP($A30,LN_Surface!$C$74:$Y$78,LN_Surface!Y$70,FALSE)),"",VLOOKUP($A30,LN_Surface!$C$74:$Y$78,LN_Surface!Y$70,FALSE)) -> 
J31: =IF((IF(ISERROR(VLOOKUP($A30,LN_Surface!$C$74:$Y$78,LN_Surface!R$70,FALSE)),"",VLOOKUP($A30,LN_Surface!$C$74:$Y$78,LN_Surface!R$70,FALSE)))=0,"Estándar",IF(ISERROR(VLOOKUP($A30,LN_Surface!$C$74:$Y$78,LN_Surface!R$70,FALSE)),"",VLOOKUP($A30,LN_Surface!$C$74:$Y$78,LN_Surface!R$70,FALSE))) ->  | K31: =IF(ISERROR(VLOOKUP($A30,LN_Surface!$C$74:$Y$78,LN_Surface!S$70,FALSE)),"",VLOOKUP($A30,LN_Surface!$C$74:$Y$78,LN_Surface!S$70,FALSE)) ->  | L31: =IF(ISERROR(VLOOKUP($A30,LN_Surface!$C$74:$Y$78,LN_Surface!T$70,FALSE)),"",VLOOKUP($A30,LN_Surface!$C$74:$Y$78,LN_Surface!T$70,FALSE)) -> 
A32: 4 | B32: =IF(ISERROR(VLOOKUP($A32,LN_Surface!$C$74:$Y$78,LN_Surface!I$70,FALSE)),"",VLOOKUP($A32,LN_Surface!$C$74:$Y$78,LN_Surface!I$70,FALSE)) ->  | E32: =IF(ISERROR(VLOOKUP($A32,LN_Surface!$C$74:$Y$78,LN_Surface!J$70,FALSE)),"",VLOOKUP($A32,LN_Surface!$C$74:$Y$78,LN_Surface!J$70,FALSE)) ->  | F32: =IF(ISERROR(VLOOKUP($A32,LN_Surface!$C$74:$Y$78,LN_Surface!K$70,FALSE)),"",VLOOKUP($A32,LN_Surface!$C$74:$Y$78,LN_Surface!K$70,FALSE)) ->  | G32: =IF(ISERROR(VLOOKUP($A32,LN_Surface!$C$74:$Y$78,LN_Surface!L$70,FALSE)),"",VLOOKUP($A32,LN_Surface!$C$74:$Y$78,LN_Surface!L$70,FALSE)) ->  | H32: =IF(ISERROR(VLOOKUP($A32,LN_Surface!$C$74:$Y$78,LN_Surface!M$70,FALSE)),"",VLOOKUP($A32,LN_Surface!$C$74:$Y$78,LN_Surface!M$70,FALSE)) ->  | I32: =IF(ISERROR(VLOOKUP($A32,LN_Surface!$C$74:$Y$78,LN_Surface!N$70,FALSE)),"",VLOOKUP($A32,LN_Surface!$C$74:$Y$78,LN_Surface!N$70,FALSE)) ->  | J32: =IF(ISERROR(VLOOKUP($A32,LN_Surface!$C$74:$Y$78,LN_Surface!O$70,FALSE)),"",VLOOKUP($A32,LN_Surface!$C$74:$Y$78,LN_Surface!O$70,FALSE)) ->  | K32: =IF(ISERROR(VLOOKUP($A32,LN_Surface!$C$74:$Y$78,LN_Surface!P$70,FALSE)),"",VLOOKUP($A32,LN_Surface!$C$74:$Y$78,LN_Surface!P$70,FALSE)) ->  | L32: =IF(ISERROR(VLOOKUP($A32,LN_Surface!$C$74:$Y$78,LN_Surface!Q$70,FALSE)),"",VLOOKUP($A32,LN_Surface!$C$74:$Y$78,LN_Surface!Q$70,FALSE)) ->  | M32: =IF(ISERROR(VLOOKUP($A32,LN_Surface!$C$74:$Y$78,LN_Surface!U$70,FALSE)),"",VLOOKUP($A32,LN_Surface!$C$74:$Y$78,LN_Surface!U$70,FALSE)) ->  | N32: =IF(ISERROR(VLOOKUP($A32,LN_Surface!$C$74:$Y$78,LN_Surface!V$70,FALSE)),"",VLOOKUP($A32,LN_Surface!$C$74:$Y$78,LN_Surface!V$70,FALSE)) ->  | O32: =IF(ISERROR(VLOOKUP($A32,LN_Surface!$C$74:$Y$78,LN_Surface!W$70,FALSE)),"",VLOOKUP($A32,LN_Surface!$C$74:$Y$78,LN_Surface!W$70,FALSE)) ->  | P32: =IF(ISERROR(VLOOKUP($A32,LN_Surface!$C$74:$Y$78,LN_Surface!X$70,FALSE)),"",VLOOKUP($A32,LN_Surface!$C$74:$Y$78,LN_Surface!X$70,FALSE)) ->  | Q32: =IF(ISERROR(VLOOKUP($A32,LN_Surface!$C$74:$Y$78,LN_Surface!Y$70,FALSE)),"",VLOOKUP($A32,LN_Surface!$C$74:$Y$78,LN_Surface!Y$70,FALSE)) -> 
J33: =IF((IF(ISERROR(VLOOKUP($A32,LN_Surface!$C$74:$Y$78,LN_Surface!R$70,FALSE)),"",VLOOKUP($A32,LN_Surface!$C$74:$Y$78,LN_Surface!R$70,FALSE)))=0,"Estándar",IF(ISERROR(VLOOKUP($A32,LN_Surface!$C$74:$Y$78,LN_Surface!R$70,FALSE)),"",VLOOKUP($A32,LN_Surface!$C$74:$Y$78,LN_Surface!R$70,FALSE))) ->  | K33: =IF(ISERROR(VLOOKUP($A32,LN_Surface!$C$74:$Y$78,LN_Surface!S$70,FALSE)),"",VLOOKUP($A32,LN_Surface!$C$74:$Y$78,LN_Surface!S$70,FALSE)) ->  | L33: =IF(ISERROR(VLOOKUP($A32,LN_Surface!$C$74:$Y$78,LN_Surface!T$70,FALSE)),"",VLOOKUP($A32,LN_Surface!$C$74:$Y$78,LN_Surface!T$70,FALSE)) -> 
A34: 5 | B34: =IF(ISERROR(VLOOKUP($A34,LN_Surface!$C$74:$Y$78,LN_Surface!I$70,FALSE)),"",VLOOKUP($A34,LN_Surface!$C$74:$Y$78,LN_Surface!I$70,FALSE)) ->  | E34: =IF(ISERROR(VLOOKUP($A34,LN_Surface!$C$74:$Y$78,LN_Surface!J$70,FALSE)),"",VLOOKUP($A34,LN_Surface!$C$74:$Y$78,LN_Surface!J$70,FALSE)) ->  | F34: =IF(ISERROR(VLOOKUP($A34,LN_Surface!$C$74:$Y$78,LN_Surface!K$70,FALSE)),"",VLOOKUP($A34,LN_Surface!$C$74:$Y$78,LN_Surface!K$70,FALSE)) ->  | G34: =IF(ISERROR(VLOOKUP($A34,LN_Surface!$C$74:$Y$78,LN_Surface!L$70,FALSE)),"",VLOOKUP($A34,LN_Surface!$C$74:$Y$78,LN_Surface!L$70,FALSE)) ->  | H34: =IF(ISERROR(VLOOKUP($A34,LN_Surface!$C$74:$Y$78,LN_Surface!M$70,FALSE)),"",VLOOKUP($A34,LN_Surface!$C$74:$Y$78,LN_Surface!M$70,FALSE)) ->  | I34: =IF(ISERROR(VLOOKUP($A34,LN_Surface!$C$74:$Y$78,LN_Surface!N$70,FALSE)),"",VLOOKUP($A34,LN_Surface!$C$74:$Y$78,LN_Surface!N$70,FALSE)) ->  | J34: =IF(ISERROR(VLOOKUP($A34,LN_Surface!$C$74:$Y$78,LN_Surface!O$70,FALSE)),"",VLOOKUP($A34,LN_Surface!$C$74:$Y$78,LN_Surface!O$70,FALSE)) ->  | K34: =IF(ISERROR(VLOOKUP($A34,LN_Surface!$C$74:$Y$78,LN_Surface!P$70,FALSE)),"",VLOOKUP($A34,LN_Surface!$C$74:$Y$78,LN_Surface!P$70,FALSE)) ->  | L34: =IF(ISERROR(VLOOKUP($A34,LN_Surface!$C$74:$Y$78,LN_Surface!Q$70,FALSE)),"",VLOOKUP($A34,LN_Surface!$C$74:$Y$78,LN_Surface!Q$70,FALSE)) ->  | M34: =IF(ISERROR(VLOOKUP($A34,LN_Surface!$C$74:$Y$78,LN_Surface!U$70,FALSE)),"",VLOOKUP($A34,LN_Surface!$C$74:$Y$78,LN_Surface!U$70,FALSE)) ->  | N34: =IF(ISERROR(VLOOKUP($A34,LN_Surface!$C$74:$Y$78,LN_Surface!V$70,FALSE)),"",VLOOKUP($A34,LN_Surface!$C$74:$Y$78,LN_Surface!V$70,FALSE)) ->  | O34: =IF(ISERROR(VLOOKUP($A34,LN_Surface!$C$74:$Y$78,LN_Surface!W$70,FALSE)),"",VLOOKUP($A34,LN_Surface!$C$74:$Y$78,LN_Surface!W$70,FALSE)) ->  | P34: =IF(ISERROR(VLOOKUP($A34,LN_Surface!$C$74:$Y$78,LN_Surface!X$70,FALSE)),"",VLOOKUP($A34,LN_Surface!$C$74:$Y$78,LN_Surface!X$70,FALSE)) ->  | Q34: =IF(ISERROR(VLOOKUP($A34,LN_Surface!$C$74:$Y$78,LN_Surface!Y$70,FALSE)),"",VLOOKUP($A34,LN_Surface!$C$74:$Y$78,LN_Surface!Y$70,FALSE)) -> 
J35: =IF((IF(ISERROR(VLOOKUP($A34,LN_Surface!$C$74:$Y$78,LN_Surface!R$70,FALSE)),"",VLOOKUP($A34,LN_Surface!$C$74:$Y$78,LN_Surface!R$70,FALSE)))=0,"Estándar",IF(ISERROR(VLOOKUP($A34,LN_Surface!$C$74:$Y$78,LN_Surface!R$70,FALSE)),"",VLOOKUP($A34,LN_Surface!$C$74:$Y$78,LN_Surface!R$70,FALSE))) ->  | K35: =IF(ISERROR(VLOOKUP($A34,LN_Surface!$C$74:$Y$78,LN_Surface!S$70,FALSE)),"",VLOOKUP($A34,LN_Surface!$C$74:$Y$78,LN_Surface!S$70,FALSE)) ->  | L35: =IF(ISERROR(VLOOKUP($A34,LN_Surface!$C$74:$Y$78,LN_Surface!T$70,FALSE)),"",VLOOKUP($A34,LN_Surface!$C$74:$Y$78,LN_Surface!T$70,FALSE)) -> 
B36: =CONCATENATE("Los precios indicados son PVPs recomendados por Microsoft y no incluyen impuestos indirectos (IVA, IGIC, etc.). Todos los descuentos son ofertados por ",Configurador!J7) -> Los precios indicados son PVPs recomendados por Microsoft y no incluyen impuestos indirectos (IVA, IGIC, etc.). Todos los descuentos son ofertados por
Q39: =Impresion!E18 -> 

Sheet SurfaceGo_E
B3: Dispositivos Surface Go para:
B4: =Configurador!C7 -> 0
B6: Surface Go: un equipo ultramóvil 2 en 1 de tamaño reducido orientado a trabajadores de primera línea para llevar consigo a todas partes
K10: =IF(AND(K8=0,K9=0),"Te recomendamos Enterprise Mobility and Security","Enterprise Mobility and Security") -> Te recomendamos Enterprise Mobility and Security
B25: Pantalla/Procesador/ Memoria/Disco duro/LTE | E25: Tipo de pago | F25: Precio en pago único | G25: Precio en cuota mensual | H25: Dcto. | I25: Nº Equipos | J25: Accesorios - Garantía | K25: Precio unitario | L25: Dcto. | M25: Total pago inicial | N25: Total mensual | O25: Total primer año | P25: Total años sucesivos | Q25: Total dto. primer año
A26: 1 | B26: =IF(ISERROR(VLOOKUP($A26,LN_Surface!$C$86:$Y$90,LN_Surface!I$70,FALSE)),"",VLOOKUP($A26,LN_Surface!$C$86:$Y$90,LN_Surface!I$70,FALSE)) ->  | E26: =IF(ISERROR(VLOOKUP($A26,LN_Surface!$C$86:$Y$90,LN_Surface!J$70,FALSE)),"",VLOOKUP($A26,LN_Surface!$C$86:$Y$90,LN_Surface!J$70,FALSE)) ->  | F26: =IF(ISERROR(VLOOKUP($A26,LN_Surface!$C$86:$Y$90,LN_Surface!K$70,FALSE)),"",VLOOKUP($A26,LN_Surface!$C$86:$Y$90,LN_Surface!K$70,FALSE)) ->  | G26: =IF(ISERROR(VLOOKUP($A26,LN_Surface!$C$86:$Y$90,LN_Surface!L$70,FALSE)),"",VLOOKUP($A26,LN_Surface!$C$86:$Y$90,LN_Surface!L$70,FALSE)) ->  | H26: =IF(ISERROR(VLOOKUP($A26,LN_Surface!$C$86:$Y$90,LN_Surface!M$70,FALSE)),"",VLOOKUP($A26,LN_Surface!$C$86:$Y$90,LN_Surface!M$70,FALSE)) ->  | I26: =IF(ISERROR(VLOOKUP($A26,LN_Surface!$C$86:$Y$90,LN_Surface!N$70,FALSE)),"",VLOOKUP($A26,LN_Surface!$C$86:$Y$90,LN_Surface!N$70,FALSE)) ->  | J26: =IF(ISERROR(VLOOKUP($A26,LN_Surface!$C$86:$Y$90,LN_Surface!O$70,FALSE)),"",VLOOKUP($A26,LN_Surface!$C$86:$Y$90,LN_Surface!O$70,FALSE)) ->  | K26: =IF(ISERROR(VLOOKUP($A26,LN_Surface!$C$86:$Y$90,LN_Surface!P$70,FALSE)),"",VLOOKUP($A26,LN_Surface!$C$86:$Y$90,LN_Surface!P$70,FALSE)) ->  | L26: =IF(ISERROR(VLOOKUP($A26,LN_Surface!$C$86:$Y$90,LN_Surface!Q$70,FALSE)),"",VLOOKUP($A26,LN_Surface!$C$86:$Y$90,LN_Surface!Q$70,FALSE)) ->  | M26: =IF(ISERROR(VLOOKUP($A26,LN_Surface!$C$86:$Y$90,LN_Surface!U$70,FALSE)),"",VLOOKUP($A26,LN_Surface!$C$86:$Y$90,LN_Surface!U$70,FALSE)) ->  | N26: =IF(ISERROR(VLOOKUP($A26,LN_Surface!$C$86:$Y$90,LN_Surface!V$70,FALSE)),"",VLOOKUP($A26,LN_Surface!$C$86:$Y$90,LN_Surface!V$70,FALSE)) ->  | O26: =IF(ISERROR(VLOOKUP($A26,LN_Surface!$C$86:$Y$90,LN_Surface!W$70,FALSE)),"",VLOOKUP($A26,LN_Surface!$C$86:$Y$90,LN_Surface!W$70,FALSE)) ->  | P26: =IF(ISERROR(VLOOKUP($A26,LN_Surface!$C$86:$Y$90,LN_Surface!X$70,FALSE)),"",VLOOKUP($A26,LN_Surface!$C$86:$Y$90,LN_Surface!X$70,FALSE)) ->  | Q26: =IF(ISERROR(VLOOKUP($A26,LN_Surface!$C$86:$Y$90,LN_Surface!Y$70,FALSE)),"",VLOOKUP($A26,LN_Surface!$C$86:$Y$90,LN_Surface!Y$70,FALSE)) -> 
J27: =IF((IF(ISERROR(VLOOKUP($A26,LN_Surface!$C$86:$Y$90,LN_Surface!R$70,FALSE)),"",VLOOKUP($A26,LN_Surface!$C$86:$Y$90,LN_Surface!R$70,FALSE)))=0,"Estándar",IF(ISERROR(VLOOKUP($A26,LN_Surface!$C$86:$Y$90,LN_Surface!R$70,FALSE)),"",VLOOKUP($A26,LN_Surface!$C$86:$Y$90,LN_Surface!R$70,FALSE))) ->  | K27: =IF(ISERROR(VLOOKUP($A26,LN_Surface!$C$86:$Y$90,LN_Surface!S$70,FALSE)),"",VLOOKUP($A26,LN_Surface!$C$86:$Y$90,LN_Surface!S$70,FALSE)) ->  | L27: =IF(ISERROR(VLOOKUP($A26,LN_Surface!$C$86:$Y$90,LN_Surface!T$70,FALSE)),"",VLOOKUP($A26,LN_Surface!$C$86:$Y$90,LN_Surface!T$70,FALSE)) -> 
A28: 2 | B28: =IF(ISERROR(VLOOKUP($A28,LN_Surface!$C$86:$Y$90,LN_Surface!I$70,FALSE)),"",VLOOKUP($A28,LN_Surface!$C$86:$Y$90,LN_Surface!I$70,FALSE)) ->  | E28: =IF(ISERROR(VLOOKUP($A28,LN_Surface!$C$86:$Y$90,LN_Surface!J$70,FALSE)),"",VLOOKUP($A28,LN_Surface!$C$86:$Y$90,LN_Surface!J$70,FALSE)) ->  | F28: =IF(ISERROR(VLOOKUP($A28,LN_Surface!$C$86:$Y$90,LN_Surface!K$70,FALSE)),"",VLOOKUP($A28,LN_Surface!$C$86:$Y$90,LN_Surface!K$70,FALSE)) ->  | G28: =IF(ISERROR(VLOOKUP($A28,LN_Surface!$C$86:$Y$90,LN_Surface!L$70,FALSE)),"",VLOOKUP($A28,LN_Surface!$C$86:$Y$90,LN_Surface!L$70,FALSE)) ->  | H28: =IF(ISERROR(VLOOKUP($A28,LN_Surface!$C$86:$Y$90,LN_Surface!M$70,FALSE)),"",VLOOKUP($A28,LN_Surface!$C$86:$Y$90,LN_Surface!M$70,FALSE)) ->  | I28: =IF(ISERROR(VLOOKUP($A28,LN_Surface!$C$86:$Y$90,LN_Surface!N$70,FALSE)),"",VLOOKUP($A28,LN_Surface!$C$86:$Y$90,LN_Surface!N$70,FALSE)) ->  | J28: =IF(ISERROR(VLOOKUP($A28,LN_Surface!$C$86:$Y$90,LN_Surface!O$70,FALSE)),"",VLOOKUP($A28,LN_Surface!$C$86:$Y$90,LN_Surface!O$70,FALSE)) ->  | K28: =IF(ISERROR(VLOOKUP($A28,LN_Surface!$C$86:$Y$90,LN_Surface!P$70,FALSE)),"",VLOOKUP($A28,LN_Surface!$C$86:$Y$90,LN_Surface!P$70,FALSE)) ->  | L28: =IF(ISERROR(VLOOKUP($A28,LN_Surface!$C$86:$Y$90,LN_Surface!Q$70,FALSE)),"",VLOOKUP($A28,LN_Surface!$C$86:$Y$90,LN_Surface!Q$70,FALSE)) ->  | M28: =IF(ISERROR(VLOOKUP($A28,LN_Surface!$C$86:$Y$90,LN_Surface!U$70,FALSE)),"",VLOOKUP($A28,LN_Surface!$C$86:$Y$90,LN_Surface!U$70,FALSE)) ->  | N28: =IF(ISERROR(VLOOKUP($A28,LN_Surface!$C$86:$Y$90,LN_Surface!V$70,FALSE)),"",VLOOKUP($A28,LN_Surface!$C$86:$Y$90,LN_Surface!V$70,FALSE)) ->  | O28: =IF(ISERROR(VLOOKUP($A28,LN_Surface!$C$86:$Y$90,LN_Surface!W$70,FALSE)),"",VLOOKUP($A28,LN_Surface!$C$86:$Y$90,LN_Surface!W$70,FALSE)) ->  | P28: =IF(ISERROR(VLOOKUP($A28,LN_Surface!$C$86:$Y$90,LN_Surface!X$70,FALSE)),"",VLOOKUP($A28,LN_Surface!$C$86:$Y$90,LN_Surface!X$70,FALSE)) ->  | Q28: =IF(ISERROR(VLOOKUP($A28,LN_Surface!$C$86:$Y$90,LN_Surface!Y$70,FALSE)),"",VLOOKUP($A28,LN_Surface!$C$86:$Y$90,LN_Surface!Y$70,FALSE)) -> 
J29: =IF((IF(ISERROR(VLOOKUP($A28,LN_Surface!$C$86:$Y$90,LN_Surface!R$70,FALSE)),"",VLOOKUP($A28,LN_Surface!$C$86:$Y$90,LN_Surface!R$70,FALSE)))=0,"Estándar",IF(ISERROR(VLOOKUP($A28,LN_Surface!$C$86:$Y$90,LN_Surface!R$70,FALSE)),"",VLOOKUP($A28,LN_Surface!$C$86:$Y$90,LN_Surface!R$70,FALSE))) ->  | K29: =IF(ISERROR(VLOOKUP($A28,LN_Surface!$C$86:$Y$90,LN_Surface!S$70,FALSE)),"",VLOOKUP($A28,LN_Surface!$C$86:$Y$90,LN_Surface!S$70,FALSE)) ->  | L29: =IF(ISERROR(VLOOKUP($A28,LN_Surface!$C$86:$Y$90,LN_Surface!T$70,FALSE)),"",VLOOKUP($A28,LN_Surface!$C$86:$Y$90,LN_Surface!T$70,FALSE)) -> 
A30: 3 | B30: =IF(ISERROR(VLOOKUP($A30,LN_Surface!$C$86:$Y$90,LN_Surface!I$70,FALSE)),"",VLOOKUP($A30,LN_Surface!$C$86:$Y$90,LN_Surface!I$70,FALSE)) ->  | E30: =IF(ISERROR(VLOOKUP($A30,LN_Surface!$C$86:$Y$90,LN_Surface!J$70,FALSE)),"",VLOOKUP($A30,LN_Surface!$C$86:$Y$90,LN_Surface!J$70,FALSE)) ->  | F30: =IF(ISERROR(VLOOKUP($A30,LN_Surface!$C$86:$Y$90,LN_Surface!K$70,FALSE)),"",VLOOKUP($A30,LN_Surface!$C$86:$Y$90,LN_Surface!K$70,FALSE)) ->  | G30: =IF(ISERROR(VLOOKUP($A30,LN_Surface!$C$86:$Y$90,LN_Surface!L$70,FALSE)),"",VLOOKUP($A30,LN_Surface!$C$86:$Y$90,LN_Surface!L$70,FALSE)) ->  | H30: =IF(ISERROR(VLOOKUP($A30,LN_Surface!$C$86:$Y$90,LN_Surface!M$70,FALSE)),"",VLOOKUP($A30,LN_Surface!$C$86:$Y$90,LN_Surface!M$70,FALSE)) ->  | I30: =IF(ISERROR(VLOOKUP($A30,LN_Surface!$C$86:$Y$90,LN_Surface!N$70,FALSE)),"",VLOOKUP($A30,LN_Surface!$C$86:$Y$90,LN_Surface!N$70,FALSE)) ->  | J30: =IF(ISERROR(VLOOKUP($A30,LN_Surface!$C$86:$Y$90,LN_Surface!O$70,FALSE)),"",VLOOKUP($A30,LN_Surface!$C$86:$Y$90,LN_Surface!O$70,FALSE)) ->  | K30: =IF(ISERROR(VLOOKUP($A30,LN_Surface!$C$86:$Y$90,LN_Surface!P$70,FALSE)),"",VLOOKUP($A30,LN_Surface!$C$86:$Y$90,LN_Surface!P$70,FALSE)) ->  | L30: =IF(ISERROR(VLOOKUP($A30,LN_Surface!$C$86:$Y$90,LN_Surface!Q$70,FALSE)),"",VLOOKUP($A30,LN_Surface!$C$86:$Y$90,LN_Surface!Q$70,FALSE)) ->  | M30: =IF(ISERROR(VLOOKUP($A30,LN_Surface!$C$86:$Y$90,LN_Surface!U$70,FALSE)),"",VLOOKUP($A30,LN_Surface!$C$86:$Y$90,LN_Surface!U$70,FALSE)) ->  | N30: =IF(ISERROR(VLOOKUP($A30,LN_Surface!$C$86:$Y$90,LN_Surface!V$70,FALSE)),"",VLOOKUP($A30,LN_Surface!$C$86:$Y$90,LN_Surface!V$70,FALSE)) ->  | O30: =IF(ISERROR(VLOOKUP($A30,LN_Surface!$C$86:$Y$90,LN_Surface!W$70,FALSE)),"",VLOOKUP($A30,LN_Surface!$C$86:$Y$90,LN_Surface!W$70,FALSE)) ->  | P30: =IF(ISERROR(VLOOKUP($A30,LN_Surface!$C$86:$Y$90,LN_Surface!X$70,FALSE)),"",VLOOKUP($A30,LN_Surface!$C$86:$Y$90,LN_Surface!X$70,FALSE)) ->  | Q30: =IF(ISERROR(VLOOKUP($A30,LN_Surface!$C$86:$Y$90,LN_Surface!Y$70,FALSE)),"",VLOOKUP($A30,LN_Surface!$C$86:$Y$90,LN_Surface!Y$70,FALSE)) -> 
J31: =IF((IF(ISERROR(VLOOKUP($A30,LN_Surface!$C$86:$Y$90,LN_Surface!R$70,FALSE)),"",VLOOKUP($A30,LN_Surface!$C$86:$Y$90,LN_Surface!R$70,FALSE)))=0,"Estándar",IF(ISERROR(VLOOKUP($A30,LN_Surface!$C$86:$Y$90,LN_Surface!R$70,FALSE)),"",VLOOKUP($A30,LN_Surface!$C$86:$Y$90,LN_Surface!R$70,FALSE))) ->  | K31: =IF(ISERROR(VLOOKUP($A30,LN_Surface!$C$86:$Y$90,LN_Surface!S$70,FALSE)),"",VLOOKUP($A30,LN_Surface!$C$86:$Y$90,LN_Surface!S$70,FALSE)) ->  | L31: =IF(ISERROR(VLOOKUP($A30,LN_Surface!$C$86:$Y$90,LN_Surface!T$70,FALSE)),"",VLOOKUP($A30,LN_Surface!$C$86:$Y$90,LN_Surface!T$70,FALSE)) -> 
A32: 4 | B32: =IF(ISERROR(VLOOKUP($A32,LN_Surface!$C$86:$Y$90,LN_Surface!I$70,FALSE)),"",VLOOKUP($A32,LN_Surface!$C$86:$Y$90,LN_Surface!I$70,FALSE)) ->  | E32: =IF(ISERROR(VLOOKUP($A32,LN_Surface!$C$86:$Y$90,LN_Surface!J$70,FALSE)),"",VLOOKUP($A32,LN_Surface!$C$86:$Y$90,LN_Surface!J$70,FALSE)) ->  | F32: =IF(ISERROR(VLOOKUP($A32,LN_Surface!$C$86:$Y$90,LN_Surface!K$70,FALSE)),"",VLOOKUP($A32,LN_Surface!$C$86:$Y$90,LN_Surface!K$70,FALSE)) ->  | G32: =IF(ISERROR(VLOOKUP($A32,LN_Surface!$C$86:$Y$90,LN_Surface!L$70,FALSE)),"",VLOOKUP($A32,LN_Surface!$C$86:$Y$90,LN_Surface!L$70,FALSE)) ->  | H32: =IF(ISERROR(VLOOKUP($A32,LN_Surface!$C$86:$Y$90,LN_Surface!M$70,FALSE)),"",VLOOKUP($A32,LN_Surface!$C$86:$Y$90,LN_Surface!M$70,FALSE)) ->  | I32: =IF(ISERROR(VLOOKUP($A32,LN_Surface!$C$86:$Y$90,LN_Surface!N$70,FALSE)),"",VLOOKUP($A32,LN_Surface!$C$86:$Y$90,LN_Surface!N$70,FALSE)) ->  | J32: =IF(ISERROR(VLOOKUP($A32,LN_Surface!$C$86:$Y$90,LN_Surface!O$70,FALSE)),"",VLOOKUP($A32,LN_Surface!$C$86:$Y$90,LN_Surface!O$70,FALSE)) ->  | K32: =IF(ISERROR(VLOOKUP($A32,LN_Surface!$C$86:$Y$90,LN_Surface!P$70,FALSE)),"",VLOOKUP($A32,LN_Surface!$C$86:$Y$90,LN_Surface!P$70,FALSE)) ->  | L32: =IF(ISERROR(VLOOKUP($A32,LN_Surface!$C$86:$Y$90,LN_Surface!Q$70,FALSE)),"",VLOOKUP($A32,LN_Surface!$C$86:$Y$90,LN_Surface!Q$70,FALSE)) ->  | M32: =IF(ISERROR(VLOOKUP($A32,LN_Surface!$C$86:$Y$90,LN_Surface!U$70,FALSE)),"",VLOOKUP($A32,LN_Surface!$C$86:$Y$90,LN_Surface!U$70,FALSE)) ->  | N32: =IF(ISERROR(VLOOKUP($A32,LN_Surface!$C$86:$Y$90,LN_Surface!V$70,FALSE)),"",VLOOKUP($A32,LN_Surface!$C$86:$Y$90,LN_Surface!V$70,FALSE)) ->  | O32: =IF(ISERROR(VLOOKUP($A32,LN_Surface!$C$86:$Y$90,LN_Surface!W$70,FALSE)),"",VLOOKUP($A32,LN_Surface!$C$86:$Y$90,LN_Surface!W$70,FALSE)) ->  | P32: =IF(ISERROR(VLOOKUP($A32,LN_Surface!$C$86:$Y$90,LN_Surface!X$70,FALSE)),"",VLOOKUP($A32,LN_Surface!$C$86:$Y$90,LN_Surface!X$70,FALSE)) ->  | Q32: =IF(ISERROR(VLOOKUP($A32,LN_Surface!$C$86:$Y$90,LN_Surface!Y$70,FALSE)),"",VLOOKUP($A32,LN_Surface!$C$86:$Y$90,LN_Surface!Y$70,FALSE)) -> 
J33: =IF((IF(ISERROR(VLOOKUP($A32,LN_Surface!$C$86:$Y$90,LN_Surface!R$70,FALSE)),"",VLOOKUP($A32,LN_Surface!$C$86:$Y$90,LN_Surface!R$70,FALSE)))=0,"Estándar",IF(ISERROR(VLOOKUP($A32,LN_Surface!$C$86:$Y$90,LN_Surface!R$70,FALSE)),"",VLOOKUP($A32,LN_Surface!$C$86:$Y$90,LN_Surface!R$70,FALSE))) ->  | K33: =IF(ISERROR(VLOOKUP($A32,LN_Surface!$C$86:$Y$90,LN_Surface!S$70,FALSE)),"",VLOOKUP($A32,LN_Surface!$C$86:$Y$90,LN_Surface!S$70,FALSE)) ->  | L33: =IF(ISERROR(VLOOKUP($A32,LN_Surface!$C$86:$Y$90,LN_Surface!T$70,FALSE)),"",VLOOKUP($A32,LN_Surface!$C$86:$Y$90,LN_Surface!T$70,FALSE)) -> 
A34: 5 | B34: =IF(ISERROR(VLOOKUP($A34,LN_Surface!$C$86:$Y$90,LN_Surface!I$70,FALSE)),"",VLOOKUP($A34,LN_Surface!$C$86:$Y$90,LN_Surface!I$70,FALSE)) ->  | E34: =IF(ISERROR(VLOOKUP($A34,LN_Surface!$C$86:$Y$90,LN_Surface!J$70,FALSE)),"",VLOOKUP($A34,LN_Surface!$C$86:$Y$90,LN_Surface!J$70,FALSE)) ->  | F34: =IF(ISERROR(VLOOKUP($A34,LN_Surface!$C$86:$Y$90,LN_Surface!K$70,FALSE)),"",VLOOKUP($A34,LN_Surface!$C$86:$Y$90,LN_Surface!K$70,FALSE)) ->  | G34: =IF(ISERROR(VLOOKUP($A34,LN_Surface!$C$86:$Y$90,LN_Surface!L$70,FALSE)),"",VLOOKUP($A34,LN_Surface!$C$86:$Y$90,LN_Surface!L$70,FALSE)) ->  | H34: =IF(ISERROR(VLOOKUP($A34,LN_Surface!$C$86:$Y$90,LN_Surface!M$70,FALSE)),"",VLOOKUP($A34,LN_Surface!$C$86:$Y$90,LN_Surface!M$70,FALSE)) ->  | I34: =IF(ISERROR(VLOOKUP($A34,LN_Surface!$C$86:$Y$90,LN_Surface!N$70,FALSE)),"",VLOOKUP($A34,LN_Surface!$C$86:$Y$90,LN_Surface!N$70,FALSE)) ->  | J34: =IF(ISERROR(VLOOKUP($A34,LN_Surface!$C$86:$Y$90,LN_Surface!O$70,FALSE)),"",VLOOKUP($A34,LN_Surface!$C$86:$Y$90,LN_Surface!O$70,FALSE)) ->  | K34: =IF(ISERROR(VLOOKUP($A34,LN_Surface!$C$86:$Y$90,LN_Surface!P$70,FALSE)),"",VLOOKUP($A34,LN_Surface!$C$86:$Y$90,LN_Surface!P$70,FALSE)) ->  | L34: =IF(ISERROR(VLOOKUP($A34,LN_Surface!$C$86:$Y$90,LN_Surface!Q$70,FALSE)),"",VLOOKUP($A34,LN_Surface!$C$86:$Y$90,LN_Surface!Q$70,FALSE)) ->  | M34: =IF(ISERROR(VLOOKUP($A34,LN_Surface!$C$86:$Y$90,LN_Surface!U$70,FALSE)),"",VLOOKUP($A34,LN_Surface!$C$86:$Y$90,LN_Surface!U$70,FALSE)) ->  | N34: =IF(ISERROR(VLOOKUP($A34,LN_Surface!$C$86:$Y$90,LN_Surface!V$70,FALSE)),"",VLOOKUP($A34,LN_Surface!$C$86:$Y$90,LN_Surface!V$70,FALSE)) ->  | O34: =IF(ISERROR(VLOOKUP($A34,LN_Surface!$C$86:$Y$90,LN_Surface!W$70,FALSE)),"",VLOOKUP($A34,LN_Surface!$C$86:$Y$90,LN_Surface!W$70,FALSE)) ->  | P34: =IF(ISERROR(VLOOKUP($A34,LN_Surface!$C$86:$Y$90,LN_Surface!X$70,FALSE)),"",VLOOKUP($A34,LN_Surface!$C$86:$Y$90,LN_Surface!X$70,FALSE)) ->  | Q34: =IF(ISERROR(VLOOKUP($A34,LN_Surface!$C$86:$Y$90,LN_Surface!Y$70,FALSE)),"",VLOOKUP($A34,LN_Surface!$C$86:$Y$90,LN_Surface!Y$70,FALSE)) -> 
J35: =IF((IF(ISERROR(VLOOKUP($A34,LN_Surface!$C$86:$Y$90,LN_Surface!R$70,FALSE)),"",VLOOKUP($A34,LN_Surface!$C$86:$Y$90,LN_Surface!R$70,FALSE)))=0,"Estándar",IF(ISERROR(VLOOKUP($A34,LN_Surface!$C$86:$Y$90,LN_Surface!R$70,FALSE)),"",VLOOKUP($A34,LN_Surface!$C$86:$Y$90,LN_Surface!R$70,FALSE))) ->  | K35: =IF(ISERROR(VLOOKUP($A34,LN_Surface!$C$86:$Y$90,LN_Surface!S$70,FALSE)),"",VLOOKUP($A34,LN_Surface!$C$86:$Y$90,LN_Surface!S$70,FALSE)) ->  | L35: =IF(ISERROR(VLOOKUP($A34,LN_Surface!$C$86:$Y$90,LN_Surface!T$70,FALSE)),"",VLOOKUP($A34,LN_Surface!$C$86:$Y$90,LN_Surface!T$70,FALSE)) -> 
B36: =CONCATENATE("Los precios indicados son PVPs recomendados por Microsoft y no incluyen impuestos indirectos (IVA, IGIC, etc.). Todos los descuentos son ofertados por ",Configurador!J7) -> Los precios indicados son PVPs recomendados por Microsoft y no incluyen impuestos indirectos (IVA, IGIC, etc.). Todos los descuentos son ofertados por
Q39: =Impresion!E19 -> 

Sheet SurfaceLaptop_E
B3: Dispositivos Surface Laptop para:
B4: =Configurador!C7 -> 0
B6: Surface Laptop: un equipo ultraligero y potente, apto para cualquier puesto, que combina ligereza, diseño y potencia
K10: =IF(AND(K8=0,K9=0),"Te recomendamos Enterprise Mobility and Security","Enterprise Mobility and Security") -> Te recomendamos Enterprise Mobility and Security
B25: Pantalla/Procesador/ Memoria/Disco duro/LTE | E25: Tipo de pago | F25: Precio en pago único | G25: Precio en cuota mensual | H25: Dcto. | I25: Nº Equipos | J25: Accesorios - Garantía | K25: Precio unitario | L25: Dcto. | M25: Total pago inicial | N25: Total mensual | O25: Total primer año | P25: Total años sucesivos | Q25: Total dto. primer año
A26: 1 | B26: =IF(ISERROR(VLOOKUP($A26,LN_Surface!$C$98:$Y$102,LN_Surface!I$70,FALSE)),"",VLOOKUP($A26,LN_Surface!$C$98:$Y$102,LN_Surface!I$70,FALSE)) ->  | E26: =IF(ISERROR(VLOOKUP($A26,LN_Surface!$C$98:$Y$102,LN_Surface!J$70,FALSE)),"",VLOOKUP($A26,LN_Surface!$C$98:$Y$102,LN_Surface!J$70,FALSE)) ->  | F26: =IF(ISERROR(VLOOKUP($A26,LN_Surface!$C$98:$Y$102,LN_Surface!K$70,FALSE)),"",VLOOKUP($A26,LN_Surface!$C$98:$Y$102,LN_Surface!K$70,FALSE)) ->  | G26: =IF(ISERROR(VLOOKUP($A26,LN_Surface!$C$98:$Y$102,LN_Surface!L$70,FALSE)),"",VLOOKUP($A26,LN_Surface!$C$98:$Y$102,LN_Surface!L$70,FALSE)) ->  | H26: =IF(ISERROR(VLOOKUP($A26,LN_Surface!$C$98:$Y$102,LN_Surface!M$70,FALSE)),"",VLOOKUP($A26,LN_Surface!$C$98:$Y$102,LN_Surface!M$70,FALSE)) ->  | I26: =IF(ISERROR(VLOOKUP($A26,LN_Surface!$C$98:$Y$102,LN_Surface!N$70,FALSE)),"",VLOOKUP($A26,LN_Surface!$C$98:$Y$102,LN_Surface!N$70,FALSE)) ->  | J26: =IF(ISERROR(VLOOKUP($A26,LN_Surface!$C$98:$Y$102,LN_Surface!O$70,FALSE)),"",VLOOKUP($A26,LN_Surface!$C$98:$Y$102,LN_Surface!O$70,FALSE)) ->  | K26: =IF(ISERROR(VLOOKUP($A26,LN_Surface!$C$98:$Y$102,LN_Surface!P$70,FALSE)),"",VLOOKUP($A26,LN_Surface!$C$98:$Y$102,LN_Surface!P$70,FALSE)) ->  | L26: =IF(ISERROR(VLOOKUP($A26,LN_Surface!$C$98:$Y$102,LN_Surface!Q$70,FALSE)),"",VLOOKUP($A26,LN_Surface!$C$98:$Y$102,LN_Surface!Q$70,FALSE)) ->  | M26: =IF(ISERROR(VLOOKUP($A26,LN_Surface!$C$98:$Y$102,LN_Surface!U$70,FALSE)),"",VLOOKUP($A26,LN_Surface!$C$98:$Y$102,LN_Surface!U$70,FALSE)) ->  | N26: =IF(ISERROR(VLOOKUP($A26,LN_Surface!$C$98:$Y$102,LN_Surface!V$70,FALSE)),"",VLOOKUP($A26,LN_Surface!$C$98:$Y$102,LN_Surface!V$70,FALSE)) ->  | O26: =IF(ISERROR(VLOOKUP($A26,LN_Surface!$C$98:$Y$102,LN_Surface!W$70,FALSE)),"",VLOOKUP($A26,LN_Surface!$C$98:$Y$102,LN_Surface!W$70,FALSE)) ->  | P26: =IF(ISERROR(VLOOKUP($A26,LN_Surface!$C$98:$Y$102,LN_Surface!X$70,FALSE)),"",VLOOKUP($A26,LN_Surface!$C$98:$Y$102,LN_Surface!X$70,FALSE)) ->  | Q26: =IF(ISERROR(VLOOKUP($A26,LN_Surface!$C$98:$Y$102,LN_Surface!Y$70,FALSE)),"",VLOOKUP($A26,LN_Surface!$C$98:$Y$102,LN_Surface!Y$70,FALSE)) -> 
J27: =IF((IF(ISERROR(VLOOKUP($A26,LN_Surface!$C$98:$Y$102,LN_Surface!R$70,FALSE)),"",VLOOKUP($A26,LN_Surface!$C$98:$Y$102,LN_Surface!R$70,FALSE)))=0,"Estándar",IF(ISERROR(VLOOKUP($A26,LN_Surface!$C$98:$Y$102,LN_Surface!R$70,FALSE)),"",VLOOKUP($A26,LN_Surface!$C$98:$Y$102,LN_Surface!R$70,FALSE))) ->  | K27: =IF(ISERROR(VLOOKUP($A26,LN_Surface!$C$98:$Y$102,LN_Surface!S$70,FALSE)),"",VLOOKUP($A26,LN_Surface!$C$98:$Y$102,LN_Surface!S$70,FALSE)) ->  | L27: =IF(ISERROR(VLOOKUP($A26,LN_Surface!$C$98:$Y$102,LN_Surface!T$70,FALSE)),"",VLOOKUP($A26,LN_Surface!$C$98:$Y$102,LN_Surface!T$70,FALSE)) -> 
A28: 2 | B28: =IF(ISERROR(VLOOKUP($A28,LN_Surface!$C$98:$Y$102,LN_Surface!I$70,FALSE)),"",VLOOKUP($A28,LN_Surface!$C$98:$Y$102,LN_Surface!I$70,FALSE)) ->  | E28: =IF(ISERROR(VLOOKUP($A28,LN_Surface!$C$98:$Y$102,LN_Surface!J$70,FALSE)),"",VLOOKUP($A28,LN_Surface!$C$98:$Y$102,LN_Surface!J$70,FALSE)) ->  | F28: =IF(ISERROR(VLOOKUP($A28,LN_Surface!$C$98:$Y$102,LN_Surface!K$70,FALSE)),"",VLOOKUP($A28,LN_Surface!$C$98:$Y$102,LN_Surface!K$70,FALSE)) ->  | G28: =IF(ISERROR(VLOOKUP($A28,LN_Surface!$C$98:$Y$102,LN_Surface!L$70,FALSE)),"",VLOOKUP($A28,LN_Surface!$C$98:$Y$102,LN_Surface!L$70,FALSE)) ->  | H28: =IF(ISERROR(VLOOKUP($A28,LN_Surface!$C$98:$Y$102,LN_Surface!M$70,FALSE)),"",VLOOKUP($A28,LN_Surface!$C$98:$Y$102,LN_Surface!M$70,FALSE)) ->  | I28: =IF(ISERROR(VLOOKUP($A28,LN_Surface!$C$98:$Y$102,LN_Surface!N$70,FALSE)),"",VLOOKUP($A28,LN_Surface!$C$98:$Y$102,LN_Surface!N$70,FALSE)) ->  | J28: =IF(ISERROR(VLOOKUP($A28,LN_Surface!$C$98:$Y$102,LN_Surface!O$70,FALSE)),"",VLOOKUP($A28,LN_Surface!$C$98:$Y$102,LN_Surface!O$70,FALSE)) ->  | K28: =IF(ISERROR(VLOOKUP($A28,LN_Surface!$C$98:$Y$102,LN_Surface!P$70,FALSE)),"",VLOOKUP($A28,LN_Surface!$C$98:$Y$102,LN_Surface!P$70,FALSE)) ->  | L28: =IF(ISERROR(VLOOKUP($A28,LN_Surface!$C$98:$Y$102,LN_Surface!Q$70,FALSE)),"",VLOOKUP($A28,LN_Surface!$C$98:$Y$102,LN_Surface!Q$70,FALSE)) ->  | M28: =IF(ISERROR(VLOOKUP($A28,LN_Surface!$C$98:$Y$102,LN_Surface!U$70,FALSE)),"",VLOOKUP($A28,LN_Surface!$C$98:$Y$102,LN_Surface!U$70,FALSE)) ->  | N28: =IF(ISERROR(VLOOKUP($A28,LN_Surface!$C$98:$Y$102,LN_Surface!V$70,FALSE)),"",VLOOKUP($A28,LN_Surface!$C$98:$Y$102,LN_Surface!V$70,FALSE)) ->  | O28: =IF(ISERROR(VLOOKUP($A28,LN_Surface!$C$98:$Y$102,LN_Surface!W$70,FALSE)),"",VLOOKUP($A28,LN_Surface!$C$98:$Y$102,LN_Surface!W$70,FALSE)) ->  | P28: =IF(ISERROR(VLOOKUP($A28,LN_Surface!$C$98:$Y$102,LN_Surface!X$70,FALSE)),"",VLOOKUP($A28,LN_Surface!$C$98:$Y$102,LN_Surface!X$70,FALSE)) ->  | Q28: =IF(ISERROR(VLOOKUP($A28,LN_Surface!$C$98:$Y$102,LN_Surface!Y$70,FALSE)),"",VLOOKUP($A28,LN_Surface!$C$98:$Y$102,LN_Surface!Y$70,FALSE)) -> 
J29: =IF((IF(ISERROR(VLOOKUP($A28,LN_Surface!$C$98:$Y$102,LN_Surface!R$70,FALSE)),"",VLOOKUP($A28,LN_Surface!$C$98:$Y$102,LN_Surface!R$70,FALSE)))=0,"Estándar",IF(ISERROR(VLOOKUP($A28,LN_Surface!$C$98:$Y$102,LN_Surface!R$70,FALSE)),"",VLOOKUP($A28,LN_Surface!$C$98:$Y$102,LN_Surface!R$70,FALSE))) ->  | K29: =IF(ISERROR(VLOOKUP($A28,LN_Surface!$C$98:$Y$102,LN_Surface!S$70,FALSE)),"",VLOOKUP($A28,LN_Surface!$C$98:$Y$102,LN_Surface!S$70,FALSE)) ->  | L29: =IF(ISERROR(VLOOKUP($A28,LN_Surface!$C$98:$Y$102,LN_Surface!T$70,FALSE)),"",VLOOKUP($A28,LN_Surface!$C$98:$Y$102,LN_Surface!T$70,FALSE)) -> 
A30: 3 | B30: =IF(ISERROR(VLOOKUP($A30,LN_Surface!$C$98:$Y$102,LN_Surface!I$70,FALSE)),"",VLOOKUP($A30,LN_Surface!$C$98:$Y$102,LN_Surface!I$70,FALSE)) ->  | E30: =IF(ISERROR(VLOOKUP($A30,LN_Surface!$C$98:$Y$102,LN_Surface!J$70,FALSE)),"",VLOOKUP($A30,LN_Surface!$C$98:$Y$102,LN_Surface!J$70,FALSE)) ->  | F30: =IF(ISERROR(VLOOKUP($A30,LN_Surface!$C$98:$Y$102,LN_Surface!K$70,FALSE)),"",VLOOKUP($A30,LN_Surface!$C$98:$Y$102,LN_Surface!K$70,FALSE)) ->  | G30: =IF(ISERROR(VLOOKUP($A30,LN_Surface!$C$98:$Y$102,LN_Surface!L$70,FALSE)),"",VLOOKUP($A30,LN_Surface!$C$98:$Y$102,LN_Surface!L$70,FALSE)) ->  | H30: =IF(ISERROR(VLOOKUP($A30,LN_Surface!$C$98:$Y$102,LN_Surface!M$70,FALSE)),"",VLOOKUP($A30,LN_Surface!$C$98:$Y$102,LN_Surface!M$70,FALSE)) ->  | I30: =IF(ISERROR(VLOOKUP($A30,LN_Surface!$C$98:$Y$102,LN_Surface!N$70,FALSE)),"",VLOOKUP($A30,LN_Surface!$C$98:$Y$102,LN_Surface!N$70,FALSE)) ->  | J30: =IF(ISERROR(VLOOKUP($A30,LN_Surface!$C$98:$Y$102,LN_Surface!O$70,FALSE)),"",VLOOKUP($A30,LN_Surface!$C$98:$Y$102,LN_Surface!O$70,FALSE)) ->  | K30: =IF(ISERROR(VLOOKUP($A30,LN_Surface!$C$98:$Y$102,LN_Surface!P$70,FALSE)),"",VLOOKUP($A30,LN_Surface!$C$98:$Y$102,LN_Surface!P$70,FALSE)) ->  | L30: =IF(ISERROR(VLOOKUP($A30,LN_Surface!$C$98:$Y$102,LN_Surface!Q$70,FALSE)),"",VLOOKUP($A30,LN_Surface!$C$98:$Y$102,LN_Surface!Q$70,FALSE)) ->  | M30: =IF(ISERROR(VLOOKUP($A30,LN_Surface!$C$98:$Y$102,LN_Surface!U$70,FALSE)),"",VLOOKUP($A30,LN_Surface!$C$98:$Y$102,LN_Surface!U$70,FALSE)) ->  | N30: =IF(ISERROR(VLOOKUP($A30,LN_Surface!$C$98:$Y$102,LN_Surface!V$70,FALSE)),"",VLOOKUP($A30,LN_Surface!$C$98:$Y$102,LN_Surface!V$70,FALSE)) ->  | O30: =IF(ISERROR(VLOOKUP($A30,LN_Surface!$C$98:$Y$102,LN_Surface!W$70,FALSE)),"",VLOOKUP($A30,LN_Surface!$C$98:$Y$102,LN_Surface!W$70,FALSE)) ->  | P30: =IF(ISERROR(VLOOKUP($A30,LN_Surface!$C$98:$Y$102,LN_Surface!X$70,FALSE)),"",VLOOKUP($A30,LN_Surface!$C$98:$Y$102,LN_Surface!X$70,FALSE)) ->  | Q30: =IF(ISERROR(VLOOKUP($A30,LN_Surface!$C$98:$Y$102,LN_Surface!Y$70,FALSE)),"",VLOOKUP($A30,LN_Surface!$C$98:$Y$102,LN_Surface!Y$70,FALSE)) -> 
J31: =IF((IF(ISERROR(VLOOKUP($A30,LN_Surface!$C$98:$Y$102,LN_Surface!R$70,FALSE)),"",VLOOKUP($A30,LN_Surface!$C$98:$Y$102,LN_Surface!R$70,FALSE)))=0,"Estándar",IF(ISERROR(VLOOKUP($A30,LN_Surface!$C$98:$Y$102,LN_Surface!R$70,FALSE)),"",VLOOKUP($A30,LN_Surface!$C$98:$Y$102,LN_Surface!R$70,FALSE))) ->  | K31: =IF(ISERROR(VLOOKUP($A30,LN_Surface!$C$98:$Y$102,LN_Surface!S$70,FALSE)),"",VLOOKUP($A30,LN_Surface!$C$98:$Y$102,LN_Surface!S$70,FALSE)) ->  | L31: =IF(ISERROR(VLOOKUP($A30,LN_Surface!$C$98:$Y$102,LN_Surface!T$70,FALSE)),"",VLOOKUP($A30,LN_Surface!$C$98:$Y$102,LN_Surface!T$70,FALSE)) -> 
A32: 4 | B32: =IF(ISERROR(VLOOKUP($A32,LN_Surface!$C$98:$Y$102,LN_Surface!I$70,FALSE)),"",VLOOKUP($A32,LN_Surface!$C$98:$Y$102,LN_Surface!I$70,FALSE)) ->  | E32: =IF(ISERROR(VLOOKUP($A32,LN_Surface!$C$98:$Y$102,LN_Surface!J$70,FALSE)),"",VLOOKUP($A32,LN_Surface!$C$98:$Y$102,LN_Surface!J$70,FALSE)) ->  | F32: =IF(ISERROR(VLOOKUP($A32,LN_Surface!$C$98:$Y$102,LN_Surface!K$70,FALSE)),"",VLOOKUP($A32,LN_Surface!$C$98:$Y$102,LN_Surface!K$70,FALSE)) ->  | G32: =IF(ISERROR(VLOOKUP($A32,LN_Surface!$C$98:$Y$102,LN_Surface!L$70,FALSE)),"",VLOOKUP($A32,LN_Surface!$C$98:$Y$102,LN_Surface!L$70,FALSE)) ->  | H32: =IF(ISERROR(VLOOKUP($A32,LN_Surface!$C$98:$Y$102,LN_Surface!M$70,FALSE)),"",VLOOKUP($A32,LN_Surface!$C$98:$Y$102,LN_Surface!M$70,FALSE)) ->  | I32: =IF(ISERROR(VLOOKUP($A32,LN_Surface!$C$98:$Y$102,LN_Surface!N$70,FALSE)),"",VLOOKUP($A32,LN_Surface!$C$98:$Y$102,LN_Surface!N$70,FALSE)) ->  | J32: =IF(ISERROR(VLOOKUP($A32,LN_Surface!$C$98:$Y$102,LN_Surface!O$70,FALSE)),"",VLOOKUP($A32,LN_Surface!$C$98:$Y$102,LN_Surface!O$70,FALSE)) ->  | K32: =IF(ISERROR(VLOOKUP($A32,LN_Surface!$C$98:$Y$102,LN_Surface!P$70,FALSE)),"",VLOOKUP($A32,LN_Surface!$C$98:$Y$102,LN_Surface!P$70,FALSE)) ->  | L32: =IF(ISERROR(VLOOKUP($A32,LN_Surface!$C$98:$Y$102,LN_Surface!Q$70,FALSE)),"",VLOOKUP($A32,LN_Surface!$C$98:$Y$102,LN_Surface!Q$70,FALSE)) ->  | M32: =IF(ISERROR(VLOOKUP($A32,LN_Surface!$C$98:$Y$102,LN_Surface!U$70,FALSE)),"",VLOOKUP($A32,LN_Surface!$C$98:$Y$102,LN_Surface!U$70,FALSE)) ->  | N32: =IF(ISERROR(VLOOKUP($A32,LN_Surface!$C$98:$Y$102,LN_Surface!V$70,FALSE)),"",VLOOKUP($A32,LN_Surface!$C$98:$Y$102,LN_Surface!V$70,FALSE)) ->  | O32: =IF(ISERROR(VLOOKUP($A32,LN_Surface!$C$98:$Y$102,LN_Surface!W$70,FALSE)),"",VLOOKUP($A32,LN_Surface!$C$98:$Y$102,LN_Surface!W$70,FALSE)) ->  | P32: =IF(ISERROR(VLOOKUP($A32,LN_Surface!$C$98:$Y$102,LN_Surface!X$70,FALSE)),"",VLOOKUP($A32,LN_Surface!$C$98:$Y$102,LN_Surface!X$70,FALSE)) ->  | Q32: =IF(ISERROR(VLOOKUP($A32,LN_Surface!$C$98:$Y$102,LN_Surface!Y$70,FALSE)),"",VLOOKUP($A32,LN_Surface!$C$98:$Y$102,LN_Surface!Y$70,FALSE)) -> 
J33: =IF((IF(ISERROR(VLOOKUP($A32,LN_Surface!$C$98:$Y$102,LN_Surface!R$70,FALSE)),"",VLOOKUP($A32,LN_Surface!$C$98:$Y$102,LN_Surface!R$70,FALSE)))=0,"Estándar",IF(ISERROR(VLOOKUP($A32,LN_Surface!$C$98:$Y$102,LN_Surface!R$70,FALSE)),"",VLOOKUP($A32,LN_Surface!$C$98:$Y$102,LN_Surface!R$70,FALSE))) ->  | K33: =IF(ISERROR(VLOOKUP($A32,LN_Surface!$C$98:$Y$102,LN_Surface!S$70,FALSE)),"",VLOOKUP($A32,LN_Surface!$C$98:$Y$102,LN_Surface!S$70,FALSE)) ->  | L33: =IF(ISERROR(VLOOKUP($A32,LN_Surface!$C$98:$Y$102,LN_Surface!T$70,FALSE)),"",VLOOKUP($A32,LN_Surface!$C$98:$Y$102,LN_Surface!T$70,FALSE)) -> 
A34: 5 | B34: =IF(ISERROR(VLOOKUP($A34,LN_Surface!$C$98:$Y$102,LN_Surface!I$70,FALSE)),"",VLOOKUP($A34,LN_Surface!$C$98:$Y$102,LN_Surface!I$70,FALSE)) ->  | E34: =IF(ISERROR(VLOOKUP($A34,LN_Surface!$C$98:$Y$102,LN_Surface!J$70,FALSE)),"",VLOOKUP($A34,LN_Surface!$C$98:$Y$102,LN_Surface!J$70,FALSE)) ->  | F34: =IF(ISERROR(VLOOKUP($A34,LN_Surface!$C$98:$Y$102,LN_Surface!K$70,FALSE)),"",VLOOKUP($A34,LN_Surface!$C$98:$Y$102,LN_Surface!K$70,FALSE)) ->  | G34: =IF(ISERROR(VLOOKUP($A34,LN_Surface!$C$98:$Y$102,LN_Surface!L$70,FALSE)),"",VLOOKUP($A34,LN_Surface!$C$98:$Y$102,LN_Surface!L$70,FALSE)) ->  | H34: =IF(ISERROR(VLOOKUP($A34,LN_Surface!$C$98:$Y$102,LN_Surface!M$70,FALSE)),"",VLOOKUP($A34,LN_Surface!$C$98:$Y$102,LN_Surface!M$70,FALSE)) ->  | I34: =IF(ISERROR(VLOOKUP($A34,LN_Surface!$C$98:$Y$102,LN_Surface!N$70,FALSE)),"",VLOOKUP($A34,LN_Surface!$C$98:$Y$102,LN_Surface!N$70,FALSE)) ->  | J34: =IF(ISERROR(VLOOKUP($A34,LN_Surface!$C$98:$Y$102,LN_Surface!O$70,FALSE)),"",VLOOKUP($A34,LN_Surface!$C$98:$Y$102,LN_Surface!O$70,FALSE)) ->  | K34: =IF(ISERROR(VLOOKUP($A34,LN_Surface!$C$98:$Y$102,LN_Surface!P$70,FALSE)),"",VLOOKUP($A34,LN_Surface!$C$98:$Y$102,LN_Surface!P$70,FALSE)) ->  | L34: =IF(ISERROR(VLOOKUP($A34,LN_Surface!$C$98:$Y$102,LN_Surface!Q$70,FALSE)),"",VLOOKUP($A34,LN_Surface!$C$98:$Y$102,LN_Surface!Q$70,FALSE)) ->  | M34: =IF(ISERROR(VLOOKUP($A34,LN_Surface!$C$98:$Y$102,LN_Surface!U$70,FALSE)),"",VLOOKUP($A34,LN_Surface!$C$98:$Y$102,LN_Surface!U$70,FALSE)) ->  | N34: =IF(ISERROR(VLOOKUP($A34,LN_Surface!$C$98:$Y$102,LN_Surface!V$70,FALSE)),"",VLOOKUP($A34,LN_Surface!$C$98:$Y$102,LN_Surface!V$70,FALSE)) ->  | O34: =IF(ISERROR(VLOOKUP($A34,LN_Surface!$C$98:$Y$102,LN_Surface!W$70,FALSE)),"",VLOOKUP($A34,LN_Surface!$C$98:$Y$102,LN_Surface!W$70,FALSE)) ->  | P34: =IF(ISERROR(VLOOKUP($A34,LN_Surface!$C$98:$Y$102,LN_Surface!X$70,FALSE)),"",VLOOKUP($A34,LN_Surface!$C$98:$Y$102,LN_Surface!X$70,FALSE)) ->  | Q34: =IF(ISERROR(VLOOKUP($A34,LN_Surface!$C$98:$Y$102,LN_Surface!Y$70,FALSE)),"",VLOOKUP($A34,LN_Surface!$C$98:$Y$102,LN_Surface!Y$70,FALSE)) -> 
J35: =IF((IF(ISERROR(VLOOKUP($A34,LN_Surface!$C$98:$Y$102,LN_Surface!R$70,FALSE)),"",VLOOKUP($A34,LN_Surface!$C$98:$Y$102,LN_Surface!R$70,FALSE)))=0,"Estándar",IF(ISERROR(VLOOKUP($A34,LN_Surface!$C$98:$Y$102,LN_Surface!R$70,FALSE)),"",VLOOKUP($A34,LN_Surface!$C$98:$Y$102,LN_Surface!R$70,FALSE))) ->  | K35: =IF(ISERROR(VLOOKUP($A34,LN_Surface!$C$98:$Y$102,LN_Surface!S$70,FALSE)),"",VLOOKUP($A34,LN_Surface!$C$98:$Y$102,LN_Surface!S$70,FALSE)) ->  | L35: =IF(ISERROR(VLOOKUP($A34,LN_Surface!$C$98:$Y$102,LN_Surface!T$70,FALSE)),"",VLOOKUP($A34,LN_Surface!$C$98:$Y$102,LN_Surface!T$70,FALSE)) -> 
B36: =CONCATENATE("Los precios indicados son PVPs recomendados por Microsoft y no incluyen impuestos indirectos (IVA, IGIC, etc.). Todos los descuentos son ofertados por ",Configurador!J7) -> Los precios indicados son PVPs recomendados por Microsoft y no incluyen impuestos indirectos (IVA, IGIC, etc.). Todos los descuentos son ofertados por
Q37: =Impresion!E20 -> 

Sheet Accesorios_E
B3: Accesorios para los dispositivos Surface para:
B4: =Configurador!C7 -> 0
B6: Accesorios de máxima calidad que hacen más flexibles a todos los dispositivos Surface
L9: =IF(AND(#REF!=0,L8=0),"Te recomendamos Enterprise Mobility and Security","Enterprise Mobility and Security") -> 
F27: Accesorios Surface
F28: Accesorio | H28: Unidades | I28: Precio unitario | J28: Descuento | K28: Precio total | L28: Descuento
F29: =Configurador!B112 -> Surface Pen Stylus | H29: =Configurador!C112 -> 0 | I29: =Configurador!D112 -> 88.7 | J29: =Configurador!E112 -> 0 | K29: =Configurador!F112 -> 0 | L29: =Configurador!H112 -> 0
F30: =Configurador!B113 -> Surface Arc Mouse Bluetooth | H30: =Configurador!C113 -> 0 | I30: =Configurador!D113 -> 71.99 | J30: =Configurador!E113 -> 0 | K30: =Configurador!F113 -> 0 | L30: =Configurador!H113 -> 0
F31: =Configurador!B114 -> Surface Docking | H31: =Configurador!C114 -> 0 | I31: =Configurador!D114 -> 189.48 | J31: =Configurador!E114 -> 0 | K31: =Configurador!F114 -> 0 | L31: =Configurador!H114 -> 0
H32: =SUM(H29:H31) -> 0 | K32: =SUM(K29:K31) -> 0 | L32: =SUM(L29:L31) -> 0
F33: =CONCATENATE("Los precios indicados son PVPs recomendados por Microsoft y no incluyen impuestos indirectos (IVA, IGIC, etc.). Todos los descuentos son ofertados por ",Configurador!J7) -> Los precios indicados son PVPs recomendados por Microsoft y no incluyen impuestos indirectos (IVA, IGIC, etc.). Todos los descuentos son ofertados por
O34: =Impresion!E21 -> 

Sheet HardwareOEM_E
B3: Equipos con Sistema Operativo Windows:
B4: =Configurador!C7 -> 0
B6: Equipos con Sistema Operativo Windows
B8: Equipo | D8: Especificaciones | E8: Beneficios | F8: Tipo de pago | G8: Precio pago único | H8: Precio mensual | I8: Descuento | J8: Equipos | K8: Monitor | L8: Precio pago único | M8: Descuento | N8: Total pago único | O8: Cuotas mensuales año 1 | P8: Total año 1 | Q8: Total descuento año 1
B9: =IF(OR(Configurador!D119="",Configurador!D119=0),"b",CONCATENATE(Configurador!I119,": ",Configurador!D119)) -> b | D9: =IF(OR(Configurador!J119="",Configurador!J119=0),"",Configurador!J119) ->  | E9: =IF(ISERROR(VLOOKUP(Configurador!D119,LN_OEM!$D$4:$O$26,LN_OEM!$O$1,FALSE)),"",VLOOKUP(Configurador!D119,LN_OEM!$D$4:$O$26,LN_OEM!$O$1,FALSE)) ->  | F9: =IF(OR(Configurador!L119="",Configurador!L119=0),"",Configurador!L119) ->  | G9: =IF(OR(Configurador!M119="",Configurador!M119=0),"",Configurador!M119) ->  | H9: =IF(OR(Configurador!N119="",Configurador!N119=0),"",Configurador!N119) ->  | I9: =IF(OR(Configurador!P119="",Configurador!P119=0),"",Configurador!P119) ->  | J9: =IF(OR(Configurador!Q119="",Configurador!Q119=0),"",Configurador!Q119) ->  | K9: =IF(OR(Configurador!R119="",Configurador!R119=0),"",Configurador!R119) ->  | L9: =IF(OR(Configurador!T119="",Configurador!T119=0),"",Configurador!T119) ->  | M9: =IF(OR(Configurador!U119="",Configurador!U119=0),"",Configurador!U119) ->  | N9: =IF(OR(Configurador!V119="",Configurador!V119=0),"",Configurador!V119) ->  | O9: =IF(OR(Configurador!W119="",Configurador!W119=0),"",Configurador!W119) ->  | P9: =IF(OR(Configurador!X119="",Configurador!X119=0),"",Configurador!X119) ->  | Q9: =IF(OR(Configurador!Y119="",Configurador!Y119=0),"",Configurador!Y119) -> 
B10: =IF(OR(Configurador!D120="",Configurador!D120=0),"b",CONCATENATE(Configurador!I120,": ",Configurador!D120)) -> b | D10: =IF(OR(Configurador!J120="",Configurador!J120=0),"",Configurador!J120) ->  | E10: =IF(ISERROR(VLOOKUP(Configurador!D120,LN_OEM!$D$4:$O$26,LN_OEM!$O$1,FALSE)),"",VLOOKUP(Configurador!D120,LN_OEM!$D$4:$O$26,LN_OEM!$O$1,FALSE)) ->  | F10: =IF(OR(Configurador!L120="",Configurador!L120=0),"",Configurador!L120) ->  | G10: =IF(OR(Configurador!M120="",Configurador!M120=0),"",Configurador!M120) ->  | H10: =IF(OR(Configurador!N120="",Configurador!N120=0),"",Configurador!N120) ->  | I10: =IF(OR(Configurador!P120="",Configurador!P120=0),"",Configurador!P120) ->  | J10: =IF(OR(Configurador!Q120="",Configurador!Q120=0),"",Configurador!Q120) ->  | K10: =IF(OR(Configurador!R120="",Configurador!R120=0),"",Configurador!R120) ->  | L10: =IF(OR(Configurador!T120="",Configurador!T120=0),"",Configurador!T120) ->  | M10: =IF(OR(Configurador!U120="",Configurador!U120=0),"",Configurador!U120) ->  | N10: =IF(OR(Configurador!V120="",Configurador!V120=0),"",Configurador!V120) ->  | O10: =IF(OR(Configurador!W120="",Configurador!W120=0),"",Configurador!W120) ->  | P10: =IF(OR(Configurador!X120="",Configurador!X120=0),"",Configurador!X120) ->  | Q10: =IF(OR(Configurador!Y120="",Configurador!Y120=0),"",Configurador!Y120) -> 
B11: =IF(OR(Configurador!D121="",Configurador!D121=0),"b",CONCATENATE(Configurador!I121,": ",Configurador!D121)) -> b | D11: =IF(OR(Configurador!J121="",Configurador!J121=0),"",Configurador!J121) ->  | E11: =IF(ISERROR(VLOOKUP(Configurador!D121,LN_OEM!$D$4:$O$26,LN_OEM!$O$1,FALSE)),"",VLOOKUP(Configurador!D121,LN_OEM!$D$4:$O$26,LN_OEM!$O$1,FALSE)) ->  | F11: =IF(OR(Configurador!L121="",Configurador!L121=0),"",Configurador!L121) ->  | G11: =IF(OR(Configurador!M121="",Configurador!M121=0),"",Configurador!M121) ->  | H11: =IF(OR(Configurador!N121="",Configurador!N121=0),"",Configurador!N121) ->  | I11: =IF(OR(Configurador!P121="",Configurador!P121=0),"",Configurador!P121) ->  | J11: =IF(OR(Configurador!Q121="",Configurador!Q121=0),"",Configurador!Q121) ->  | K11: =IF(OR(Configurador!R121="",Configurador!R121=0),"",Configurador!R121) ->  | L11: =IF(OR(Configurador!T121="",Configurador!T121=0),"",Configurador!T121) ->  | M11: =IF(OR(Configurador!U121="",Configurador!U121=0),"",Configurador!U121) ->  | N11: =IF(OR(Configurador!V121="",Configurador!V121=0),"",Configurador!V121) ->  | O11: =IF(OR(Configurador!W121="",Configurador!W121=0),"",Configurador!W121) ->  | P11: =IF(OR(Configurador!X121="",Configurador!X121=0),"",Configurador!X121) ->  | Q11: =IF(OR(Configurador!Y121="",Configurador!Y121=0),"",Configurador!Y121) -> 
B12: =IF(OR(Configurador!D122="",Configurador!D122=0),"b",CONCATENATE(Configurador!I122,": ",Configurador!D122)) -> b | D12: =IF(OR(Configurador!J122="",Configurador!J122=0),"",Configurador!J122) ->  | E12: =IF(ISERROR(VLOOKUP(Configurador!D122,LN_OEM!$D$4:$O$26,LN_OEM!$O$1,FALSE)),"",VLOOKUP(Configurador!D122,LN_OEM!$D$4:$O$26,LN_OEM!$O$1,FALSE)) ->  | F12: =IF(OR(Configurador!L122="",Configurador!L122=0),"",Configurador!L122) ->  | G12: =IF(OR(Configurador!M122="",Configurador!M122=0),"",Configurador!M122) ->  | H12: =IF(OR(Configurador!N122="",Configurador!N122=0),"",Configurador!N122) ->  | I12: =IF(OR(Configurador!P122="",Configurador!P122=0),"",Configurador!P122) ->  | J12: =IF(OR(Configurador!Q122="",Configurador!Q122=0),"",Configurador!Q122) ->  | K12: =IF(OR(Configurador!R122="",Configurador!R122=0),"",Configurador!R122) ->  | L12: =IF(OR(Configurador!T122="",Configurador!T122=0),"",Configurador!T122) ->  | M12: =IF(OR(Configurador!U122="",Configurador!U122=0),"",Configurador!U122) ->  | N12: =IF(OR(Configurador!V122="",Configurador!V122=0),"",Configurador!V122) ->  | O12: =IF(OR(Configurador!W122="",Configurador!W122=0),"",Configurador!W122) ->  | P12: =IF(OR(Configurador!X122="",Configurador!X122=0),"",Configurador!X122) ->  | Q12: =IF(OR(Configurador!Y122="",Configurador!Y122=0),"",Configurador!Y122) -> 
B13: =IF(OR(Configurador!D123="",Configurador!D123=0),"b",CONCATENATE(Configurador!I123,": ",Configurador!D123)) -> b | D13: =IF(OR(Configurador!J123="",Configurador!J123=0),"",Configurador!J123) ->  | E13: =IF(ISERROR(VLOOKUP(Configurador!D123,LN_OEM!$D$4:$O$26,LN_OEM!$O$1,FALSE)),"",VLOOKUP(Configurador!D123,LN_OEM!$D$4:$O$26,LN_OEM!$O$1,FALSE)) ->  | F13: =IF(OR(Configurador!L123="",Configurador!L123=0),"",Configurador!L123) ->  | G13: =IF(OR(Configurador!M123="",Configurador!M123=0),"",Configurador!M123) ->  | H13: =IF(OR(Configurador!N123="",Configurador!N123=0),"",Configurador!N123) ->  | I13: =IF(OR(Configurador!P123="",Configurador!P123=0),"",Configurador!P123) ->  | J13: =IF(OR(Configurador!Q123="",Configurador!Q123=0),"",Configurador!Q123) ->  | K13: =IF(OR(Configurador!R123="",Configurador!R123=0),"",Configurador!R123) ->  | L13: =IF(OR(Configurador!T123="",Configurador!T123=0),"",Configurador!T123) ->  | M13: =IF(OR(Configurador!U123="",Configurador!U123=0),"",Configurador!U123) ->  | N13: =IF(OR(Configurador!V123="",Configurador!V123=0),"",Configurador!V123) ->  | O13: =IF(OR(Configurador!W123="",Configurador!W123=0),"",Configurador!W123) ->  | P13: =IF(OR(Configurador!X123="",Configurador!X123=0),"",Configurador!X123) ->  | Q13: =IF(OR(Configurador!Y123="",Configurador!Y123=0),"",Configurador!Y123) -> 
J14: =Configurador!Q124 -> 0 | N14: =Configurador!V124 -> 0 | O14: =Configurador!W124 -> 0 | P14: =Configurador!X124 -> 0 | Q14: =Configurador!Y124 -> 0
Q18: =Impresion!E22 -> 

Sheet PartnerPM_E
B3: Servicios profesionales de puesta en marcha IT para:
B4: =Configurador!C7 -> 0
B6: Los servicios profesionales de puesta en marcha que posibilitan empezar a usar las soluciones de forma óptima
B8: Servicio | C8: =Configurador!D129 -> Descripción | D8: =Configurador!N129 -> Pago único | E8: Servicios | F8: Descuento | G8: =Configurador!R129 -> Total | H8: Total descuento
A9: 1 | B9: =IF(ISERROR(VLOOKUP(A9,LN_Partner!$C$4:$J$12,2,FALSE)),"",VLOOKUP(A9,LN_Partner!$C$4:$J$12,2,FALSE)) ->  | C9: =IF(ISERROR(VLOOKUP(A9,LN_Partner!$C$4:$J$12,3,FALSE)),"",VLOOKUP(A9,LN_Partner!$C$4:$J$12,3,FALSE)) ->  | D9: =IF(ISERROR(VLOOKUP(A9,LN_Partner!$C$4:$J$12,4,FALSE)),"",VLOOKUP(A9,LN_Partner!$C$4:$J$12,4,FALSE)) ->  | E9: =IF(ISERROR(VLOOKUP(A9,LN_Partner!$C$4:$J$12,5,FALSE)),"",VLOOKUP(A9,LN_Partner!$C$4:$J$12,5,FALSE)) ->  | F9: =IF(ISERROR(VLOOKUP(A9,LN_Partner!$C$4:$J$12,6,FALSE)),"",VLOOKUP(A9,LN_Partner!$C$4:$J$12,6,FALSE)) ->  | G9: =IF(ISERROR(VLOOKUP(A9,LN_Partner!$C$4:$J$12,7,FALSE)),"",VLOOKUP(A9,LN_Partner!$C$4:$J$12,7,FALSE)) ->  | H9: =IF(ISERROR(VLOOKUP(A9,LN_Partner!$C$4:$J$12,8,FALSE)),"",VLOOKUP(A9,LN_Partner!$C$4:$J$12,8,FALSE)) -> 
A10: 2 | B10: =IF(ISERROR(VLOOKUP(A10,LN_Partner!$C$4:$J$12,2,FALSE)),"",VLOOKUP(A10,LN_Partner!$C$4:$J$12,2,FALSE)) ->  | C10: =IF(ISERROR(VLOOKUP(A10,LN_Partner!$C$4:$J$12,3,FALSE)),"",VLOOKUP(A10,LN_Partner!$C$4:$J$12,3,FALSE)) ->  | D10: =IF(ISERROR(VLOOKUP(A10,LN_Partner!$C$4:$J$12,4,FALSE)),"",VLOOKUP(A10,LN_Partner!$C$4:$J$12,4,FALSE)) ->  | E10: =IF(ISERROR(VLOOKUP(A10,LN_Partner!$C$4:$J$12,5,FALSE)),"",VLOOKUP(A10,LN_Partner!$C$4:$J$12,5,FALSE)) ->  | F10: =IF(ISERROR(VLOOKUP(A10,LN_Partner!$C$4:$J$12,6,FALSE)),"",VLOOKUP(A10,LN_Partner!$C$4:$J$12,6,FALSE)) ->  | G10: =IF(ISERROR(VLOOKUP(A10,LN_Partner!$C$4:$J$12,7,FALSE)),"",VLOOKUP(A10,LN_Partner!$C$4:$J$12,7,FALSE)) ->  | H10: =IF(ISERROR(VLOOKUP(A10,LN_Partner!$C$4:$J$12,8,FALSE)),"",VLOOKUP(A10,LN_Partner!$C$4:$J$12,8,FALSE)) -> 
A11: 3 | B11: =IF(ISERROR(VLOOKUP(A11,LN_Partner!$C$4:$J$12,2,FALSE)),"",VLOOKUP(A11,LN_Partner!$C$4:$J$12,2,FALSE)) ->  | C11: =IF(ISERROR(VLOOKUP(A11,LN_Partner!$C$4:$J$12,3,FALSE)),"",VLOOKUP(A11,LN_Partner!$C$4:$J$12,3,FALSE)) ->  | D11: =IF(ISERROR(VLOOKUP(A11,LN_Partner!$C$4:$J$12,4,FALSE)),"",VLOOKUP(A11,LN_Partner!$C$4:$J$12,4,FALSE)) ->  | E11: =IF(ISERROR(VLOOKUP(A11,LN_Partner!$C$4:$J$12,5,FALSE)),"",VLOOKUP(A11,LN_Partner!$C$4:$J$12,5,FALSE)) ->  | F11: =IF(ISERROR(VLOOKUP(A11,LN_Partner!$C$4:$J$12,6,FALSE)),"",VLOOKUP(A11,LN_Partner!$C$4:$J$12,6,FALSE)) ->  | G11: =IF(ISERROR(VLOOKUP(A11,LN_Partner!$C$4:$J$12,7,FALSE)),"",VLOOKUP(A11,LN_Partner!$C$4:$J$12,7,FALSE)) ->  | H11: =IF(ISERROR(VLOOKUP(A11,LN_Partner!$C$4:$J$12,8,FALSE)),"",VLOOKUP(A11,LN_Partner!$C$4:$J$12,8,FALSE)) -> 
A12: 4 | B12: =IF(ISERROR(VLOOKUP(A12,LN_Partner!$C$4:$J$12,2,FALSE)),"",VLOOKUP(A12,LN_Partner!$C$4:$J$12,2,FALSE)) ->  | C12: =IF(ISERROR(VLOOKUP(A12,LN_Partner!$C$4:$J$12,3,FALSE)),"",VLOOKUP(A12,LN_Partner!$C$4:$J$12,3,FALSE)) ->  | D12: =IF(ISERROR(VLOOKUP(A12,LN_Partner!$C$4:$J$12,4,FALSE)),"",VLOOKUP(A12,LN_Partner!$C$4:$J$12,4,FALSE)) ->  | E12: =IF(ISERROR(VLOOKUP(A12,LN_Partner!$C$4:$J$12,5,FALSE)),"",VLOOKUP(A12,LN_Partner!$C$4:$J$12,5,FALSE)) ->  | F12: =IF(ISERROR(VLOOKUP(A12,LN_Partner!$C$4:$J$12,6,FALSE)),"",VLOOKUP(A12,LN_Partner!$C$4:$J$12,6,FALSE)) ->  | G12: =IF(ISERROR(VLOOKUP(A12,LN_Partner!$C$4:$J$12,7,FALSE)),"",VLOOKUP(A12,LN_Partner!$C$4:$J$12,7,FALSE)) ->  | H12: =IF(ISERROR(VLOOKUP(A12,LN_Partner!$C$4:$J$12,8,FALSE)),"",VLOOKUP(A12,LN_Partner!$C$4:$J$12,8,FALSE)) -> 
A13: 5 | B13: =IF(ISERROR(VLOOKUP(A13,LN_Partner!$C$4:$J$12,2,FALSE)),"",VLOOKUP(A13,LN_Partner!$C$4:$J$12,2,FALSE)) ->  | C13: =IF(ISERROR(VLOOKUP(A13,LN_Partner!$C$4:$J$12,3,FALSE)),"",VLOOKUP(A13,LN_Partner!$C$4:$J$12,3,FALSE)) ->  | D13: =IF(ISERROR(VLOOKUP(A13,LN_Partner!$C$4:$J$12,4,FALSE)),"",VLOOKUP(A13,LN_Partner!$C$4:$J$12,4,FALSE)) ->  | E13: =IF(ISERROR(VLOOKUP(A13,LN_Partner!$C$4:$J$12,5,FALSE)),"",VLOOKUP(A13,LN_Partner!$C$4:$J$12,5,FALSE)) ->  | F13: =IF(ISERROR(VLOOKUP(A13,LN_Partner!$C$4:$J$12,6,FALSE)),"",VLOOKUP(A13,LN_Partner!$C$4:$J$12,6,FALSE)) ->  | G13: =IF(ISERROR(VLOOKUP(A13,LN_Partner!$C$4:$J$12,7,FALSE)),"",VLOOKUP(A13,LN_Partner!$C$4:$J$12,7,FALSE)) ->  | H13: =IF(ISERROR(VLOOKUP(A13,LN_Partner!$C$4:$J$12,8,FALSE)),"",VLOOKUP(A13,LN_Partner!$C$4:$J$12,8,FALSE)) -> 
A14: 6 | B14: =IF(ISERROR(VLOOKUP(A14,LN_Partner!$C$4:$J$12,2,FALSE)),"",VLOOKUP(A14,LN_Partner!$C$4:$J$12,2,FALSE)) ->  | C14: =IF(ISERROR(VLOOKUP(A14,LN_Partner!$C$4:$J$12,3,FALSE)),"",VLOOKUP(A14,LN_Partner!$C$4:$J$12,3,FALSE)) ->  | D14: =IF(ISERROR(VLOOKUP(A14,LN_Partner!$C$4:$J$12,4,FALSE)),"",VLOOKUP(A14,LN_Partner!$C$4:$J$12,4,FALSE)) ->  | E14: =IF(ISERROR(VLOOKUP(A14,LN_Partner!$C$4:$J$12,5,FALSE)),"",VLOOKUP(A14,LN_Partner!$C$4:$J$12,5,FALSE)) ->  | F14: =IF(ISERROR(VLOOKUP(A14,LN_Partner!$C$4:$J$12,6,FALSE)),"",VLOOKUP(A14,LN_Partner!$C$4:$J$12,6,FALSE)) ->  | G14: =IF(ISERROR(VLOOKUP(A14,LN_Partner!$C$4:$J$12,7,FALSE)),"",VLOOKUP(A14,LN_Partner!$C$4:$J$12,7,FALSE)) ->  | H14: =IF(ISERROR(VLOOKUP(A14,LN_Partner!$C$4:$J$12,8,FALSE)),"",VLOOKUP(A14,LN_Partner!$C$4:$J$12,8,FALSE)) -> 
A15: 7 | B15: =IF(ISERROR(VLOOKUP(A15,LN_Partner!$C$4:$J$12,2,FALSE)),"",VLOOKUP(A15,LN_Partner!$C$4:$J$12,2,FALSE)) ->  | C15: =IF(ISERROR(VLOOKUP(A15,LN_Partner!$C$4:$J$12,3,FALSE)),"",VLOOKUP(A15,LN_Partner!$C$4:$J$12,3,FALSE)) ->  | D15: =IF(ISERROR(VLOOKUP(A15,LN_Partner!$C$4:$J$12,4,FALSE)),"",VLOOKUP(A15,LN_Partner!$C$4:$J$12,4,FALSE)) ->  | E15: =IF(ISERROR(VLOOKUP(A15,LN_Partner!$C$4:$J$12,5,FALSE)),"",VLOOKUP(A15,LN_Partner!$C$4:$J$12,5,FALSE)) ->  | F15: =IF(ISERROR(VLOOKUP(A15,LN_Partner!$C$4:$J$12,6,FALSE)),"",VLOOKUP(A15,LN_Partner!$C$4:$J$12,6,FALSE)) ->  | G15: =IF(ISERROR(VLOOKUP(A15,LN_Partner!$C$4:$J$12,7,FALSE)),"",VLOOKUP(A15,LN_Partner!$C$4:$J$12,7,FALSE)) ->  | H15: =IF(ISERROR(VLOOKUP(A15,LN_Partner!$C$4:$J$12,8,FALSE)),"",VLOOKUP(A15,LN_Partner!$C$4:$J$12,8,FALSE)) -> 
A16: 8 | B16: =IF(ISERROR(VLOOKUP(A16,LN_Partner!$C$4:$J$12,2,FALSE)),"",VLOOKUP(A16,LN_Partner!$C$4:$J$12,2,FALSE)) ->  | C16: =IF(ISERROR(VLOOKUP(A16,LN_Partner!$C$4:$J$12,3,FALSE)),"",VLOOKUP(A16,LN_Partner!$C$4:$J$12,3,FALSE)) ->  | D16: =IF(ISERROR(VLOOKUP(A16,LN_Partner!$C$4:$J$12,4,FALSE)),"",VLOOKUP(A16,LN_Partner!$C$4:$J$12,4,FALSE)) ->  | E16: =IF(ISERROR(VLOOKUP(A16,LN_Partner!$C$4:$J$12,5,FALSE)),"",VLOOKUP(A16,LN_Partner!$C$4:$J$12,5,FALSE)) ->  | F16: =IF(ISERROR(VLOOKUP(A16,LN_Partner!$C$4:$J$12,6,FALSE)),"",VLOOKUP(A16,LN_Partner!$C$4:$J$12,6,FALSE)) ->  | G16: =IF(ISERROR(VLOOKUP(A16,LN_Partner!$C$4:$J$12,7,FALSE)),"",VLOOKUP(A16,LN_Partner!$C$4:$J$12,7,FALSE)) ->  | H16: =IF(ISERROR(VLOOKUP(A16,LN_Partner!$C$4:$J$12,8,FALSE)),"",VLOOKUP(A16,LN_Partner!$C$4:$J$12,8,FALSE)) -> 
A17: 9 | B17: =IF(ISERROR(VLOOKUP(A17,LN_Partner!$C$4:$J$12,2,FALSE)),"",VLOOKUP(A17,LN_Partner!$C$4:$J$12,2,FALSE)) ->  | C17: =IF(ISERROR(VLOOKUP(A17,LN_Partner!$C$4:$J$12,3,FALSE)),"",VLOOKUP(A17,LN_Partner!$C$4:$J$12,3,FALSE)) ->  | D17: =IF(ISERROR(VLOOKUP(A17,LN_Partner!$C$4:$J$12,4,FALSE)),"",VLOOKUP(A17,LN_Partner!$C$4:$J$12,4,FALSE)) ->  | E17: =IF(ISERROR(VLOOKUP(A17,LN_Partner!$C$4:$J$12,5,FALSE)),"",VLOOKUP(A17,LN_Partner!$C$4:$J$12,5,FALSE)) ->  | F17: =IF(ISERROR(VLOOKUP(A17,LN_Partner!$C$4:$J$12,6,FALSE)),"",VLOOKUP(A17,LN_Partner!$C$4:$J$12,6,FALSE)) ->  | G17: =IF(ISERROR(VLOOKUP(A17,LN_Partner!$C$4:$J$12,7,FALSE)),"",VLOOKUP(A17,LN_Partner!$C$4:$J$12,7,FALSE)) ->  | H17: =IF(ISERROR(VLOOKUP(A17,LN_Partner!$C$4:$J$12,8,FALSE)),"",VLOOKUP(A17,LN_Partner!$C$4:$J$12,8,FALSE)) -> 
B18: Los precios indicados no incluyen impuestos indirectos (IVA, IGIC, etc.)
H19: =Impresion!E23 -> 

Sheet PartnerSG_E
B3: Servicios profesionales de gestión IT para:
B4: =Configurador!C7 -> 0
B6: Los servicios profesionales gestionados posibilitan el uso en el día a día de las soluciones IT con el mínimo de impacto y dedicación de recursos propios
B8: =Configurador!B141 -> Servicios gestionados | C8: =Configurador!D141 -> Descripción | D8: =Configurador!N141 -> Cuota mensual | E8: Servicios | F8: Descuento | G8: =Configurador!R141 -> Total mensual | H8: =Configurador!S141 -> Total anual | I8: =Configurador!T141 -> Total descuento
A9: 1 | B9: =IF(ISERROR(VLOOKUP(A9,LN_Partner!$C$17:$J$26,2,FALSE)),"",VLOOKUP(A9,LN_Partner!$C$17:$J$26,2,FALSE)) ->  | C9: =IF(ISERROR(VLOOKUP(A9,LN_Partner!$C$17:$K$26,3,FALSE)),"",VLOOKUP(A9,LN_Partner!$C$17:$K$26,3,FALSE)) ->  | D9: =IF(ISERROR(VLOOKUP(A9,LN_Partner!$C$17:$J$26,4,FALSE)),"",VLOOKUP(A9,LN_Partner!$C$17:$J$26,4,FALSE)) ->  | E9: =IF(ISERROR(VLOOKUP(A9,LN_Partner!$C$17:$K$26,5,FALSE)),"",VLOOKUP(A9,LN_Partner!$C$17:$K$26,5,FALSE)) ->  | F9: =IF(ISERROR(VLOOKUP(A9,LN_Partner!$C$17:$K$26,6,FALSE)),"",VLOOKUP(A9,LN_Partner!$C$17:$K$26,6,FALSE)) ->  | G9: =IF(ISERROR(VLOOKUP(A9,LN_Partner!$C$17:$K$26,7,FALSE)),"",VLOOKUP(A9,LN_Partner!$C$17:$K$26,7,FALSE)) ->  | H9: =IF(ISERROR(VLOOKUP(A9,LN_Partner!$C$17:$K$26,8,FALSE)),"",VLOOKUP(A9,LN_Partner!$C$17:$K$26,8,FALSE)) ->  | I9: =IF(ISERROR(VLOOKUP(A9,LN_Partner!$C$17:$K$26,9,FALSE)),"",VLOOKUP(A9,LN_Partner!$C$17:$K$26,9,FALSE)) -> 
A10: 2 | B10: =IF(ISERROR(VLOOKUP(A10,LN_Partner!$C$17:$J$26,2,FALSE)),"",VLOOKUP(A10,LN_Partner!$C$17:$J$26,2,FALSE)) ->  | C10: =IF(ISERROR(VLOOKUP(A10,LN_Partner!$C$17:$K$26,3,FALSE)),"",VLOOKUP(A10,LN_Partner!$C$17:$K$26,3,FALSE)) ->  | D10: =IF(ISERROR(VLOOKUP(A10,LN_Partner!$C$17:$J$26,4,FALSE)),"",VLOOKUP(A10,LN_Partner!$C$17:$J$26,4,FALSE)) ->  | E10: =IF(ISERROR(VLOOKUP(A10,LN_Partner!$C$17:$K$26,5,FALSE)),"",VLOOKUP(A10,LN_Partner!$C$17:$K$26,5,FALSE)) ->  | F10: =IF(ISERROR(VLOOKUP(A10,LN_Partner!$C$17:$K$26,6,FALSE)),"",VLOOKUP(A10,LN_Partner!$C$17:$K$26,6,FALSE)) ->  | G10: =IF(ISERROR(VLOOKUP(A10,LN_Partner!$C$17:$K$26,7,FALSE)),"",VLOOKUP(A10,LN_Partner!$C$17:$K$26,7,FALSE)) ->  | H10: =IF(ISERROR(VLOOKUP(A10,LN_Partner!$C$17:$K$26,8,FALSE)),"",VLOOKUP(A10,LN_Partner!$C$17:$K$26,8,FALSE)) ->  | I10: =IF(ISERROR(VLOOKUP(A10,LN_Partner!$C$17:$K$26,9,FALSE)),"",VLOOKUP(A10,LN_Partner!$C$17:$K$26,9,FALSE)) -> 
A11: 3 | B11: =IF(ISERROR(VLOOKUP(A11,LN_Partner!$C$17:$J$26,2,FALSE)),"",VLOOKUP(A11,LN_Partner!$C$17:$J$26,2,FALSE)) ->  | C11: =IF(ISERROR(VLOOKUP(A11,LN_Partner!$C$17:$J$26,3,FALSE)),"",VLOOKUP(A11,LN_Partner!$C$17:$J$26,3,FALSE)) ->  | D11: =IF(ISERROR(VLOOKUP(A11,LN_Partner!$C$17:$J$26,4,FALSE)),"",VLOOKUP(A11,LN_Partner!$C$17:$J$26,4,FALSE)) ->  | E11: =IF(ISERROR(VLOOKUP(A11,LN_Partner!$C$17:$K$26,5,FALSE)),"",VLOOKUP(A11,LN_Partner!$C$17:$K$26,5,FALSE)) ->  | F11: =IF(ISERROR(VLOOKUP(A11,LN_Partner!$C$17:$K$26,6,FALSE)),"",VLOOKUP(A11,LN_Partner!$C$17:$K$26,6,FALSE)) ->  | G11: =IF(ISERROR(VLOOKUP(A11,LN_Partner!$C$17:$K$26,7,FALSE)),"",VLOOKUP(A11,LN_Partner!$C$17:$K$26,7,FALSE)) ->  | H11: =IF(ISERROR(VLOOKUP(A11,LN_Partner!$C$17:$K$26,8,FALSE)),"",VLOOKUP(A11,LN_Partner!$C$17:$K$26,8,FALSE)) ->  | I11: =IF(ISERROR(VLOOKUP(A11,LN_Partner!$C$17:$K$26,9,FALSE)),"",VLOOKUP(A11,LN_Partner!$C$17:$K$26,9,FALSE)) -> 
A12: 4 | B12: =IF(ISERROR(VLOOKUP(A12,LN_Partner!$C$17:$J$26,2,FALSE)),"",VLOOKUP(A12,LN_Partner!$C$17:$J$26,2,FALSE)) ->  | C12: =IF(ISERROR(VLOOKUP(A12,LN_Partner!$C$17:$J$26,3,FALSE)),"",VLOOKUP(A12,LN_Partner!$C$17:$J$26,3,FALSE)) ->  | D12: =IF(ISERROR(VLOOKUP(A12,LN_Partner!$C$17:$J$26,4,FALSE)),"",VLOOKUP(A12,LN_Partner!$C$17:$J$26,4,FALSE)) ->  | E12: =IF(ISERROR(VLOOKUP(A12,LN_Partner!$C$17:$K$26,5,FALSE)),"",VLOOKUP(A12,LN_Partner!$C$17:$K$26,5,FALSE)) ->  | F12: =IF(ISERROR(VLOOKUP(A12,LN_Partner!$C$17:$K$26,6,FALSE)),"",VLOOKUP(A12,LN_Partner!$C$17:$K$26,6,FALSE)) ->  | G12: =IF(ISERROR(VLOOKUP(A12,LN_Partner!$C$17:$K$26,7,FALSE)),"",VLOOKUP(A12,LN_Partner!$C$17:$K$26,7,FALSE)) ->  | H12: =IF(ISERROR(VLOOKUP(A12,LN_Partner!$C$17:$K$26,8,FALSE)),"",VLOOKUP(A12,LN_Partner!$C$17:$K$26,8,FALSE)) ->  | I12: =IF(ISERROR(VLOOKUP(A12,LN_Partner!$C$17:$K$26,9,FALSE)),"",VLOOKUP(A12,LN_Partner!$C$17:$K$26,9,FALSE)) -> 
A13: 5 | B13: =IF(ISERROR(VLOOKUP(A13,LN_Partner!$C$17:$J$26,2,FALSE)),"",VLOOKUP(A13,LN_Partner!$C$17:$J$26,2,FALSE)) ->  | C13: =IF(ISERROR(VLOOKUP(A13,LN_Partner!$C$17:$J$26,3,FALSE)),"",VLOOKUP(A13,LN_Partner!$C$17:$J$26,3,FALSE)) ->  | D13: =IF(ISERROR(VLOOKUP(A13,LN_Partner!$C$17:$J$26,4,FALSE)),"",VLOOKUP(A13,LN_Partner!$C$17:$J$26,4,FALSE)) ->  | E13: =IF(ISERROR(VLOOKUP(A13,LN_Partner!$C$17:$K$26,5,FALSE)),"",VLOOKUP(A13,LN_Partner!$C$17:$K$26,5,FALSE)) ->  | F13: =IF(ISERROR(VLOOKUP(A13,LN_Partner!$C$17:$K$26,6,FALSE)),"",VLOOKUP(A13,LN_Partner!$C$17:$K$26,6,FALSE)) ->  | G13: =IF(ISERROR(VLOOKUP(A13,LN_Partner!$C$17:$K$26,7,FALSE)),"",VLOOKUP(A13,LN_Partner!$C$17:$K$26,7,FALSE)) ->  | H13: =IF(ISERROR(VLOOKUP(A13,LN_Partner!$C$17:$K$26,8,FALSE)),"",VLOOKUP(A13,LN_Partner!$C$17:$K$26,8,FALSE)) ->  | I13: =IF(ISERROR(VLOOKUP(A13,LN_Partner!$C$17:$K$26,9,FALSE)),"",VLOOKUP(A13,LN_Partner!$C$17:$K$26,9,FALSE)) -> 
A14: 6 | B14: =IF(ISERROR(VLOOKUP(A14,LN_Partner!$C$17:$J$26,2,FALSE)),"",VLOOKUP(A14,LN_Partner!$C$17:$J$26,2,FALSE)) ->  | C14: =IF(ISERROR(VLOOKUP(A14,LN_Partner!$C$17:$J$26,3,FALSE)),"",VLOOKUP(A14,LN_Partner!$C$17:$J$26,3,FALSE)) ->  | D14: =IF(ISERROR(VLOOKUP(A14,LN_Partner!$C$17:$J$26,4,FALSE)),"",VLOOKUP(A14,LN_Partner!$C$17:$J$26,4,FALSE)) ->  | E14: =IF(ISERROR(VLOOKUP(A14,LN_Partner!$C$17:$K$26,5,FALSE)),"",VLOOKUP(A14,LN_Partner!$C$17:$K$26,5,FALSE)) ->  | F14: =IF(ISERROR(VLOOKUP(A14,LN_Partner!$C$17:$K$26,6,FALSE)),"",VLOOKUP(A14,LN_Partner!$C$17:$K$26,6,FALSE)) ->  | G14: =IF(ISERROR(VLOOKUP(A14,LN_Partner!$C$17:$K$26,7,FALSE)),"",VLOOKUP(A14,LN_Partner!$C$17:$K$26,7,FALSE)) ->  | H14: =IF(ISERROR(VLOOKUP(A14,LN_Partner!$C$17:$K$26,8,FALSE)),"",VLOOKUP(A14,LN_Partner!$C$17:$K$26,8,FALSE)) ->  | I14: =IF(ISERROR(VLOOKUP(A14,LN_Partner!$C$17:$K$26,9,FALSE)),"",VLOOKUP(A14,LN_Partner!$C$17:$K$26,9,FALSE)) -> 
A15: 7 | B15: =IF(ISERROR(VLOOKUP(A15,LN_Partner!$C$17:$J$26,2,FALSE)),"",VLOOKUP(A15,LN_Partner!$C$17:$J$26,2,FALSE)) ->  | C15: =IF(ISERROR(VLOOKUP(A15,LN_Partner!$C$17:$J$26,3,FALSE)),"",VLOOKUP(A15,LN_Partner!$C$17:$J$26,3,FALSE)) ->  | D15: =IF(ISERROR(VLOOKUP(A15,LN_Partner!$C$17:$J$26,4,FALSE)),"",VLOOKUP(A15,LN_Partner!$C$17:$J$26,4,FALSE)) ->  | E15: =IF(ISERROR(VLOOKUP(A15,LN_Partner!$C$17:$K$26,5,FALSE)),"",VLOOKUP(A15,LN_Partner!$C$17:$K$26,5,FALSE)) ->  | F15: =IF(ISERROR(VLOOKUP(A15,LN_Partner!$C$17:$K$26,6,FALSE)),"",VLOOKUP(A15,LN_Partner!$C$17:$K$26,6,FALSE)) ->  | G15: =IF(ISERROR(VLOOKUP(A15,LN_Partner!$C$17:$K$26,7,FALSE)),"",VLOOKUP(A15,LN_Partner!$C$17:$K$26,7,FALSE)) ->  | H15: =IF(ISERROR(VLOOKUP(A15,LN_Partner!$C$17:$K$26,8,FALSE)),"",VLOOKUP(A15,LN_Partner!$C$17:$K$26,8,FALSE)) ->  | I15: =IF(ISERROR(VLOOKUP(A15,LN_Partner!$C$17:$K$26,9,FALSE)),"",VLOOKUP(A15,LN_Partner!$C$17:$K$26,9,FALSE)) -> 
A16: 8 | B16: =IF(ISERROR(VLOOKUP(A16,LN_Partner!$C$17:$J$26,2,FALSE)),"",VLOOKUP(A16,LN_Partner!$C$17:$J$26,2,FALSE)) ->  | C16: =IF(ISERROR(VLOOKUP(A16,LN_Partner!$C$17:$J$26,3,FALSE)),"",VLOOKUP(A16,LN_Partner!$C$17:$J$26,3,FALSE)) ->  | D16: =IF(ISERROR(VLOOKUP(A16,LN_Partner!$C$17:$J$26,4,FALSE)),"",VLOOKUP(A16,LN_Partner!$C$17:$J$26,4,FALSE)) ->  | E16: =IF(ISERROR(VLOOKUP(A16,LN_Partner!$C$17:$K$26,5,FALSE)),"",VLOOKUP(A16,LN_Partner!$C$17:$K$26,5,FALSE)) ->  | F16: =IF(ISERROR(VLOOKUP(A16,LN_Partner!$C$17:$K$26,6,FALSE)),"",VLOOKUP(A16,LN_Partner!$C$17:$K$26,6,FALSE)) ->  | G16: =IF(ISERROR(VLOOKUP(A16,LN_Partner!$C$17:$K$26,7,FALSE)),"",VLOOKUP(A16,LN_Partner!$C$17:$K$26,7,FALSE)) ->  | H16: =IF(ISERROR(VLOOKUP(A16,LN_Partner!$C$17:$K$26,8,FALSE)),"",VLOOKUP(A16,LN_Partner!$C$17:$K$26,8,FALSE)) ->  | I16: =IF(ISERROR(VLOOKUP(A16,LN_Partner!$C$17:$K$26,9,FALSE)),"",VLOOKUP(A16,LN_Partner!$C$17:$K$26,9,FALSE)) -> 
A17: 9 | B17: =IF(ISERROR(VLOOKUP(A17,LN_Partner!$C$17:$J$26,2,FALSE)),"",VLOOKUP(A17,LN_Partner!$C$17:$J$26,2,FALSE)) ->  | C17: =IF(ISERROR(VLOOKUP(A17,LN_Partner!$C$17:$J$26,3,FALSE)),"",VLOOKUP(A17,LN_Partner!$C$17:$J$26,3,FALSE)) ->  | D17: =IF(ISERROR(VLOOKUP(A17,LN_Partner!$C$17:$J$26,4,FALSE)),"",VLOOKUP(A17,LN_Partner!$C$17:$J$26,4,FALSE)) ->  | E17: =IF(ISERROR(VLOOKUP(A17,LN_Partner!$C$17:$K$26,5,FALSE)),"",VLOOKUP(A17,LN_Partner!$C$17:$K$26,5,FALSE)) ->  | F17: =IF(ISERROR(VLOOKUP(A17,LN_Partner!$C$17:$K$26,6,FALSE)),"",VLOOKUP(A17,LN_Partner!$C$17:$K$26,6,FALSE)) ->  | G17: =IF(ISERROR(VLOOKUP(A17,LN_Partner!$C$17:$K$26,7,FALSE)),"",VLOOKUP(A17,LN_Partner!$C$17:$K$26,7,FALSE)) ->  | H17: =IF(ISERROR(VLOOKUP(A17,LN_Partner!$C$17:$K$26,8,FALSE)),"",VLOOKUP(A17,LN_Partner!$C$17:$K$26,8,FALSE)) ->  | I17: =IF(ISERROR(VLOOKUP(A17,LN_Partner!$C$17:$K$26,9,FALSE)),"",VLOOKUP(A17,LN_Partner!$C$17:$K$26,9,FALSE)) -> 
A18: 10 | B18: =IF(ISERROR(VLOOKUP(A18,LN_Partner!$C$17:$J$26,2,FALSE)),"",VLOOKUP(A18,LN_Partner!$C$17:$J$26,2,FALSE)) ->  | C18: =IF(ISERROR(VLOOKUP(A18,LN_Partner!$C$17:$J$26,3,FALSE)),"",VLOOKUP(A18,LN_Partner!$C$17:$J$26,3,FALSE)) ->  | D18: =IF(ISERROR(VLOOKUP(A18,LN_Partner!$C$17:$J$26,4,FALSE)),"",VLOOKUP(A18,LN_Partner!$C$17:$J$26,4,FALSE)) ->  | E18: =IF(ISERROR(VLOOKUP(A18,LN_Partner!$C$17:$K$26,5,FALSE)),"",VLOOKUP(A18,LN_Partner!$C$17:$K$26,5,FALSE)) ->  | F18: =IF(ISERROR(VLOOKUP(A18,LN_Partner!$C$17:$K$26,6,FALSE)),"",VLOOKUP(A18,LN_Partner!$C$17:$K$26,6,FALSE)) ->  | G18: =IF(ISERROR(VLOOKUP(A18,LN_Partner!$C$17:$K$26,7,FALSE)),"",VLOOKUP(A18,LN_Partner!$C$17:$K$26,7,FALSE)) ->  | H18: =IF(ISERROR(VLOOKUP(A18,LN_Partner!$C$17:$K$26,8,FALSE)),"",VLOOKUP(A18,LN_Partner!$C$17:$K$26,8,FALSE)) ->  | I18: =IF(ISERROR(VLOOKUP(A18,LN_Partner!$C$17:$K$26,9,FALSE)),"",VLOOKUP(A18,LN_Partner!$C$17:$K$26,9,FALSE)) -> 
B19: Los precios indicados no incluyen impuestos indirectos (IVA, IGIC, etc.)
I20: =Impresion!E23 -> 

Sheet Resumen_E
B3: Resumen de productos y servicios para:
B4: =Configurador!C7 -> 0
B6: Todo lo que su empresa necesita para trabajar de forma eficiente y segura
B25: =Configurador!B156 -> Categoría de producto o servicio | F25: =Configurador!E156 -> Número de productos o servicios | K25: =Configurador!J156 -> Pago (*) inicial | L25: =Configurador!K156 -> Pago (*) mensual | M25: =Configurador!L156 -> Descuento (**) Pago inicial | N25: =Configurador!M156 -> Descuento (**) Pago mensual | O25: =Configurador!N156 -> Neto (**) Pago inicial | P25: =Configurador!P156 -> Neto (**) Pago mensual | Q25: =Configurador!Q156 -> Neto (**/***) Pago anualizado
B26: =Configurador!B157 -> Modernización del puesto de trabajo | F26: =Configurador!E157 -> No contrata | I26: =Configurador!Q104 -> 0 | J26: =Configurador!R104 -> 0 | K26: =Configurador!J157 -> 0 | L26: =Configurador!K157 -> 0 | M26: =Configurador!L157 -> 0 | N26: =Configurador!M157 -> 0 | O26: =Configurador!N157 -> 0 | P26: =Configurador!P157 -> 0 | Q26: =Configurador!Q157 -> 0
B27: =Configurador!B158 -> Modernización de servidores en cloud | F27: =Configurador!E158 -> No contrata | I27: =Configurador!T104 -> 0 | J27: =Configurador!U104 -> 0 | K27: =Configurador!J158 -> 0 | L27: =Configurador!K158 -> 0 | M27: =Configurador!L158 -> 0 | N27: =Configurador!M158 -> 0 | O27: =Configurador!N158 -> 0 | P27: =Configurador!P158 -> 0 | Q27: =Configurador!Q158 -> 0
B28: =Configurador!B159 -> Windows y SQL Server | F28: =Configurador!E159 -> No contrata | I28: =Configurador!T105 -> 0 | J28: =Configurador!U105 -> 0 | K28: =Configurador!J159 -> 0 | L28: =Configurador!K159 -> 0 | M28: =Configurador!L159 -> 0 | N28: =Configurador!M159 -> 0 | O28: =Configurador!N159 -> 0 | P28: =Configurador!P159 -> 0 | Q28: =Configurador!Q159 -> 0
B29: =Configurador!B160 -> Aplicaciones de negocio | E29: =IF(Configurador!L105="","",Configurador!L105) ->  | F29: =Configurador!E160 -> No contrata | J29: =Configurador!R105 -> 0 | K29: =Configurador!J160 -> 0 | L29: =Configurador!K160 -> 0 | M29: =Configurador!L160 -> 0 | N29: =Configurador!M160 -> 0 | O29: =Configurador!N160 -> 0 | P29: =Configurador!P160 -> 0 | Q29: =Configurador!Q160 -> 0
B30: =Configurador!B161 -> Surface | F30: =Configurador!E161 -> No contrata | I30: =Configurador!T105 -> 0 | J30: =Configurador!U105 -> 0 | K30: =Configurador!J161 -> 0 | L30: =Configurador!K161 -> 0 | M30: =Configurador!L161 -> 0 | N30: =Configurador!M161 -> 0 | O30: =Configurador!N161 -> 0 | P30: =Configurador!P161 -> 0 | Q30: =Configurador!Q161 -> 0
B31: =Configurador!B162 -> Accesorios Surface | F31: =Configurador!E162 -> No contrata | K31: =Configurador!J162 -> 0 | L31: =Configurador!K162 -> 0 | M31: =Configurador!L162 -> 0 | N31: =Configurador!M162 -> 0 | O31: =Configurador!N162 -> 0 | P31: =Configurador!P162 -> 0 | Q31: =Configurador!Q162 -> 0
B32: =Configurador!B163 -> Otros equipos Windows 10 PRO | F32: =Configurador!E163 -> No contrata | I32: =Configurador!T106 -> 0 | J32: =Configurador!U106 -> 0 | K32: =Configurador!J163 -> 0 | L32: =Configurador!K163 -> 0 | M32: =Configurador!L163 -> 0 | N32: =Configurador!M163 -> 0 | O32: =Configurador!N163 -> 0 | P32: =Configurador!P163 -> 0 | Q32: =Configurador!Q163 -> 0
B33: =Configurador!B164 -> Servicios de puesta en marcha | E33: =IF(Configurador!L107="","",Configurador!L107) ->  | F33: =Configurador!E164 -> No contrata | I33: =Configurador!Q107 -> 0 | J33: =Configurador!R107 -> 0 | K33: =Configurador!J164 -> 0 | L33: =Configurador!K164 -> 0 | M33: =Configurador!L164 -> 0 | N33: =Configurador!M164 -> 0 | O33: =Configurador!N164 -> 0 | P33: =Configurador!P164 -> 0 | Q33: =Configurador!Q164 -> 0
B34: =Configurador!B165 -> Servicios gestionados | F34: =Configurador!E165 -> No contrata | I34: =Configurador!T107 -> 0 | J34: =Configurador!U107 -> 0 | K34: =Configurador!J165 -> 0 | L34: =Configurador!K165 -> 0 | M34: =Configurador!L165 -> 0 | N34: =Configurador!M165 -> 0 | O34: =Configurador!N165 -> 0 | P34: =Configurador!P165 -> 0 | Q34: =Configurador!Q165 -> 0
K35: =Configurador!J166 -> 0 | L35: =Configurador!K166 -> 0 | M35: =Configurador!L166 -> 0 | N35: =Configurador!M166 -> 0 | O35: =Configurador!N166 -> 0 | P35: =Configurador!P166 -> 0 | Q35: =Configurador!Q166 -> 0
B37: =Configurador!B168 -> * Los precios indicados son PVPs recomendados por Microsoft y no incluyen impuestos indirectos (IVA, IGIC, etc.)
B38: =Configurador!B169 -> ** Los descuentos y precios netos son ofertados por
B39: =Configurador!B170 -> *** El valor Neto Pago anualizado del apartado Windows y SQL Server corresponde con el pago anual o trienal en función del modelo de suscripción por 1 ó 3 años.
Q51: =Impresion!E25 -> Página 6 de 7

Sheet Legales_E
B3: Condiciones legales de productos y servicios
B4: Firma de la propuesta comercial
B6: Condiciones legales de productos y servicios Microsoft
B8: Las condiciones legales de los productos de Microsoft incluidos en la presente propuesta pueden ser consultadas y descargadas en https://download.microsoft.com/download/2/C/8/2C8CAC17-FCE7-4F51-9556-4D77C7022DF5/MCA2017Agr_EMEA_EU-EFTA_ENG_Sep20172_CR.pdf
B10: Los acuerdos de nivel de servicio de los servicios online de Microsoft pueden ser consultados y descargados en http://www.microsoftvolumelicensing.com/DocumentSearch.aspx?Mode=3&DocumentTypeId=37
B12: Condiciones respecto a precios de productos y servicios Microsoft
B14: =CONCATENATE("La presente propuesta ha sido elaborada mediante un configurador que utiliza precios de referencia de forma predeterminada. Los precios finales ofertados son responsabilidad de ",Configurador!J7,", que decide los precios aplicables y, en su caso, será responsable de su facturación y cobro.") -> La presente propuesta ha sido elaborada mediante un configurador que utiliza precios de referencia de forma predeterminada. Los precios finales ofertados son responsabilidad de , que decide los precios aplicables y, en su caso, será responsable de su facturación y cobro.
B17: Forma de Pago
B20: Facturación: | C20: =IF(OR(Configurador!E175="",Configurador!E175=0),"",Configurador!E175) -> 
B22: Forma de Pago: | C22: =IF(OR(Configurador!E177="",Configurador!E177=0),"",Configurador!E177) -> 
B27: Firma de la propuesta comercial
B29: =CONCATENATE("Los representantes legales de ",Configurador!C7," y ",Configurador!J7," declaran haber leído y aceptado las condiciones comerciales y económicas de todas las páginas que conforman esta propuesta,"," y en consecuencia acuerdan firmar, de común acuerdo, la presente propuesta comercial en las condiciones indicadas a"," lo largo de este documento, estampando para este propósito sus correspondientes firmas.") -> Los representantes legales de y declaran haber leído y aceptado las condiciones comerciales y económicas de todas las páginas que conforman esta propuesta, y en consecuencia acuerdan firmar, de común acuerdo, la presente propuesta comercial en las condiciones indicadas a lo largo de este documento, estampando para este propósito sus correspondientes firmas.
B31: =CONCATENATE("Por ",Configurador!C7,":") -> Por : | J31: =CONCATENATE("Por ",Configurador!J7,":") -> Por :
G38: =IF(AND(Configurador!R13<>"", Configurador!R11<>""),CONCATENATE("En ",Configurador!R13,", a ",DAY(Configurador!R11)," del ",MONTH(Configurador!R11)," de ",YEAR(Configurador!R11)),"") -> 
N39: =Impresion!E26 -> Página 7 de 7

Sheet LN_Surface
B1: Equipos | C1: BENEFICIO | D1: Código | E1: SP | F1: SP_123 | G1: SP_123_i5 | H1: SP_123_i7 | I1: SP_123_m3 | J1: SP_123_i5_4 | K1: SP_123_i5_8 | L1: SP_123_i5_16 | M1: SP_123_i7_8 | N1: SP_123_i7_16 | O1: SP_123_m3_4 | P1: SP_123_i5_4_128 | Q1: SP_123_i5_8_256 | R1: SP_123_i5_16_256 | S1: SP_123_i7_8_256 | T1: SP_123_i7_16_512 | U1: SP_123_i7_16_1024 | V1: SP_123_m3_4_128
B2: Surface Pro | C2: Versatilidad | D2: SP | E2: 12.3 | F2: i5 | G2: 4 | H2: 8 | I2: 4 | J2: 128 | K2: 256 | L2: 256 | M2: 256 | N2: 512 | O2: 128 | P2: Sí | Q2: Sí | R2: No | S2: No | T2: No | U2: No | V2: No
B3: Surface Book 2 | C3: Potencia | D3: SB | F3: i7 | G3: 8 | H3: 16 | N3: 1024 | P3: No | Q3: No
B4: Surface Go | C4: Ultramovilidad | D4: SG | F4: m3 | G4: 16
B5: Surface Laptop Win10Pro | C5: Ultraligero | D5: SL
E6: SB | F6: SB_135 | G6: SB_150 | H6: SB_135_i5 | I6: SB_135_i7 | J6: SB_150_i7 | K6: SB_135_i5_8 | L6: SB_135_i7_8 | M6: SB_135_i7_16 | N6: SB_150_i7_16 | O6: SB_135_i5_8_256 | P6: SB_135_i7_8_256 | Q6: SB_135_i7_16_256 | R6: SB_135_i7_16_1024 | S6: SB_150_i7_16_256 | T6: SB_150_i7_16_512 | U6: SB_150_i7_16_1024
E7: 13.5 | F7: i5 | G7: i7 | H7: 8 | I7: 8 | J7: 16 | K7: 256 | L7: 256 | M7: 256 | N7: 256 | O7: No | P7: No | Q7: No | R7: No | S7: No | T7: No | U7: No
E8: 15 | F8: i7 | I8: 16 | M8: 1024 | N8: 512
N9: 1024
E11: SG | F11: SG_100 | G11: SG_100_Pentium Gold 4415Y | H11: SG_100_Pentium Gold 4415Y_4 | I11: SG_100_Pentium Gold 4415Y_6 | J11: SG_100_Pentium Gold 4415Y_8 | K11: SG_100_Pentium Gold 4415Y_4_64 | L11: SG_100_Pentium Gold 4415Y_6_256 | M11: SG_100_Pentium Gold 4415Y_8_128
E12: 10 | F12: Pentium Gold 4415Y | G12: 4 | H12: 64 | I12: 256 | J12: 128 | K12: No | L12: Sí | M12: Sí
G13: 6 | M13: No
G14: 8
E16: SL | F16: SL_135 | G16: SL_135_i5 | H16: SL_135_i7 | I16: SL_135_i5_8 | J16: SL_135_i7_8 | K16: SL_135_i7_16 | L16: SL_135_i5_8_128 | M16: SL_135_i5_8_256 | N16: SL_135_i7_8_256 | O16: SL_135_i7_16_512 | P16: SL_135_i7_16_1024
E17: 13.5 | F17: i5 | G17: 8 | H17: 8 | I17: 128 | J17: 256 | K17: 512 | L17: No | M17: No | N17: No | O17: No | P17: No
F18: i7 | H18: 16 | I18: 256 | K18: 1024
C21: Modelo | D21: Pantalla Pulgadas | E21: Processor Intel | F21: RAM | G21: SSD | H21: LTE | I21: MSRP Neto | K21: ACCESORIOS | N21: ND
A22: SP | B22: Surface Pro | C22: =CONCATENATE(A22,"_",D22*10,"_",E22,"_",F22,"_",G22,"_",H22) -> SP_123_i5_4_128_No | D22: 12.3 | E22: i5 | F22: 4 | G22: 128 | H22: No | I22: 935.41 | K22: Surface Pro Signature Cover | L22: 145.15 | N22: No disponible
A23: SP | B23: Surface Pro | C23: =CONCATENATE(A23,"_",D23*10,"_",E23,"_",F23,"_",G23,"_",H23) -> SP_123_i5_4_128_Sí | D23: 12.3 | E23: i5 | F23: 4 | G23: 128 | H23: Sí | I23: 1081.75 | K23: Surface Pro Cover | L23: 120.96
A24: SP | B24: Surface Pro | C24: SP_123_i5_8_128_No | D24: 12.3 | E24: i5 | F24: 8 | G24: 128 | H24: No | I24: 939.17 | K24: Surface Go Signature Cover | L24: 104.8
A25: SP | B25: Surface Pro | C25: SP_123_i5_8_256_No | D25: 12.3 | E25: i5 | F25: 8 | G25: 256 | H25: No | I25: 1187.37 | K25: Surface Go Cover | L25: 80.49
A26: SP | B26: Surface Pro | C26: SP_123_i5_8_256_Sí | D26: 12.3 | E26: i5 | F26: 8 | G26: 256 | H26: Sí | I26: 1338.17 | K26: Surface Pen Stylus | L26: 88.7
A27: SP | B27: Surface Pro | C27: SP_123_i5_16_256_No | D27: 12.3 | E27: i5 | F27: 16 | G27: 256 | H27: No | I27: 1375.87 | K27: Surface Arc Mouse Bluetooth | L27: 71.99
A28: SP | B28: Surface Pro | C28: SP_123_i7_8_256_No | D28: 12.3 | E28: i7 | F28: 8 | G28: 256 | H28: No | I28: 1452.11 | K28: Surface Docking | L28: 189.48
A29: SP | B29: Surface Pro | C29: SP_123_i7_16_1024_No | D29: 12.3 | E29: i7 | F29: 16 | G29: 1024 | H29: No | I29: 2497.43
A30: SP | B30: Surface Pro | C30: SP_123_i7_16_512_No | D30: 12.3 | E30: i7 | F30: 16 | G30: 512 | H30: No | I30: 2033.21
A31: SP | B31: Surface Pro | C31: SP_123_m3_4_128_No | D31: 12.3 | E31: m3 | F31: 4 | G31: 128 | H31: No | I31: 726.11
A32: SB | B32: Surface Book 2 | C32: SB_135_i5_8_256_No | D32: 13.5 | E32: i5 | F32: 8 | G32: 256 | H32: No | I32: 1371.7
A33: SB | B33: Surface Book 2 | C33: SB_135_i7_16_1024_No | D33: 13.5 | E33: i7 | F33: 16 | G33: 1024 | H33: No | I33: 2636.72
A34: SB | B34: Surface Book 2 | C34: SB_135_i7_16_256_No | D34: 13.5 | E34: i7 | F34: 16 | G34: 256 | H34: No | I34: 2209.37
A35: SB | B35: Surface Book 2 | C35: SB_135_i7_8_256_No | D35: 13.5 | E35: i7 | F35: 8 | G35: 256 | H35: No | I35: 1793.1
A36: SB | B36: Surface Book 2 | C36: SB_150_i7_16_1024_No | D36: 15 | E36: i7 | F36: 16 | G36: 1024 | H36: No | I36: 2922.89
A37: SB | B37: Surface Book 2 | C37: SB_150_i7_16_256_No | D37: 15 | E37: i7 | F37: 16 | G37: 256 | H37: No | I37: 2194.63
A38: SB | B38: Surface Book 2 | C38: SB_150_i7_16_512_No | D38: 15 | E38: i7 | F38: 16 | G38: 512 | H38: No | I38: 2563.74
A39: SG | B39: Surface Go | C39: =CONCATENATE(A39,"_",D39*10,"_","Pentium_Gold_4415Y","_",F39,"_",G39,"_",H39) -> SG_100_Pentium_Gold_4415Y_4_64_No | D39: 10 | E39: Pentium Gold 4415Y | F39: 4 | G39: 64 | H39: No | I39: 394.83
A40: SG | B40: Surface Go | C40: =CONCATENATE(A40,"_",D40*10,"_","Pentium_Gold_4415Y","_",F40,"_",G40,"_",H40) -> SG_100_Pentium_Gold_4415Y_8_128_No | D40: 10 | E40: Pentium Gold 4415Y | F40: 8 | G40: 128 | H40: No | I40: 516.43
A41: SG | B41: Surface Go | C41: =CONCATENATE(A41,"_",D41*10,"_","Pentium_Gold_4415Y","_",F41,"_",G41,"_",H41) -> SG_100_Pentium_Gold_4415Y_8_128_Sí | D41: 10 | E41: Pentium Gold 4415Y | F41: 8 | G41: 128 | H41: Sí | I41: 635.62
A42: SG | B42: Surface Go | C42: =CONCATENATE(A42,"_",D42*10,"_","Pentium_Gold_4415Y","_",F42,"_",G42,"_",H42) -> SG_100_Pentium_Gold_4415Y_6_256_Sí | D42: 10 | E42: Pentium Gold 4415Y | F42: 6 | G42: 256 | H42: Sí | I42: 688.74
A43: SL | B43: Surface Laptop Win10Pro | C43: SL_135_i5_8_128_No | D43: 13.5 | E43: i5 | F43: 8 | G43: 128 | H43: No | I43: 1116.93
A44: SL | B44: Surface Laptop Win10Pro | C44: SL_135_i5_8_256_No | D44: 13.5 | E44: i5 | F44: 8 | G44: 256 | H44: No | I44: 1242.62
A45: SL | B45: Surface Laptop Win10Pro | C45: SL_135_i7_16_1024_No | D45: 13.5 | E45: i7 | F45: 16 | G45: 1024 | H45: No | I45: 2566.73
A46: SL | B46: Surface Laptop Win10Pro | C46: SL_135_i7_16_512_No | D46: 13.5 | E46: i7 | F46: 16 | G46: 512 | H46: No | I46: 2096.51
A47: SL | B47: Surface Laptop Win10Pro | C47: SL_135_i7_8_256_No | D47: 13.5 | E47: i7 | F47: 8 | G47: 256 | H47: No | I47: 1521.62
K48: GARANTIAS | L48: GARANTIA_SP | M48: GARANTIA_SB | N48: GARANTIA_SG | O48: GARANTIA_SL
K49: 3 años | L49: 56.1 | M49: 164.46 | N49: 48.76 | O49: 57.02
K50: 4 años | L50: 113.01 | M50: 197.52 | N50: 106.61 | O50: 114.88
K51: Completa 3 años | L51: 199.2 | M51: 288.43 | N51: 139.67 | O51: 205.79
K52: Completa 4 años | L52: 294.5 | M52: 321.49 | N52: 189.26 | O52: 304.96
A58: GENERACIÓN DE TABLAS DINÁMICAS PARA LAS PROPUESTAS
A60: Surface Pro | C60: soporte para buscarv | D60: 4 | E60: =D60+1 -> 5 | F60: =E60+1 -> 6 | G60: =F60+1 -> 7 | H60: 9 | J60: =H60+1 -> 10 | K60: =J60+1 -> 11 | L60: =K60+1 -> 12 | M60: =L60+1 -> 13 | N60: =M60+1 -> 14 | O60: 16 | P60: =O60+1 -> 17 | Q60: 18 | R60: 19 | S60: 20 | T60: 21 | U60: 22 | V60: 23 | W60: 24 | X60: 25 | Y60: 26
B61: Posiciones en configurador | C61: Posiciones que debe ocupar en la propuesta
A62: 1 | B62: =IF(Configurador!$B$104=$B$2,1,0) -> 0 | C62: =IF(B62=1,1,0) -> 0 | D62: =IF($C62>0,VLOOKUP($A62,Configurador!$A$104:$Z$108,D$60),"") ->  | E62: =IF($C$62>0,VLOOKUP($A62,Configurador!$A$104:$Z$108,E60),"") ->  | F62: =IF($C$62>0,VLOOKUP($A62,Configurador!$A$104:$Z$108,F60),"") ->  | G62: =IF($C$62>0,VLOOKUP($A62,Configurador!$A$104:$Z$108,G60),"") ->  | H62: =IF($C$62>0,VLOOKUP($A62,Configurador!$A$104:$Z$108,H60),"") ->  | I62: =IF(D62<>"",CONCATENATE(D62,"'' / ",E62," / ",F62,"MB / ",G62,"GB / ",H62),"") ->  | J62: =IF($C$62>0,VLOOKUP($A62,Configurador!$A$104:$Z$108,J60),"") ->  | K62: =IF($C$62>0,VLOOKUP($A62,Configurador!$A$104:$Z$108,K60),"") ->  | L62: =IF($C$62>0,VLOOKUP($A62,Configurador!$A$104:$Z$108,L60),"") ->  | M62: =IF($C$62>0,VLOOKUP($A62,Configurador!$A$104:$Z$108,M60),"") ->  | N62: =IF($C$62>0,VLOOKUP($A62,Configurador!$A$104:$Z$108,N60),"") ->  | O62: =IF($C$62>0,VLOOKUP($A62,Configurador!$A$104:$Z$108,O60),"") ->  | P62: =IF($C$62>0,VLOOKUP($A62,Configurador!$A$104:$Z$108,P60),"") ->  | Q62: =IF($C$62>0,VLOOKUP($A62,Configurador!$A$104:$Z$108,Q60),"") ->  | R62: =IF($C$62>0,VLOOKUP($A62,Configurador!$A$104:$Z$108,R60),"") ->  | S62: =IF($C$62>0,VLOOKUP($A62,Configurador!$A$104:$Z$108,S60),"") ->  | T62: =IF($C$62>0,VLOOKUP($A62,Configurador!$A$104:$Z$108,T60),"") ->  | U62: =IF($C$62>0,VLOOKUP($A62,Configurador!$A$104:$Z$108,U60),"") ->  | V62: =IF($C$62>0,VLOOKUP($A62,Configurador!$A$104:$Z$108,V60),"") ->  | W62: =IF($C$62>0,VLOOKUP($A62,Configurador!$A$104:$Z$108,W60),"") ->  | X62: =IF($C$62>0,VLOOKUP($A62,Configurador!$A$104:$Z$108,X60),"") ->  | Y62: =IF($C$62>0,VLOOKUP($A62,Configurador!$A$104:$Z$108,Y60),"") -> 
A63: 2 | B63: =IF(Configurador!$B$105=B2,1,0) -> 0 | C63: =IF(AND(B63=1,C62<=($B$69-1)),C62+1,0) -> 0 | D63: =IF($C63>0,VLOOKUP($A63,Configurador!$A$104:$Z$108,D$60),"") ->  | E63: =IF($C63>0,VLOOKUP($A63,Configurador!$A$104:$Z$108,E$60),"") ->  | F63: =IF($C63>0,VLOOKUP($A63,Configurador!$A$104:$Z$108,F$60),"") ->  | G63: =IF($C63>0,VLOOKUP($A63,Configurador!$A$104:$Z$108,G$60),"") ->  | H63: =IF($C63>0,VLOOKUP($A63,Configurador!$A$104:$Z$108,H$60),"") ->  | I63: =IF(D63<>"",CONCATENATE(D63,"'' / ",E63," / ",F63,"MB / ",G63,"GB / ",H63),"") ->  | J63: =IF($C63>0,VLOOKUP($A63,Configurador!$A$104:$Z$108,J$60),"") ->  | K63: =IF($C63>0,VLOOKUP($A63,Configurador!$A$104:$Z$108,K$60),"") ->  | L63: =IF($C63>0,VLOOKUP($A63,Configurador!$A$104:$Z$108,L$60),"") ->  | M63: =IF($C63>0,VLOOKUP($A63,Configurador!$A$104:$Z$108,M$60),"") ->  | N63: =IF($C63>0,VLOOKUP($A63,Configurador!$A$104:$Z$108,N$60),"") ->  | O63: =IF($C63>0,VLOOKUP($A63,Configurador!$A$104:$Z$108,O$60),"") ->  | P63: =IF($C63>0,VLOOKUP($A63,Configurador!$A$104:$Z$108,P$60),"") ->  | Q63: =IF($C63>0,VLOOKUP($A63,Configurador!$A$104:$Z$108,Q$60),"") ->  | R63: =IF($C63>0,VLOOKUP($A63,Configurador!$A$104:$Z$108,R$60),"") ->  | S63: =IF($C63>0,VLOOKUP($A63,Configurador!$A$104:$Z$108,S$60),"") ->  | T63: =IF($C63>0,VLOOKUP($A63,Configurador!$A$104:$Z$108,T$60),"") ->  | U63: =IF($C63>0,VLOOKUP($A63,Configurador!$A$104:$Z$108,U$60),"") ->  | V63: =IF($C63>0,VLOOKUP($A63,Configurador!$A$104:$Z$108,V$60),"") ->  | W63: =IF($C63>0,VLOOKUP($A63,Configurador!$A$104:$Z$108,W$60),"") ->  | X63: =IF($C63>0,VLOOKUP($A63,Configurador!$A$104:$Z$108,X$60),"") ->  | Y63: =IF($C63>0,VLOOKUP($A63,Configurador!$A$104:$Z$108,Y$60),"") -> 
A64: 3 | B64: =IF(Configurador!$B$106=B2,1,0) -> 0 | C64: =IF(AND(B64=1,MAX($C$62:C63)<=($B$69-1)),MAX($C$62:C63)+1,0) -> 0 | D64: =IF($C64>0,VLOOKUP($A64,Configurador!$A$104:$Z$108,D$60),"") ->  | E64: =IF($C64>0,VLOOKUP($A64,Configurador!$A$104:$Z$108,E$60),"") ->  | F64: =IF($C64>0,VLOOKUP($A64,Configurador!$A$104:$Z$108,F$60),"") ->  | G64: =IF($C64>0,VLOOKUP($A64,Configurador!$A$104:$Z$108,G$60),"") ->  | H64: =IF($C64>0,VLOOKUP($A64,Configurador!$A$104:$Z$108,H$60),"") ->  | I64: =IF(D64<>"",CONCATENATE(D64,"'' / ",E64," / ",F64,"MB / ",G64,"GB / ",H64),"") ->  | J64: =IF($C64>0,VLOOKUP($A64,Configurador!$A$104:$Z$108,J$60),"") ->  | K64: =IF($C64>0,VLOOKUP($A64,Configurador!$A$104:$Z$108,K$60),"") ->  | L64: =IF($C64>0,VLOOKUP($A64,Configurador!$A$104:$Z$108,L$60),"") ->  | M64: =IF($C64>0,VLOOKUP($A64,Configurador!$A$104:$Z$108,M$60),"") ->  | N64: =IF($C64>0,VLOOKUP($A64,Configurador!$A$104:$Z$108,N$60),"") ->  | O64: =IF($C64>0,VLOOKUP($A64,Configurador!$A$104:$Z$108,O$60),"") ->  | P64: =IF($C64>0,VLOOKUP($A64,Configurador!$A$104:$Z$108,P$60),"") ->  | Q64: =IF($C64>0,VLOOKUP($A64,Configurador!$A$104:$Z$108,Q$60),"") ->  | R64: =IF($C64>0,VLOOKUP($A64,Configurador!$A$104:$Z$108,R$60),"") ->  | S64: =IF($C64>0,VLOOKUP($A64,Configurador!$A$104:$Z$108,S$60),"") ->  | T64: =IF($C64>0,VLOOKUP($A64,Configurador!$A$104:$Z$108,T$60),"") ->  | U64: =IF($C64>0,VLOOKUP($A64,Configurador!$A$104:$Z$108,U$60),"") ->  | V64: =IF($C64>0,VLOOKUP($A64,Configurador!$A$104:$Z$108,V$60),"") ->  | W64: =IF($C64>0,VLOOKUP($A64,Configurador!$A$104:$Z$108,W$60),"") ->  | X64: =IF($C64>0,VLOOKUP($A64,Configurador!$A$104:$Z$108,X$60),"") ->  | Y64: =IF($C64>0,VLOOKUP($A64,Configurador!$A$104:$Z$108,Y$60),"") -> 
A65: 4 | B65: =IF(Configurador!$B$107=B2,1,0) -> 0 | C65: =IF(AND(B65=1,MAX($C$62:C64)<=($B$69-1)),MAX($C$62:C64)+1,0) -> 0 | D65: =IF($C65>0,VLOOKUP($A65,Configurador!$A$104:$Z$108,D$60),"") ->  | E65: =IF($C65>0,VLOOKUP($A65,Configurador!$A$104:$Z$108,E$60),"") ->  | F65: =IF($C65>0,VLOOKUP($A65,Configurador!$A$104:$Z$108,F$60),"") ->  | G65: =IF($C65>0,VLOOKUP($A65,Configurador!$A$104:$Z$108,G$60),"") ->  | H65: =IF($C65>0,VLOOKUP($A65,Configurador!$A$104:$Z$108,H$60),"") ->  | I65: =IF(D65<>"",CONCATENATE(D65,"'' / ",E65," / ",F65,"MB / ",G65,"GB / ",H65),"") ->  | J65: =IF($C65>0,VLOOKUP($A65,Configurador!$A$104:$Z$108,J$60),"") ->  | K65: =IF($C65>0,VLOOKUP($A65,Configurador!$A$104:$Z$108,K$60),"") ->  | L65: =IF($C65>0,VLOOKUP($A65,Configurador!$A$104:$Z$108,L$60),"") ->  | M65: =IF($C65>0,VLOOKUP($A65,Configurador!$A$104:$Z$108,M$60),"") ->  | N65: =IF($C65>0,VLOOKUP($A65,Configurador!$A$104:$Z$108,N$60),"") ->  | O65: =IF($C65>0,VLOOKUP($A65,Configurador!$A$104:$Z$108,O$60),"") ->  | P65: =IF($C65>0,VLOOKUP($A65,Configurador!$A$104:$Z$108,P$60),"") ->  | Q65: =IF($C65>0,VLOOKUP($A65,Configurador!$A$104:$Z$108,Q$60),"") ->  | R65: =IF($C65>0,VLOOKUP($A65,Configurador!$A$104:$Z$108,R$60),"") ->  | S65: =IF($C65>0,VLOOKUP($A65,Configurador!$A$104:$Z$108,S$60),"") ->  | T65: =IF($C65>0,VLOOKUP($A65,Configurador!$A$104:$Z$108,T$60),"") ->  | U65: =IF($C65>0,VLOOKUP($A65,Configurador!$A$104:$Z$108,U$60),"") ->  | V65: =IF($C65>0,VLOOKUP($A65,Configurador!$A$104:$Z$108,V$60),"") ->  | W65: =IF($C65>0,VLOOKUP($A65,Configurador!$A$104:$Z$108,W$60),"") ->  | X65: =IF($C65>0,VLOOKUP($A65,Configurador!$A$104:$Z$108,X$60),"") ->  | Y65: =IF($C65>0,VLOOKUP($A65,Configurador!$A$104:$Z$108,Y$60),"") -> 
A66: 5 | B66: =IF(Configurador!$B$108=B2,1,0) -> 0 | C66: =IF(AND(B66=1,MAX($C$62:C65)<=($B$69-1)),MAX($C$62:C65)+1,0) -> 0 | D66: =IF($C66>0,VLOOKUP($A66,Configurador!$A$104:$Z$108,D$60),"") ->  | E66: =IF($C66>0,VLOOKUP($A66,Configurador!$A$104:$Z$108,E$60),"") ->  | F66: =IF($C66>0,VLOOKUP($A66,Configurador!$A$104:$Z$108,F$60),"") ->  | G66: =IF($C66>0,VLOOKUP($A66,Configurador!$A$104:$Z$108,G$60),"") ->  | H66: =IF($C66>0,VLOOKUP($A66,Configurador!$A$104:$Z$108,H$60),"") ->  | I66: =IF(D66<>"",CONCATENATE(D66,"'' / ",E66," / ",F66,"MB / ",G66,"GB / ",H66),"") ->  | J66: =IF($C66>0,VLOOKUP($A66,Configurador!$A$104:$Z$108,J$60),"") ->  | K66: =IF($C66>0,VLOOKUP($A66,Configurador!$A$104:$Z$108,K$60),"") ->  | L66: =IF($C66>0,VLOOKUP($A66,Configurador!$A$104:$Z$108,L$60),"") ->  | M66: =IF($C66>0,VLOOKUP($A66,Configurador!$A$104:$Z$108,M$60),"") ->  | N66: =IF($C66>0,VLOOKUP($A66,Configurador!$A$104:$Z$108,N$60),"") ->  | O66: =IF($C66>0,VLOOKUP($A66,Configurador!$A$104:$Z$108,O$60),"") ->  | P66: =IF($C66>0,VLOOKUP($A66,Configurador!$A$104:$Z$108,P$60),"") ->  | Q66: =IF($C66>0,VLOOKUP($A66,Configurador!$A$104:$Z$108,Q$60),"") ->  | R66: =IF($C66>0,VLOOKUP($A66,Configurador!$A$104:$Z$108,R$60),"") ->  | S66: =IF($C66>0,VLOOKUP($A66,Configurador!$A$104:$Z$108,S$60),"") ->  | T66: =IF($C66>0,VLOOKUP($A66,Configurador!$A$104:$Z$108,T$60),"") ->  | U66: =IF($C66>0,VLOOKUP($A66,Configurador!$A$104:$Z$108,U$60),"") ->  | V66: =IF($C66>0,VLOOKUP($A66,Configurador!$A$104:$Z$108,V$60),"") ->  | W66: =IF($C66>0,VLOOKUP($A66,Configurador!$A$104:$Z$108,W$60),"") ->  | X66: =IF($C66>0,VLOOKUP($A66,Configurador!$A$104:$Z$108,X$60),"") ->  | Y66: =IF($C66>0,VLOOKUP($A66,Configurador!$A$104:$Z$108,Y$60),"") -> 
B68: cuántos
B69: =COUNTIF(B62:B66,">0") -> 0
B70: soporte para buscar v en la propuesta | C70: 1 | D70: =C70+1 -> 2 | E70: =D70+1 -> 3 | F70: 4 | G70: 5 | H70: 6 | I70: 7 | J70: 8 | K70: 9 | L70: 10 | M70: 11 | N70: 12 | O70: 13 | P70: 14 | Q70: 15 | R70: 16 | S70: 17 | T70: 18 | U70: 19 | V70: 20 | W70: 21 | X70: 22 | Y70: 23
A72: Surface Book 2 | C72: soporte para buscarv | D72: 4 | E72: =D72+1 -> 5 | F72: =E72+1 -> 6 | G72: =F72+1 -> 7 | H72: 9 | J72: =H72+1 -> 10 | K72: =J72+1 -> 11 | L72: =K72+1 -> 12 | M72: =L72+1 -> 13 | N72: =M72+1 -> 14 | O72: 16 | P72: =O72+1 -> 17 | Q72: 18 | R72: 19 | S72: 20 | T72: 21 | U72: 22 | V72: 23 | W72: 24 | X72: 25 | Y72: 26
B73: Posiciones en configurador | C73: Posiciones que debe ocupar en la propuesta
A74: 1 | B74: =IF(Configurador!$B$104=B3,1,0) -> 0 | C74: =IF(B74=1,1,0) -> 0 | D74: =IF($C74>0,VLOOKUP($A74,Configurador!$A$104:$Z$108,D$60),"") ->  | E74: =IF($C$74>0,VLOOKUP($A74,Configurador!$A$104:$Z$108,E72),"") ->  | F74: =IF($C$74>0,VLOOKUP($A74,Configurador!$A$104:$Z$108,F72),"") ->  | G74: =IF(C74>0,VLOOKUP($A74,Configurador!$A$104:$Z$108,G72),"") ->  | H74: =IF(C74>0,VLOOKUP($A74,Configurador!$A$104:$Z$108,H72),"") ->  | I74: =IF(D74<>"",CONCATENATE(D74,"'' / ",E74," / ",F74,"MB / ",G74,"GB / ",H74),"") ->  | J74: =IF(C74>0,VLOOKUP($A74,Configurador!$A$104:$Z$108,J72),"") ->  | K74: =IF(C74>0,VLOOKUP($A74,Configurador!$A$104:$Z$108,K72),"") ->  | L74: =IF(C74>0,VLOOKUP($A74,Configurador!$A$104:$Z$108,L72),"") ->  | M74: =IF(C74>0,VLOOKUP($A74,Configurador!$A$104:$Z$108,M72),"") ->  | N74: =IF(C74>0,VLOOKUP($A74,Configurador!$A$104:$Z$108,N72),"") ->  | O74: =IF(C74>0,VLOOKUP($A74,Configurador!$A$104:$Z$108,O72),"") ->  | P74: =IF(C74>0,VLOOKUP($A74,Configurador!$A$104:$Z$108,P72),"") ->  | Q74: =IF(C74>0,VLOOKUP($A74,Configurador!$A$104:$Z$108,Q72),"") ->  | R74: =IF(C74>0,VLOOKUP($A74,Configurador!$A$104:$Z$108,R72),"") ->  | S74: =IF(C74>0,VLOOKUP($A74,Configurador!$A$104:$Z$108,S72),"") ->  | T74: =IF(C74>0,VLOOKUP($A74,Configurador!$A$104:$Z$108,T72),"") ->  | U74: =IF(C74>0,VLOOKUP($A74,Configurador!$A$104:$Z$108,U72),"") ->  | V74: =IF(C74>0,VLOOKUP($A74,Configurador!$A$104:$Z$108,V72),"") ->  | W74: =IF(C74>0,VLOOKUP($A74,Configurador!$A$104:$Z$108,W72),"") ->  | X74: =IF(C74>0,VLOOKUP($A74,Configurador!$A$104:$Z$108,X72),"") ->  | Y74: =IF(C74>0,VLOOKUP($A74,Configurador!$A$104:$Z$108,Y72),"") -> 
A75: 2 | B75: =IF(Configurador!$B$105=B3,1,0) -> 0 | C75: =IF(AND(B75=1,C74<=($B$81-1)),C74+1,0) -> 0 | D75: =IF($C75>0,VLOOKUP($A75,Configurador!$A$104:$Z$108,D$60),"") ->  | E75: =IF($C75>0,VLOOKUP($A75,Configurador!$A$104:$Z$108,E$60),"") ->  | F75: =IF($C75>0,VLOOKUP($A75,Configurador!$A$104:$Z$108,F$60),"") ->  | G75: =IF($C75>0,VLOOKUP($A75,Configurador!$A$104:$Z$108,G$60),"") ->  | H75: =IF($C75>0,VLOOKUP($A75,Configurador!$A$104:$Z$108,H$60),"") ->  | I75: =IF(D75<>"",CONCATENATE(D75,"'' / ",E75," / ",F75,"MB / ",G75,"GB / ",H75),"") ->  | J75: =IF($C75>0,VLOOKUP($A75,Configurador!$A$104:$Z$108,J$60),"") ->  | K75: =IF($C75>0,VLOOKUP($A75,Configurador!$A$104:$Z$108,K$60),"") ->  | L75: =IF($C75>0,VLOOKUP($A75,Configurador!$A$104:$Z$108,L$60),"") ->  | M75: =IF($C75>0,VLOOKUP($A75,Configurador!$A$104:$Z$108,M$60),"") ->  | N75: =IF($C75>0,VLOOKUP($A75,Configurador!$A$104:$Z$108,N$60),"") ->  | O75: =IF($C75>0,VLOOKUP($A75,Configurador!$A$104:$Z$108,O$60),"") ->  | P75: =IF($C75>0,VLOOKUP($A75,Configurador!$A$104:$Z$108,P$60),"") ->  | Q75: =IF($C75>0,VLOOKUP($A75,Configurador!$A$104:$Z$108,Q$60),"") ->  | R75: =IF($C75>0,VLOOKUP($A75,Configurador!$A$104:$Z$108,R$60),"") ->  | S75: =IF($C75>0,VLOOKUP($A75,Configurador!$A$104:$Z$108,S$60),"") ->  | T75: =IF($C75>0,VLOOKUP($A75,Configurador!$A$104:$Z$108,T$60),"") ->  | U75: =IF($C75>0,VLOOKUP($A75,Configurador!$A$104:$Z$108,U$60),"") ->  | V75: =IF($C75>0,VLOOKUP($A75,Configurador!$A$104:$Z$108,V$60),"") ->  | W75: =IF($C75>0,VLOOKUP($A75,Configurador!$A$104:$Z$108,W$60),"") ->  | X75: =IF($C75>0,VLOOKUP($A75,Configurador!$A$104:$Z$108,X$60),"") ->  | Y75: =IF($C75>0,VLOOKUP($A75,Configurador!$A$104:$Z$108,Y$60),"") -> 
A76: 3 | B76: =IF(Configurador!$B$106=B3,1,0) -> 0 | C76: =IF(AND(B76=1,MAX($C$74:C75)<=($B$81-1)),MAX($C$74:C75)+1,0) -> 0 | D76: =IF($C76>0,VLOOKUP($A76,Configurador!$A$104:$Z$108,D$60),"") ->  | E76: =IF($C76>0,VLOOKUP($A76,Configurador!$A$104:$Z$108,E$60),"") ->  | F76: =IF($C76>0,VLOOKUP($A76,Configurador!$A$104:$Z$108,F$60),"") ->  | G76: =IF($C76>0,VLOOKUP($A76,Configurador!$A$104:$Z$108,G$60),"") ->  | H76: =IF($C76>0,VLOOKUP($A76,Configurador!$A$104:$Z$108,H$60),"") ->  | I76: =IF(D76<>"",CONCATENATE(D76,"'' / ",E76," / ",F76,"MB / ",G76,"GB / ",H76),"") ->  | J76: =IF($C76>0,VLOOKUP($A76,Configurador!$A$104:$Z$108,J$60),"") ->  | K76: =IF($C76>0,VLOOKUP($A76,Configurador!$A$104:$Z$108,K$60),"") ->  | L76: =IF($C76>0,VLOOKUP($A76,Configurador!$A$104:$Z$108,L$60),"") ->  | M76: =IF($C76>0,VLOOKUP($A76,Configurador!$A$104:$Z$108,M$60),"") ->  | N76: =IF($C76>0,VLOOKUP($A76,Configurador!$A$104:$Z$108,N$60),"") ->  | O76: =IF($C76>0,VLOOKUP($A76,Configurador!$A$104:$Z$108,O$60),"") ->  | P76: =IF($C76>0,VLOOKUP($A76,Configurador!$A$104:$Z$108,P$60),"") ->  | Q76: =IF($C76>0,VLOOKUP($A76,Configurador!$A$104:$Z$108,Q$60),"") ->  | R76: =IF($C76>0,VLOOKUP($A76,Configurador!$A$104:$Z$108,R$60),"") ->  | S76: =IF($C76>0,VLOOKUP($A76,Configurador!$A$104:$Z$108,S$60),"") ->  | T76: =IF($C76>0,VLOOKUP($A76,Configurador!$A$104:$Z$108,T$60),"") ->  | U76: =IF($C76>0,VLOOKUP($A76,Configurador!$A$104:$Z$108,U$60),"") ->  | V76: =IF($C76>0,VLOOKUP($A76,Configurador!$A$104:$Z$108,V$60),"") ->  | W76: =IF($C76>0,VLOOKUP($A76,Configurador!$A$104:$Z$108,W$60),"") ->  | X76: =IF($C76>0,VLOOKUP($A76,Configurador!$A$104:$Z$108,X$60),"") ->  | Y76: =IF($C76>0,VLOOKUP($A76,Configurador!$A$104:$Z$108,Y$60),"") -> 
A77: 4 | B77: =IF(Configurador!$B$107=B3,1,0) -> 0 | C77: =IF(AND(B77=1,MAX($C$74:C76)<=($B$81-1)),MAX($C$74:C76)+1,0) -> 0 | D77: =IF($C77>0,VLOOKUP($A77,Configurador!$A$104:$Z$108,D$60),"") ->  | E77: =IF($C77>0,VLOOKUP($A77,Configurador!$A$104:$Z$108,E$60),"") ->  | F77: =IF($C77>0,VLOOKUP($A77,Configurador!$A$104:$Z$108,F$60),"") ->  | G77: =IF($C77>0,VLOOKUP($A77,Configurador!$A$104:$Z$108,G$60),"") ->  | H77: =IF($C77>0,VLOOKUP($A77,Configurador!$A$104:$Z$108,H$60),"") ->  | I77: =IF(D77<>"",CONCATENATE(D77,"'' / ",E77," / ",F77,"MB / ",G77,"GB / ",H77),"") ->  | J77: =IF($C77>0,VLOOKUP($A77,Configurador!$A$104:$Z$108,J$60),"") ->  | K77: =IF($C77>0,VLOOKUP($A77,Configurador!$A$104:$Z$108,K$60),"") ->  | L77: =IF($C77>0,VLOOKUP($A77,Configurador!$A$104:$Z$108,L$60),"") ->  | M77: =IF($C77>0,VLOOKUP($A77,Configurador!$A$104:$Z$108,M$60),"") ->  | N77: =IF($C77>0,VLOOKUP($A77,Configurador!$A$104:$Z$108,N$60),"") ->  | O77: =IF($C77>0,VLOOKUP($A77,Configurador!$A$104:$Z$108,O$60),"") ->  | P77: =IF($C77>0,VLOOKUP($A77,Configurador!$A$104:$Z$108,P$60),"") ->  | Q77: =IF($C77>0,VLOOKUP($A77,Configurador!$A$104:$Z$108,Q$60),"") ->  | R77: =IF($C77>0,VLOOKUP($A77,Configurador!$A$104:$Z$108,R$60),"") ->  | S77: =IF($C77>0,VLOOKUP($A77,Configurador!$A$104:$Z$108,S$60),"") ->  | T77: =IF($C77>0,VLOOKUP($A77,Configurador!$A$104:$Z$108,T$60),"") ->  | U77: =IF($C77>0,VLOOKUP($A77,Configurador!$A$104:$Z$108,U$60),"") ->  | V77: =IF($C77>0,VLOOKUP($A77,Configurador!$A$104:$Z$108,V$60),"") ->  | W77: =IF($C77>0,VLOOKUP($A77,Configurador!$A$104:$Z$108,W$60),"") ->  | X77: =IF($C77>0,VLOOKUP($A77,Configurador!$A$104:$Z$108,X$60),"") ->  | Y77: =IF($C77>0,VLOOKUP($A77,Configurador!$A$104:$Z$108,Y$60),"") -> 
A78: 5 | B78: =IF(Configurador!$B$108=B3,1,0) -> 0 | C78: =IF(AND(B78=1,MAX($C$74:C77)<=($B$81-1)),MAX($C$74:C77)+1,0) -> 0 | D78: =IF($C78>0,VLOOKUP($A78,Configurador!$A$104:$Z$108,D$60),"") ->  | E78: =IF($C78>0,VLOOKUP($A78,Configurador!$A$104:$Z$108,E$60),"") ->  | F78: =IF($C78>0,VLOOKUP($A78,Configurador!$A$104:$Z$108,F$60),"") ->  | G78: =IF($C78>0,VLOOKUP($A78,Configurador!$A$104:$Z$108,G$60),"") ->  | H78: =IF($C78>0,VLOOKUP($A78,Configurador!$A$104:$Z$108,H$60),"") ->  | I78: =IF(D78<>"",CONCATENATE(D78,"'' / ",E78," / ",F78,"MB / ",G78,"GB / ",H78),"") ->  | J78: =IF($C78>0,VLOOKUP($A78,Configurador!$A$104:$Z$108,J$60),"") ->  | K78: =IF($C78>0,VLOOKUP($A78,Configurador!$A$104:$Z$108,K$60),"") ->  | L78: =IF($C78>0,VLOOKUP($A78,Configurador!$A$104:$Z$108,L$60),"") ->  | M78: =IF($C78>0,VLOOKUP($A78,Configurador!$A$104:$Z$108,M$60),"") ->  | N78: =IF($C78>0,VLOOKUP($A78,Configurador!$A$104:$Z$108,N$60),"") ->  | O78: =IF($C78>0,VLOOKUP($A78,Configurador!$A$104:$Z$108,O$60),"") ->  | P78: =IF($C78>0,VLOOKUP($A78,Configurador!$A$104:$Z$108,P$60),"") ->  | Q78: =IF($C78>0,VLOOKUP($A78,Configurador!$A$104:$Z$108,Q$60),"") ->  | R78: =IF($C78>0,VLOOKUP($A78,Configurador!$A$104:$Z$108,R$60),"") ->  | S78: =IF($C78>0,VLOOKUP($A78,Configurador!$A$104:$Z$108,S$60),"") ->  | T78: =IF($C78>0,VLOOKUP($A78,Configurador!$A$104:$Z$108,T$60),"") ->  | U78: =IF($C78>0,VLOOKUP($A78,Configurador!$A$104:$Z$108,U$60),"") ->  | V78: =IF($C78>0,VLOOKUP($A78,Configurador!$A$104:$Z$108,V$60),"") ->  | W78: =IF($C78>0,VLOOKUP($A78,Configurador!$A$104:$Z$108,W$60),"") ->  | X78: =IF($C78>0,VLOOKUP($A78,Configurador!$A$104:$Z$108,X$60),"") ->  | Y78: =IF($C78>0,VLOOKUP($A78,Configurador!$A$104:$Z$108,Y$60),"") -> 
B80: cuántos
B81: =COUNTIF(B74:B78,">0") -> 0
B82: soporte para buscar v en la propuesta | C82: 1 | D82: =C82+1 -> 2 | E82: =D82+1 -> 3 | F82: 4 | G82: 5 | H82: 6 | I82: 7 | J82: 8 | K82: 9 | L82: 10 | M82: 11 | N82: 12 | O82: 13 | P82: 14 | Q82: 15 | R82: 16 | S82: 17 | T82: 18 | U82: 19 | V82: 20 | W82: 21 | X82: 22 | Y82: 23
A84: Surface Go | C84: soporte para buscarv | D84: 4 | E84: =D84+1 -> 5 | F84: =E84+1 -> 6 | G84: =F84+1 -> 7 | H84: 9 | J84: =H84+1 -> 10 | K84: =J84+1 -> 11 | L84: =K84+1 -> 12 | M84: =L84+1 -> 13 | N84: =M84+1 -> 14 | O84: 16 | P84: =O84+1 -> 17 | Q84: 18 | R84: 19 | S84: 20 | T84: 21 | U84: 22 | V84: 23 | W84: 24 | X84: 25 | Y84: 26
B85: Posiciones en configurador | C85: Posiciones que debe ocupar en la propuesta
A86: 1 | B86: =IF(Configurador!$B$104=B4,1,0) -> 0 | C86: =IF(B86=1,1,0) -> 0 | D86: =IF($C86>0,VLOOKUP($A86,Configurador!$A$104:$Z$108,D$60),"") ->  | E86: =IF(C86>0,VLOOKUP($A86,Configurador!$A$104:$Z$108,E84),"") ->  | F86: =IF(C86>0,VLOOKUP($A86,Configurador!$A$104:$Z$108,F84),"") ->  | G86: =IF(C86>0,VLOOKUP($A86,Configurador!$A$104:$Z$108,G84),"") ->  | H86: =IF(C86>0,VLOOKUP($A86,Configurador!$A$104:$Z$108,H84),"") ->  | I86: =IF(D86<>"",CONCATENATE(D86,"'' / ",E86," / ",F86,"MB / ",G86,"GB / ",H86),"") ->  | J86: =IF(C86>0,VLOOKUP($A86,Configurador!$A$104:$Z$108,J84),"") ->  | K86: =IF(C86>0,VLOOKUP($A86,Configurador!$A$104:$Z$108,K84),"") ->  | L86: =IF(C86>0,VLOOKUP($A86,Configurador!$A$104:$Z$108,L84),"") ->  | M86: =IF(C86>0,VLOOKUP($A86,Configurador!$A$104:$Z$108,M84),"") ->  | N86: =IF(C86>0,VLOOKUP($A86,Configurador!$A$104:$Z$108,N84),"") ->  | O86: =IF(C86>0,VLOOKUP($A86,Configurador!$A$104:$Z$108,O84),"") ->  | P86: =IF(C86>0,VLOOKUP($A86,Configurador!$A$104:$Z$108,P84),"") ->  | Q86: =IF(C86>0,VLOOKUP($A86,Configurador!$A$104:$Z$108,Q84),"") ->  | R86: =IF(C86>0,VLOOKUP($A86,Configurador!$A$104:$Z$108,R84),"") ->  | S86: =IF(C86>0,VLOOKUP($A86,Configurador!$A$104:$Z$108,S84),"") ->  | T86: =IF(C86>0,VLOOKUP($A86,Configurador!$A$104:$Z$108,T84),"") ->  | U86: =IF(C86>0,VLOOKUP($A86,Configurador!$A$104:$Z$108,U84),"") ->  | V86: =IF(C86>0,VLOOKUP($A86,Configurador!$A$104:$Z$108,V84),"") ->  | W86: =IF(C86>0,VLOOKUP($A86,Configurador!$A$104:$Z$108,W84),"") ->  | X86: =IF(C86>0,VLOOKUP($A86,Configurador!$A$104:$Z$108,X84),"") ->  | Y86: =IF(C86>0,VLOOKUP($A86,Configurador!$A$104:$Z$108,Y84),"") -> 
A87: 2 | B87: =IF(Configurador!$B$105=B4,1,0) -> 0 | C87: =IF(AND(B87=1,C86<=($B$93-1)),C86+1,0) -> 0 | D87: =IF($C87>0,VLOOKUP($A87,Configurador!$A$104:$Z$108,D$60),"") ->  | E87: =IF($C87>0,VLOOKUP($A87,Configurador!$A$104:$Z$108,E$60),"") ->  | F87: =IF($C87>0,VLOOKUP($A87,Configurador!$A$104:$Z$108,F$60),"") ->  | G87: =IF($C87>0,VLOOKUP($A87,Configurador!$A$104:$Z$108,G$60),"") ->  | H87: =IF($C87>0,VLOOKUP($A87,Configurador!$A$104:$Z$108,H$60),"") ->  | I87: =IF(D87<>"",CONCATENATE(D87,"'' / ",E87," / ",F87,"MB / ",G87,"GB / ",H87),"") ->  | J87: =IF($C87>0,VLOOKUP($A87,Configurador!$A$104:$Z$108,J$60),"") ->  | K87: =IF($C87>0,VLOOKUP($A87,Configurador!$A$104:$Z$108,K$60),"") ->  | L87: =IF($C87>0,VLOOKUP($A87,Configurador!$A$104:$Z$108,L$60),"") ->  | M87: =IF($C87>0,VLOOKUP($A87,Configurador!$A$104:$Z$108,M$60),"") ->  | N87: =IF($C87>0,VLOOKUP($A87,Configurador!$A$104:$Z$108,N$60),"") ->  | O87: =IF($C87>0,VLOOKUP($A87,Configurador!$A$104:$Z$108,O$60),"") ->  | P87: =IF($C87>0,VLOOKUP($A87,Configurador!$A$104:$Z$108,P$60),"") ->  | Q87: =IF($C87>0,VLOOKUP($A87,Configurador!$A$104:$Z$108,Q$60),"") ->  | R87: =IF($C87>0,VLOOKUP($A87,Configurador!$A$104:$Z$108,R$60),"") ->  | S87: =IF($C87>0,VLOOKUP($A87,Configurador!$A$104:$Z$108,S$60),"") ->  | T87: =IF($C87>0,VLOOKUP($A87,Configurador!$A$104:$Z$108,T$60),"") ->  | U87: =IF($C87>0,VLOOKUP($A87,Configurador!$A$104:$Z$108,U$60),"") ->  | V87: =IF($C87>0,VLOOKUP($A87,Configurador!$A$104:$Z$108,V$60),"") ->  | W87: =IF($C87>0,VLOOKUP($A87,Configurador!$A$104:$Z$108,W$60),"") ->  | X87: =IF($C87>0,VLOOKUP($A87,Configurador!$A$104:$Z$108,X$60),"") ->  | Y87: =IF($C87>0,VLOOKUP($A87,Configurador!$A$104:$Z$108,Y$60),"") -> 
A88: 3 | B88: =IF(Configurador!$B$106=B4,1,0) -> 0 | C88: =IF(AND(B88=1,MAX($C$86:C87)<=($B$93-1)),MAX($C$86:C87)+1,0) -> 0 | D88: =IF($C88>0,VLOOKUP($A88,Configurador!$A$104:$Z$108,D$60),"") ->  | E88: =IF($C88>0,VLOOKUP($A88,Configurador!$A$104:$Z$108,E$60),"") ->  | F88: =IF($C88>0,VLOOKUP($A88,Configurador!$A$104:$Z$108,F$60),"") ->  | G88: =IF($C88>0,VLOOKUP($A88,Configurador!$A$104:$Z$108,G$60),"") ->  | H88: =IF($C88>0,VLOOKUP($A88,Configurador!$A$104:$Z$108,H$60),"") ->  | I88: =IF(D88<>"",CONCATENATE(D88,"'' / ",E88," / ",F88,"MB / ",G88,"GB / ",H88),"") ->  | J88: =IF($C88>0,VLOOKUP($A88,Configurador!$A$104:$Z$108,J$60),"") ->  | K88: =IF($C88>0,VLOOKUP($A88,Configurador!$A$104:$Z$108,K$60),"") ->  | L88: =IF($C88>0,VLOOKUP($A88,Configurador!$A$104:$Z$108,L$60),"") ->  | M88: =IF($C88>0,VLOOKUP($A88,Configurador!$A$104:$Z$108,M$60),"") ->  | N88: =IF($C88>0,VLOOKUP($A88,Configurador!$A$104:$Z$108,N$60),"") ->  | O88: =IF($C88>0,VLOOKUP($A88,Configurador!$A$104:$Z$108,O$60),"") ->  | P88: =IF($C88>0,VLOOKUP($A88,Configurador!$A$104:$Z$108,P$60),"") ->  | Q88: =IF($C88>0,VLOOKUP($A88,Configurador!$A$104:$Z$108,Q$60),"") ->  | R88: =IF($C88>0,VLOOKUP($A88,Configurador!$A$104:$Z$108,R$60),"") ->  | S88: =IF($C88>0,VLOOKUP($A88,Configurador!$A$104:$Z$108,S$60),"") ->  | T88: =IF($C88>0,VLOOKUP($A88,Configurador!$A$104:$Z$108,T$60),"") ->  | U88: =IF($C88>0,VLOOKUP($A88,Configurador!$A$104:$Z$108,U$60),"") ->  | V88: =IF($C88>0,VLOOKUP($A88,Configurador!$A$104:$Z$108,V$60),"") ->  | W88: =IF($C88>0,VLOOKUP($A88,Configurador!$A$104:$Z$108,W$60),"") ->  | X88: =IF($C88>0,VLOOKUP($A88,Configurador!$A$104:$Z$108,X$60),"") ->  | Y88: =IF($C88>0,VLOOKUP($A88,Configurador!$A$104:$Z$108,Y$60),"") -> 
A89: 4 | B89: =IF(Configurador!$B$107=B4,1,0) -> 0 | C89: =IF(AND(B89=1,MAX($C$86:C88)<=($B$93-1)),MAX($C$86:C88)+1,0) -> 0 | D89: =IF($C89>0,VLOOKUP($A89,Configurador!$A$104:$Z$108,D$60),"") ->  | E89: =IF($C89>0,VLOOKUP($A89,Configurador!$A$104:$Z$108,E$60),"") ->  | F89: =IF($C89>0,VLOOKUP($A89,Configurador!$A$104:$Z$108,F$60),"") ->  | G89: =IF($C89>0,VLOOKUP($A89,Configurador!$A$104:$Z$108,G$60),"") ->  | H89: =IF($C89>0,VLOOKUP($A89,Configurador!$A$104:$Z$108,H$60),"") ->  | I89: =IF(D89<>"",CONCATENATE(D89,"'' / ",E89," / ",F89,"MB / ",G89,"GB / ",H89),"") ->  | J89: =IF($C89>0,VLOOKUP($A89,Configurador!$A$104:$Z$108,J$60),"") ->  | K89: =IF($C89>0,VLOOKUP($A89,Configurador!$A$104:$Z$108,K$60),"") ->  | L89: =IF($C89>0,VLOOKUP($A89,Configurador!$A$104:$Z$108,L$60),"") ->  | M89: =IF($C89>0,VLOOKUP($A89,Configurador!$A$104:$Z$108,M$60),"") ->  | N89: =IF($C89>0,VLOOKUP($A89,Configurador!$A$104:$Z$108,N$60),"") ->  | O89: =IF($C89>0,VLOOKUP($A89,Configurador!$A$104:$Z$108,O$60),"") ->  | P89: =IF($C89>0,VLOOKUP($A89,Configurador!$A$104:$Z$108,P$60),"") ->  | Q89: =IF($C89>0,VLOOKUP($A89,Configurador!$A$104:$Z$108,Q$60),"") ->  | R89: =IF($C89>0,VLOOKUP($A89,Configurador!$A$104:$Z$108,R$60),"") ->  | S89: =IF($C89>0,VLOOKUP($A89,Configurador!$A$104:$Z$108,S$60),"") ->  | T89: =IF($C89>0,VLOOKUP($A89,Configurador!$A$104:$Z$108,T$60),"") ->  | U89: =IF($C89>0,VLOOKUP($A89,Configurador!$A$104:$Z$108,U$60),"") ->  | V89: =IF($C89>0,VLOOKUP($A89,Configurador!$A$104:$Z$108,V$60),"") ->  | W89: =IF($C89>0,VLOOKUP($A89,Configurador!$A$104:$Z$108,W$60),"") ->  | X89: =IF($C89>0,VLOOKUP($A89,Configurador!$A$104:$Z$108,X$60),"") ->  | Y89: =IF($C89>0,VLOOKUP($A89,Configurador!$A$104:$Z$108,Y$60),"") -> 
A90: 5 | B90: =IF(Configurador!$B$108=B4,1,0) -> 0 | C90: =IF(AND(B90=1,MAX($C$86:C89)<=($B$93-1)),MAX($C$86:C89)+1,0) -> 0 | D90: =IF($C90>0,VLOOKUP($A90,Configurador!$A$104:$Z$108,D$60),"") ->  | E90: =IF($C90>0,VLOOKUP($A90,Configurador!$A$104:$Z$108,E$60),"") ->  | F90: =IF($C90>0,VLOOKUP($A90,Configurador!$A$104:$Z$108,F$60),"") ->  | G90: =IF($C90>0,VLOOKUP($A90,Configurador!$A$104:$Z$108,G$60),"") ->  | H90: =IF($C90>0,VLOOKUP($A90,Configurador!$A$104:$Z$108,H$60),"") ->  | I90: =IF(D90<>"",CONCATENATE(D90,"'' / ",E90," / ",F90,"MB / ",G90,"GB / ",H90),"") ->  | J90: =IF($C90>0,VLOOKUP($A90,Configurador!$A$104:$Z$108,J$60),"") ->  | K90: =IF($C90>0,VLOOKUP($A90,Configurador!$A$104:$Z$108,K$60),"") ->  | L90: =IF($C90>0,VLOOKUP($A90,Configurador!$A$104:$Z$108,L$60),"") ->  | M90: =IF($C90>0,VLOOKUP($A90,Configurador!$A$104:$Z$108,M$60),"") ->  | N90: =IF($C90>0,VLOOKUP($A90,Configurador!$A$104:$Z$108,N$60),"") ->  | O90: =IF($C90>0,VLOOKUP($A90,Configurador!$A$104:$Z$108,O$60),"") ->  | P90: =IF($C90>0,VLOOKUP($A90,Configurador!$A$104:$Z$108,P$60),"") ->  | Q90: =IF($C90>0,VLOOKUP($A90,Configurador!$A$104:$Z$108,Q$60),"") ->  | R90: =IF($C90>0,VLOOKUP($A90,Configurador!$A$104:$Z$108,R$60),"") ->  | S90: =IF($C90>0,VLOOKUP($A90,Configurador!$A$104:$Z$108,S$60),"") ->  | T90: =IF($C90>0,VLOOKUP($A90,Configurador!$A$104:$Z$108,T$60),"") ->  | U90: =IF($C90>0,VLOOKUP($A90,Configurador!$A$104:$Z$108,U$60),"") ->  | V90: =IF($C90>0,VLOOKUP($A90,Configurador!$A$104:$Z$108,V$60),"") ->  | W90: =IF($C90>0,VLOOKUP($A90,Configurador!$A$104:$Z$108,W$60),"") ->  | X90: =IF($C90>0,VLOOKUP($A90,Configurador!$A$104:$Z$108,X$60),"") ->  | Y90: =IF($C90>0,VLOOKUP($A90,Configurador!$A$104:$Z$108,Y$60),"") -> 
B92: cuántos
B93: =COUNTIF(B86:B90,">0") -> 0
B94: soporte para buscar v en la propuesta | C94: 1 | D94: =C94+1 -> 2 | E94: =D94+1 -> 3 | F94: 4 | G94: 5 | H94: 6 | I94: 7 | J94: 8 | K94: 9 | L94: 10 | M94: 11 | N94: 12 | O94: 13 | P94: 14 | Q94: 15 | R94: 16 | S94: 17 | T94: 18 | U94: 19 | V94: 20 | W94: 21 | X94: 22 | Y94: 23
A96: =B5 -> Surface Laptop Win10Pro | C96: soporte para buscarv | D96: 4 | E96: =D96+1 -> 5 | F96: =E96+1 -> 6 | G96: =F96+1 -> 7 | H96: 9 | J96: =H96+1 -> 10 | K96: =J96+1 -> 11 | L96: =K96+1 -> 12 | M96: =L96+1 -> 13 | N96: =M96+1 -> 14 | O96: 16 | P96: =O96+1 -> 17 | Q96: 18 | R96: 19 | S96: 20 | T96: 21 | U96: 22 | V96: 23 | W96: 24 | X96: 25 | Y96: 26
B97: Posiciones en configurador | C97: Posiciones que debe ocupar en la propuesta
A98: 1 | B98: =IF(Configurador!$B$104=B5,1,0) -> 0 | C98: =IF(B98=1,1,0) -> 0 | D98: =IF($C98>0,VLOOKUP($A98,Configurador!$A$104:$Z$108,D$60),"") ->  | E98: =IF(C98>0,VLOOKUP($A98,Configurador!$A$104:$Z$108,E96),"") ->  | F98: =IF(C98>0,VLOOKUP($A98,Configurador!$A$104:$Z$108,F96),"") ->  | G98: =IF(C98>0,VLOOKUP($A98,Configurador!$A$104:$Z$108,G96),"") ->  | H98: =IF(C98>0,VLOOKUP($A98,Configurador!$A$104:$Z$108,H96),"") ->  | I98: =IF(D98<>"",CONCATENATE(D98,"'' / ",E98," / ",F98,"MB / ",G98,"GB / ",H98),"") ->  | J98: =IF(C98>0,VLOOKUP($A98,Configurador!$A$104:$Z$108,J96),"") ->  | K98: =IF(C98>0,VLOOKUP($A98,Configurador!$A$104:$Z$108,K96),"") ->  | L98: =IF(C98>0,VLOOKUP($A98,Configurador!$A$104:$Z$108,L96),"") ->  | M98: =IF(C98>0,VLOOKUP($A98,Configurador!$A$104:$Z$108,M96),"") ->  | N98: =IF(C98>0,VLOOKUP($A98,Configurador!$A$104:$Z$108,N96),"") ->  | O98: =IF(C98>0,VLOOKUP($A98,Configurador!$A$104:$Z$108,O96),"") ->  | P98: =IF(C98>0,VLOOKUP($A98,Configurador!$A$104:$Z$108,P96),"") ->  | Q98: =IF(C98>0,VLOOKUP($A98,Configurador!$A$104:$Z$108,Q96),"") ->  | R98: =IF(C98>0,VLOOKUP($A98,Configurador!$A$104:$Z$108,R96),"") ->  | S98: =IF(C98>0,VLOOKUP($A98,Configurador!$A$104:$Z$108,S96),"") ->  | T98: =IF(C98>0,VLOOKUP($A98,Configurador!$A$104:$Z$108,T96),"") ->  | U98: =IF(C98>0,VLOOKUP($A98,Configurador!$A$104:$Z$108,U96),"") ->  | V98: =IF(C98>0,VLOOKUP($A98,Configurador!$A$104:$Z$108,V96),"") ->  | W98: =IF(C98>0,VLOOKUP($A98,Configurador!$A$104:$Z$108,W96),"") ->  | X98: =IF(C98>0,VLOOKUP($A98,Configurador!$A$104:$Z$108,X96),"") ->  | Y98: =IF(C98>0,VLOOKUP($A98,Configurador!$A$104:$Z$108,Y96),"") -> 
A99: 2 | B99: =IF(Configurador!$B$105=B5,1,0) -> 0 | C99: =IF(AND(B99=1,C98<=($B$105-1)),C98+1,0) -> 0 | D99: =IF($C99>0,VLOOKUP($A99,Configurador!$A$104:$Z$108,D$60),"") ->  | E99: =IF($C99>0,VLOOKUP($A99,Configurador!$A$104:$Z$108,E$60),"") ->  | F99: =IF($C99>0,VLOOKUP($A99,Configurador!$A$104:$Z$108,F$60),"") ->  | G99: =IF($C99>0,VLOOKUP($A99,Configurador!$A$104:$Z$108,G$60),"") ->  | H99: =IF($C99>0,VLOOKUP($A99,Configurador!$A$104:$Z$108,H$60),"") ->  | I99: =IF(D99<>"",CONCATENATE(D99,"'' / ",E99," / ",F99,"MB / ",G99,"GB / ",H99),"") ->  | J99: =IF($C99>0,VLOOKUP($A99,Configurador!$A$104:$Z$108,J$60),"") ->  | K99: =IF($C99>0,VLOOKUP($A99,Configurador!$A$104:$Z$108,K$60),"") ->  | L99: =IF($C99>0,VLOOKUP($A99,Configurador!$A$104:$Z$108,L$60),"") ->  | M99: =IF($C99>0,VLOOKUP($A99,Configurador!$A$104:$Z$108,M$60),"") ->  | N99: =IF($C99>0,VLOOKUP($A99,Configurador!$A$104:$Z$108,N$60),"") ->  | O99: =IF($C99>0,VLOOKUP($A99,Configurador!$A$104:$Z$108,O$60),"") ->  | P99: =IF($C99>0,VLOOKUP($A99,Configurador!$A$104:$Z$108,P$60),"") ->  | Q99: =IF($C99>0,VLOOKUP($A99,Configurador!$A$104:$Z$108,Q$60),"") ->  | R99: =IF($C99>0,VLOOKUP($A99,Configurador!$A$104:$Z$108,R$60),"") ->  | S99: =IF($C99>0,VLOOKUP($A99,Configurador!$A$104:$Z$108,S$60),"") ->  | T99: =IF($C99>0,VLOOKUP($A99,Configurador!$A$104:$Z$108,T$60),"") ->  | U99: =IF($C99>0,VLOOKUP($A99,Configurador!$A$104:$Z$108,U$60),"") ->  | V99: =IF($C99>0,VLOOKUP($A99,Configurador!$A$104:$Z$108,V$60),"") ->  | W99: =IF($C99>0,VLOOKUP($A99,Configurador!$A$104:$Z$108,W$60),"") ->  | X99: =IF($C99>0,VLOOKUP($A99,Configurador!$A$104:$Z$108,X$60),"") ->  | Y99: =IF($C99>0,VLOOKUP($A99,Configurador!$A$104:$Z$108,Y$60),"") -> 
A100: 3 | B100: =IF(Configurador!$B$106=B5,1,0) -> 0 | C100: =IF(AND(B100=1,MAX($C$98:C99)<=($B$105-1)),MAX($C$98:C99)+1,0) -> 0 | D100: =IF($C100>0,VLOOKUP($A100,Configurador!$A$104:$Z$108,D$60),"") ->  | E100: =IF($C100>0,VLOOKUP($A100,Configurador!$A$104:$Z$108,E$60),"") ->  | F100: =IF($C100>0,VLOOKUP($A100,Configurador!$A$104:$Z$108,F$60),"") ->  | G100: =IF($C100>0,VLOOKUP($A100,Configurador!$A$104:$Z$108,G$60),"") ->  | H100: =IF($C100>0,VLOOKUP($A100,Configurador!$A$104:$Z$108,H$60),"") ->  | I100: =IF(D100<>"",CONCATENATE(D100,"'' / ",E100," / ",F100,"MB / ",G100,"GB / ",H100),"") ->  | J100: =IF($C100>0,VLOOKUP($A100,Configurador!$A$104:$Z$108,J$60),"") ->  | K100: =IF($C100>0,VLOOKUP($A100,Configurador!$A$104:$Z$108,K$60),"") ->  | L100: =IF($C100>0,VLOOKUP($A100,Configurador!$A$104:$Z$108,L$60),"") ->  | M100: =IF($C100>0,VLOOKUP($A100,Configurador!$A$104:$Z$108,M$60),"") ->  | N100: =IF($C100>0,VLOOKUP($A100,Configurador!$A$104:$Z$108,N$60),"") ->  | O100: =IF($C100>0,VLOOKUP($A100,Configurador!$A$104:$Z$108,O$60),"") ->  | P100: =IF($C100>0,VLOOKUP($A100,Configurador!$A$104:$Z$108,P$60),"") ->  | Q100: =IF($C100>0,VLOOKUP($A100,Configurador!$A$104:$Z$108,Q$60),"") ->  | R100: =IF($C100>0,VLOOKUP($A100,Configurador!$A$104:$Z$108,R$60),"") ->  | S100: =IF($C100>0,VLOOKUP($A100,Configurador!$A$104:$Z$108,S$60),"") ->  | T100: =IF($C100>0,VLOOKUP($A100,Configurador!$A$104:$Z$108,T$60),"") ->  | U100: =IF($C100>0,VLOOKUP($A100,Configurador!$A$104:$Z$108,U$60),"") ->  | V100: =IF($C100>0,VLOOKUP($A100,Configurador!$A$104:$Z$108,V$60),"") ->  | W100: =IF($C100>0,VLOOKUP($A100,Configurador!$A$104:$Z$108,W$60),"") ->  | X100: =IF($C100>0,VLOOKUP($A100,Configurador!$A$104:$Z$108,X$60),"") ->  | Y100: =IF($C100>0,VLOOKUP($A100,Configurador!$A$104:$Z$108,Y$60),"") -> 
A101: 4 | B101: =IF(Configurador!$B$107=B5,1,0) -> 0 | C101: =IF(AND(B101=1,MAX($C$98:C100)<=($B$105-1)),MAX($C$98:C100)+1,0) -> 0 | D101: =IF($C101>0,VLOOKUP($A101,Configurador!$A$104:$Z$108,D$60),"") ->  | E101: =IF($C101>0,VLOOKUP($A101,Configurador!$A$104:$Z$108,E$60),"") ->  | F101: =IF($C101>0,VLOOKUP($A101,Configurador!$A$104:$Z$108,F$60),"") ->  | G101: =IF($C101>0,VLOOKUP($A101,Configurador!$A$104:$Z$108,G$60),"") ->  | H101: =IF($C101>0,VLOOKUP($A101,Configurador!$A$104:$Z$108,H$60),"") ->  | I101: =IF(D101<>"",CONCATENATE(D101,"'' / ",E101," / ",F101,"MB / ",G101,"GB / ",H101),"") ->  | J101: =IF($C101>0,VLOOKUP($A101,Configurador!$A$104:$Z$108,J$60),"") ->  | K101: =IF($C101>0,VLOOKUP($A101,Configurador!$A$104:$Z$108,K$60),"") ->  | L101: =IF($C101>0,VLOOKUP($A101,Configurador!$A$104:$Z$108,L$60),"") ->  | M101: =IF($C101>0,VLOOKUP($A101,Configurador!$A$104:$Z$108,M$60),"") ->  | N101: =IF($C101>0,VLOOKUP($A101,Configurador!$A$104:$Z$108,N$60),"") ->  | O101: =IF($C101>0,VLOOKUP($A101,Configurador!$A$104:$Z$108,O$60),"") ->  | P101: =IF($C101>0,VLOOKUP($A101,Configurador!$A$104:$Z$108,P$60),"") ->  | Q101: =IF($C101>0,VLOOKUP($A101,Configurador!$A$104:$Z$108,Q$60),"") ->  | R101: =IF($C101>0,VLOOKUP($A101,Configurador!$A$104:$Z$108,R$60),"") ->  | S101: =IF($C101>0,VLOOKUP($A101,Configurador!$A$104:$Z$108,S$60),"") ->  | T101: =IF($C101>0,VLOOKUP($A101,Configurador!$A$104:$Z$108,T$60),"") ->  | U101: =IF($C101>0,VLOOKUP($A101,Configurador!$A$104:$Z$108,U$60),"") ->  | V101: =IF($C101>0,VLOOKUP($A101,Configurador!$A$104:$Z$108,V$60),"") ->  | W101: =IF($C101>0,VLOOKUP($A101,Configurador!$A$104:$Z$108,W$60),"") ->  | X101: =IF($C101>0,VLOOKUP($A101,Configurador!$A$104:$Z$108,X$60),"") ->  | Y101: =IF($C101>0,VLOOKUP($A101,Configurador!$A$104:$Z$108,Y$60),"") -> 
A102: 5 | B102: =IF(Configurador!$B$108=B5,1,0) -> 0 | C102: =IF(AND(B102=1,MAX($C$98:C101)<=($B$105-1)),MAX($C$98:C101)+1,0) -> 0 | D102: =IF($C102>0,VLOOKUP($A102,Configurador!$A$104:$Z$108,D$60),"") ->  | E102: =IF($C102>0,VLOOKUP($A102,Configurador!$A$104:$Z$108,E$60),"") ->  | F102: =IF($C102>0,VLOOKUP($A102,Configurador!$A$104:$Z$108,F$60),"") ->  | G102: =IF($C102>0,VLOOKUP($A102,Configurador!$A$104:$Z$108,G$60),"") ->  | H102: =IF($C102>0,VLOOKUP($A102,Configurador!$A$104:$Z$108,H$60),"") ->  | I102: =IF(D102<>"",CONCATENATE(D102,"'' / ",E102," / ",F102,"MB / ",G102,"GB / ",H102),"") ->  | J102: =IF($C102>0,VLOOKUP($A102,Configurador!$A$104:$Z$108,J$60),"") ->  | K102: =IF($C102>0,VLOOKUP($A102,Configurador!$A$104:$Z$108,K$60),"") ->  | L102: =IF($C102>0,VLOOKUP($A102,Configurador!$A$104:$Z$108,L$60),"") ->  | M102: =IF($C102>0,VLOOKUP($A102,Configurador!$A$104:$Z$108,M$60),"") ->  | N102: =IF($C102>0,VLOOKUP($A102,Configurador!$A$104:$Z$108,N$60),"") ->  | O102: =IF($C102>0,VLOOKUP($A102,Configurador!$A$104:$Z$108,O$60),"") ->  | P102: =IF($C102>0,VLOOKUP($A102,Configurador!$A$104:$Z$108,P$60),"") ->  | Q102: =IF($C102>0,VLOOKUP($A102,Configurador!$A$104:$Z$108,Q$60),"") ->  | R102: =IF($C102>0,VLOOKUP($A102,Configurador!$A$104:$Z$108,R$60),"") ->  | S102: =IF($C102>0,VLOOKUP($A102,Configurador!$A$104:$Z$108,S$60),"") ->  | T102: =IF($C102>0,VLOOKUP($A102,Configurador!$A$104:$Z$108,T$60),"") ->  | U102: =IF($C102>0,VLOOKUP($A102,Configurador!$A$104:$Z$108,U$60),"") ->  | V102: =IF($C102>0,VLOOKUP($A102,Configurador!$A$104:$Z$108,V$60),"") ->  | W102: =IF($C102>0,VLOOKUP($A102,Configurador!$A$104:$Z$108,W$60),"") ->  | X102: =IF($C102>0,VLOOKUP($A102,Configurador!$A$104:$Z$108,X$60),"") ->  | Y102: =IF($C102>0,VLOOKUP($A102,Configurador!$A$104:$Z$108,Y$60),"") -> 
B104: cuántos
B105: =COUNTIF(B98:B102,">0") -> 0
B106: soporte para buscar v en la propuesta | C106: 1 | D106: =C106+1 -> 2 | E106: =D106+1 -> 3 | F106: 4 | G106: 5 | H106: 6 | I106: 7 | J106: 8 | K106: 9 | L106: 10 | M106: 11 | N106: 12 | O106: 13 | P106: 14 | Q106: 15 | R106: 16 | S106: 17 | T106: 18 | U106: 19 | V106: 20 | W106: 21 | X106: 22 | Y106: 23

Sheet LN_Partner
A2: Puesta en marcha
D3: 2 | E3: 4 | F3: 14 | G3: 16 | H3: 17 | I3: 18 | J3: 20
A4: 1 | B4: =IF(AND(Configurador!D130<>"",Configurador!P130>0),1,0) -> 0 | C4: =IF(B4=1,1,0) -> 0 | D4: =IF($C4>0,VLOOKUP($A4,Configurador!$A$130:$T$138,D$3,FALSE),"") ->  | E4: =IF($C4>0,VLOOKUP($A4,Configurador!$A$130:$T$138,E$3,FALSE),"") ->  | F4: =IF($C4>0,VLOOKUP($A4,Configurador!$A$130:$T$138,F$3,FALSE),"") ->  | G4: =IF($C4>0,VLOOKUP($A4,Configurador!$A$130:$T$138,G$3,FALSE),"") ->  | H4: =IF($C4>0,VLOOKUP($A4,Configurador!$A$130:$T$138,H$3,FALSE),"") ->  | I4: =IF($C4>0,VLOOKUP($A4,Configurador!$A$130:$T$138,I$3,FALSE),"") ->  | J4: =IF($C4>0,VLOOKUP($A4,Configurador!$A$130:$T$138,J$3,FALSE),"") -> 
A5: 2 | B5: =IF(AND(Configurador!D131<>"",Configurador!P131>0),1,0) -> 0 | C5: =IF(AND(B5=1,MAX($C$4:C4)<=($B$13-1)),MAX($C$4:C4)+1,0) -> 0 | D5: =IF($C5>0,VLOOKUP($A5,Configurador!$A$130:$T$138,D$3,FALSE),"") ->  | E5: =IF($C5>0,VLOOKUP($A5,Configurador!$A$130:$T$138,E$3,FALSE),"") ->  | F5: =IF($C5>0,VLOOKUP($A5,Configurador!$A$130:$T$138,F$3,FALSE),"") ->  | G5: =IF($C5>0,VLOOKUP($A5,Configurador!$A$130:$T$138,G$3,FALSE),"") ->  | H5: =IF($C5>0,VLOOKUP($A5,Configurador!$A$130:$T$138,H$3,FALSE),"") ->  | I5: =IF($C5>0,VLOOKUP($A5,Configurador!$A$130:$T$138,I$3,FALSE),"") ->  | J5: =IF($C5>0,VLOOKUP($A5,Configurador!$A$130:$T$138,J$3,FALSE),"") -> 
A6: 3 | B6: =IF(AND(Configurador!D132<>"",Configurador!P132>0),1,0) -> 0 | C6: =IF(AND(B6=1,MAX($C$4:C5)<=($B$13-1)),MAX($C$4:C5)+1,0) -> 0 | D6: =IF($C6>0,VLOOKUP($A6,Configurador!$A$130:$T$138,D$3,FALSE),"") ->  | E6: =IF($C6>0,VLOOKUP($A6,Configurador!$A$130:$T$138,E$3,FALSE),"") ->  | F6: =IF($C6>0,VLOOKUP($A6,Configurador!$A$130:$T$138,F$3,FALSE),"") ->  | G6: =IF($C6>0,VLOOKUP($A6,Configurador!$A$130:$T$138,G$3,FALSE),"") ->  | H6: =IF($C6>0,VLOOKUP($A6,Configurador!$A$130:$T$138,H$3,FALSE),"") ->  | I6: =IF($C6>0,VLOOKUP($A6,Configurador!$A$130:$T$138,I$3,FALSE),"") ->  | J6: =IF($C6>0,VLOOKUP($A6,Configurador!$A$130:$T$138,J$3,FALSE),"") -> 
A7: 4 | B7: =IF(AND(Configurador!D133<>"",Configurador!P133>0),1,0) -> 0 | C7: =IF(AND(B7=1,MAX($C$4:C6)<=($B$13-1)),MAX($C$4:C6)+1,0) -> 0 | D7: =IF($C7>0,VLOOKUP($A7,Configurador!$A$130:$T$138,D$3,FALSE),"") ->  | E7: =IF($C7>0,VLOOKUP($A7,Configurador!$A$130:$T$138,E$3,FALSE),"") ->  | F7: =IF($C7>0,VLOOKUP($A7,Configurador!$A$130:$T$138,F$3,FALSE),"") ->  | G7: =IF($C7>0,VLOOKUP($A7,Configurador!$A$130:$T$138,G$3,FALSE),"") ->  | H7: =IF($C7>0,VLOOKUP($A7,Configurador!$A$130:$T$138,H$3,FALSE),"") ->  | I7: =IF($C7>0,VLOOKUP($A7,Configurador!$A$130:$T$138,I$3,FALSE),"") ->  | J7: =IF($C7>0,VLOOKUP($A7,Configurador!$A$130:$T$138,J$3,FALSE),"") -> 
A8: 5 | B8: =IF(AND(Configurador!D134<>"",Configurador!P134>0),1,0) -> 0 | C8: =IF(AND(B8=1,MAX($C$4:C7)<=($B$13-1)),MAX($C$4:C7)+1,0) -> 0 | D8: =IF($C8>0,VLOOKUP($A8,Configurador!$A$130:$T$138,D$3,FALSE),"") ->  | E8: =IF($C8>0,VLOOKUP($A8,Configurador!$A$130:$T$138,E$3,FALSE),"") ->  | F8: =IF($C8>0,VLOOKUP($A8,Configurador!$A$130:$T$138,F$3,FALSE),"") ->  | G8: =IF($C8>0,VLOOKUP($A8,Configurador!$A$130:$T$138,G$3,FALSE),"") ->  | H8: =IF($C8>0,VLOOKUP($A8,Configurador!$A$130:$T$138,H$3,FALSE),"") ->  | I8: =IF($C8>0,VLOOKUP($A8,Configurador!$A$130:$T$138,I$3,FALSE),"") ->  | J8: =IF($C8>0,VLOOKUP($A8,Configurador!$A$130:$T$138,J$3,FALSE),"") -> 
A9: 6 | B9: =IF(AND(Configurador!D135<>"",Configurador!P135>0),1,0) -> 0 | C9: =IF(AND(B9=1,MAX($C$4:C8)<=($B$13-1)),MAX($C$4:C8)+1,0) -> 0 | D9: =IF($C9>0,VLOOKUP($A9,Configurador!$A$130:$T$138,D$3,FALSE),"") ->  | E9: =IF($C9>0,VLOOKUP($A9,Configurador!$A$130:$T$138,E$3,FALSE),"") ->  | F9: =IF($C9>0,VLOOKUP($A9,Configurador!$A$130:$T$138,F$3,FALSE),"") ->  | G9: =IF($C9>0,VLOOKUP($A9,Configurador!$A$130:$T$138,G$3,FALSE),"") ->  | H9: =IF($C9>0,VLOOKUP($A9,Configurador!$A$130:$T$138,H$3,FALSE),"") ->  | I9: =IF($C9>0,VLOOKUP($A9,Configurador!$A$130:$T$138,I$3,FALSE),"") ->  | J9: =IF($C9>0,VLOOKUP($A9,Configurador!$A$130:$T$138,J$3,FALSE),"") -> 
A10: 7 | B10: =IF(AND(Configurador!D136<>"",Configurador!P136>0),1,0) -> 0 | C10: =IF(AND(B10=1,MAX($C$4:C9)<=($B$13-1)),MAX($C$4:C9)+1,0) -> 0 | D10: =IF($C10>0,VLOOKUP($A10,Configurador!$A$130:$T$138,D$3,FALSE),"") ->  | E10: =IF($C10>0,VLOOKUP($A10,Configurador!$A$130:$T$138,E$3,FALSE),"") ->  | F10: =IF($C10>0,VLOOKUP($A10,Configurador!$A$130:$T$138,F$3,FALSE),"") ->  | G10: =IF($C10>0,VLOOKUP($A10,Configurador!$A$130:$T$138,G$3,FALSE),"") ->  | H10: =IF($C10>0,VLOOKUP($A10,Configurador!$A$130:$T$138,H$3,FALSE),"") ->  | I10: =IF($C10>0,VLOOKUP($A10,Configurador!$A$130:$T$138,I$3,FALSE),"") ->  | J10: =IF($C10>0,VLOOKUP($A10,Configurador!$A$130:$T$138,J$3,FALSE),"") -> 
A11: 8 | B11: =IF(AND(Configurador!D137<>"",Configurador!P137>0),1,0) -> 0 | C11: =IF(AND(B11=1,MAX($C$4:C10)<=($B$13-1)),MAX($C$4:C10)+1,0) -> 0 | D11: =IF($C11>0,VLOOKUP($A11,Configurador!$A$130:$T$138,D$3,FALSE),"") ->  | E11: =IF($C11>0,VLOOKUP($A11,Configurador!$A$130:$T$138,E$3,FALSE),"") ->  | F11: =IF($C11>0,VLOOKUP($A11,Configurador!$A$130:$T$138,F$3,FALSE),"") ->  | G11: =IF($C11>0,VLOOKUP($A11,Configurador!$A$130:$T$138,G$3,FALSE),"") ->  | H11: =IF($C11>0,VLOOKUP($A11,Configurador!$A$130:$T$138,H$3,FALSE),"") ->  | I11: =IF($C11>0,VLOOKUP($A11,Configurador!$A$130:$T$138,I$3,FALSE),"") ->  | J11: =IF($C11>0,VLOOKUP($A11,Configurador!$A$130:$T$138,J$3,FALSE),"") -> 
A12: 9 | B12: =IF(AND(Configurador!D138<>"",Configurador!P138>0),1,0) -> 0 | C12: =IF(AND(B12=1,MAX($C$4:C11)<=($B$13-1)),MAX($C$4:C11)+1,0) -> 0 | D12: =IF($C12>0,VLOOKUP($A12,Configurador!$A$130:$T$138,D$3,FALSE),"") ->  | E12: =IF($C12>0,VLOOKUP($A12,Configurador!$A$130:$T$138,E$3,FALSE),"") ->  | F12: =IF($C12>0,VLOOKUP($A12,Configurador!$A$130:$T$138,F$3,FALSE),"") ->  | G12: =IF($C12>0,VLOOKUP($A12,Configurador!$A$130:$T$138,G$3,FALSE),"") ->  | H12: =IF($C12>0,VLOOKUP($A12,Configurador!$A$130:$T$138,H$3,FALSE),"") ->  | I12: =IF($C12>0,VLOOKUP($A12,Configurador!$A$130:$T$138,I$3,FALSE),"") ->  | J12: =IF($C12>0,VLOOKUP($A12,Configurador!$A$130:$T$138,J$3,FALSE),"") -> 
A13: Total | B13: =SUM(B4:B12) -> 0
A15: Gestionados
D16: 2 | E16: 4 | F16: 14 | G16: 16 | H16: 17 | I16: 18 | J16: 19 | K16: 20
A17: 1 | B17: =IF(AND(Configurador!D142<>"",Configurador!P142>0),1,0) -> 0 | C17: =IF(B17=1,1,0) -> 0 | D17: =IF($C17>0,VLOOKUP($A17,Configurador!$A$142:$T$151,D$16,FALSE),"") ->  | E17: =IF($C17>0,VLOOKUP($A17,Configurador!$A$142:$T$151,E$16,FALSE),"") ->  | F17: =IF($C17>0,VLOOKUP($A17,Configurador!$A$142:$T$151,F$16,FALSE),"") ->  | G17: =IF($C17>0,VLOOKUP($A17,Configurador!$A$142:$T$151,G$16,FALSE),"") ->  | H17: =IF($C17>0,VLOOKUP($A17,Configurador!$A$142:$T$151,H$16,FALSE),"") ->  | I17: =IF($C17>0,VLOOKUP($A17,Configurador!$A$142:$T$151,I$16,FALSE),"") ->  | J17: =IF($C17>0,VLOOKUP($A17,Configurador!$A$142:$T$151,J$16,FALSE),"") ->  | K17: =IF($C17>0,VLOOKUP($A17,Configurador!$A$142:$T$151,K$16,FALSE),"") -> 
A18: 2 | B18: =IF(AND(Configurador!D143<>"",Configurador!P143>0),1,0) -> 0 | C18: =IF(AND(B18=1,MAX($C$17:C17)<=($B$27-1)),MAX($C$17:C17)+1,0) -> 0 | D18: =IF($C18>0,VLOOKUP($A18,Configurador!$A$142:$T$151,D$16,FALSE),"") ->  | E18: =IF($C18>0,VLOOKUP($A18,Configurador!$A$142:$T$151,E$16,FALSE),"") ->  | F18: =IF($C18>0,VLOOKUP($A18,Configurador!$A$142:$T$151,F$16,FALSE),"") ->  | G18: =IF($C18>0,VLOOKUP($A18,Configurador!$A$142:$T$151,G$16,FALSE),"") ->  | H18: =IF($C18>0,VLOOKUP($A18,Configurador!$A$142:$T$151,H$16,FALSE),"") ->  | I18: =IF($C18>0,VLOOKUP($A18,Configurador!$A$142:$T$151,I$16,FALSE),"") ->  | J18: =IF($C18>0,VLOOKUP($A18,Configurador!$A$142:$T$151,J$16,FALSE),"") ->  | K18: =IF($C18>0,VLOOKUP($A18,Configurador!$A$142:$T$151,K$16,FALSE),"") -> 
A19: 3 | B19: =IF(AND(Configurador!D144<>"",Configurador!P144>0),1,0) -> 0 | C19: =IF(AND(B19=1,MAX($C$17:C18)<=($B$27-1)),MAX($C$17:C18)+1,0) -> 0 | D19: =IF($C19>0,VLOOKUP($A19,Configurador!$A$142:$T$151,D$16,FALSE),"") ->  | E19: =IF($C19>0,VLOOKUP($A19,Configurador!$A$142:$T$151,E$16,FALSE),"") ->  | F19: =IF($C19>0,VLOOKUP($A19,Configurador!$A$142:$T$151,F$16,FALSE),"") ->  | G19: =IF($C19>0,VLOOKUP($A19,Configurador!$A$142:$T$151,G$16,FALSE),"") ->  | H19: =IF($C19>0,VLOOKUP($A19,Configurador!$A$142:$T$151,H$16,FALSE),"") ->  | I19: =IF($C19>0,VLOOKUP($A19,Configurador!$A$142:$T$151,I$16,FALSE),"") ->  | J19: =IF($C19>0,VLOOKUP($A19,Configurador!$A$142:$T$151,J$16,FALSE),"") ->  | K19: =IF($C19>0,VLOOKUP($A19,Configurador!$A$142:$T$151,K$16,FALSE),"") -> 
A20: 4 | B20: =IF(AND(Configurador!D145<>"",Configurador!P145>0),1,0) -> 0 | C20: =IF(AND(B20=1,MAX($C$17:C19)<=($B$27-1)),MAX($C$17:C19)+1,0) -> 0 | D20: =IF($C20>0,VLOOKUP($A20,Configurador!$A$142:$T$151,D$16,FALSE),"") ->  | E20: =IF($C20>0,VLOOKUP($A20,Configurador!$A$142:$T$151,E$16,FALSE),"") ->  | F20: =IF($C20>0,VLOOKUP($A20,Configurador!$A$142:$T$151,F$16,FALSE),"") ->  | G20: =IF($C20>0,VLOOKUP($A20,Configurador!$A$142:$T$151,G$16,FALSE),"") ->  | H20: =IF($C20>0,VLOOKUP($A20,Configurador!$A$142:$T$151,H$16,FALSE),"") ->  | I20: =IF($C20>0,VLOOKUP($A20,Configurador!$A$142:$T$151,I$16,FALSE),"") ->  | J20: =IF($C20>0,VLOOKUP($A20,Configurador!$A$142:$T$151,J$16,FALSE),"") ->  | K20: =IF($C20>0,VLOOKUP($A20,Configurador!$A$142:$T$151,K$16,FALSE),"") -> 
A21: 5 | B21: =IF(AND(Configurador!D146<>"",Configurador!P146>0),1,0) -> 0 | C21: =IF(AND(B21=1,MAX($C$17:C20)<=($B$27-1)),MAX($C$17:C20)+1,0) -> 0 | D21: =IF($C21>0,VLOOKUP($A21,Configurador!$A$142:$T$151,D$16,FALSE),"") ->  | E21: =IF($C21>0,VLOOKUP($A21,Configurador!$A$142:$T$151,E$16,FALSE),"") ->  | F21: =IF($C21>0,VLOOKUP($A21,Configurador!$A$142:$T$151,F$16,FALSE),"") ->  | G21: =IF($C21>0,VLOOKUP($A21,Configurador!$A$142:$T$151,G$16,FALSE),"") ->  | H21: =IF($C21>0,VLOOKUP($A21,Configurador!$A$142:$T$151,H$16,FALSE),"") ->  | I21: =IF($C21>0,VLOOKUP($A21,Configurador!$A$142:$T$151,I$16,FALSE),"") ->  | J21: =IF($C21>0,VLOOKUP($A21,Configurador!$A$142:$T$151,J$16,FALSE),"") ->  | K21: =IF($C21>0,VLOOKUP($A21,Configurador!$A$142:$T$151,K$16,FALSE),"") -> 
A22: 6 | B22: =IF(AND(Configurador!D147<>"",Configurador!P147>0),1,0) -> 0 | C22: =IF(AND(B22=1,MAX($C$17:C21)<=($B$27-1)),MAX($C$17:C21)+1,0) -> 0 | D22: =IF($C22>0,VLOOKUP($A22,Configurador!$A$142:$T$151,D$16,FALSE),"") ->  | E22: =IF($C22>0,VLOOKUP($A22,Configurador!$A$142:$T$151,E$16,FALSE),"") ->  | F22: =IF($C22>0,VLOOKUP($A22,Configurador!$A$142:$T$151,F$16,FALSE),"") ->  | G22: =IF($C22>0,VLOOKUP($A22,Configurador!$A$142:$T$151,G$16,FALSE),"") ->  | H22: =IF($C22>0,VLOOKUP($A22,Configurador!$A$142:$T$151,H$16,FALSE),"") ->  | I22: =IF($C22>0,VLOOKUP($A22,Configurador!$A$142:$T$151,I$16,FALSE),"") ->  | J22: =IF($C22>0,VLOOKUP($A22,Configurador!$A$142:$T$151,J$16,FALSE),"") ->  | K22: =IF($C22>0,VLOOKUP($A22,Configurador!$A$142:$T$151,K$16,FALSE),"") -> 
A23: 7 | B23: =IF(AND(Configurador!D148<>"",Configurador!P148>0),1,0) -> 0 | C23: =IF(AND(B23=1,MAX($C$17:C22)<=($B$27-1)),MAX($C$17:C22)+1,0) -> 0 | D23: =IF($C23>0,VLOOKUP($A23,Configurador!$A$142:$T$151,D$16,FALSE),"") ->  | E23: =IF($C23>0,VLOOKUP($A23,Configurador!$A$142:$T$151,E$16,FALSE),"") ->  | F23: =IF($C23>0,VLOOKUP($A23,Configurador!$A$142:$T$151,F$16,FALSE),"") ->  | G23: =IF($C23>0,VLOOKUP($A23,Configurador!$A$142:$T$151,G$16,FALSE),"") ->  | H23: =IF($C23>0,VLOOKUP($A23,Configurador!$A$142:$T$151,H$16,FALSE),"") ->  | I23: =IF($C23>0,VLOOKUP($A23,Configurador!$A$142:$T$151,I$16,FALSE),"") ->  | J23: =IF($C23>0,VLOOKUP($A23,Configurador!$A$142:$T$151,J$16,FALSE),"") ->  | K23: =IF($C23>0,VLOOKUP($A23,Configurador!$A$142:$T$151,K$16,FALSE),"") -> 
A24: 8 | B24: =IF(AND(Configurador!D149<>"",Configurador!P149>0),1,0) -> 0 | C24: =IF(AND(B24=1,MAX($C$17:C23)<=($B$27-1)),MAX($C$17:C23)+1,0) -> 0 | D24: =IF($C24>0,VLOOKUP($A24,Configurador!$A$142:$T$151,D$16,FALSE),"") ->  | E24: =IF($C24>0,VLOOKUP($A24,Configurador!$A$142:$T$151,E$16,FALSE),"") ->  | F24: =IF($C24>0,VLOOKUP($A24,Configurador!$A$142:$T$151,F$16,FALSE),"") ->  | G24: =IF($C24>0,VLOOKUP($A24,Configurador!$A$142:$T$151,G$16,FALSE),"") ->  | H24: =IF($C24>0,VLOOKUP($A24,Configurador!$A$142:$T$151,H$16,FALSE),"") ->  | I24: =IF($C24>0,VLOOKUP($A24,Configurador!$A$142:$T$151,I$16,FALSE),"") ->  | J24: =IF($C24>0,VLOOKUP($A24,Configurador!$A$142:$T$151,J$16,FALSE),"") ->  | K24: =IF($C24>0,VLOOKUP($A24,Configurador!$A$142:$T$151,K$16,FALSE),"") -> 
A25: 9 | B25: =IF(AND(Configurador!D150<>"",Configurador!P150>0),1,0) -> 0 | C25: =IF(AND(B25=1,MAX($C$17:C24)<=($B$27-1)),MAX($C$17:C24)+1,0) -> 0 | D25: =IF($C25>0,VLOOKUP($A25,Configurador!$A$142:$T$151,D$16,FALSE),"") ->  | E25: =IF($C25>0,VLOOKUP($A25,Configurador!$A$142:$T$151,E$16,FALSE),"") ->  | F25: =IF($C25>0,VLOOKUP($A25,Configurador!$A$142:$T$151,F$16,FALSE),"") ->  | G25: =IF($C25>0,VLOOKUP($A25,Configurador!$A$142:$T$151,G$16,FALSE),"") ->  | H25: =IF($C25>0,VLOOKUP($A25,Configurador!$A$142:$T$151,H$16,FALSE),"") ->  | I25: =IF($C25>0,VLOOKUP($A25,Configurador!$A$142:$T$151,I$16,FALSE),"") ->  | J25: =IF($C25>0,VLOOKUP($A25,Configurador!$A$142:$T$151,J$16,FALSE),"") ->  | K25: =IF($C25>0,VLOOKUP($A25,Configurador!$A$142:$T$151,K$16,FALSE),"") -> 
A26: 10 | B26: =IF(AND(Configurador!D151<>"",Configurador!P151>0),1,0) -> 0 | C26: =IF(AND(B26=1,MAX($C$17:C25)<=($B$27-1)),MAX($C$17:C25)+1,0) -> 0 | D26: =IF($C26>0,VLOOKUP($A26,Configurador!$A$142:$T$151,D$16,FALSE),"") ->  | E26: =IF($C26>0,VLOOKUP($A26,Configurador!$A$142:$T$151,E$16,FALSE),"") ->  | F26: =IF($C26>0,VLOOKUP($A26,Configurador!$A$142:$T$151,F$16,FALSE),"") ->  | G26: =IF($C26>0,VLOOKUP($A26,Configurador!$A$142:$T$151,G$16,FALSE),"") ->  | H26: =IF($C26>0,VLOOKUP($A26,Configurador!$A$142:$T$151,H$16,FALSE),"") ->  | I26: =IF($C26>0,VLOOKUP($A26,Configurador!$A$142:$T$151,I$16,FALSE),"") ->  | J26: =IF($C26>0,VLOOKUP($A26,Configurador!$A$142:$T$151,J$16,FALSE),"") ->  | K26: =IF($C26>0,VLOOKUP($A26,Configurador!$A$142:$T$151,K$16,FALSE),"") -> 
A27: Total | B27: =SUM(B17:B26) -> 0

Sheet LN_OEM
C1: NO | D1: 1 | E1: 2 | F1: 3 | G1: 4 | H1: 5 | I1: 6 | J1: 7 | K1: 8 | L1: 9 | M1: 10 | N1: 11 | O1: 12
C2: No Aplica | I2: PVPR
F3: PRECIOS DE MAYORISTA | I3: 0.05 | J3: 0.05 | K3: 0.05
B4: FABRICANTES | C4: TIPOS_USUARIO | D4: ACER_Oficina | E4: SKU | F4: PAGO ÚNICO | G4: RENTING | H4: LEASING | I4: PAGO ÚNICO | J4: RENTING | K4: LEASING | L4: NECESIDAD | M4: TIPO | N4: ESPECIFICACIONES | O4: DESCRIPCIÓN
B5: ACER | C5: Oficina | D5: TRAVELMATE P2410 G2 | E5: NX.VGTEB.002 | F5: 560 | G5: 15.38 | H5: 17.56 | I5: =F5*(1+I$3) -> 588 | J5: 16.149 | K5: 18.438 | L5: Oficina | M5: Notebook | N5: Core i5-8250U, 8GB, 256 SSD, Intel Graphics, 14" FHD, Windows 10 Pro | O5: Diseñado para trabajadores activos, aporta productividad, movilidad y conectividad para satisfacer las demandas de tu negocio. | P5: =CONCATENATE(M5,": ",D5) -> Notebook: TRAVELMATE P2410 G2
B6: DELL | C6: Movilidad | D6: TRAVELMATE P238 G2 | E6: NX.VG7EB 014 | F6: 599 | G6: 16.45 | H6: 18.78 | I6: 628.95 | J6: 17.2725 | K6: 19.719 | L6: Oficina | M6: Notebook | N6: Core i5-7200U, 8GB, 256GB SSD, Intel Graphics, 13" FHD, Windows 10 Pro | O6: Diseñado para trabajadores activos, aporta productividad, movilidad y conectividad para satisfacer las demandas de tu negocio. | P6: =CONCATENATE(M6,": ",D6) -> Notebook: TRAVELMATE P238 G2
B7: HP | P7: b
B8: LENOVO | D8: DELL_Oficina
D9: DELL VOSTRO 3578 | E9: TC847 | F9: 727 | G9: 19.79 | H9: 22.79 | I9: =F9*(1+I$3) -> 763.35 | J9: 20.7795 | K9: 23.9295 | L9: Oficina | M9: Notebook | N9: Core i5-8250U, 8GB, 256GB SSD, 15.6" FHD, Windows 10 Pro | O9: Ordenador portátil ideal para profesionales que confían en características de seguridad esenciales. Rendimiento de confianza : procesadores Intel potentes, más memória y achivos a su alcance sin problemas. | P9: =CONCATENATE(M9,": ",D9) -> Notebook: DELL VOSTRO 3578
D10: DELL VOSTRO 5568 | E10: JMCY8 | F10: 763 | G10: 20.77 | H10: 23.92 | I10: 801.15 | J10: 21.8085 | K10: 25.116 | L10: Oficina | M10: Notebook | N10: Core i5-7200U, 8GB, 256GB SSD, 15.6" FHD, Windows 10 Pro | O10: Compacto, ligero y preparado para ofrecer el nivel de productividad general que se precisa en las pequeñas empresas. Rendimiento, comodidad y opciones de seguridad. | P10: =CONCATENATE(M10,": ",D10) -> Notebook: DELL VOSTRO 5568
D12: HP_Oficina
D13: HP EliteOne 800 G4 | E13: 4KX03EA | F13: 1159 | G13: 31.83 | H13: 36.34 | I13: =F13*(1+I$3) -> 1216.95 | J13: 33.4215 | K13: 38.157 | L13: Oficina | M13: AiO | N13: Intel Core i5-8500, 32GB, 256GB SSD, 23.8" touch screen, Windows 10 Pro | O13: Modernice cualquier espacio de trabajo con un PC AiO que causa una muy buena primera impresión. El HPE EliteOne AiO ofrece un serio rendimiento, colaboración atractiva, seguridad de diversos aspectos y una capacidad de gestión útil en un diseño de bisel de microborde en una increíble y elegante pantalla de 23,8" en diagonal. | P13: =CONCATENATE(M13,": ",D13) -> AiO: HP EliteOne 800 G4
D14: HP Z4 G4 TWR | E14: 4RX31EA | F14: 2999 | G14: 82.37 | H14: 94.03 | I14: 3148.95 | J14: 86.4885 | K14: 98.7315 | L14: Oficina | M14: Dsk / Workstation | N14: Intel Xeon W2125, 32GB, 512Gb SSD, Windows 10 Pro | O14: La estación de trabajo más popular de HP ofrece un rendimiento revolucionario para un amplio espectro de aplicaciones, perfecta para ingeniería y visualización. | P14: =CONCATENATE(M14,": ",D14) -> Dsk / Workstation: HP Z4 G4 TWR
D15: HP_Movilidad
D16: HP EliteBook X360 G3 | E16: 4QY58EA | F16: 1999 | G16: 54.91 | H16: 62.68 | I16: =F16*(1+I$3) -> 2098.95 | J16: =G16*(1+J$3) -> 57.6555 | K16: =H16*(1+K$3) -> 65.814 | L16: Movilidad | M16: Convertible | N16: Intel core i7, 16GB, 256GB SSD, 13" touch screen | O16: Cree y presente su visión del éxito en el HP EliteBook x360 con cuatro modos de uso para realizar el trabajo, compartir contenido y disfrutar en el tiempo libre. | P16: =CONCATENATE(M16,": ",D16) -> Convertible: HP EliteBook X360 G3
D18: LENOVO_Oficina
D19: LENOVO V520S | E19: 10NM0020SP | F19: 366 | G19: 10.05 | H19: 11.48 | I19: =F19*(1+I$3) -> 384.3 | J19: 10.5525 | K19: 12.054 | L19: Oficina | M19: Desktop | N19: Pentium G4560, 4GB, 500GB HDD, Intel Graphic, Windows 10 Pro | O19: El V520s en formato pequeño aporta gran valor a tu empresa. Con su procesamiento potente, su memoria de alta velocidad y su tecnología de almacenamiento ultrarrápida, y además, soluciones de seguridad mejoradas, para que te puedas central en aquello que de verdad importa. | P19: =CONCATENATE(M19,": ",D19) -> Desktop: LENOVO V520S
D20: LENOVO V520 Tower | E20: 10NK0021SP | F20: 410 | G20: 11.26 | H20: 12.86 | I20: 430.5 | J20: 11.823 | K20: 13.503 | L20: Oficina | M20: Desktop | N20: Core i3-7100, 4GB, 500GB HDD, Intel Graphics, Windows 10 Pro | O20: El sistema de sobremesa de torre V520 aporta gran valor a tu empresa. Con su procesamiento potente, su memoria de alta velocidad y su tecnología de almacenamiento ultrarrápida, y además, soluciones de seguridad mejoradas, para que te puedas central en aquello que de verdad importa. | P20: =CONCATENATE(M20,": ",D20) -> Desktop: LENOVO V520 Tower
D21: LENOVO E480 | E21: 20KN0078SP | F21: 532 | G21: 14.61 | H21: 16.68 | I21: 558.6 | J21: 15.3405 | K21: 17.514 | L21: Oficina | M21: Notebook | N21: Core i3-8130U, 4GB, 1TB HDD, Intel Graphics, Windows 10 Pro | O21: Maximiza la productividad con el portátil ThinkPad E480. La combinación de una gran potencia, durabilidad ThinkPad, numerosas funciones de seguridad, diseño elegante y conectividad estandarizada da a tu negocio lo que necesita para progresar. | P21: =CONCATENATE(M21,": ",D21) -> Notebook: LENOVO E480
D22: LENOVO THINKSTATION P320 TOWER | E22: 30BH0003SP | F22: 888 | G22: 24.39 | H22: 27.84 | I22: 932.4 | J22: 25.6095 | K22: 29.232 | L22: Oficina | M22: Dsk / Workstation | N22: Core i7-7700, 8GB, 1TB HDD, Intel Graphics, Windows 10 Pro | O22: Rendimiento de una workstation, al precio de un ordenador de sobremesa. La workstation ThinkStation P320 de torre dispone de todas las funciones de productividad clave que necesitas. | P22: =CONCATENATE(M22,": ",D22) -> Dsk / Workstation: LENOVO THINKSTATION P320 TOWER
D23: LENOVO_Movilidad
D24: LENOVO L380 YOGA | E24: 20M7001BSP | F24: 888 | G24: 24.39 | H24: 27.84 | I24: =F24*(1+I$3) -> 932.4 | J24: 25.6095 | K24: 29.232 | L24: Movilidad | M24: Convertible | N24: Intel core i5-8250U, 8GB, 256GB SSD, 13,3" touch screen, Windows 10 Pro | O24: Tiene la versatilidad, la potencia y la movilidad necesarias para mantener el ritmo y facilitarte el trabajo. Es ultraportátil, incorpora el procesador y la tarjeta gráfica más novedosos y puedes utilizarlo en cuatro modos diferentes: portátil, tablet, modo tienda o modo atril. | P24: =CONCATENATE(M24,": ",D24) -> Convertible: LENOVO L380 YOGA
D25: LENOVO L380 NO YOGA | E25: 20M5003FSP | F25: 554 | G25: 15.22 | H25: 17.37 | I25: 581.7 | J25: 15.981 | K25: 18.2385 | L25: Movilidad | M25: Notebook | N25: Intel core i3-8130U, 4GB, 128GB SSD, Windows 10 Pro, Intel Graphics, 13,3" | O25: Tiene la versatilidad, la potencia y la movilidad necesarias para mantener el ritmo y facilitarte el trabajo. Es ultraportátil, con el procesador y la tarjeta gráfica más novedosos, una memoria y una capacidad de almacenamiento excelente, y unas funciones de seguridad sólidas. | P25: =CONCATENATE(M25,": ",D25) -> Notebook: LENOVO L380 NO YOGA
D26: LENOVO X1 CARBON (6th Gen) | E26: 20KH006DSP | F26: 1554 | G26: 42.68 | H26: 48.72 | I26: 1631.7 | J26: 44.814 | K26: 51.156 | L26: Movilidad | M26: Notebook | N26: Intel Core i5-8250U, 8GB, 256GB SSD, 14" Intel Graphics, Windows 10 Pro | O26: Ultraligero. Ultrapotente. Combina su elegante diseño con una capacidad de respuesta perfecta y su resistencia legendaria para ofrecer lo último en productividad móvil. | P26: =CONCATENATE(M26,": ",D26) -> Notebook: LENOVO X1 CARBON (6th Gen)
B28: MONITORES PARA DESKTOP
C30: Dell | D30: =N30 -> Dell E-Series E2216H (21,5", Negro) | E30: 210-AFPP | F30: 91.25 | I30: =F30*(1+I$3) -> 95.8125 | M30: Monitor | N30: Dell E-Series E2216H (21,5", Negro) | O30: Un monitor de 22" confiable y accesible, con excelente calidad de la pantalla en múltiples ángulos con compatibilidad con montaje VESA y opciones de inclinación, así como también VGA y DisplayPorts.
C31: Dell | D31: =N31 -> Dell Professional P2419H (23.8", Negro) | E31: DELL-P2419H | F31: 149.74 | I31: =F31*(1+I$3) -> 157.227 | M31: Monitor | N31: Dell Professional P2419H (23.8", Negro) | O31: Optimice su espacio de trabajo con este eficiente monitor de 23,8" diseñado con una carcasa ultracompacta y características que previenen la vista cansada. Dé un impulso a su productividad.
C32: HP | D32: =N32 -> HP LED V214a (20,7") | E32: 1FR84AA | F32: 88.14 | I32: =F32*(1+I$3) -> 92.547 | M32: Monitor | N32: HP LED V214a (20,7") | O32: Disfrute de unas impresionantes características de presentación Full HD con audio integrado en el monitor V214a de 52,57 cm (20,7 pulgadas). Su práctica conectividad, adaptabilidad y asequibilidad son ideales para entornos de oficina.

Sheet LN_Server
A1: Productos | B1: Tipo de Licencia | C1: Duración de contrato | E1: PVP | G1: SQL_SERVER | H1: WS_SERVER | I1: LICENCIA_SQL | J1: LICENCIA_WS | K1: LICENCIA_WS_STD | Q1: LIC_SERVER
A2: SQL Server 2017 Enterprise Core | B2: 2 Core License Pack (100 usuarios) | C2: 3 años | D2: =CONCATENATE(A2,B2,C2) -> SQL Server 2017 Enterprise Core2 Core License Pack (100 usuarios)3 años | E2: 17452 | G2: SQL Server 2017 Enterprise Core | H2: Servidor Windows | I2: 2 Core License Pack (100 usuarios) | J2: Usuario | K2: 8 Core License Pack | Q2: 2
A3: SQL Server 2017 Enterprise Core | B3: 2 Core License Pack (100 usuarios) | C3: 1 año | D3: =CONCATENATE(A3,B3,C3) -> SQL Server 2017 Enterprise Core2 Core License Pack (100 usuarios)1 año | E3: 6398 | G3: SQL Server Standard Core (mínimo 4 cores) | H3: Servidor Windows con escritorio remoto | I3: 2 Core License Pack (hasta 100 usuarios) | J3: Dispositivo | Q3: =Q2+1 -> 3
A4: SQL Server 2017 Standard Core | B4: 2 Core License Pack (hasta 100 usuarios) | C4: 1 año | D4: SQL Server 2017 Standard Core2 Core License Pack (hasta 100 usuarios)1 año | E4: 1669 | H4: Servidor Windows con gestión de derechos | Q4: =Q3+1 -> 4
A5: SQL Server 2017 Standard Core | B5: 2 Core License Pack (hasta 100 usuarios) | C5: 3 años | D5: SQL Server 2017 Standard Core2 Core License Pack (hasta 100 usuarios)3 años | E5: 4554 | H5: Servidor Windows Standard | Q5: 5
A6: Servidor Windows | B6: Usuario | C6: 3 años | D6: Servidor WindowsUsuario3 años | E6: 38 | F6: WS CAL | Q6: 6
A7: Servidor Windows | B7: Dispositivo | C7: 3 años | D7: Servidor WindowsDispositivo3 años | E7: 32 | Q7: 7
A8: Servidor Windows | B8: Usuario | C8: 1 año | D8: Servidor WindowsUsuario1 año | E8: 12 | F8: WS CAL | Q8: 8
A9: Servidor Windows | B9: Dispositivo | C9: 1 año | D9: Servidor WindowsDispositivo1 año | E9: 10 | Q9: 9
A10: Servidor Windows con escritorio remoto | B10: Usuario | C10: 1 año | D10: Servidor Windows con escritorio remotoUsuario1 año | E10: 64 | Q10: 10
A11: Servidor Windows con escritorio remoto | B11: Usuario | C11: 3 años | D11: Servidor Windows con escritorio remotoUsuario3 años | E11: 163 | Q11: 11
A12: Servidor Windows con gestión de derechos | B12: Dispositivo | C12: 1 año | D12: Servidor Windows con gestión de derechosDispositivo1 año | E12: 18 | Q12: 12
A13: Servidor Windows con gestión de derechos | B13: Usuario | C13: 3 años | D13: Servidor Windows con gestión de derechosUsuario3 años | E13: 163 | F13: RDS CAL | Q13: 13
A14: Servidor Windows con gestión de derechos | B14: Usuario | C14: 1 año | D14: Servidor Windows con gestión de derechosUsuario1 año | E14: 64 | F14: RDS CAL | Q14: 14
A15: Servidor Windows con gestión de derechos | B15: Dispositivo | C15: 3 años | D15: Servidor Windows con gestión de derechosDispositivo3 años | E15: 54 | Q15: 15
A16: Servidor Windows Standard | B16: 8 Core License Pack | C16: 1 año | D16: Servidor Windows Standard8 Core License Pack1 año | E16: 311 | Q16: 16
A17: Servidor Windows Standard | B17: 8 Core License Pack | C17: 3 años | D17: Servidor Windows Standard8 Core License Pack3 años | E17: 623 | Q17: 17
Q18: 18
Q19: 19
Q20: 20
Q21: 21
Q22: 22
D23: Widndows SErver RMS Cal | F23: Publique sus aplicaciones o servicios en remoto a traves de RMS ( Remote management services) | Q23: 23
Q24: 24
Q25: 25
Q26: 26
Q27: 27
Q28: 28
Q29: 29
Q30: 30
Q31: 31
Q32: 32
Q33: 33
Q34: 34
Q35: 35
Q36: 36
Q37: 37
Q38: 38
Q39: 39
Q40: 40
Q41: 41
Q42: 42
Q43: 43
Q44: 44
Q45: 45
Q46: 46
Q47: 47
Q48: 48
Q49: 49
Q50: 50

Sheet Impresion
C1: ¿ha de salir? | D1: Número de orden | E1: Número de página en castellano | F1: A imprimir | I1: Castellano | J1: Inglés | K1: Catalán | L1: Euskera | M1: Galego | P1: Campos obligatorios en la portada | Q1: =Q12*S8*U9 -> 0 | W1: Ha metido servicios | X1: =IF(SUM(Configurador!J166:'Configurador'!Q166)=0,0,1) -> 0
B2: Portada | C2: 1 | D2: =C2 -> 1 | E2: =IF(D2=0,"",CONCATENATE("Página ",D2," de ",MAX($D$2:$D$26))) -> Página 1 de 7 | F2: =IF(Impresion!D2=0,"",IF(Configurador!$R$21="Castellano",Impresion!I2,IF(Configurador!$R$21="English",Impresion!J2,IF(Configurador!$R$21="Catalá",Impresion!K2,IF(Configurador!$R$21="Euskara",Impresion!L2,IF(Configurador!$R$21="Galego",Impresion!M2,"")))))) -> Portada_E | I2: Portada_E | J2: Portada_I | K2: Portada_C | L2: Portada_K | M2: Portada_G
A3: MWP | B3: M365 | C3: =IF(OR(Configurador!J30>0,AND(Configurador!J49>0,Configurador!J49=Configurador!J51),Configurador!J51=0),1,0) -> 1 | D3: =IF(C3=1,MAX(D2)+1,0) -> 2 | E3: =IF(D3=0,"",CONCATENATE("Página ",D3," de ",MAX($D$2:$D$26))) -> Página 2 de 7 | F3: =IF(Impresion!D3=0,"",IF(Configurador!$R$21="Castellano",Impresion!I3,IF(Configurador!$R$21="English",Impresion!J3,IF(Configurador!$R$21="Catalá",Impresion!K3,IF(Configurador!$R$21="Euskara",Impresion!L3,IF(Configurador!$R$21="Galego",Impresion!M3,"")))))) -> O365_Empresa_E | I3: O365_Empresa_E | J3: O365_Impresa_I | K3: O365_Cmpresa_C | L3: O365_Kmpresa_K | M3: O365_Gmpresa_G | P3: Cliente | R3: Partner | T3: Propuesta
B4: O365 Premium | C4: =IF(OR(Configurador!J31>0,Configurador!J46>0,Configurador!J47>0,Configurador!J48>0),1,0) -> 0 | D4: =IF(C4=1,MAX($D$2:D3)+1,0) -> 0 | F4: =IF(Impresion!D4=0,"",IF(Configurador!$R$21="Castellano",Impresion!I4,IF(Configurador!$R$21="English",Impresion!J4,IF(Configurador!$R$21="Catalá",Impresion!K4,IF(Configurador!$R$21="Euskara",Impresion!L4,IF(Configurador!$R$21="Galego",Impresion!M4,"")))))) ->  | I4: O365_Premium_E | J4: O365_Premium_I | K4: O365_Premium_C | L4: O365_Premium_K | M4: O365_Premium_G | P4: Nombre | Q4: =IF(Configurador!C7<>"",1,0) -> 0 | R4: Nombre | S4: =IF(Configurador!J7<>"",1,0) -> 0 | T4: Presentación | U4: =IF(Configurador!R7<>"",1,0) -> 0
B5: O365 Essentials | C5: =IF(Configurador!J35>0,1,0) -> 0 | D5: =IF(C5=1,MAX($D$2:D4)+1,0) -> 0 | F5: =IF(Impresion!D5=0,"",IF(Configurador!$R$21="Castellano",Impresion!I5,IF(Configurador!$R$21="English",Impresion!J5,IF(Configurador!$R$21="Catalá",Impresion!K5,IF(Configurador!$R$21="Euskara",Impresion!L5,IF(Configurador!$R$21="Galego",Impresion!M5,"")))))) ->  | I5: O365_Essentials_E | J5: O365_Issentials_I | K5: O365_Cssentials_C | L5: O365_Kssentials_K | M5: O365_Gssentials_G | P5: CIF | Q5: =IF(Configurador!C9<>"",1,0) -> 0 | R5: Contacto | S5: =IF(Configurador!J17<>"",1,0) -> 0 | T5: Validez | U5: =IF(Configurador!R9<>"",1,0) -> 0
B6: Office 365 E1 -E3-E5 | C6: =IF(OR(Configurador!J39>0,Configurador!J40>0,Configurador!J43>0),1,0) -> 0 | D6: =IF(C6=1,MAX($D$2:D5)+1,0) -> 0 | F6: =IF(Impresion!D6=0,"",IF(Configurador!$R$21="Castellano",Impresion!I6,IF(Configurador!$R$21="English",Impresion!J6,IF(Configurador!$R$21="Catalá",Impresion!K6,IF(Configurador!$R$21="Euskara",Impresion!L6,IF(Configurador!$R$21="Galego",Impresion!M6,"")))))) ->  | I6: O365_E1E3E5_E | J6: O365_E1E3E5_ I | K6: O365_E1E3E5_ C | L6: O365_E1E3E5_ K | M6: O365_E1E3E5_ G | P6: Direccion | Q6: =IF(Configurador!C11<>"",1,0) -> 0 | R6: Teléfono | S6: =IF(Configurador!J19<>"",1,0) -> 0 | T6: Firma | U6: 1
A7: Azure | B7: Servidores -10 usrs | C7: =IF(OR(SUM(Configurador!P57:P62)>0,Configurador!P76=0),1,0) -> 1 | D7: =IF(C7=1,MAX($D$2:D6)+1,0) -> 3 | E7: =IF(D7=0,"",CONCATENATE("Página ",D7," de ",MAX($D$2:$D$26))) -> Página 3 de 7 | F7: =IF(Impresion!D7=0,"",IF(Configurador!$R$21="Castellano",Impresion!I7,IF(Configurador!$R$21="English",Impresion!J7,IF(Configurador!$R$21="Catalá",Impresion!K7,IF(Configurador!$R$21="Euskara",Impresion!L7,IF(Configurador!$R$21="Galego",Impresion!M7,"")))))) -> Azure_10_E | I7: Azure_10_E | J7: Azure_10_I | K7: Azure_10_C | L7: Azure_10_K | M7: Azure_10_G | P7: Ciudad | Q7: =IF(Configurador!C13<>"",1,0) -> 0 | R7: Email | S7: =IF(Configurador!J21<>"",1,0) -> 0 | T7: Lugar | U7: 1
B8: Servidores -50 usrs | C8: =IF(SUM(Configurador!P63:P68)>0,1,0) -> 0 | D8: =IF(C8=1,MAX($D$2:D7)+1,0) -> 0 | F8: =IF(Impresion!D8=0,"",IF(Configurador!$R$21="Castellano",Impresion!I8,IF(Configurador!$R$21="English",Impresion!J8,IF(Configurador!$R$21="Catalá",Impresion!K8,IF(Configurador!$R$21="Euskara",Impresion!L8,IF(Configurador!$R$21="Galego",Impresion!M8,"")))))) ->  | I8: Azure_50_E | J8: Azure_50_I | K8: Azure_50_C | L8: Azure_50_K | M8: Azure_50_G | P8: Provincia | Q8: =IF(Configurador!C15<>"",1,0) -> 0 | S8: =IF(SUM(S4:S7)<>4,0,1) -> 0 | T8: Idioma | U8: =IF(Configurador!R21<>"",1,0) -> 1
B9: Servidores -100 usrs | C9: =IF(SUM(Configurador!P69:P74)>0,1,0) -> 0 | D9: =IF(C9=1,MAX($D$2:D8)+1,0) -> 0 | F9: =IF(Impresion!D9=0,"",IF(Configurador!$R$21="Castellano",Impresion!I9,IF(Configurador!$R$21="English",Impresion!J9,IF(Configurador!$R$21="Catalá",Impresion!K9,IF(Configurador!$R$21="Euskara",Impresion!L9,IF(Configurador!$R$21="Galego",Impresion!M9,"")))))) ->  | I9: Azure_100_E | J9: Azure_100_I | K9: Azure_100_C | L9: Azure_100_K | M9: Azure_100_G | P9: Apoderado | Q9: =IF(Configurador!C17<>"",1,0) -> 0 | U9: =IF(SUM(U4:U8)<>5,0,1) -> 0
B10: A medida | C10: =IF(Configurador!P75>0,1,0) -> 0 | D10: =IF(C10=1,MAX($D$2:D9)+1,0) -> 0 | F10: =IF(Impresion!D10=0,"",IF(Configurador!$R$21="Castellano",Impresion!I10,IF(Configurador!$R$21="English",Impresion!J10,IF(Configurador!$R$21="Catalá",Impresion!K10,IF(Configurador!$R$21="Euskara",Impresion!L10,IF(Configurador!$R$21="Galego",Impresion!M10,"")))))) ->  | I10: Azure_Custom_E | J10: Azure_Custom_I | K10: Azure_Custom_C | L10: Azure_Kustom_K | M10: Azure_Gustom_G | P10: Teléfono | Q10: =IF(Configurador!C19<>"",1,0) -> 0
B11: Servers | C11: =IF(Configurador!S81>0,1,0) -> 0 | D11: =IF(C11=1,MAX($D$2:D10)+1,0) -> 0 | F11: =IF(Impresion!D11=0,"",IF(Configurador!$R$21="Castellano",Impresion!I11,IF(Configurador!$R$21="English",Impresion!J11,IF(Configurador!$R$21="Catalá",Impresion!K11,IF(Configurador!$R$21="Euskara",Impresion!L11,IF(Configurador!$R$21="Galego",Impresion!M11,"")))))) ->  | I11: Server_E | J11: Server_I | K11: Server_C | L11: Server_K | M11: Server_G | P11: Email | Q11: =IF(Configurador!C21<>"",1,0) -> 0
A12: BusApps | B12: Bus Apps Genérica | C12: =IF(SUM(Configurador!P87:P89)=0,1,0) -> 1 | D12: =IF(C12=1,MAX($D$2:D11)+1,0) -> 4 | E12: Página 4 de 7 | F12: =IF(Impresion!D12=0,"",IF(Configurador!$R$21="Castellano",Impresion!I12,IF(Configurador!$R$21="English",Impresion!J12,IF(Configurador!$R$21="Catalá",Impresion!K12,IF(Configurador!$R$21="Euskara",Impresion!L12,IF(Configurador!$R$21="Galego",Impresion!M12,"")))))) -> BusApps_Generica_E | I12: BusApps_Generica_E | J12: BusApps_Generica_I | K12: BusApps_Generica_C | L12: BusApps_Generica_K | M12: BusApps_Generica_G | Q12: =IF(SUM(Q4:Q11)<>8,0,1) -> 0
B13: Dynamics Business Central | C13: =IF(SUM(Configurador!P87:P89)=0,0,1) -> 0 | D13: =IF(C13=1,MAX($D$2:D12)+1,0) -> 0 | F13: =IF(Impresion!D13=0,"",IF(Configurador!$R$21="Castellano",Impresion!I13,IF(Configurador!$R$21="English",Impresion!J13,IF(Configurador!$R$21="Catalá",Impresion!K13,IF(Configurador!$R$21="Euskara",Impresion!L13,IF(Configurador!$R$21="Galego",Impresion!M13,"")))))) ->  | I13: Dynamics_E | J13: Dynamics_I | K13: Dynamics_C | L13: Dynamics_K | M13: Dynamics_G
B14: Dynamics Sales & PBI & Apps | C14: =IF(SUM(Configurador!P90:P92)=0,0,1) -> 0 | D14: =IF(C14=1,MAX($D$2:D13)+1,0) -> 0 | F14: =IF(Impresion!D14=0,"",IF(Configurador!$R$21="Castellano",Impresion!I14,IF(Configurador!$R$21="English",Impresion!J14,IF(Configurador!$R$21="Catalá",Impresion!K14,IF(Configurador!$R$21="Euskara",Impresion!L14,IF(Configurador!$R$21="Galego",Impresion!M14,"")))))) ->  | I14: Dynamics_Sales_E | J14: Dynamics_Sales_I | K14: Dynamics_Sales_C | L14: Dynamics_Sales_K | M14: Dynamics_Sales_G
B15: Add-ins Office | C15: =IF(SUM(Configurador!P93:P95)>0,1,0) -> 0 | D15: =IF(C15=1,MAX($D$2:D14)+1,0) -> 0 | F15: =IF(Impresion!D15=0,"",IF(Configurador!$R$21="Castellano",Impresion!I15,IF(Configurador!$R$21="English",Impresion!J15,IF(Configurador!$R$21="Catalá",Impresion!K15,IF(Configurador!$R$21="Euskara",Impresion!L15,IF(Configurador!$R$21="Galego",Impresion!M15,"")))))) ->  | I15: Add-in_E | J15: Add-in_I | K15: Add-in_C | L15: Add-in_K | M15: Add-in_G
A16: Hardware | B16: Surface genérica | C16: =IF(SUM(C17:C20)=0,1,0) -> 1 | D16: =IF(C16=1,MAX($D$2:D15)+1,0) -> 5 | E16: Página 5 de 7 | F16: =IF(Impresion!D16=0,"",IF(Configurador!$R$21="Castellano",Impresion!I16,IF(Configurador!$R$21="English",Impresion!J16,IF(Configurador!$R$21="Catalá",Impresion!K16,IF(Configurador!$R$21="Euskara",Impresion!L16,IF(Configurador!$R$21="Galego",Impresion!M16,"")))))) -> Surface_Generica_E | I16: Surface_Generica_E | J16: Surface_Generica_I | K16: Surface_Generica_C | L16: Surface_Generica_K | M16: Surface_Generica_G
B17: Surface Pro | C17: =IF(LN_Surface!B69>0,1,0) -> 0 | D17: =IF(C17=1,MAX($D$2:D16)+1,0) -> 0 | F17: =IF(Impresion!D17=0,"",IF(Configurador!$R$21="Castellano",Impresion!I17,IF(Configurador!$R$21="English",Impresion!J17,IF(Configurador!$R$21="Catalá",Impresion!K17,IF(Configurador!$R$21="Euskara",Impresion!L17,IF(Configurador!$R$21="Galego",Impresion!M17,"")))))) ->  | I17: SurfacePro_E | J17: SurfacePro_I | K17: SurfacePro_C | L17: SurfacePro_K | M17: SurfacePro_G
B18: Surface Book | C18: =IF(LN_Surface!B81>0,1,0) -> 0 | D18: =IF(C18=1,MAX($D$2:D17)+1,0) -> 0 | F18: =IF(Impresion!D18=0,"",IF(Configurador!$R$21="Castellano",Impresion!I18,IF(Configurador!$R$21="English",Impresion!J18,IF(Configurador!$R$21="Catalá",Impresion!K18,IF(Configurador!$R$21="Euskara",Impresion!L18,IF(Configurador!$R$21="Galego",Impresion!M18,"")))))) ->  | I18: SurfaceBook_E | J18: SurfaceBook_I | K18: SurfaceBook_C | L18: SurfaceBook_K | M18: SurfaceBook_G
B19: Surface Go | C19: =IF(LN_Surface!B93>0,1,0) -> 0 | D19: =IF(C19=1,MAX($D$2:D18)+1,0) -> 0 | F19: =IF(Impresion!D19=0,"",IF(Configurador!$R$21="Castellano",Impresion!I19,IF(Configurador!$R$21="English",Impresion!J19,IF(Configurador!$R$21="Catalá",Impresion!K19,IF(Configurador!$R$21="Euskara",Impresion!L19,IF(Configurador!$R$21="Galego",Impresion!M19,"")))))) ->  | I19: SurfaceGo_E | J19: SurfaceGo_I | K19: SurfaceGo_C | L19: SurfaceGo_K | M19: SurfaceGo_G
B20: Surface Laptop | C20: =IF(LN_Surface!B105>0,1,0) -> 0 | D20: =IF(C20=1,MAX($D$2:D19)+1,0) -> 0 | F20: =IF(Impresion!D20=0,"",IF(Configurador!$R$21="Castellano",Impresion!I20,IF(Configurador!$R$21="English",Impresion!J20,IF(Configurador!$R$21="Catalá",Impresion!K20,IF(Configurador!$R$21="Euskara",Impresion!L20,IF(Configurador!$R$21="Galego",Impresion!M20,"")))))) ->  | I20: SurfaceLaptop_E | J20: SurfaceLaptop_I | K20: SurfaceLaptop_C | L20: SurfaceLaptop_K | M20: SurfaceLaptop_G
B21: Accesorios Surface | C21: =IF(Configurador!C115>0,1,0) -> 0 | D21: =IF(C21=1,MAX($D$2:D20)+1,0) -> 0 | F21: =IF(Impresion!D21=0,"",IF(Configurador!$R$21="Castellano",Impresion!I21,IF(Configurador!$R$21="English",Impresion!J21,IF(Configurador!$R$21="Catalá",Impresion!K21,IF(Configurador!$R$21="Euskara",Impresion!L21,IF(Configurador!$R$21="Galego",Impresion!M21,"")))))) ->  | I21: Accesorios_E | J21: Accesorios_I | K21: Accesorios_C | L21: Accesorios_K | M21: Accesorios_G
B22: Equipos_terceros | C22: =IF(Configurador!Q124>0,1,0) -> 0 | D22: =IF(C22=1,MAX($D$2:D21)+1,0) -> 0 | F22: =IF(Impresion!D22=0,"",IF(Configurador!$R$21="Castellano",Impresion!I22,IF(Configurador!$R$21="English",Impresion!J22,IF(Configurador!$R$21="Catalá",Impresion!K22,IF(Configurador!$R$21="Euskara",Impresion!L22,IF(Configurador!$R$21="Galego",Impresion!M22,"")))))) ->  | I22: HardwareOEM_E | J22: HardwareOEM_I | K22: HardwareOEM_C | L22: HardwareOEM_K | M22: HardwareOEM_G
B23: Partner puesta en marcha | C23: =IF(Configurador!P139>0,1,0) -> 0 | D23: =IF(C23=1,MAX($D$2:D22)+1,0) -> 0 | F23: =IF(Impresion!D23=0,"",IF(Configurador!$R$21="Castellano",Impresion!I23,IF(Configurador!$R$21="English",Impresion!J23,IF(Configurador!$R$21="Catalá",Impresion!K23,IF(Configurador!$R$21="Euskara",Impresion!L23,IF(Configurador!$R$21="Galego",Impresion!M23,"")))))) ->  | I23: PartnerPM_E | J23: PartnerPM_I | K23: PartnerPM_C | L23: PartnerPM_K | M23: PartnerPM_G
B24: Partner gestionados | C24: =IF(Configurador!P152>0,1,0) -> 0 | D24: =IF(C24=1,MAX($D$2:D23)+1,0) -> 0 | E24: =IF(D24=0,"",CONCATENATE("Página ",D24," de ",MAX($D$2:$D$26))) ->  | F24: =IF(Impresion!D24=0,"",IF(Configurador!$R$21="Castellano",Impresion!I24,IF(Configurador!$R$21="English",Impresion!J24,IF(Configurador!$R$21="Catalá",Impresion!K24,IF(Configurador!$R$21="Euskara",Impresion!L24,IF(Configurador!$R$21="Galego",Impresion!M24,"")))))) ->  | I24: PartnerSG_E | J24: PartnerSG_I | K24: PartnerSG_C | L24: PartnerSG_K | M24: PartnerSG_G
B25: Resumen | C25: 1 | D25: =IF(C25=1,MAX($D$2:D24)+1,0) -> 6 | E25: Página 6 de 7 | F25: =IF(Impresion!D25=0,"",IF(Configurador!$R$21="Castellano",Impresion!I25,IF(Configurador!$R$21="English",Impresion!J25,IF(Configurador!$R$21="Catalá",Impresion!K25,IF(Configurador!$R$21="Euskara",Impresion!L25,IF(Configurador!$R$21="Galego",Impresion!M25,"")))))) -> Resumen_E | I25: Resumen_E | J25: Resumen_I | K25: Resumen_C | L25: Resumen_K | M25: Resumen_G
B26: Condiciones y firma | C26: 1 | D26: =IF(C26=1,MAX($D$2:D25)+1,0) -> 7 | E26: Página 7 de 7 | F26: =IF(Impresion!D26=0,"",IF(Configurador!$R$21="Castellano",Impresion!I26,IF(Configurador!$R$21="English",Impresion!J26,IF(Configurador!$R$21="Catalá",Impresion!K26,IF(Configurador!$R$21="Euskara",Impresion!L26,IF(Configurador!$R$21="Galego",Impresion!M26,"")))))) -> Legales_E | I26: Legales_E | J26: Legales_I | K26: Legales_C | L26: Legales_K | M26: Legales_G

Sheet Versiones
B2: Versión Origen | C2: Acción Nº | D2: En: | E2: Cambio Solicitado | G2: Ejecutado | H2: Implementado en Vx.x | I2: Borrador Interno | J2: Versión para Microsoft
B3: v1.1 Marzo 2019 | C3: 1 | D3: Configurador | E3: Marcar secciones obligatorias en entrada de datos: Cliente, Partner, Oferta… | G3: Se indica mediante "*" los campos de datos del Cliente/Partner/Oferta, que son de obligada cumplimentación en el Configurador de la ONE COMERCIAL TOOL | H3: V1.2 Abril 2019
B4: v1.1 Marzo 2019 | C4: 2 | D4: Configurador | E4: Resaltar en letra pequeña en la herramienta los precios son PVP y no incluyen IVA. | G4: Se incluye el literal "Los precios NO incluyen IVA" en varias posiciones de la pégina inicial - Configurador-. El todos los documentos de propuesta que pueden entregarse al cliente, ya se indica que: "Los precios indicados son PVPs recomendados por Microsoft y no incluyen impuestos indirectos (IVA, IGIC, etc.). Todos los descuentos son ofertados por " ;Configurador!J7). J7 es el Nombre del Partner. | H4: V1.2 Abril 2019
B5: v1.1 Marzo 2019 | C5: 3 | D5: Configurador | E5: Cambiar Equipos de terceros por "Otros equipos Windows 10 PRO" | G5: Edición, cambio literales | H5: V1.2 Abril 2019
C6: 4 | H6: V1.2 Abril 2019
B7: v1.1 Marzo 2019 | C7: 5 | D7: Aplicaciones empresariales | E7: Añadir nueva sección incluyendo Power Apps | G7: Incluida nueva Pagína denominada Dymanics_Sales . Con textos pasados a confirmar y maquetado de los mismos una vez validados. Generar cuadro información númerica y reprogramar impresiones y otras macros. | H7: V1.2 Abril 2019
B8: v1.1 Marzo 2019 | C8: 6 | D8: Servicios del Partner | E8: Generar espacios de libre configuración en PartnerPM_E y PartnerSG_E | G8: Modificamos las últimas referencias en cada hoja para que sean de libre cumplimentación. Adicionalmente se optimiza el espacio para el concepto descripción en ambas hojas. | H8: V1.2 Abril 2019
B9: v1.1 Marzo 2019 | C9: 7 | D9: Configurador | E9: Cabecera | G9: Actualización Fecha Versión | H9: V1.2 Abril 2019
B10: v1.1 Marzo 2019 | C10: 8 | D10: Configurador | E10: Datos de cliente, partner y oferta a presentar | F10: Cliente | G10: Se sustituye Nombre * por "empresa" | H10: V1.2 Abril 2019
B11: v1.1 Marzo 2019 | C11: 9 | D11: Configurador | E11: Datos de cliente, partner y oferta a presentar | F11: Partner | G11: Se sustituye Nombre * por "partner" | H11: V1.2 Abril 2019
B12: v1.1 Marzo 2019 | C12: 10 | D12: BusApps_Generica_E | E12: Texto inicial | G12: Se elimina duplicado de … "para" en - Le recomendamos las aplicaciones de negocio de Microsoft para para simplificar y conectar los procesos empresariales, mejorar las interacciones con los clientes y facilitar el crecimiento | H12: V1.2 Abril 2019
B13: v1.1 Marzo 2019 | C13: 11 | D13: BusApps_Generica_E | E13: Outlook Customer Manager | G13: Se corrige texto en BusApps_Generica_E "Realiza el seguimiento de la actividad con los clientesde forma eficiente y sencilla, desde el mismo programa con el que gestionas el trabajo en equipo, Microsoft Outlook | H13: V1.2 Abril 2019
B14: v1.1 Marzo 2019 | C14: 12 | D14: Dynamics_E | E14: Dynamics 365 Business Central Premium | G14: Se corrige texto en Dynamics_E "Operaciones: consigue niveles de producción óptimos y automtiza las órdenes de compra" | H14: V1.2 Abril 2019
B15: v1.1 Marzo 2019 | C15: 13 | D15: BusApps_Generica_E | E15: Bloques texto inferiores | G15: Corregir alineación | H15: V1.2 Abril 2019
B16: v1.1 Marzo 2019 | C16: 14 | D16: Dynamics_E | E16: Bloques texto inferiores | G16: Corregir alineación | H16: V1.2 Abril 2019
B17: v1.1 Marzo 2019 | C17: 15 | D17: Add-in_E | E17: Bloques texto inferiores | G17: Corregir alineación | H17: V1.2 Abril 2019
B18: v1.1 Marzo 2019 | C18: 16 | D18: Resumen_E | E18: Software | G18: Editar/corregir texto? Problema de márgenes en maquetado. RESUELTO | H18: V1.2 Abril 2019
B19: v1.1 Marzo 2019 | C19: 17 | D19: O365_Premium_E | E19: Te recomendamos Enterprise Mobility and .. | G19: Camibio "conductual" por "de comportamiento" | H19: V1.2 Abril 2019
B20: v1.1 Marzo 2019 | C20: 18 | D20: O365_Essentials_E | E20: Te recomendamos Enterprise Mobility and .. | G20: Camibio "conductual" por "de comportamiento" | H20: V1.2 Abril 2019
B21: v1.1 Marzo 2019 | C21: 19 | D21: O365_Essentials_E | E21: Office 365 Empresa Essentials | G21: Modificación de contenidos | H21: V1.2 Abril 2019
B22: v1.1 Marzo 2019 | C22: 20 | D22: O365_Empresa_E | E22: Modernización del puesto de trabajo completa con Microsoft 365 | G22: Edición de texto y formatos | H22: V1.2 Abril 2019
B23: v1.1 Marzo 2019 | C23: 21 | D23: Configurador | E23: Condiciones de Pago | G23: Se incluyen campos Facturación y Forma de Pago | H23: V1.2 Abril 2019
B24: v1.1 Marzo 2019 | C24: 22 | D24: Legales_E | E24: Condiciones de Pago | G24: Se incluyen campos Facturación y Forma de Pago | H24: V1.2 Abril 2019
B25: v1.1 Marzo 2019 | C25: 23 | D25: Configurador | E25: (primera tabla) Columna WS CAL y cuota/mes desaparecen , estas licencias ya vienen incluidas en la estructura nube | G25: Se eliminan de configurador en el apartado, de modernización de servidores. Esto implica eliminar los cuadros asociados en las hojas propuestas de Azure 10, 50 y 100. Se refleja en cuadros inferiores. | H25: V1.2 Abril 2019
B26: v1.1 Marzo 2019 | C26: 24 | D26: Azure_10_E | E26: Se elimina el apartado inicial de las Licencias de usuario (WS CALs) | G26: Eliminar cuadros asociados y remaquetar página. | H26: V1.2 Abril 2019
B27: v1.1 Marzo 2019 | C27: 25 | D27: Azure_50_E | E27: Eliminar el apartado inicial de las Licencias de usuario (WS CALs) | G27: Eliminar cuadros asociados y remaquetar página. | H27: V1.2 Abril 2019
B28: v1.1 Marzo 2019 | C28: 26 | D28: Azure_100_E | E28: Eliminar el apartado inicial de las Licencias de usuario (WS CALs) | G28: Eliminar cuadros asociados y remaquetar página. | H28: V1.2 Abril 2019
B29: v1.1 Marzo 2019 | C29: 27 | D29: Azure_Custum_E | E29: Eliminar el apartado inicial de las Licencias de usuario (WS CALs) | G29: Eliminar cuadros asociados y remaquetar página. | H29: V1.2 Abril 2019
B30: v1.1 Marzo 2019 | C30: 28 | D30: Azure_10_E | E30: Modernización de servidores con infrestructura cloud dimensionada para hasta 10 usuarios | G30: Edición texto: elimina "para" …. Dimensianada hasta … Formateado información de textos inferiores. | H30: V1.2 Abril 2019
B31: v1.1 Marzo 2019 | C31: 29 | D31: Azure_50_E | E31: Modernización de servidores con infrestructura cloud dimensionada para hasta 50 usuarios | G31: Edición texto: elimina "para" …. Dimensianada hasta … Formateado información de textos inferiores. | H31: V1.2 Abril 2019
B32: v1.1 Marzo 2019 | C32: 30 | D32: Azure_100_E | E32: Modernización de servidores con infrestructura cloud dimensionada para hasta 100 usuarios | G32: Edición texto: elimina "para" …. Dimensianada hasta … Formateado información de textos inferiores. | H32: V1.2 Abril 2019
B33: v1.1 Marzo 2019 | C33: 31 | D33: Configurador | E33: Replanteamiento de la información del cuadro "Resumen de productos y servicios" | G33: Se adapta cuadro a lo remitido por Cristina en mail del 8 abril en Configurador y hoja resumen . (origen E.Iturmendi) | H33: V1.2 Abril 2019
B34: v1.1 Marzo 2019 | C34: 32 | D34: Varias | E34: Actualización de LOGO Office | G34: Se actualzan los logos de Office según informacion recibida. Manuales/logo | H34: V1.2 Abril 2019
B35: v1.1 Marzo 2019 | C35: 33 | D35: Portada | E35: Ampliar con reducción de márgenes | G35: Superior, inferior y derecha | H35: V1.2 Abril 2019
B36: v1.1 Marzo 2019 | C36: 34 | D36: Configurador | E36: Incluir una nueva fila en Modernización Puesto de Trabajo. | G36: Se incluye una segunda fila de libre configuración y se modifica resumen general asociado al mismo | H36: V1.2 Abril 2019
B37: v1.1 Marzo 2019 | C37: 35 | D37: O365_Empresa_E | E37: Parametrizar la segunda fila de libre Configuracción anterior | G37: Paremetrizar y reformular para la segunda fila de libre configuración | H37: V1.2 Abril 2019
B38: v1.1 Marzo 2019 | C38: 36 | D38: Configurador | E38: Incluir una nueva fila de libre configuración en apartado Servicios del Partner - Puesta en Marcha | G38: Moficicar Alineamientos de los textos | H38: V1.2 Abril 2019
B39: v1.1 Marzo 2019 | C39: 38 | D39: PartnerPM_E | E39: Parametrización de las modificaciones anteriores | G39: Ensanchado del cuadro para poder disponer de mayor estpacio para texto. La configuración para poder cubrir todas las posibilidades no da opción de expandir el cuadro. Valorar otras alternativas de eliminar opciones a la mitad para disponer del doble de espacio. | H39: V1.2 Abril 2019
B40: v1.1 Marzo 2019 | C40: 37 | D40: Configurador | E40: Incluir una nueva fila de libre configuración en apartado Servicios del Partner --Servicios Gestionados | G40: Moficicar Alineamientos de los textos | H40: V1.2 Abril 2019
B41: v1.1 Marzo 2019 | C41: 39 | D41: PartnerSG_E | E41: Parametrización de las modificaciones anteriores | G41: Ensanchado del cuadro para poder disponer de mayor estpacio para texto. La configuración para poder cubrir todas las posibilidades no da opción de expandir el cuadro. Valorar otras alternativas de eliminar opciones a la mitad para disponer del doble de espacio. | H41: V1.2 Abril 2019
B42: v1.1 Marzo 2019 | C42: 40 | D42: Legales_E | E42: Reparametrización de margenes | G42: Se parametrizar márgener a la izquierda y derecha. | H42: V1.2 Abril 2019
B43: v1.1 Marzo 2019 | C43: 41 | D43: Dynamics_Sales_E | E43: Corrección y modificación de textos | G43: Se corrigen y modifcan texgos según corrección realizada (mail Cristina 24 abr) | H43: V1.2 Abril 2019
B44: v1.1 Marzo 2019 | C44: 42 | D44: PartnerPM_E | E44: Reparametrización de Campos | G44: Reducción número de campos con ocultación y chivato de espacio disponnible | H44: V1.2 Abril 2019
B45: v1.1 Marzo 2019 | C45: 43 | D45: PartnerSG_E | E45: Reparametrización de Campos | G45: Reducción número de campos con ocultación y chivato de espacio disponnible | H45: V1.2 Abril 2019 | I45: PREVIA_One_Commercial_Tool_Microsoft_v1.2 CD-8.67 CON logo
B46: V1.2 Mayo 2019 | C46: 44 | D46: O365_Empresa/Premium/Essentials | E46: Generar llamada en Cuota por usuario (Modernización del Puesto de Trabajo) | G46: Modificar texto llammada actual a: *Los precios indicados en cuota por usuario son PVPs recomendados por Microsoft y no incluyen impuestos indirectos (IVA, IGIC, etc.). Todos los descuentos son ofertados por Partner | H46: V1.2 Abril 2019 | I46: PREVIA_One_Commercial_Tool_Microsoft_v1.2 CD-8.67 CON logo
B47: V1.2 Mayo 2019 | C47: 45 | D47: Azure/10/50/100/Custom /Server | E47: Generar llamada en Cuota por usuario (Modernización de Servidores) | G47: Modificar texto llammada actual a: *Los precios indicados en cuota por usuario son PVPs recomendados por Microsoft y no incluyen impuestos indirectos (IVA, IGIC, etc.). Todos los descuentos son ofertados por Partner | H47: V1.2 Abril 2019 | I47: PREVIA_One_Commercial_Tool_Microsoft_v1.2 CD-8.67 CON logo
B48: V1.2 Mayo 2019 | C48: 46 | D48: Dynamics/E/Sales_E/Add-in_E | E48: Generar llamada en Cuota por usuario (Aplicaciones de Negocio) | G48: Modificar texto llammada actual a: *Los precios indicados en cuota por usuario son PVPs recomendados por Microsoft y no incluyen impuestos indirectos (IVA, IGIC, etc.). Todos los descuentos son ofertados por Partner | H48: V1.2 Abril 2019 | I48: PREVIA_One_Commercial_Tool_Microsoft_v1.2 CD-8.67 CON logo
B49: V1.2 Mayo 2019 | C49: 47 | D49: Legales_E | E49: Modificación WWW donde consultar y descargar condiciones. | G49: En la hoja de aceptación: Donde pone: Las condiciones legales de los productos de Microsoft incluidos en la presente propuesta pueden ser consultadas y descargadas en https://www.microsoft.com/es-es/licensing/productlicensing/products Tiene que poner: Las condiciones legales de los productos de Microsoft incluidos en la presente propuesta pueden ser consultadas y descargadas en https://download.microsoft.com/download/2/C/8/2C8CAC17-FCE7-4F51-9556-4D77C7022DF5/MCA2017Agr_EMEA_EU-EFTA_ENG_Sep20172_CR.pdf | H49: V1.2 Abril 2019 | I49: PREVIA_One_Commercial_Tool_Microsoft_v1.2 CD-8.67 CON logo
B50: V1.2 Mayo 2019 | C50: 48 | D50: Legales_E | E50: Modificación WWW donde consultar y descargar acuerdos de nivel de servicio de los servicios online de Microsoft | G50: Donde Pone: Los acuerdos de nivel de servicio de los servicios online de Microsoft pueden ser consultados y descargados en https://www.microsoft.com/es-es/licensing/product-licensing/products Tiene que poner: Los acuerdos de nivel de servicio de los servicios online de Microsoft pueden ser consultados y descargados en http://www.microsoftvolumelicensing.com/DocumentSearch.aspx?Mode=3&DocumentTypeId=37 | H50: V1.2 Abril 2019
B51: V1.2 Mayo 2019 | C51: 49 | D51: Configurador Resumen_E | E51: Incluir llamdas a referencias de precios…. Adaptar llamada actual existente e identificarla como *** | G51: En la hoja Resumen y Configurador Ponemos * en las cajas de Pago inicial y Pago mensual También podemos ver el poner un (1) y un (2) pequeñitos Ponemos ** en el resto Donde pone: Los precios indicados son PVPs recomendados por Microsoft y no incluyen impuestos indirectos (IVA, IGIC, etc.). Todos los descuentos son ofertados por Partner Tiene que poner: *Los precios indicados son PVPs recomendados por Microsoft y no incluyen impuestos indirectos (IVA, IGIC, etc.). **Los descuentos y los precios netos son ofertados por Partner | H51: V1.2 Abril 2019
B52: V1.2 Mayo 2019 | C52: 50 | D52: Legales_E | E52: look&feel del cuadro "Forma de Pago" | G52: Por último en cuanto a look&feel: • Ampliar el alto del cuadro “Forma de Pago” e igualar con el resto • Reducir el tamaño de letra e igualar con el resto de secciones. | H52: V1.3 Mayo 2019 | I52: TRABAJANDO 20190513 v1.2 CD CL 8.87
B53: V1.3 Mayo 2019 | C53: 51 | D53: O365_E1E3E5_E | E53: Nueva pagina asociada a Modernización Puesto de Trabajo | G53: Generación de nueva hoja con modificación de Macros para presentación, impresión, inserciones de logo repaginación de las propuestas. | H53: V1.4 Octubre 2019
B54: V1.3 Mayo 2019 | C54: 52 | D54: Configurador | E54: Inclluir nuevo opcional AIP | G54: Implica modificación de la hoja configuración y del resto de Modernización del puesto de trabajo, al ser opción de todos los productos anteriores Redefinición con nuevas lógicas y parametrización de impresiones en las mismas. Reformulación de cuadros sumatorios resultantes parciales y totales | H54: V1.4 Octubre 2019
